Workbook

Sheet Motivatie en toelichting (hidden)
A2: LET OP!!! | B2: Bij jaarwisselingen kan een probleem optreden: | C2: Bron: | D2: Oplossing:
B3: De bodem-grafiek verdwijnt zodra er een gewas wordt ingevuld en/of en komt altijd een foutmelding bij het invullen van een datum voor de bemesting | C3: Invulscherm U29, U30 en AB3 | D3: Iets in de formule in de cel wijzigen, de cel verlaten, weer teruggaan en de oorspronkelijke formule weer herstellen.
C4: Invulschetm tweede teelt U21, U22 en AB3 | D4: Iets in de formule in de cel wijzigen, de cel verlaten, weer teruggaan en de oorspronkelijke formule weer herstellen.
A7: GEWASSEN
A8: Erwt en stamslaboon | B8: N-fixatie uit NDICEA gehaald en deze in de berekeningen opgenomen als 'bemesting'. Niveau lineair gerelateerd aan opbrengstnivo.
A9: Suikerbiet | B9: 1 vaste opnamecurve gehanteerd, niet gerelateerd aan verwachte opbrengst.
A10: Witte kool en Bloemkool | B10: geen differentieatie naar teeltdoel. N-opnamecurves zijn gelijk en plant- en oogstdatum kan handmatig aangepast worden.
A11: Pootaardappelen | B11: Zijn toegevoegd. Opnamecurve geconstrueerd uit die voor consumptieaardappelen: maximum opname gesteld op 200 kg N/ha (ipv 220 voor c.a.), en opname in weken daarvoor navenant lager berekend.
A13: Als zaai- of pootdatum handmatig aangepast wordt, wordt ook de verwachte oogstdatum automatisch aangepast aan de duur van de opnamecurve (tenzij deze weer handmatig overschreven wordt)
A15: Berekeningen van Nmineralisatie uit organische stof / organische bemesting | B15: Volgens artikel … (referentie toevoegen)
A17: BEMESTING
A18: Verhouding N-totaal en Nmin | B18: Per mestsoort is een standaard waarde voor de verhouding tussen Ntotaal en Nmin aangenomen. Als op basis van analyses het gehalte aan Ntotaal wordt aangepast wordt ook het gehalte aan Nmin aangepast (tenzij dit weer handmatig wordt overschreven op basis van een analyse)
A19: Adviezen volgens adviesbasis | B19: Meeste adviezen rekenen Nmin mee. Echter, soms is dit Nmin 0-30 cm, vaak ook Nmin 0-60 cm of zelfs Nmin 0-100 cm.
B20: Bemesting wt, zg, spinazie: advies voor zand en klei anders. | C20: Zavel = klei; Loss = zand
B21: Als opbrengstverwachting aangepast wordt wordt ook de opname aangepast. Bemestingsadviezen echter gelaten zoals ze zijn: adviezen zijn al gericht op optimale opbrengst
A23: BODEM
A24: Nmin meting | B24: Bemestingsadvies vaak afhankelijk van Nminbepaling, diepte gewasafhankelijk. Bij Nminbemonstering over grotere diepte dan 0-30 cm kun je deze gewoon invullen (gewas kan deze Nmin bereiken) maar denitrificatie wordt overschat…
B25: Als een Nminmeting is gedaan wordt de N-levering uit de bodem hierop gefit.
B26: Najaarsbemesting of voorvrucht: geleverde N vóór het moment van Nminmeting zit in deze Nminmeting. In de berekeningen daarom buiten beschouwing gelaten. Alleen de N die geleverd wordt ná een evt. Nminmeting wordt in de berekeningen meegenomen.
A28: Denitrificatie | B28: Deze gaat in feite over de totale hoeveelheid Nmin die er op een gegeven moment is. Hiervan wordt de gewasopname af getrokken, en dan de denitrificatie berekend. In de berekeningen wordt ze per N-bron (bodem, mest, etc) berekend, om iedere N-bron apart in de grafiek te kunnen zetten. Daartoe wordt de gewasopname gewogen toebedeeld aan de verschillende N-bronnen Dusn als de bodem 25 % van de n op een zeker moment levert, mest 1 50 % en mest 2 25 % wordt ook de gewasopname voor 25, 50 resp. 25 % toegewezen aan resp bodem, mest 1 en mest 2.
B29: N-levering uit gewasresten of groenbemesters wordt aan de N uit de bodem toegevoegd en over het geheel de denitrificatie berekend.
A31: Verkenning risico's | B31: Wat betreft de onzekerheden in de mestanalyses: is nu mogelijk door een verkenning van N-gehaltes die 10% hoger of lager zijn dan de analyse aangeeft. Grafisch weergeven van de spreiding wordt erg complex, ik weet niet of dit binnen Excel kan. Je moet dan denken aan niet een lijn maar een brede band voor de N-levering van organische mest. En dat voor iedere bemesting als er meerdere zijn met organische mest. MOGELIJK MET DE INTERNET INTERFACE WEL MOGELIJK!!\
A33: Beveiliging: | B33: Alleen invulscherm zichtbaar voor gebruikers. De rest verborgen en geblokkeerd. Kan gemakkelijk opgeheven worden maar niet per ongeluk.

Sheet Standaardwaarden (hidden)
A1: Standaardwaarden en referentiewaarden
B2: waarde | C2: eenheid | D2: toelichting
A3: OS | B3: 2 | C3: %
A4: pH | B4: 6.5
A5: pH zand | B5: 5.5
A6: pH dal | B6: 5.2
A7: pH zavel | B7: 7.2
A8: pH klei | B8: 7
A9: pH löss | B9: 6.2
A10: Toedieningstechniek dunne mest | B10: bouwlandinjectie
A11: Toedieningstechniek overige mestsoorten | B11: bovengronds en direct inwerken
A12: Temperatuur | B12: Gemiddelde van de waarden voor noord-midden-zuid voor een normaal resp. warm of koud jaar
A13: Oogstdatum | B13: ="1-nov" -> 1-nov
A14: Nminbepaling | B14: ="1-feb" -> 1-feb
A15: Nminhoeveelheid | B15: 30 | C15: kgNmin/ha
A16: Temperatuur | B16: normaal jaar
A17: Intensiteit organische stof voorziening | B17: gemiddeld
A18: Begindatum toediening organische mest | B18: ="14-feb" -> 14-feb
A19: Einddatum | B19: ="1-nov" -> 1-nov
A20: sg grond (kg/m3) | B20: =(-0.293*LN(Invulscherm!$B$10)+1.6304)*1000 -> 1427.307876 | C20: kg/m3 | D20: De oorspronkelijke formule van Kor Zwart aangeleverd heeft lijkt wel een erg hoge bulkdichtheid aan te geven bij een org stof gehalte rond 2% (bd=1,58). Gecorrigeerd naar bd=1,4 (elders gemeten waarden) met behoud van gegeven bulkdichtheid bij org stof gehalte = 10 (bd=1) en toen nieuwe logaritmische functie opgesteld.
A21: Volume bouwvoor (0-30cm), m3 | B21: =0.3*100*100 -> 3000 | C21: m3
A22: i.age OS grond | B22: =IF(Invulscherm!$B$5="hoog",13,IF(Invulscherm!$B$5="laag",19,16)) -> 16 | D22: In de I.age zit het nivo van organische stof aanvoer op het bedrijf verrekend. Het werkt dan alleen via de bodem organische stof. Als we de verrekening via de textuur factor zouden doen werkt het door op ALLE afbraak van organische stof, dus ook de vers toegediende organische mest of gewasrest, en dat is niet realistisch.
A23: C-gehalte OS grond | B23: =MIN(0.58,IF(B22<1,0.45,0.065*B22+0.385)) -> 0.58 | C23: kg/kg
A24: N-gehalte in OS bodem | B24: =B23*100/B25 -> 5.8 | C24: %
A25: C/N van OS | B25: 10
A26: kgN in bouwvoor | B26: =(B20*B21*(Invulscherm!$B$10/100)*B23)/B25 -> 4967.031409 | C26: kgN/ha | D26: Zie berekening in 'Berekeningen'
A27: Getallen micro organismen
A28: cn ratio micro organismen | B28: 6.5
A29: assimilatie:dissimilatie ratio micro organismen | B29: 0.4
A30: Correctiefactor denitrificatie | B30: 1
A31: Correctiefactor grond
A32: zand | B32: 1
A33: dalgrond | B33: 1
A34: zavel | B34: 0.85
A35: klei | B35: 0.71
A36: löss | B36: 0.92
A37: Gemiddeld | B37: 0.85 | D37: Opm: rekenkundig gemiddelde rekent loss te zwaar mee.
A39: Waarschuwingen
A40: 1e teelt
A41: Hoge Nmingehaltes na oogst | B41: Invulscherm!I28: Als een gewas is ingevuld en Nmin bij oogst is > 10. | D41: =IF(Invulscherm!$B$15<>"",CONCATENATE("LET OP!! De hoeveel heid Nmin na de oogst kan oplopen tot ",ROUNDDOWN(Berekeningen!AB102,0)," kg N/ha. Overweeg een groenbemester te zaaien."),"") -> 
A42: Hoogte van bemesting (totaal) | B42: Invulscherm!F28: Als gewas is ingevuld. | D42: =IF(Berekeningen!AL1>0,D43,IF(Berekeningen!AK1=0,D44,D45)) -> LET OP!! Er zijn perioden met een stikstoftekort. Overweeg uw bemesting aan te passen.
B43: Melding N-tekort: als gewasbehoefte minus levering door bodem, Nfixatie en bemesting >5 (in 1 of meerdere weken tijdens gewasgroei). (Berekeningen kolom AL) | C43: Tekst: | D43: LET OP!! Er zijn perioden met een stikstoftekort. Overweeg uw bemesting aan te passen.
B44: Melding te ruime bemesting: Als overschot van geleverde N door bodem, N-fixatrie en bemesting minus gewasbehoefte incl buffer >10 (in iedere week van gewasgroei) (Berekeningen kolom AK) | C44: Tekst: | D44: LET OP!! Uw bemesting is aan de ruime kant. Overweeg een lagere bemesting
B45: Melding voldoende bemesting: Als geen van beide optreedt | C45: Tekst: | D45: Stikstofbemesting is voldoende
A46: Timing eerste bemesting | B46: Invulscherm!C30: Als tijdstip 1e bemesting meer dan 2 weken vóór datum van zaaien/poten. | D46: =IF(Invulscherm!$B$15<>"",IF(Invulscherm!$B$31<>"",IF(Invulscherm!$B$31<(Invulscherm!$AB$3),"Heeft U na deze najaarsbemesting een Nminanalyse gedaan?",IF(Invulscherm!$B$31<(Invulscherm!$B$17-14),IF(Invulscherm!$B$15="Wintertarwe","LET OP! Bemesting meer dan 2 weken voor begin hergroei. Overweeg uitstel.","LET OP! Bemesting meer dan 2 weken voor zaaien/poten. Overweeg uitstel."),"")),""),"") -> 
A47: Fosfaatgebruiksnorm | B47: Invulscherm!F26: Als toegediende fosfaat groter dan 65 kg of groter dan 85 kg. | D47: =IF(Invulscherm!J71>=65,IF(Invulscherm!J71>85,"LET OP! De fosfaatgebruiksnorm wordt overschreden!","Controleer de fosfaatgebruiksnorm"),"") -> 
C48: Tekst: | D48: Controleer de fosfaatgebruiksnorm
C49: Tekst: | D49: LET OP!! De fosfaatgebruiksnorm wordt overschreden!
A50: 2e teelt
A51: Hoge Nmingehaltes na oogst | B51: Invulscherm tweede teelt'!I28: Als een gewas is ingevuld en Nmin bij oogst is > 10. | D51: =CONCATENATE("LET OP!! De hoeveel heid Nmin na de oogst kan oplopen tot ",ROUNDDOWN('Berekeningen tweede teelt'!AB50,0)," kg N/ha. Overweeg een groenbemester te zaaien.") -> 
A52: Hoogte van bemesting (totaal) | B52: Invulscherm tweede teelt'!F28: Als gewas is ingevuld. | D52: =IF('Berekeningen tweede teelt'!AL1>0,D53,IF('Berekeningen tweede teelt'!AK1=0,D54,D55)) -> LET OP!! Er zijn perioden met een stikstoftekort. Overweeg uw bemesting aan te passen.
B53: Melding N-tekort: als gewasbehoefte minus levering door bodem, Nfixatie en bemesting >5 (in 1 of meerdere weken tijdens gewasgroei). ('Berekeningen tweede teelt' kolom AL) | C53: Tekst: | D53: LET OP!! Er zijn perioden met een stikstoftekort. Overweeg uw bemesting aan te passen.
B54: Melding te ruime bemesting: Als overschot van geleverde N door bodem, N-fixatrie en bemesting minus gewasbehoefte incl buffer >10 (in iedere week van gewasgroei) ('Berekeningen tweede teelt' kolom AK) | C54: Tekst: | D54: LET OP!! Uw bemesting is aan de ruime kant. Overweeg een lagere bemesting
B55: Melding voldoende bemesting: Als geen van beide optreedt | C55: Tekst: | D55: Stikstofbemesting is voldoende
A56: Timing eerste bemesting | B56: Invulscherm tweede teelt!C26: Als tijdstip 1e bemesting meer dan 2 weken vóór datum van zaaien/poten. | D56: =IF('Invulscherm tweede teelt'!$B$15<>"",IF('Invulscherm tweede teelt'!$B$27<>"",IF('Invulscherm tweede teelt'!$B$27<('Invulscherm tweede teelt'!$B$17-14),"LET OP! Bemesting meer dan 2 weken voor zaaien/poten. Overweeg uitstel.",""),""),"") -> 

Sheet Colofon
A1: Dit rekenprogramma is een van de producten van het project "Bemesting van de 21ste eeuw: een dynamische benadering".
A2: Tevens is input gebruikt uit het project "Sturen van N-mineralisatie met kennis over organische stof".
A3: Beide projecten zijn gefinancierd door Productschap Akkerbouw.
A4: Aan de projecten hebben meegewerkt LBI, Alterra-WUR, PPO-WUR, Agrifirm, HLB en BLGG AgroXpertus
B5: Geert-Jan van der Burgt; Jan Bokhorst , Monique Hospers-Brands (LBI)
B6: Janjo de Haan, Willem van Geel (PPO)
B7: Karin Oonk, Aaldrik Venhuizen (Agrifirm Plant)
B8: Kor Zwart (Alterra)
B9: Anita Kikkert, Albert Wolfs (HLB)
B10: Aad Termorshuizen (BLGG AgroXpertus)

Sheet Handleiding
A1: Handleiding “Gewasgerichte bemesting – berekeningstool”
A3: Deze tool is bedoeld als hulpmiddel bij het plannen van de bemesting voor het komende jaar waarbij zo precies mogelijk rekening wordt gehouden met de stikstoflevering uit de bodem organische stof en uit de verschillende bemestingsbronnen in de loop van het groeiseizoen.
A4: Met deze tool is het mogelijk om verkenningen uit te voeren mbt. de waarde van verschillende mestsoorten voor een te telen gewas en mbt. het tijdstip van bemesting.
A6: · Vul in welk gewas geteeld gaat worden. (Klik op het pijltje rechts naast de invulcel voor een keuzelijst van beschikbare gewassen)
A7: Voor de zaai- of plantdatum, verwachte oogstdatum en opbrengstschatting wordt een standaardwaarde gegeven. Pas deze eventueel aan aan de ervaringen / planning op uw eigen bedrijf.
A9: · Vul in welke bemesting u wilt geven, wanneer en hoe veel
A10: Let bij gebruik van organische mest op de gebruiksnormen voor stikstof en fosfaat!!
A11: Voor het organische stof gehalte en gehaltes aan N, P en K worden in de berekening standaardwaarden gebruikt. Laat indien mogelijk een mestanalyse uitvoeren en pas deze standaardwaarden aan (zie hier onder).
A13: LET OP: Vul concrete datums in. Dus voor ‘half maart’ vult u ’15 maart’ in en voor 'begin april’ vult u ‘1 april’ in. Voor data in het voorgaande jaar (bv. najaarsbemesting) svp ook het jaartal invullen.
A15: In de grafiek wordt zichtbaar hoe veel stikstof er in de loop van de tijd vrij komt uit de bodemorganische stof en uit bemesting, en wat de stikstofbehoefte van het gewas is gedurende het groeiseizoen.
A16: Voor een goede gewasgroei zou op ieder moment de totale hoeveelheid beschikbaar gekomen stikstof minimaal gelijk moeten zijn aan de gewasopname plus de minimale bodemvoorraad. De minimale bodemvoorraad is de hoeveelheid stikstof die aanwezig moet zijn wil het gewas de stikstof die het nodig heeft ook kunnen opnemen.
A18: In de tabel wordt voor het gehele seizoen de stikstof samengevat.
A20: Na een vroeg ruimend gewas kunt u eventueel een tweede teelt invoeren.
A22: De voorspelling wordt preciezer als u de standaardwaarden aanpast aan uw eigen situatie:
A23: Bemesting:
A24: · Door op de knop ‘Mestanalyses’ te klikken wordt zichtbaar (voor organische mest) welke gehaltes gehanteerd worden. Pas deze aan aan analysegegevens van de toegepaste bemesting.
A25: Bodem:
A26: · Klik op de knop ‘Nmin meting’ voor het invullen van een Nminanalyse in het voorjaar. Dit is vooral belangrijk na een stikstofleverende voorvrucht of groenbemester en na toepassing van een najaarsbemesting.
A27: · Klik op de knop ‘Extra bodemgegevens’ voor het invullen van grondsoort, regio, pH en organische stof gehalte in uw bodem.
A28: Stikstof uit groenbemesters en gewasresten:
A29: · Klik op de knop ‘Groenbemester invoeren’ voor het invullen van een voorafgaande groenbemester. Als de groenbemester is doodgevroren, vul dan bij ‘datum onderwerken’ het moment van doodvriezen in.
A30: · Klik op de knop ‘Gewasrest invoeren’ voor het invullen van een stikstofleverende voorvrucht.
A32: Door het vakje naast ‘Verdieping’ aan te kruisen kunt u een aantal verdere verkenningen uitvoeren:
A33: · U kunt nagaan hoe de hoeveelheid geleverde stikstof verandert in een koud of een warm jaar.
A34: · U kunt aangeven of de intensiteit van organische stof voorziening op uw bedrijf gemiddeld, laag of juist hoog is, en zien wat dat voor consequenties heeft voor de stikstoflevering vanuit de bodem.
A35: Als U recent veel organische stof heeft toegevoegd is dat nog niet in het organische stof gehalte van de bodem terug te vinden maar aangezien het in dit geval gaat om relatief jonge organische stof kan het wel aanzienlijke consequenties hebben voor de stikstoflevering. Dan is het extra van belang om groenbemesters en gewasresten van het afgelopen jaar in te voeren (zie hier boven).
A36: · Het is bekend dat mestanalyses een grote spreiding kunnen vertonen (verschillen tussen verschillende analyses van dezelfde mest). U kunt nagaan wat het betekent als de werkelijke gehaltes 10 % hoger of juist lager uilvallen dan de analyses aangeven.

Sheet Invulscherm
A1: Invulscherm gewasgerichte bemesting
A3: Verdieping | S3: Standaardwaarden | AA3: ="1-jan" -> 1-jan | AB3: =DATEVALUE(AA3)-0.999 -> 41274.001
A4: =IF(B3="X","Temperatuur","") ->  | B4: =T4 ->  | S4: temperatuur | T4: =IF($B$3="X",Standaardwaarden!B16,"") -> 
A5: =IF(B3="X","Intensiteit Organische stof voorziening","") ->  | B5: =T5 ->  | S5: Intensiteit Organische stof voorziening | T5: =IF($B$3="X",Standaardwaarden!B17,"") -> 
AB6: Weeknummers AFGEROND | AC6: Weeknummers
A7: Bodem | AJ7: Grondsoort | AL7: Gewas (#:10 - 20) | AM7: Gewasnummer | AO7: Mest | AQ7: Soort bemesting | AS7: Toediening: | AT7: correctie vervluchtiging Nmin | AU7: Vervluchtiging bij toedienen (relatief aandeel)
A8: Grondsoort | C8: Uit lijst | AJ8: zand | AL8: Consumptieaardappel klei | AM8: 1 | AO8: Vleesvarkensdrijfmest | AQ8: Organische mest | AS8: bouwlandinjectie | AT8: 0.95 | AU8: =1-AT8 -> 0.05
A9: Regio | C9: Uit lijst | S9: bodem | AJ9: dalgrond | AL9: Consumptieaardappel zand | AM9: 2 | AO9: Rundveedrijfmest | AQ9: Kunstmest | AS9: bovengronds en direct inwerken | AT9: 0.8 | AU9: =1-AT9 -> 0.2
A10: Organische stof | B10: =T10 -> 2 | C10: % | S10: organische stof | T10: =Standaardwaarden!B3 -> 2 | AJ10: zavel | AL10: Zetmeelaardappel | AM10: 3 | AO10: Zeugendrijfmest
A11: pH | B11: =T11 -> 6.5 | S11: pH | T11: =IF($B$8=AJ8,Standaardwaarden!B5,IF($B$8=AJ9,Standaardwaarden!B6,IF($B$8=AJ10,Standaardwaarden!B7,IF($B$8=AJ11,Standaardwaarden!B8,IF($B$8=AJ12,Standaardwaarden!B9,Standaardwaarden!B4))))) -> 6.5 | AJ11: klei | AL11: Pootaardappel | AM11: 4 | AO11: Kippendrijfmest | AQ11: Temperatuur
A12: N-min voorjaar | B12: =T12 -> 30 | C12: kg/ha | S12: Nmin voorjaar | T12: =Standaardwaarden!B15 -> 30 | AJ12: löss | AL12: Wintertarwe | AM12: 5 | AO12: Champost | AQ12: normaal jaar | AS12: Intensiteit OS voorz\iening | AT12: hoog
A13: Datum N-min meting | B13: =T13 -> 1-feb | S13: Datum Nmin meting | T13: =Standaardwaarden!B14 -> 1-feb | U13: =IF(T13="","",IF(T13>0,ROUND((T13-$AB$3)/7,0))) -> 5 | AA13: =A13 -> Datum N-min meting | AB13: =IF(B13="","",ROUND(AC13,0)) -> 5 | AC13: =IF(B13="","",IF(B13>0,(B13-$AB$3)/7)) -> 4.571285714 | AL13: Zomergerst | AM13: 6 | AO13: GFT-compost | AQ13: koud jaar | AT13: gemiddeld
AL14: Snijmais | AM14: 7 | AO14: RDM-digestaat | AQ14: warm jaar | AT14: laag
A15: Gewas | C15: Uit lijst | S15: gewas | AA15: Groenbemester onderwerken | AB15: =IF(B22="","",ROUND(AC15,0)) ->  | AC15: =IF(B22="","",IF(B22>0,(B22-$AB$3)/7)) ->  | AL15: Suikerbiet | AM15: 8 | AO15: Betacal-carbo
A16: =IF(B15="Consumptieaardappel klei","N-behoefte",IF(B15="Consumptieaardappel zand","N-behoefte",IF(B15="Zetmeelaardappel","N-behoefte",""))) ->  | B16: =T16 -> NIET INVULLEN | S16: N-behoefte aardappel | T16: =IF(B15="Consumptieaardappel klei","Gemiddeld",IF(B15="Consumptieaardappel zand","Gemiddeld",IF(B15="Zetmeelaardappel","Gemiddeld","NIET INVULLEN"))) -> NIET INVULLEN | AA16: Gewasrest onderwerken | AB16: =IF(B26="","",ROUND(AC16,0)) ->  | AC16: =IF(B26="","",IF(B26>0,(B26-$AB$3)/7)) ->  | AL16: Was- en winterpeen | AM16: 9 | AO16: Betacal-filter | AQ16: N-behoefte aardappelen | AS16: Risico-analyse
A17: =IF(B15="Wintertarwe","BEGIN HERGROEI","ZAAI / POTEN") -> ZAAI / POTEN | B17: =T17 ->  | S17: zaai/poten | T17: =IF(B15<>"",(HLOOKUP(B$15,Gewasopname!2:6,2,FALSE)),"") ->  | AA17: =A17 -> ZAAI / POTEN | AB17: =IF(B17="","",ROUND(AC17,0)) ->  | AC17: =IF(B17="","",IF(B17>0,(B17-$AB$3)/7)) ->  | AL17: Zaaiui | AM17: 10 | AO17: Betacal-flow | AQ17: Hoog | AS17: X
A18: OOGST | B18: =T18 -> 1-nov | S18: oogst | T18: =IF(B15<>"",B17+(HLOOKUP(B$15,Gewasopname!2:6,3,FALSE)-HLOOKUP(B$15,Gewasopname!2:6,2,FALSE)),Standaardwaarden!B13) -> 1-nov | AA18: =A18 -> OOGST | AB18: =IF(B18="","",ROUND(AC18,0)) -> 44 | AC18: =IF(B18="","",IF(B18>0,(B18-$AB$3)/7)) -> 43.57128571 | AL18: Stamslaboon | AM18: 11 | AO18: Bloedmeel | AQ18: Gemiddeld
A19: Verwachte opbrengst | B19: =T19 ->  | C19: =IF(B15="","",IF(B15=AL14,"Ton ds/ha",IF(B15=AL26,"stuks/ha","Ton/ha"))) ->  | S19: verwachte opbrengst | T19: =IF(B15<>"",(HLOOKUP(B$15,Gewasopname!2:6,4,FALSE)),"") ->  | AL19: Conservenerwt | AM19: 12 | AO19: Dikke fractie RDM | AQ19: Laag
AA20: =B33 -> 0 | AB20: =IF(B31="","",ROUND(AC20,0)) ->  | AC20: =IF(B31="","",(B31-$AB$3)/7) ->  | AF20: Spreiding analyseresul\tasten | AL20: Spruiten | AM20: 13 | AO20: Dikke fractie RDM-digestaat | AQ20: NIET INVULLEN
A21: Groenbemester | C21: Uit lijst | AA21: =F33 -> 0 | AB21: =IF(F31="","",ROUND(AC21,0)) ->  | AC21: =IF(F31="","",IF(F31>0,(F31-$AB$3)/7)) ->  | AF21: Uitslag | AL21: Spinazie, voorjaarsteelt | AM21: 14 | AO21: Dikke fractie VDM | AQ21: Regio
A22: Datum onderwerken | AA22: =J33 -> 0 | AB22: =IF(J31="","",ROUND(AC22,0)) ->  | AC22: =IF(J31="","",IF(J31>0,(J31-$AB$3)/7)) ->  | AF22: Uitslag + 10% | AL22: Spinazie, zomerteelt | AM22: 15 | AO22: Dikke fractie VDM-digestaat | AQ22: Noord Nederland
A23: Opbrengstniveau | B23: =AJ27 -> gemiddeld | AA23: =B44 -> 0 | AB23: =IF(B42="","",ROUND(AC23,0)) ->  | AC23: =IF(B42="","",IF(B42>0,(B42-$AB$3)/7)) ->  | AF23: Uitslag - 10% | AL23: Spinazie, herfstteelt | AM23: 16 | AO23: Dunne fractie RDM-digestaat | AQ23: Midden Nederland
AA24: =F44 -> 0 | AB24: =IF(F42="","",ROUND(AC24,0)) ->  | AC24: =IF(F42="","",IF(F42>0,(F42-$AB$3)/7)) ->  | AL24: Witte kool (vers) | AM24: 17 | AO24: Dunne fractie rundveemest | AQ24: Zuid Nederland
A25: Gewasrest | AA25: =J44 -> 0 | AB25: =IF(J42="","",ROUND(AC25,0)) ->  | AC25: =IF(J42="","",IF(J42>0,(J42-$AB$3)/7)) ->  | AF25: Groenbemesters | AH25: Gewasresten | AJ25: Opbrengst groenbemesters | AL25: Witte kool (industrie) | AM25: 18 | AO25: Dunne fractie varkensmest
A26: Datum oogst / inwerken | F26: =IF(B15<>"",Standaardwaarden!D47,"") ->  | AF26: Bladrammenas | AH26: Bloemkool | AJ26: slecht | AL26: Bloemkool | AM26: 19 | AO26: Dunne fractie VDM-digestaat
AF27: Gele mosterd | AH27: Boerenkool | AJ27: gemiddeld | AM27: 20 | AO27: Gerstestro
C28: =IF(B3<>"","Spreiding analyseresultaten","") ->  | D28: =W28 ->  | F28: =IF(B15<>"",Standaardwaarden!D42,"") ->  | I28: =IF(B15<>"",IF(D59>10,Standaardwaarden!D41,""),"") ->  | V28: Spreiding analyseresultaten | W28: =IF(B3="x","Uitslag","") ->  | AA28: Gegevens groenbemester | AB28: =B21 -> 0 | AF28: Bladkool | AH28: Broccoli | AJ28: goed | AM28: 21 | AO28: Groencompost
A29: Bemesting | B29: INDIEN MOGELIJK ACTUELE ANALYSEGEGEVENS INVULLEN!!! | S29: Begindatum toediening organische mest | T29: =Standaardwaarden!B18 -> 14-feb | U29: =DATEVALUE(T29) -> 2013-02-14 | AA29: Opbrengstniveau | AB29: =IF(B21<>"",IF(B23="goed",1.4,IF(B23="slecht",0.6,1)),"") ->  | AF29: Engels raaigras | AH29: Chinese kool | AM29: 22 | AO29: Kippenmestkorrels
B30: Bemesting 1 | C30: =Standaardwaarden!D46 ->  | F30: Bemesting 2 | J30: Bemesting 3 | S30: Einddatum | T30: =Standaardwaarden!B19 -> 1-nov | U30: =DATEVALUE(T30) -> 2013-11-01 | AA30: N hoeveelheid (kg N/ha) | AB30: =IF(B$21<>"",VLOOKUP(B$21,Groenbemesters!$A$1:$D$13,3,FALSE),"") ->  | AF30: Italiaans raaigras | AH30: Conservenerwt | AM30: 23 | AO30: Kippenstrooiselmest
A31: Datum | AA31: Hoeveelheid C (kg C/ha) | AB31: =IF(B$21<>"",VLOOKUP(B$21,Groenbemesters!$A$1:$D$13,4,FALSE),"") ->  | AF31: Westerwolds raaigras | AH31: Kknolselderij | AM31: 24 | AO31: Koemestkorrels
A32: Organisch/kunstmest? | AA32: I.Age | AB32: =IF(B$21<>"",VLOOKUP(B$21,Groenbemesters!$A$1:$D$13,2,FALSE),"") ->  | AF32: Winterrogge | AH32: Knolvenkel | AM32: 25 | AO32: Leghennen vaste mest (mestband + nadroging)
A33: =IF(OR(B32=$AQ$8,F32=$AQ$8,J32=$AQ$8),"Soort","") ->  | D33: =IF(B32=$AQ$8,"ton/ha",IF(B32=$AQ$9,"kg zuivere N/ha","")) ->  | H33: =IF(F32=$AQ$8,"ton/ha",IF(F32=$AQ$9,"kg zuivere N/ha","")) ->  | L33: =IF(J32=$AQ$8,"ton/ha",IF(J32=$AQ$9,"kg zuivere N/ha","")) ->  | S33: =B30 -> Bemesting 1 | U33: =F30 -> Bemesting 2 | W33: =J30 -> Bemesting 3 | AF33: Rode klaver | AH33: Prei | AM33: 26 | AO33: Leghennen vaste mest (mestband)
A34: =IF(OR(B32=$AQ$8,F32=$AQ$8,J32=$AQ$8),"Toedieningstechniek","") ->  | B34: =T34 ->  | F34: =V34 ->  | J34: =X34 ->  | S34: toedieningstechniek | T34: =IF(B32=$AQ$8,VLOOKUP(B33,Meststoffen!$A$2:$R$62,18,FALSE),"") ->  | U34: toedieningstechniek | V34: =IF(F32=$AQ$8,VLOOKUP(F33,Meststoffen!$A$2:$R$62,18,FALSE),"") ->  | W34: toedieningstechniek | X34: =IF(J32=$AQ$8,VLOOKUP(J33,Meststoffen!$A$2:$R$62,18,FALSE),"") ->  | AA34: Gegevens gewasrest | AB34: =B25 -> 0 | AF34: Witte klaver | AH34: Rode biet | AM34: 27 | AO34: Mineralenconcentraat van RDM-digestaat
B35: =IF(B32=$AQ$8,"N-gehalte","") ->  | C35: =T35 ->  | D35: =IF(B32=$AQ$8,"kg/ton","") ->  | F35: =IF(F32=$AQ$8,"N-gehalte","") ->  | G35: =V35 ->  | H35: =IF(F32=$AQ$8,"kg/ton","") ->  | J35: =IF(J32=$AQ$8,"N-gehalte","") ->  | K35: =X35 ->  | L35: =IF(J32=$AQ$8,"kg/ton","") ->  | S35: N-gehalte | T35: =IF(B32=$AQ$8,VLOOKUP(B33,Meststoffen!$A$2:$O$62,8,FALSE),"") ->  | U35: N-gehalte | V35: =IF(F32=$AQ$8,VLOOKUP(F33,Meststoffen!$A$2:$O$62,8,FALSE),"") ->  | W35: N-gehalte | X35: =IF(J32=$AQ$8,VLOOKUP(J33,Meststoffen!$A$2:$O$62,8,FALSE),"") ->  | AA35: N hoeveelheid (kg N/ha) | AB35: =IF(B$25<>"",VLOOKUP(B$25,Gewasresten!$A$1:$D$16,3,FALSE),"") ->  | AF35: Perzische klaver | AH35: Spruiten | AM35: 28 | AO35: Mineralenconcentraat van runderdrijfmest
B36: =IF(B32=$AQ$8,"N-min-gehalte","") ->  | C36: =T36 ->  | D36: =IF(B32=$AQ$8,"kg/ton","") ->  | F36: =IF(F32=$AQ$8,"N-min-gehalte","") ->  | G36: =V36 ->  | H36: =IF(F32=$AQ$8,"kg/ton","") ->  | J36: =IF(J32=$AQ$8,"N-min-gehalte","") ->  | K36: =X36 ->  | L36: =IF(J32=$AQ$8,"kg/ton","") ->  | S36: N-min-gehalte | T36: =IF(B32=$AQ$8,C35*VLOOKUP(B33,Meststoffen!$A$2:$O$62,10,FALSE),"") ->  | U36: N-min-gehalte | V36: =IF(F32=$AQ$8,G35*VLOOKUP(F33,Meststoffen!$A$2:$O$62,10,FALSE),"") ->  | W36: N-min-gehalte | X36: =IF(J32=$AQ$8,K35*VLOOKUP(J33,Meststoffen!$A$2:$O$62,10,FALSE),"") ->  | AA36: Hoeveelheid C (kg C/ha) | AB36: =IF(B$25<>"",VLOOKUP(B$25,Gewasresten!$A$1:$D$16,4,FALSE),"") ->  | AF36: Voederwikke | AH36: Stamslaboon | AM36: 29 | AO36: Mineralenconcentraat van varkensdrijfmest
B37: =IF(B32=$AQ$8,"organische stof gehalte","") ->  | C37: =T37 ->  | D37: =IF(B32=$AQ$8,"kg/ton","") ->  | F37: =IF(F32=$AQ$8,"organische stof gehalte","") ->  | G37: =V37 ->  | H37: =IF(F32=$AQ$8,"kg/ton","") ->  | J37: =IF(J32=$AQ$8,"organische stof gehalte","") ->  | K37: =X37 ->  | L37: =IF(J32=$AQ$8,"kg/ton","") ->  | S37: organische stof gehalte | T37: =IF(B32=$AQ$8,VLOOKUP(B33,Meststoffen!$A$2:$O$62,4,FALSE),"") ->  | U37: organische stof gehalte | V37: =IF(F32=$AQ$8,VLOOKUP(F33,Meststoffen!$A$2:$O$62,4,FALSE),"") ->  | W37: organische stof gehalte | X37: =IF(J32=$AQ$8,VLOOKUP(J33,Meststoffen!$A$2:$O$62,4,FALSE),"") ->  | AA37: I.Age | AB37: =IF(B$25<>"",VLOOKUP(B$25,Gewasresten!$A$1:$D$16,2,FALSE),"") ->  | AF37: Facelia | AH37: Suikerbiet | AM37: 30 | AO37: Mineralenconcentraat van VDM/PDM-digestaat
B38: =IF(B32=$AQ$8,"P-gehalte","") ->  | C38: =T38 ->  | D38: =IF(B32=$AQ$8,"kg/ton","") ->  | F38: =IF(F32=$AQ$8,"P-gehalte","") ->  | G38: =V38 ->  | H38: =IF(F32=$AQ$8,"kg/ton","") ->  | J38: =IF(J32=$AQ$8,"P-gehalte","") ->  | K38: =X38 ->  | L38: =IF(J32=$AQ$8,"kg/ton","") ->  | S38: P-gehalte | T38: =IF(B32=$AQ$8,VLOOKUP(B33,Meststoffen!$A$2:$O$62,14,FALSE),"") ->  | U38: P-gehalte | V38: =IF(F32=$AQ$8,VLOOKUP(F33,Meststoffen!$A$2:$O$62,14,FALSE),"") ->  | W38: P-gehalte | X38: =IF(J32=$AQ$8,VLOOKUP(J33,Meststoffen!$A$2:$O$62,14,FALSE),"") ->  | AH38: Witte kool (vers) | AO38: Potstalmestcompost, rundvee
B39: =IF(B32=$AQ$8,"K-gehalte","") ->  | C39: =T39 ->  | D39: =IF(B32=$AQ$8,"kg/ton","") ->  | F39: =IF(F32=$AQ$8,"K-gehalte","") ->  | G39: =V39 ->  | H39: =IF(F32=$AQ$8,"kg/ton","") ->  | J39: =IF(J32=$AQ$8,"K-gehalte","") ->  | K39: =X39 ->  | L39: =IF(J32=$AQ$8,"kg/ton","") ->  | S39: K-gehalte | T39: =IF(B32=$AQ$8,VLOOKUP(B33,Meststoffen!$A$2:$O$62,15,FALSE),"") ->  | U39: K-gehalte | V39: =IF(F32=$AQ$8,VLOOKUP(F33,Meststoffen!$A$2:$O$62,15,FALSE),"") ->  | W39: K-gehalte | X39: =IF(J32=$AQ$8,VLOOKUP(J33,Meststoffen!$A$2:$O$62,15,FALSE),"") ->  | AH39: Witte kool (industrie) | AO39: Protamylasse (Avebe)
AH40: IJssla | AO40: Recykal (Soepenberg)
B41: Bemesting 4 | F41: Bemesting 5 | J41: Bemesting 6 | AO41: Roggestro
A42: Datum | AO42: Rosé kalveren drijfmest
A43: Organisch/kunstmest? | AO43: Rundvee grupstalmest
A44: =IF(OR(B43=$AQ$8,F43=$AQ$8,J43=$AQ$8),"Soort","") ->  | D44: =IF(B43=$AQ$8,"ton/ha",IF(B43=$AQ$9,"kg zuivere N/ha","")) ->  | H44: =IF(F43=$AQ$8,"ton/ha",IF(F43=$AQ$9,"kg zuivere N/ha","")) ->  | L44: =IF(J43=$AQ$8,"ton/ha",IF(J43=$AQ$9,"kg zuivere N/ha","")) ->  | S44: =B41 -> Bemesting 4 | U44: =F41 -> Bemesting 5 | W44: =J41 -> Bemesting 6 | AO44: Rundvee potstal mest (biologisch)
A45: =IF(OR(B43=$AQ$8,F43=$AQ$8,J43=$AQ$8),"Toedieningstechniek","") ->  | B45: =T45 ->  | F45: =V45 ->  | J45: =X45 ->  | S45: toedieningstechniek | T45: =IF(B43=$AQ$8,VLOOKUP(B44,Meststoffen!$A$2:$R$62,18,FALSE),"") ->  | U45: toedieningstechniek | V45: =IF(F43=$AQ$8,VLOOKUP(F44,Meststoffen!$A$2:$R$62,18,FALSE),"") ->  | W45: toedieningstechniek | X45: =IF(J43=$AQ$8,VLOOKUP(J44,Meststoffen!$A$2:$R$62,18,FALSE),"") ->  | AO45: Rundvee vaste mest (biologisch)
B46: =IF(B43=$AQ$8,"N-gehalte","") ->  | C46: =T46 ->  | D46: =IF(B43=$AQ$8,"kg/ton","") ->  | F46: =IF(F43=$AQ$8,"N-gehalte","") ->  | G46: =V46 ->  | H46: =IF(F43=$AQ$8,"kg/ton","") ->  | J46: =IF(J43=$AQ$8,"N-gehalte","") ->  | K46: =X46 ->  | L46: =IF(J43=$AQ$8,"kg/ton","") ->  | S46: N-gehalte | T46: =IF(B43=$AQ$8,VLOOKUP(B44,Meststoffen!$A$2:$O$62,8,FALSE),"") ->  | U46: N-gehalte | V46: =IF(F43=$AQ$8,VLOOKUP(F44,Meststoffen!$A$2:$O$62,8,FALSE),"") ->  | W46: N-gehalte | X46: =IF(J43=$AQ$8,VLOOKUP(J44,Meststoffen!$A$2:$O$62,8,FALSE),"") ->  | AO46: Rundveedrijfmest, biologisch
B47: =IF(B43=$AQ$8,"N-min-gehalte","") ->  | C47: =T47 ->  | D47: =IF(B43=$AQ$8,"kg/ton","") ->  | F47: =IF(F43=$AQ$8,"N-min-gehalte","") ->  | G47: =V47 ->  | H47: =IF(F43=$AQ$8,"kg/ton","") ->  | J47: =IF(J43=$AQ$8,"N-min-gehalte","") ->  | K47: =X47 ->  | L47: =IF(J43=$AQ$8,"kg/ton","") ->  | S47: N-min-gehalte | T47: =IF(B43=$AQ$8,C46*VLOOKUP(B44,Meststoffen!$A$2:$O$62,10,FALSE),"") ->  | U47: N-min-gehalte | V47: =IF(F43=$AQ$8,G46*VLOOKUP(F44,Meststoffen!$A$2:$O$62,10,FALSE),"") ->  | W47: N-min-gehalte | X47: =IF(J43=$AQ$8,K46*VLOOKUP(J44,Meststoffen!$A$2:$O$62,10,FALSE),"") ->  | AO47: Rundveegier
B48: =IF(B43=$AQ$8,"organische stof gehalte","") ->  | C48: =T48 ->  | D48: =IF(B43=$AQ$8,"kg/ton","") ->  | F48: =IF(F43=$AQ$8,"organische stof gehalte","") ->  | G48: =V48 ->  | H48: =IF(F43=$AQ$8,"kg/ton","") ->  | J48: =IF(J43=$AQ$8,"organische stof gehalte","") ->  | K48: =X48 ->  | L48: =IF(J43=$AQ$8,"kg/ton","") ->  | S48: organische stof gehalte | T48: =IF(B43=$AQ$8,VLOOKUP(B44,Meststoffen!$A$2:$O$62,4,FALSE),"") ->  | U48: organische stof gehalte | V48: =IF(F43=$AQ$8,VLOOKUP(F44,Meststoffen!$A$2:$O$62,4,FALSE),"") ->  | W48: organische stof gehalte | X48: =IF(J43=$AQ$8,VLOOKUP(J44,Meststoffen!$A$2:$O$62,4,FALSE),"") ->  | AO48: Rundveegier, biologisch
B49: =IF(B43=$AQ$8,"P-gehalte","") ->  | C49: =T49 ->  | D49: =IF(B43=$AQ$8,"kg/ton","") ->  | F49: =IF(F43=$AQ$8,"P-gehalte","") ->  | G49: =V49 ->  | H49: =IF(F43=$AQ$8,"kg/ton","") ->  | J49: =IF(J43=$AQ$8,"P-gehalte","") ->  | K49: =X49 ->  | L49: =IF(J43=$AQ$8,"kg/ton","") ->  | S49: P-gehalte | T49: =IF(B43=$AQ$8,VLOOKUP(B44,Meststoffen!$A$2:$O$62,14,FALSE),"") ->  | U49: P-gehalte | V49: =IF(F43=$AQ$8,VLOOKUP(F44,Meststoffen!$A$2:$O$62,14,FALSE),"") ->  | W49: P-gehalte | X49: =IF(J43=$AQ$8,VLOOKUP(J44,Meststoffen!$A$2:$O$62,14,FALSE),"") ->  | AO49: Tarwestro
B50: =IF(B43=$AQ$8,"K-gehalte","") ->  | C50: =T50 ->  | D50: =IF(B43=$AQ$8,"kg/ton","") ->  | F50: =IF(F43=$AQ$8,"K-gehalte","") ->  | G50: =V50 ->  | H50: =IF(F43=$AQ$8,"kg/ton","") ->  | J50: =IF(J43=$AQ$8,"K-gehalte","") ->  | K50: =X50 ->  | L50: =IF(J43=$AQ$8,"kg/ton","") ->  | S50: K-gehalte | T50: =IF(B43=$AQ$8,VLOOKUP(B44,Meststoffen!$A$2:$O$62,15,FALSE),"") ->  | U50: K-gehalte | V50: =IF(F43=$AQ$8,VLOOKUP(F44,Meststoffen!$A$2:$O$62,15,FALSE),"") ->  | W50: K-gehalte | X50: =IF(J43=$AQ$8,VLOOKUP(J44,Meststoffen!$A$2:$O$62,15,FALSE),"") ->  | AO50: Vaste eendenmest
AO51: Vaste geitenmest
B52: Gewas | D52: =IF(B15<>"",B15,"") ->  | AO52: Vaste kalkoenen mest
B53: N-opname | D53: =IF(B15<>"",VLOOKUP($AB$18,Berekeningen!$A$4:$F$110,6),0) -> 0 | E53: kgN/ha | AO53: Vaste kippenmest (biologisch)
B54: =IF(OR(B15=AL18,B15=AL19),"N-fixatie","") ->  | D54: =IF(OR(B15=AL18,B15=AL19),IF(B15<>"",VLOOKUP($AB$18,Berekeningen!$A$4:$K$110,11),0),"") ->  | E54: =IF(OR(B15=AL18,B15=AL19),"kgN/ha","") ->  | AO54: vaste konijnenmest
B55: Minerale stikstof | AO55: Vaste nertsenmest
B56: Nmin voorjaar | C56: =B13 -> 1-feb | D56: =B12 -> 30 | E56: kgN/ha | AO56: Vaste paardenmest
B57: =IF(B15<>"","Mineralisatie uit bodem tot aan oogst", "Mineralisatie uit bodem tot 1 november") -> Mineralisatie uit bodem tot 1 november | D57: =IF(B15<>"",VLOOKUP($AB$18,Berekeningen!$A$4:$N$110,13),Berekeningen!$N$102) -> 103.257056 | E57: kgN/ha | AO57: Vaste schapenmest
B58: =IF(B15<>"","Beschikbare N uit organische mest tot aan oogst","Beschikbare N uit organische mest tot 1 november") -> Beschikbare N uit organische mest tot 1 november | D58: =SUM(IF($B$32=$AQ$8,VLOOKUP($AB$18,Berekeningen!$A$4:$HK$110,15),0),IF($F$32=$AQ$8,VLOOKUP($AB$18,Berekeningen!$A$4:$HK$110,17),0),IF($J$32=$AQ$8,VLOOKUP($AB$18,Berekeningen!$A$4:$HK$110,19),0),IF($B$43=$AQ$8,VLOOKUP($AB$18,Berekeningen!$A$4:$HK$110,21),0),IF($F$43=$AQ$8,VLOOKUP($AB$18,Berekeningen!$A$4:$HK$110,23),0),IF($J$43=$AQ$8,VLOOKUP($AB$18,Berekeningen!$A$4:$HK$110,25),0)) -> 0 | E58: kgN/ha | AO58: Vaste varkensmest (biologisch)
B59: =IF(B15<>"","Nmin bij de oogst", "") ->  | D59: =IF(B15<>"",VLOOKUP($AB$18,Berekeningen!$A$4:$AA$110,27),"") ->  | E59: =IF(B15<>"","kgN/ha","") ->  | AO59: Vaste varkensmest (stro)
B60: =IF(B15<>"","Minerallisatie na oogst tot 1 november", "") ->  | D60: =IF(B15<>"",Berekeningen!AA102-VLOOKUP($AB$18,Berekeningen!$A$4:$AA$110,27),"") ->  | E60: =IF(B15<>"","kgN/ha","") ->  | AO60: Vaste vossenmest
D61: N-aanvoer (kgN/ha) | F61: Nmin (kgN/ha) | J61: Werkzame stikstof (kg N/ha) | K61: Werkzame stikstof (aandeel) | M61: Wettelijke werkingscoefficient | AO61: VDM-digestaat
B62: Bemestingen | AO62: Verenmeel
B63: =IF(B32=$AQ$8,B33,IF(B32=$AQ$9,B32,"")) ->  | C63: =IF($B32<>"",$B31,"") ->  | D63: =IF($B32=$AQ$8,$C33*$C35,IF($B32=$AQ$9,$C33,"")) ->  | F63: =IF($B32=$AQ$8,$C33*$C36,IF($B32=$AQ$9,$C33,"")) ->  | J63: =IF(B32<>"",VLOOKUP($AB$18,Berekeningen!$A$4:$HK$110,15),"") ->  | K63: =IF(B32=$AQ$8,(VLOOKUP($AB$18,Berekeningen!$A$4:$HK$110,15)/(C33*C35)),IF(B32=$AQ$9,0.98,"")) ->  | M63: =IF(B32=$AQ$8,VLOOKUP(B33,Meststoffen!$A$2:$P$62,16),"") ->  | AO63: Vinassekali (Nedalco)
B64: =IF(F32=$AQ$8,F33,IF(F32=$AQ$9,F32,"")) ->  | C64: =IF($F32<>"",$F31,"") ->  | D64: =IF($F32=$AQ$8,$G33*$G35,IF($F32=$AQ$9,$G33,"")) ->  | F64: =IF($F32=$AQ$8,$G33*$G36,IF($F32=$AQ$9,$G33,"")) ->  | J64: =IF(F32<>"",VLOOKUP($AB$18,Berekeningen!$A$4:$HK$110,17),"") ->  | K64: =IF(F32=$AQ$8,(VLOOKUP($AB$18,Berekeningen!$A$4:$HK$110,17)/(G33*G35)),IF(F32=$AQ$9,0.98,"")) ->  | M64: =IF(F32=$AQ$8,VLOOKUP(F33,Meststoffen!$A$2:$P$62,16),"") ->  | AO64: Vleeskuikens + parelhoenders vaste mest
B65: =IF(J32=$AQ$8,J33,IF(J32=$AQ$9,J32,"")) ->  | C65: =IF($J32<>"",$J31,"") ->  | D65: =IF($J32=$AQ$8,$K33*$K35,IF($J32=$AQ$9,$K33,"")) ->  | F65: =IF($J32=$AQ$8,$K33*$K36,IF($J32=$AQ$9,$K33,"")) ->  | J65: =IF(J32<>"",VLOOKUP($AB$18,Berekeningen!$A$4:$HK$110,19),"") ->  | K65: =IF(J32=$AQ$8,(VLOOKUP($AB$18,Berekeningen!$A$4:$HK$110,19)/(K33*K35)),IF(J32=$AQ$9,0.98,"")) ->  | M65: =IF(J32=$AQ$8,VLOOKUP(J33,Meststoffen!$A$2:$P$62,16),"") ->  | AO65: Vleesvarkensgier
B66: =IF(B43=$AQ$8,B44,IF(B43=$AQ$9,B43,"")) ->  | C66: =IF($B43<>"",$B42,"") ->  | D66: =IF($B43=$AQ$8,$C44*$C46,IF($B43=$AQ$9,$C44,"")) ->  | F66: =IF($B43=$AQ$8,$C44*$C47,IF($B43=$AQ$9,$C44,"")) ->  | J66: =IF(B43<>"",VLOOKUP($AB$18,Berekeningen!$A$4:$HK$110,21),"") ->  | K66: =IF(B43=$AQ$8,(VLOOKUP($AB$18,Berekeningen!$A$4:$HK$110,21)/(C44*C46)),IF(B43=$AQ$9,0.98,"")) ->  | M66: =IF(B43=$AQ$8,VLOOKUP(B44,Meststoffen!$A$2:$P$62,16),"") ->  | AO66: Witvlees kalveren drijfmest
B67: =IF(F43=$AQ$8,F44,IF(F43=$AQ$9,F43,"")) ->  | C67: =IF($F43<>"",$F42,"") ->  | D67: =IF($F43=$AQ$8,$G44*$G46,IF($F43=$AQ$9,$G44,"")) ->  | F67: =IF($F43=$AQ$8,$G44*$G47,IF($F43=$AQ$9,$G44,"")) ->  | J67: =IF(F43<>"",VLOOKUP($AB$18,Berekeningen!$A$4:$HK$110,23),"") ->  | K67: =IF(F43=$AQ$8,(VLOOKUP($AB$18,Berekeningen!$A$4:$HK$110,23)/(G44*G46)),IF(F43=$AQ$9,0.98,"")) ->  | M67: =IF(F43=$AQ$8,VLOOKUP(F44,Meststoffen!$A$2:$P$62,16),"") ->  | AO67: Zeugengier
B68: =IF(J43=$AQ$8,J44,IF(J43=$AQ$9,J43,"")) ->  | C68: =IF($J43<>"",$J42,"") ->  | D68: =IF($J43=$AQ$8,$K44*$K46,IF($J43=$AQ$9,$K44,"")) ->  | F68: =IF($J43=$AQ$8,$K44*$K47,IF($J43=$AQ$9,$K44,"")) ->  | J68: =IF(J43<>"",VLOOKUP($AB$18,Berekeningen!$A$4:$HK$110,25),"") ->  | K68: =IF(J43=$AQ$8,(VLOOKUP($AB$18,Berekeningen!$A$4:$HK$110,25)/(K44*K46)),IF(J43=$AQ$9,0.98,"")) ->  | M68: =IF(J43=$AQ$8,VLOOKUP(J44,Meststoffen!$A$2:$P$62,16),"") -> 
B69: Stikstof | C69: TOTAAL uit bemesting | D69: =SUM(D63:D68) -> 0 | F69: kgN/ha
B70: Overzicht | C70: Waarvan werkzaam | D70: =SUM(J63:J68) -> 0 | F70: kgN/ha
B71: Totaal uit dierlijke mest | D71: =IF($B32=$AQ$8,$C33*$C35,0)+IF($F32=$AQ$8,$G33*$G35,0)+IF($J32=$AQ$8,$K33*$K35,0)+IF($B43=$AQ$8,$C44*$C46,0)+IF($F43=$AQ$8,$G44*$G46,0)+IF($J43=$AQ$8,$K44*$K46,0) -> 0 | F71: kgN/ha | G71: Fosfaat | J71: =IF(B32="Organische mest",C33*C38,0)+IF(F32="Organische mest",G33*G38,0)+IF(J32="Organische mest",K33*K38,0)+IF(B43="Organische mest",C44*C49,0)+IF(F43="Organische mest",G44*G49,0)+IF(J43="Organische mest",K44*K49,0) -> 0 | K71: kg P2O5/ha
B72: Gebruiksnorm dierlijke mest | D72: 170 | F72: kgN/ha | G72: gebruiksnorm fosfaat | J72: 65 - 70 - 85 | K72: kg P2O5/ha
B73: Advies volgens adviesbasis | D73: =IF($B$15<>"",(HLOOKUP($B$15,Gewasopname!2:6,5,FALSE)),"") ->  | F73: kgN/ha | G73: Kali | J73: =IF(B32="Organische mest",C33*C39,0)+IF(F32="Organische mest",G33*G39,0)+IF(J32="Organische mest",K33*K39,0)+IF(B43="Organische mest",C44*C50,0)+IF(F43="Organische mest",G44*G50,0)+IF(J43="Organische mest",K44*K50,0) -> 0 | K73: kg K2O/ha
B74: =IF(B8="zand","Stikstofgebruiksnorm zand",IF(B8="löss","Stikstofgebruiksnorm löss","Stikstofgebruiksnorm klei")) -> Stikstofgebruiksnorm klei | D74: =IF($B$15<>"",IF($B$8="zand",(HLOOKUP($B$15,Gewasopname!2:10,7,FALSE)),IF(B8="löss",(HLOOKUP($B$15,Gewasopname!2:10,8,FALSE)),(HLOOKUP($B$15,Gewasopname!2:10,6,FALSE)))),"") ->  | F74: kgN/ha
B75: Berekende N-gift vlgs gebruiksnorm | D75: =IF(B32<>"",IF(B32=$AQ$8,D63*M63,IF(B32=$AQ$9,D63*K63,0)))+IF(F32<>"",IF(F32=$AQ$8,D64*M64,IF(F32=$AQ$9,D64*K64,0)+IF(J32<>"",IF(J32=$AQ$8,D65*M65,IF(J32=$AQ$9,D65*K65,0)+IF(B43<>"",IF(B43=$AQ$8,D66*M66,IF(B43=$AQ$9,D66*K66,0)+IF(F43<>"",IF(F43=$AQ$8,D67*M67,IF(F43=$AQ$9,D67*K67,0)+IF(J43<>"",IF(J43=$AQ$8,D68*M68,IF(J43=$AQ$9,D68*K68,0))))))))))) -> 0 | F75: kgN/ha

Sheet Invulscherm tweede teelt (hidden)
A1: Invulscherm tweede teelt
A3: Verdieping | B3: =IF(Invulscherm!B3<>"",Invulscherm!B3,"") ->  | AA3: ="1-jan" -> 1-jan | AB3: =DATEVALUE(AA3)-0.999 -> 41274.001
A4: =IF(B3="X","Temperatuur","") ->  | B4: =Invulscherm!B4 ->  | S4: Standaardwaarden
A5: =IF(B3="X","Intensiteit Organische stof voorziening","") ->  | B5: =Invulscherm!B5 ->  | S5: temperatuur | T5: =IF(B4<>"","normaal jaar","") -> 
S6: Intensiteit Organische stof voorziening | T6: =IF(B4<>"","midden","") ->  | AB6: Weeknummers AFGEROND | AC6: Weeknummers | AF6: 40543 | AG6: 1 januari als dagnr
A7: Bodem | AJ7: Grondsoort | AL7: Gewas (#:10 - 20) | AM7: Gewasnummer | AO7: Mest | AQ7: Soort bemesting | AS7: Toediening: | AT7: correctie vervluchtiging Nmin | AU7: Vervluchtiging bij toedienen (%)
A8: Grondsoort | B8: =IF(Invulscherm!B8<>"",Invulscherm!B8,"") ->  | C8: Uit lijst | AJ8: zand | AL8: Consumptieaardappel klei | AM8: 1 | AO8: Vleesvarkensdrijfmest | AQ8: Organische mest | AS8: bouwlandinjectie | AT8: 0.95 | AU8: =1-AT8 -> 0.05
A9: Regio | B9: =IF(Invulscherm!B9<>"",Invulscherm!B9,"") ->  | C9: Uit lijst | AJ9: dalgrond | AL9: Consumptieaardappel zand | AM9: 2 | AO9: Rundveedrijfmest | AQ9: Kunstmest | AS9: bovengronds en direct inwerken | AT9: 0.8 | AU9: =1-AT9 -> 0.2
A10: Organische stof | B10: =IF(Invulscherm!B10<>"",Invulscherm!B10,"") -> 2 | C10: % | S10: organische stof | T10: =Standaardwaarden!B3 -> 2 | AJ10: zavel | AL10: Zetmeelaardappel | AM10: 3 | AO10: Zeugendrijfmest
A11: pH | B11: =IF(Invulscherm!B11<>"",Invulscherm!B11,"") -> 6.5 | S11: pH | T11: =IF($B$8=AJ8,Standaardwaarden!B5,IF($B$8=AJ9,Standaardwaarden!B6,IF($B$8=AJ10,Standaardwaarden!B7,IF($B$8=AJ11,Standaardwaarden!B8,IF($B$8=AJ12,Standaardwaarden!B9,Standaardwaarden!B4))))) -> 6.5 | AJ11: klei | AL11: Pootaardappel | AM11: 4 | AO11: Kippendrijfmest | AQ11: Temperatuur
A12: N-min bodem na 1e teelt | B12: =T12 -> 103.257056 | C12: kg/ha | S12: Nmin na 1e teelt | T12: =VLOOKUP(Invulscherm!$AB$18,Berekeningen!$A$4:$AA$110,27) -> 103.257056 | AJ12: löss | AL12: Wintertarwe | AM12: 5 | AO12: Champost | AQ12: normaal jaar
A13: Oogst 1e teelt / datum meting | B13: =T13 -> 1-nov | S13: Oogst 1e teelt | T13: =Invulscherm!B18 -> 1-nov | AA13: =A13 -> Oogst 1e teelt / datum meting | AB13: =IF(B13="","",ROUND(AC13,0)) -> 44 | AC13: =IF(B13="","",IF(B13>0,(B13-$AB$3)/7)) -> 43.57128571 | AL13: Zomergerst | AM13: 6 | AO13: GFT-compost | AQ13: koud jaar
AL14: Snijmais | AM14: 7 | AO14: RDM-digestaat | AQ14: warm jaar
A15: Gewas | C15: Uit lijst | S15: gewas | AL15: Suikerbiet | AM15: 8 | AO15: Betacal-carbo
A16: =IF(B15="Consumptieaardappel klei","N-behoefte",IF(B15="Consumptieaardappel zand","N-behoefte",IF(B15="Zetmeelaardappel","N-behoefte",""))) ->  | B16: =T16 -> NIET INVULLEN | S16: N-behoefte aardappel | T16: =IF(B15="Consumptieaardappel klei","Gemiddeld",IF(B15="Consumptieaardappel zand","Gemiddeld",IF(B15="Zetmeelaardappel","Gemiddeld","NIET INVULLEN"))) -> NIET INVULLEN | AL16: Was- en winterpeen | AM16: 9 | AO16: Betacal-filter | AQ16: N-behoefte aardappelen | AS16: Risico-analyse
A17: =IF(B15="Wintertarwe","BEGIN HERGROEI","ZAAI / POTEN") -> ZAAI / POTEN | B17: =T17 ->  | S17: zaai/poten | T17: =IF(B15<>"",(HLOOKUP(B$15,Gewasopname!2:6,2,FALSE)),"") ->  | AA17: =A17 -> ZAAI / POTEN | AB17: =IF(B17="","",ROUND(AC17,0)) ->  | AC17: =IF(B17="","",IF(B17>0,(B17-$AB$3)/7)) ->  | AL17: Zaaiui | AM17: 10 | AO17: Betacal-flow | AQ17: Hoog | AS17: X
A18: OOGST | B18: =T18 -> 1-nov | S18: oogst | T18: =IF(B15<>"",B17+(HLOOKUP(B$15,Gewasopname!2:6,3,FALSE)-HLOOKUP(B$15,Gewasopname!2:6,2,FALSE)),"1-nov") -> 1-nov | AA18: =A18 -> OOGST | AB18: =IF(B18="","",ROUND(AC18,0)) -> 44 | AC18: =IF(B18="","",IF(B18>0,(B18-$AB$3)/7)) -> 43.57128571 | AL18: Stamslaboon | AM18: 11 | AO18: Bloedmeel | AQ18: Gemiddeld
A19: Verwachte opbrengst | B19: =T19 ->  | C19: =IF(B15="","",IF(B15=AL14,"Ton ds/ha",IF(B15=AL26,"stuks/ha","Ton/ha"))) ->  | S19: verwachte opbrengst | T19: =IF(B15<>"",(HLOOKUP(B$15,Gewasopname!2:6,4,FALSE)),"") ->  | AL19: Conservenerwt | AM19: 12 | AO19: Dikke fractie RDM | AQ19: Laag
V20: Spreiding analyseresultaten | W20: =IF(B3="x","Uitslag","") ->  | AA20: =B26 -> Bemesting 1 | AB20: =IF(B27="","",ROUND(AC20,0)) ->  | AC20: =IF(B27="","",IF(B27>0,(IF(B27<AB3,0,(B27-$AB$3)/7)))) ->  | AF20: Spreiding analyseresul\tasten | AH20: Gewasresten | AL20: Spruiten | AM20: 13 | AO20: Dikke fractie RDM-digestaat | AQ20: NIET INVULLEN
A21: Gewasrest 1e teelt | B21: =IF(Invulscherm!B15<>"",Invulscherm!B15,"") ->  | S21: Begindatum toediening organische mest | T21: ="14-feb" -> 14-feb | U21: =DATEVALUE(T21) -> 2013-02-14 | AA21: =F26 -> Bemesting 2 | AB21: =IF(F27="","",ROUND(AC21,0)) ->  | AC21: =IF(F27="","",IF(F27>0,(F27-$AB$3)/7)) ->  | AF21: Uitslag | AH21: Bloemkool | AL21: Spinazie, voorjaarsteelt | AM21: 14 | AO21: Dikke fractie VDM | AQ21: Regio
A22: Datum oogst / inwerken | B22: =Invulscherm!B18 -> 1-nov | S22: Einddatum | T22: ="1-nov" -> 1-nov | U22: =DATEVALUE(T22) -> 2013-11-01 | AA22: =J26 -> Bemesting 3 | AB22: =IF(J27="","",ROUND(AC22,0)) ->  | AC22: =IF(J27="","",IF(J27>0,(J27-$AB$3)/7)) ->  | AF22: Uitslag + 10% | AH22: Boerenkool | AL22: Spinazie, zomerteelt | AM22: 15 | AO22: Dikke fractie VDM-digestaat | AQ22: Noord Nederland
AA23: =B37 -> Bemesting 4 | AB23: =IF(B38="","",ROUND(AC23,0)) ->  | AC23: =IF(B38="","",IF(B38>0,(B38-$AB$3)/7)) ->  | AF23: Uitslag - 10% | AH23: Broccoli | AL23: Spinazie, herfstteelt | AM23: 16 | AO23: Dunne fractie RDM-digestaat | AQ23: Midden Nederland
C24: =IF(B3<>"","Spreiding analyseresultaten","") ->  | D24: =W20 ->  | F24: =IF(B15<>"",Standaardwaarden!D52,"") ->  | I24: =IF(B15<>"",IF(D55>10,Standaardwaarden!D51,""),"") ->  | AA24: =F37 -> Bemesting 5 | AB24: =IF(F38="","",ROUND(AC24,0)) ->  | AC24: =IF(F38="","",IF(F38>0,(F38-$AB$3)/7)) ->  | AH24: Chinese kool | AL24: Witte kool (vers) | AM24: 17 | AO24: Dunne fractie rundveemest | AQ24: Zuid Nederland
A25: Bemesting | B25: INDIEN MOGELIJK ACTUELE ANALYSEGEGEVENS INVULLEN!!! | S25: =B26 -> Bemesting 1 | U25: =F26 -> Bemesting 2 | W25: =J26 -> Bemesting 3 | AA25: =J37 -> Bemesting 6 | AB25: =IF(J38="","",ROUND(AC25,0)) ->  | AC25: =IF(J38="","",IF(J38>0,(J38-$AB$3)/7)) ->  | AH25: Conservenerwt | AL25: Witte kool (industrie) | AM25: 18 | AO25: Dunne fractie varkensmest
B26: Bemesting 1 | C26: =Standaardwaarden!D56 ->  | F26: Bemesting 2 | J26: Bemesting 3 | S26: toedieningstechniek | T26: =IF(B28=$AQ$8,VLOOKUP(B29,Meststoffen!$A$2:$R$62,18,FALSE),"") ->  | U26: toedieningstechniek | V26: =IF(F28=$AQ$8,VLOOKUP(F29,Meststoffen!$A$2:$R$62,18,FALSE),"") ->  | W26: toedieningstechniek | X26: =IF(J28=$AQ$8,VLOOKUP(J29,Meststoffen!$A$2:$R$62,18,FALSE),"") ->  | AH26: Knolselderij | AL26: Bloemkool | AM26: 19 | AO26: Dunne fractie VDM-digestaat
A27: Datum | S27: N-gehalte | T27: =IF(B28=$AQ$8,VLOOKUP(B29,Meststoffen!$A$2:$O$62,8,FALSE),"") ->  | U27: N-gehalte | V27: =IF(F28=$AQ$8,VLOOKUP(F29,Meststoffen!$A$2:$O$62,8,FALSE),"") ->  | W27: N-gehalte | X27: =IF(J28=$AQ$8,VLOOKUP(J29,Meststoffen!$A$2:$O$62,8,FALSE),"") ->  | AH27: Knolvenkel | AM27: 20 | AO27: Gerstestro
A28: Organisch/kunstmest? | S28: N-min-gehalte | T28: =IF(B28=$AQ$8,C31*VLOOKUP(B29,Meststoffen!$A$2:$O$62,10,FALSE),"") ->  | U28: N-min-gehalte | V28: =IF(F28=$AQ$8,G31*VLOOKUP(F29,Meststoffen!$A$2:$O$62,10,FALSE),"") ->  | W28: N-min-gehalte | X28: =IF(J28=$AQ$8,K31*VLOOKUP(J29,Meststoffen!$A$2:$O$62,10,FALSE),"") ->  | AH28: Prei | AM28: 21 | AO28: Groencompost
A29: =IF(OR(B28=$AQ$8,F28=$AQ$8,J28=$AQ$8),"Soort","") ->  | D29: =IF(B28=$AQ$8,"ton/ha",IF(B28=$AQ$9,"kg zuivere N/ha","")) ->  | H29: =IF(F28=$AQ$8,"ton/ha",IF(F28=$AQ$9,"kg zuivere N/ha","")) ->  | L29: =IF(J28=$AQ$8,"ton/ha",IF(J28=$AQ$9,"kg zuivere N/ha","")) ->  | S29: organische stof gehalte | T29: =IF(B28=$AQ$8,VLOOKUP(B29,Meststoffen!$A$2:$O$62,4,FALSE),"") ->  | U29: organische stof gehalte | V29: =IF(F28=$AQ$8,VLOOKUP(F29,Meststoffen!$A$2:$O$62,4,FALSE),"") ->  | W29: organische stof gehalte | X29: =IF(J28=$AQ$8,VLOOKUP(J29,Meststoffen!$A$2:$O$62,4,FALSE),"") ->  | AH29: Rode biet | AM29: 22 | AO29: Kippenmestkorrels
A30: =IF(OR(B28=$AQ$8,F28=$AQ$8,J28=$AQ$8),"Toedieningstechniek","") ->  | B30: =T26 ->  | F30: =V26 ->  | J30: =X26 ->  | S30: P-gehalte | T30: =IF(B28=$AQ$8,VLOOKUP(B29,Meststoffen!$A$2:$O$62,14,FALSE),"") ->  | U30: P-gehalte | V30: =IF(F28=$AQ$8,VLOOKUP(F29,Meststoffen!$A$2:$O$62,14,FALSE),"") ->  | W30: P-gehalte | X30: =IF(J28=$AQ$8,VLOOKUP(J29,Meststoffen!$A$2:$O$62,14,FALSE),"") ->  | AH30: Spruiten | AM30: 23 | AO30: Kippenstrooiselmest
B31: =IF(B28=$AQ$8,"N-gehalte","") ->  | C31: =T27 ->  | D31: =IF(B28=$AQ$8,"kg/ton","") ->  | F31: =IF(F28=$AQ$8,"N-gehalte","") ->  | G31: =V27 ->  | H31: =IF(F28=$AQ$8,"kg/ton","") ->  | J31: =IF(J28=$AQ$8,"N-gehalte","") ->  | K31: =X27 ->  | L31: =IF(J28=$AQ$8,"kg/ton","") ->  | S31: K-gehalte | T31: =IF(B28=$AQ$8,VLOOKUP(B29,Meststoffen!$A$2:$O$62,15,FALSE),"") ->  | U31: K-gehalte | V31: =IF(F28=$AQ$8,VLOOKUP(F29,Meststoffen!$A$2:$O$62,15,FALSE),"") ->  | W31: K-gehalte | X31: =IF(J28=$AQ$8,VLOOKUP(J29,Meststoffen!$A$2:$O$62,15,FALSE),"") ->  | AH31: Stamslaboon | AM31: 24 | AO31: Koemestkorrels
B32: =IF(B28=$AQ$8,"N-min-gehalte","") ->  | C32: =T28 ->  | D32: =IF(B28=$AQ$8,"kg/ton","") ->  | F32: =IF(F28=$AQ$8,"N-min-gehalte","") ->  | G32: =V28 ->  | H32: =IF(F28=$AQ$8,"kg/ton","") ->  | J32: =IF(J28=$AQ$8,"N-min-gehalte","") ->  | K32: =X28 ->  | L32: =IF(J28=$AQ$8,"kg/ton","") ->  | AH32: Suikerbiet | AM32: 25 | AO32: Leghennen vaste mest (mestband + nadroging)
B33: =IF(B28=$AQ$8,"organische stof gehalte","") ->  | C33: =T29 ->  | D33: =IF(B28=$AQ$8,"kg/ton","") ->  | F33: =IF(F28=$AQ$8,"organische stof gehalte","") ->  | G33: =V29 ->  | H33: =IF(F28=$AQ$8,"kg/ton","") ->  | J33: =IF(J28=$AQ$8,"organische stof gehalte","") ->  | K33: =X29 ->  | L33: =IF(J28=$AQ$8,"kg/ton","") ->  | AH33: Witte kool (vers) | AM33: 26 | AO33: Leghennen vaste mest (mestband)
B34: =IF(B28=$AQ$8,"P-gehalte","") ->  | C34: =T30 ->  | D34: =IF(B28=$AQ$8,"kg/ton","") ->  | F34: =IF(F28=$AQ$8,"P-gehalte","") ->  | G34: =V30 ->  | H34: =IF(F28=$AQ$8,"kg/ton","") ->  | J34: =IF(J28=$AQ$8,"P-gehalte","") ->  | K34: =X30 ->  | L34: =IF(J28=$AQ$8,"kg/ton","") ->  | AA34: Gegevens gewasrest | AB34: =B21 ->  | AH34: Witte kool (industrie) | AM34: 27 | AO34: Mineralenconcentraat van RDM-digestaat
B35: =IF(B28=$AQ$8,"K-gehalte","") ->  | C35: =T31 ->  | D35: =IF(B28=$AQ$8,"kg/ton","") ->  | F35: =IF(F28=$AQ$8,"K-gehalte","") ->  | G35: =V31 ->  | H35: =IF(F28=$AQ$8,"kg/ton","") ->  | J35: =IF(J28=$AQ$8,"K-gehalte","") ->  | K35: =X31 ->  | L35: =IF(J28=$AQ$8,"kg/ton","") ->  | AA35: N hoeveelheid (kg N/ha) | AB35: =IF(B$21<>"",IF(ISERROR(VLOOKUP(B$21,Gewasresten!$A$1:$D$16,3,FALSE)),0,VLOOKUP(B$21,Gewasresten!$A$1:$D$16,3,FALSE)),"") ->  | AH35: IJssla | AM35: 28 | AO35: Mineralenconcentraat van runderdrijfmest
S36: =B37 -> Bemesting 4 | U36: =F37 -> Bemesting 5 | W36: =J37 -> Bemesting 6 | AA36: Hoeveelheid C (kg C/ha) | AB36: =IF(B$21<>"",IF(ISERROR(VLOOKUP(B$21,Gewasresten!$A$1:$D$16,4,FALSE)),0,VLOOKUP(B$21,Gewasresten!$A$1:$D$16,4,FALSE)),"") ->  | AM36: 29 | AO36: Mineralenconcentraat van varkensdrijfmest
B37: Bemesting 4 | F37: Bemesting 5 | J37: Bemesting 6 | S37: toedieningstechniek | T37: =IF(B39=$AQ$8,VLOOKUP(B40,Meststoffen!$A$2:$R$62,18,FALSE),"") ->  | U37: toedieningstechniek | V37: =IF(F39=$AQ$8,VLOOKUP(F40,Meststoffen!$A$2:$R$62,18,FALSE),"") ->  | W37: toedieningstechniek | X37: =IF(J39=$AQ$8,VLOOKUP(J40,Meststoffen!$A$2:$R$62,18,FALSE),"") ->  | AA37: I.Age | AB37: =IF(B$21<>"",IF(ISERROR(VLOOKUP(B$21,Gewasresten!$A$1:$D$16,2,FALSE)),0,VLOOKUP(B$21,Gewasresten!$A$1:$D$16,2,FALSE)),"") ->  | AM37: 30 | AO37: Mineralenconcentraat van VDM/PDM-digestaat
A38: Datum | S38: N-gehalte | T38: =IF(B39=$AQ$8,VLOOKUP(B40,Meststoffen!$A$2:$O$62,8,FALSE),"") ->  | U38: N-gehalte | V38: =IF(F39=$AQ$8,VLOOKUP(F40,Meststoffen!$A$2:$O$62,8,FALSE),"") ->  | W38: N-gehalte | X38: =IF(J39=$AQ$8,VLOOKUP(J40,Meststoffen!$A$2:$O$62,8,FALSE),"") ->  | AO38: Potstalmestcompost, rundvee
A39: Organisch/kunstmest? | S39: N-min-gehalte | T39: =IF(B39=$AQ$8,C42*VLOOKUP(B40,Meststoffen!$A$2:$O$62,10,FALSE),"") ->  | U39: N-min-gehalte | V39: =IF(F39=$AQ$8,G42*VLOOKUP(F40,Meststoffen!$A$2:$O$62,10,FALSE),"") ->  | W39: N-min-gehalte | X39: =IF(J39=$AQ$8,K42*VLOOKUP(J40,Meststoffen!$A$2:$O$62,10,FALSE),"") ->  | AO39: Protamylasse (Avebe)
A40: =IF(OR(B39=$AQ$8,F39=$AQ$8,J39=$AQ$8),"Soort","") ->  | D40: =IF(B39=$AQ$8,"ton/ha",IF(B39=$AQ$9,"kg zuivere N/ha","")) ->  | H40: =IF(F39=$AQ$8,"ton/ha",IF(F39=$AQ$9,"kg zuivere N/ha","")) ->  | L40: =IF(J39=$AQ$8,"ton/ha",IF(J39=$AQ$9,"kg zuivere N/ha","")) ->  | S40: organische stof gehalte | T40: =IF(B39=$AQ$8,VLOOKUP(B40,Meststoffen!$A$2:$O$62,4,FALSE),"") ->  | U40: organische stof gehalte | V40: =IF(F39=$AQ$8,VLOOKUP(F40,Meststoffen!$A$2:$O$62,4,FALSE),"") ->  | W40: organische stof gehalte | X40: =IF(J39=$AQ$8,VLOOKUP(J40,Meststoffen!$A$2:$O$62,4,FALSE),"") ->  | AO40: Recykal (Soepenberg)
A41: =IF(OR(B39=$AQ$8,F39=$AQ$8,J39=$AQ$8),"Toedieningstechniek","") ->  | B41: =T37 ->  | F41: =V37 ->  | J41: =X37 ->  | S41: P-gehalte | T41: =IF(B39=$AQ$8,VLOOKUP(B40,Meststoffen!$A$2:$O$62,14,FALSE),"") ->  | U41: P-gehalte | V41: =IF(F39=$AQ$8,VLOOKUP(F40,Meststoffen!$A$2:$O$62,14,FALSE),"") ->  | W41: P-gehalte | X41: =IF(J39=$AQ$8,VLOOKUP(J40,Meststoffen!$A$2:$O$62,14,FALSE),"") ->  | AO41: Roggestro
B42: =IF(B39=$AQ$8,"N-gehalte","") ->  | C42: =T38 ->  | D42: =IF(B39=$AQ$8,"kg/ton","") ->  | F42: =IF(F39=$AQ$8,"N-gehalte","") ->  | G42: =V38 ->  | H42: =IF(F39=$AQ$8,"kg/ton","") ->  | J42: =IF(J39=$AQ$8,"N-gehalte","") ->  | K42: =X38 ->  | L42: =IF(J39=$AQ$8,"kg/ton","") ->  | S42: K-gehalte | T42: =IF(B39=$AQ$8,VLOOKUP(B40,Meststoffen!$A$2:$O$62,15,FALSE),"") ->  | U42: K-gehalte | V42: =IF(F39=$AQ$8,VLOOKUP(F40,Meststoffen!$A$2:$O$62,15,FALSE),"") ->  | W42: K-gehalte | X42: =IF(J39=$AQ$8,VLOOKUP(J40,Meststoffen!$A$2:$O$62,15,FALSE),"") ->  | AO42: Rosé kalveren drijfmest
B43: =IF(B39=$AQ$8,"N-min-gehalte","") ->  | C43: =T39 ->  | D43: =IF(B39=$AQ$8,"kg/ton","") ->  | F43: =IF(F39=$AQ$8,"N-min-gehalte","") ->  | G43: =V39 ->  | H43: =IF(F39=$AQ$8,"kg/ton","") ->  | J43: =IF(J39=$AQ$8,"N-min-gehalte","") ->  | K43: =X39 ->  | L43: =IF(J39=$AQ$8,"kg/ton","") ->  | AO43: Rundvee grupstalmest
B44: =IF(B39=$AQ$8,"organische stof gehalte","") ->  | C44: =T40 ->  | D44: =IF(B39=$AQ$8,"kg/ton","") ->  | F44: =IF(F39=$AQ$8,"organische stof gehalte","") ->  | G44: =V40 ->  | H44: =IF(F39=$AQ$8,"kg/ton","") ->  | J44: =IF(J39=$AQ$8,"organische stof gehalte","") ->  | K44: =X40 ->  | L44: =IF(J39=$AQ$8,"kg/ton","") ->  | AO44: Rundvee potstal mest (biologisch)
B45: =IF(B39=$AQ$8,"P-gehalte","") ->  | C45: =T41 ->  | D45: =IF(B39=$AQ$8,"kg/ton","") ->  | F45: =IF(F39=$AQ$8,"P-gehalte","") ->  | G45: =V41 ->  | H45: =IF(F39=$AQ$8,"kg/ton","") ->  | J45: =IF(J39=$AQ$8,"P-gehalte","") ->  | K45: =X41 ->  | L45: =IF(J39=$AQ$8,"kg/ton","") ->  | AO45: Rundvee vaste mest (biologisch)
B46: =IF(B39=$AQ$8,"K-gehalte","") ->  | C46: =T42 ->  | D46: =IF(B39=$AQ$8,"kg/ton","") ->  | F46: =IF(F39=$AQ$8,"K-gehalte","") ->  | G46: =V42 ->  | H46: =IF(F39=$AQ$8,"kg/ton","") ->  | J46: =IF(J39=$AQ$8,"K-gehalte","") ->  | K46: =X42 ->  | L46: =IF(J39=$AQ$8,"kg/ton","") ->  | AO46: Rundveedrijfmest, biologisch
AO47: Rundveegier
B48: Gewas | D48: =IF(B15<>"",B15,"") ->  | AO48: Rundveegier, biologisch
B49: N-opname | D49: =IF(B15<>"",VLOOKUP($AB$18,'Berekeningen tweede teelt'!$A$4:$F$58,6),0) -> 0 | E49: kgN/ha | AO49: Tarwestro
B50: =IF(OR(B15=AL18,B15=AL19),"N-fixatie","") ->  | D50: =IF(OR(B15=AL18,B15=AL19),IF(B15<>"",VLOOKUP($AB$18,'Berekeningen tweede teelt'!$A$4:$K$58,11),0),"") ->  | E50: =IF(OR(B15=AL18,B15=AL19),"kgN/ha","") ->  | AO50: Vaste eendenmest
AO51: Vaste geitenmest
B52: Nmin na 1e teelt | C52: =B13 -> 1-nov | D52: =B12 -> 103.257056 | E52: kgN/ha | AO52: Vaste kalkoenen mest
B53: =IF(B15<>"","Mineralisatie uit bodem tot aan oogst", "Mineralisatie uit bodem tot 1 november") -> Mineralisatie uit bodem tot 1 november | D53: =IF(B15<>"",VLOOKUP($AB$18,'Berekeningen tweede teelt'!$A$4:$N$58,13),'Berekeningen tweede teelt'!$N$50) -> 103.257056 | E53: kgN/ha | AO53: Vaste kippenmest (biologisch)
B54: =IF(B15<>"","Beschikbare N uit organische mest tot aan oogst","Beschikbare N uit organische mest tot 1 november") -> Beschikbare N uit organische mest tot 1 november | D54: =SUM(IF($B$28=$AQ$8,VLOOKUP($AB$18,'Berekeningen tweede teelt'!$A$4:$EP$58,15),0),IF($F$28=$AQ$8,VLOOKUP($AB$18,'Berekeningen tweede teelt'!$A$4:$EP$58,17),0),IF($J$28=$AQ$8,VLOOKUP($AB$18,'Berekeningen tweede teelt'!$A$4:$EP$58,19),0),IF($B$39=$AQ$8,VLOOKUP($AB$18,'Berekeningen tweede teelt'!$A$4:$EP$58,21),0),IF($F$39=$AQ$8,VLOOKUP($AB$18,'Berekeningen tweede teelt'!$A$4:$EP$58,23),0),IF($J$39=$AQ$8,VLOOKUP($AB$18,'Berekeningen tweede teelt'!$A$4:$EP$58,25),0)) -> 0 | E54: kgN/ha | AO54: vaste konijnenmest
B55: =IF(B15<>"","Nmin bij de oogst", "") ->  | D55: =IF(B15<>"",VLOOKUP($AB$18,'Berekeningen tweede teelt'!$A$4:$AA$58,27),"") ->  | E55: =IF(B15<>"","kgN/ha","") ->  | AO55: Vaste nertsenmest
B56: =IF(B15<>"","Minerallisatie na oogst tot 1 november", "") ->  | D56: =IF(B15<>"",'Berekeningen tweede teelt'!AA50-VLOOKUP($AB$18,'Berekeningen tweede teelt'!$A$4:$AA$58,27),"") ->  | E56: =IF(B15<>"","kgN/ha","") ->  | AO56: Vaste paardenmest
D57: N-aanvoer (kgN/ha) | F57: Nmin (kgN/ha) | J57: Werkzame stikstof (kg N/ha) | K57: Werkzame stikstof (aandeel) | M57: Wettelijke werkingscoefficient | AO57: Vaste schapenmest
AO58: Vaste varkensmest (biologisch)
B59: =IF(B28=$AQ$8,B29,IF(B28=$AQ$9,B28,"")) ->  | C59: =IF($B28<>"",$B27,"") ->  | D59: =IF($B28=$AQ$8,$C29*$C31,IF($B28=$AQ$9,$C29,"")) ->  | F59: =IF($B28=$AQ$8,$C29*$C32,IF($B28=$AQ$9,$C29,"")) ->  | J59: =IF(B28<>"",VLOOKUP($AB$18,'Berekeningen tweede teelt'!$A$4:$EP$58,15),"") ->  | K59: =IF(B28=$AQ$8,(VLOOKUP($AB$18,'Berekeningen tweede teelt'!$A$4:$EP$58,15)/(C29*C31)),IF(B28=$AQ$9,0.98,"")) ->  | M59: =IF(B28=$AQ$8,VLOOKUP(B29,Meststoffen!$A$2:$P$62,16),"") ->  | AO59: Vaste varkensmest (stro)
B60: =IF(F28=$AQ$8,F29,IF(F28=$AQ$9,F28,"")) ->  | C60: =IF($F28<>"",$F27,"") ->  | D60: =IF($F28=$AQ$8,$G29*$G31,IF($F28=$AQ$9,$G29,"")) ->  | F60: =IF($F28=$AQ$8,$G29*$G32,IF($F28=$AQ$9,$G29,"")) ->  | J60: =IF(F28<>"",VLOOKUP($AB$18,'Berekeningen tweede teelt'!$A$4:$EP$58,17),"") ->  | K60: =IF(F28=$AQ$8,(VLOOKUP($AB$18,'Berekeningen tweede teelt'!$A$4:$EP$58,17)/(G29*G31)),IF(F28=$AQ$9,0.98,"")) ->  | M60: =IF(F28=$AQ$8,VLOOKUP(F29,Meststoffen!$A$2:$P$62,16),"") ->  | AO60: Vaste vossenmest
B61: =IF(J28=$AQ$8,J29,IF(J28=$AQ$9,J28,"")) ->  | C61: =IF($J28<>"",$J27,"") ->  | D61: =IF($J28=$AQ$8,$K29*$K31,IF($J28=$AQ$9,$K29,"")) ->  | F61: =IF($J28=$AQ$8,$K29*$K32,IF($J28=$AQ$9,$K29,"")) ->  | J61: =IF(J28<>"",VLOOKUP($AB$18,'Berekeningen tweede teelt'!$A$4:$EP$58,19),"") ->  | K61: =IF(J28=$AQ$8,(VLOOKUP($AB$18,'Berekeningen tweede teelt'!$A$4:$EP$58,19)/(K29*K31)),IF(J28=$AQ$9,0.98,"")) ->  | M61: =IF(J28=$AQ$8,VLOOKUP(J29,Meststoffen!$A$2:$P$62,16),"") ->  | AO61: VDM-digestaat
B62: =IF(B39=$AQ$8,B40,IF(B39=$AQ$9,B39,"")) ->  | C62: =IF($B39<>"",$B38,"") ->  | D62: =IF($B39=$AQ$8,$C40*$C42,IF($B39=$AQ$9,$C40,"")) ->  | F62: =IF($B39=$AQ$8,$C40*$C43,IF($B39=$AQ$9,$C40,"")) ->  | J62: =IF(B39<>"",VLOOKUP($AB$18,'Berekeningen tweede teelt'!$A$4:$EP$58,21),"") ->  | K62: =IF(B39=$AQ$8,(VLOOKUP($AB$18,'Berekeningen tweede teelt'!$A$4:$EP$58,21)/(C40*C42)),IF(B39=$AQ$9,0.98,"")) ->  | M62: =IF(B39=$AQ$8,VLOOKUP(B40,Meststoffen!$A$2:$P$62,16),"") ->  | AO62: Verenmeel
B63: =IF(F39=$AQ$8,F40,IF(F39=$AQ$9,F39,"")) ->  | C63: =IF($F39<>"",$F38,"") ->  | D63: =IF($F39=$AQ$8,$G40*$G42,IF($F39=$AQ$9,$G40,"")) ->  | F63: =IF($F39=$AQ$8,$G40*$G43,IF($F39=$AQ$9,$G40,"")) ->  | J63: =IF(F39<>"",VLOOKUP($AB$18,'Berekeningen tweede teelt'!$A$4:$EP$58,23),"") ->  | K63: =IF(F39=$AQ$8,(VLOOKUP($AB$18,'Berekeningen tweede teelt'!$A$4:$EP$58,23)/(G40*G42)),IF(F39=$AQ$9,0.98,"")) ->  | M63: =IF(F39=$AQ$8,VLOOKUP(F40,Meststoffen!$A$2:$P$62,16),"") ->  | AO63: Vinassekali (Nedalco)
B64: =IF(J39=$AQ$8,J40,IF(J39=$AQ$9,J39,"")) ->  | C64: =IF($J39<>"",$J38,"") ->  | D64: =IF($J39=$AQ$8,$K40*$K42,IF($J39=$AQ$9,$K40,"")) ->  | F64: =IF($J39=$AQ$8,$K40*$K43,IF($J39=$AQ$9,$K40,"")) ->  | J64: =IF(J39<>"",VLOOKUP($AB$18,'Berekeningen tweede teelt'!$A$4:$EP$58,25),"") ->  | K64: =IF(J39=$AQ$8,(VLOOKUP($AB$18,'Berekeningen tweede teelt'!$A$4:$EP$58,25)/(K40*K42)),IF(J39=$AQ$9,0.98,"")) ->  | M64: =IF(J39=$AQ$8,VLOOKUP(J40,Meststoffen!$A$2:$P$62,16),"") ->  | AO64: Vleeskuikens + parelhoenders vaste mest
B65: Stikstof | C65: TOTAAL uit bemesting | D65: =SUM(D59:D64) -> 0 | F65: kgN/ha | AO65: Vleesvarkensgier
C66: Waarvan werkzaam | D66: =SUM(J59:J64) -> 0 | F66: kgN/ha | AO66: Witvlees kalveren drijfmest
B67: Totaal uit dierlijke mest | D67: =IF($B28=$AQ$8,$C29*$C31,0)+IF($F28=$AQ$8,$G29*$G31,0)+IF($J28=$AQ$8,$K29*$K31,0)+IF($B39=$AQ$8,$C40*$C42,0)+IF($F39=$AQ$8,$G40*$G42,0)+IF($J39=$AQ$8,$K40*$K42,0) -> 0 | F67: kgN/ha | G67: Fosfaat | J67: =IF(B28="Organische mest",C29*C34,0)+IF(F28="Organische mest",G29*G34,0)+IF(J28="Organische mest",K29*K34,0)+IF(B39="Organische mest",C40*C45,0)+IF(F39="Organische mest",G40*G45,0)+IF(J39="Organische mest",K40*K45,0) -> 0 | K67: kg P2O5/ha | AO67: Zeugengier
B68: Gebruiksnorm dierlijke mest | D68: 170 | F68: kgN/ha | G68: gebruiksnorm fosfaat | J68: 65 - 70 - 85 | K68: kg P2O5/ha
B69: Advies volgens adviesbasis | D69: =IF($B$15<>"",(HLOOKUP($B$15,Gewasopname!2:6,5,FALSE)),"") ->  | F69: kgN/ha | G69: Kali | J69: =IF(B28="Organische mest",C29*C35,0)+IF(F28="Organische mest",G29*G35,0)+IF(J28="Organische mest",K29*K35,0)+IF(B39="Organische mest",C40*C46,0)+IF(F39="Organische mest",G40*G46,0)+IF(J39="Organische mest",K40*K46,0) -> 0 | K69: kg K2O/ha
B70: =IF(B8="zand","Stikstofgebruiksnorm zand",IF(B8="löss","Stikstofgebruiksnorm löss","Stikstofgebruiksnorm klei")) -> Stikstofgebruiksnorm klei | D70: =IF($B$15<>"",IF($B$8="zand",(HLOOKUP($B$15,Gewasopname!2:10,7,FALSE)),IF(B8="löss",(HLOOKUP($B$15,Gewasopname!2:10,8,FALSE)),(HLOOKUP($B$15,Gewasopname!2:10,6,FALSE)))),"") ->  | F70: kgN/ha
B71: Berekende N-gift vlgs gebruiksnorm | D71: =IF(B28<>"",D59*M59,0)+IF(F28<>"",D60*M60,0)+IF(J28<>"",D61*M61,0)+IF(B39<>"",D62*M62,0)+IF(F39<>"",D63*M63,0)+IF(J39<>"",D64*M64,0) -> 0 | F71: kgN/ha

Sheet Berekeningen (hidden)
AK1: =COUNTIF(AK6:AK110,"nee") -> 0 | AL1: =COUNTIF(AL6:AL110,"ja") -> 105
B2: Voor grafiek | AN2: Berekening mineralisatie uit organische stof in de bodem | BH2: Berekening mineralisatie uit organische stof in de bodem zonder Nminmeting | CC2: Berekening mineralisatie uit voorgaande groenbemester | CP2: Berekening mineralisatie uit gewasresten voorvrucht | DC2: Berekening mineralisatie uit mest1 | DV2: Berekening mineralisatie uit mest2 | EO2: Berekening mineralisatie uit mest3 | FH2: Berekening mineralisatie uit mest4 | GA2: Berekening mineralisatie uit mest5 | GT2: Berekening mineralisatie uit mest6
D3: Gewasnummer | E3: =VLOOKUP(Invulscherm!$B$15,Invulscherm!AL8:AM39,2,FALSE) ->  | G3: Gewasopname tot oogst
A4: Week nr | B4: Datum | C4: Temp ref | D4: Weken na zaai/poten | E4: N-opname referentie | F4: Gewasopname | G4: =IF(Invulscherm!$B$15<>"",CONCATENATE("Gewasopname ",Invulscherm!B15),"") ->  | H4: Minimale bodemvoorraad | I4: =IF(Invulscherm!$B$15<>"","Minimale bodemvoorraad","") ->  | J4: N-fixatie referentie | K4: N-fixatie | L4: =IF(OR(Invulscherm!$B$15="conservenerwt",Invulscherm!$B$15="stamslaboon"),"N-fixatie","") ->  | M4: bodem organische stof | N4: =IF(Invulscherm!$B$15<>"","N uit bodem organische stof tot oogst","N uit bodem organische stof") -> N uit bodem organische stof | O4: bemesting 1 | P4: =CONCATENATE((IF(Invulscherm!$B$31<>"","N uit ","")),(IF(Invulscherm!$B$31<>"",IF(Invulscherm!$B$32=Invulscherm!$AQ$8,Invulscherm!$B$33,Invulscherm!$B$32),""))," ",(IF(Invulscherm!$B$31<>"",TEXT(Invulscherm!B31,"[$-413]d mmm"),""))," ",(IF(Invulscherm!$B$31<>"",IF(Invulscherm!$B$15<>"","tot oogst",""),""))) ->  | Q4: bemesting 2 | R4: =CONCATENATE((IF(Invulscherm!$F$31<>"","N uit ","")),(IF(Invulscherm!$F$31<>"",IF(Invulscherm!$F$32=Invulscherm!$AQ$8,Invulscherm!$F$33,Invulscherm!$F$32),""))," ",(IF(Invulscherm!$F$31<>"",TEXT(Invulscherm!F31,"[$-413]d mmm"),""))," ",(IF(Invulscherm!$F$31<>"",IF(Invulscherm!$B$15<>"","tot oogst",""),""))) ->  | S4: bemesting 3 | T4: =CONCATENATE((IF(Invulscherm!$J$31<>"","N uit ","")),(IF(Invulscherm!$J$31<>"",IF(Invulscherm!$J$32=Invulscherm!$AQ$8,Invulscherm!$J$33,Invulscherm!$J$32),""))," ",(IF(Invulscherm!$J$31<>"",TEXT(Invulscherm!J31,"[$-413]d mmm"),""))," ",(IF(Invulscherm!$J$31<>"",IF(Invulscherm!$B$15<>"","tot oogst",""),""))) ->  | U4: bemesting 4 | V4: =CONCATENATE((IF(Invulscherm!$B$42<>"","N uit ","")),(IF(Invulscherm!$B$42<>"",IF(Invulscherm!$B$43=Invulscherm!$AQ$8,Invulscherm!$B$44,Invulscherm!$B$43),""))," ",(IF(Invulscherm!$B$42<>"",TEXT(Invulscherm!B42,"[$-413]d mmm"),""))," ",(IF(Invulscherm!$B$42<>"",IF(Invulscherm!$B$15<>"","tot oogst",""),""))) ->  | W4: bemesting 5 | X4: =CONCATENATE((IF(Invulscherm!$F$42<>"","N uit ","")),(IF(Invulscherm!$F$42<>"",IF(Invulscherm!$F$43=Invulscherm!$AQ$8,Invulscherm!$F$44,Invulscherm!$F$43),""))," ",(IF(Invulscherm!$F$42<>"",TEXT(Invulscherm!F42,"[$-413]d mmm"),""))," ",(IF(Invulscherm!$F$42<>"",IF(Invulscherm!$B$15<>"","tot oogst",""),""))) ->  | Y4: bemesting 6 | Z4: =CONCATENATE((IF(Invulscherm!$J$42<>"","N uit ","")),(IF(Invulscherm!$J$42<>"",IF(Invulscherm!$J$43=Invulscherm!$AQ$8,Invulscherm!$J$44,Invulscherm!$J$43),""))," ",(IF(Invulscherm!$J$42<>"",TEXT(Invulscherm!J42,"[$-413]d mmm"),""))," ",(IF(Invulscherm!$J$42<>"",IF(Invulscherm!$B$15<>"","tot oogst",""),""))) ->  | AA4: Nmin beschikbaar | AB4: =IF(Invulscherm!$B$15<>"","Mineralisatie na oogst","") ->  | AD4: behoefte | AE4: behoefte na mest 1 | AF4: behoefte na mest 2 | AG4: behoefte na mest 3 | AH4: behoefte na mest 4 | AI4: behoefte na mest 5 | AJ4: behoefte na mest 6 | AK4: Overbemesting??? | AL4: Tekorten?? | AN4: Timing van Nmin meting voorjaar | AO4: Hoeveelheid C die over is in bouwvoor (kg) | AP4: fTemp | AQ4: fGrond | AS4: fpH | AT4: F-waarde | AU4: At (apparent age, formule artikel) | AV4: Differentiaalvergelijking afname c per week | AW4: Hoeveelheid N in bouwvoor (kg) | AX4: N-mineralisatie uit de bodem organische stof (kg/week) | AY4: Cumulatief gemineraliseerd N uit bodem organische stof | AZ4: N min hoeveelheid voorjaar | BA4: Nmin uit bodem | BB4: Nmin uit bodem plus voorvrucht plus groenbemester | BC4: Gewogen aandeel gewasopname | BD4: Denitrificatie per week | BE4: Denitrificatie cumulatief | BF4: Beschikbare Nmin uit bodem | BH4: Hoeveelheid C in bouwvoor | BI4: Hoeveelheid C die over is in bouwvoor (kg) | BJ4: fTemp | BK4: fGrond | BM4: fpH | BN4: F-waarde | BO4: At (apparent age, formule artikel) | BP4: Differentiaalvergelijking afname c per week | BQ4: Hoeveelheid N in bouwvoor (kg) | BR4: N-mineralisatie uit de bodem organische stof (kg/week) | BS4: Cumulatief gemineraliseerd N uit bodem organische stof | BT4: N min hoeveelheid voorjaar | BU4: Nmin uit bodem | BV4: Nmin uit bodem plus voorvrucht plus groenbemester | BW4: Gewogen aandeel gewasopname | BX4: Denitrificatie | BY4: Denitrificatie cumulatief | BZ4: Beschikbare Nmin uit bodem zonder Nminmeting | CA4: Beschikbare Nmin uit bodem gefit op Nminmeting | CC4: Timing van onderwerken groenbemester | CD4: Hoeveelheid C die over is in groenbemester (kg) | CE4: fTemp | CF4: fGrond | CG4: fpH | CH4: F-waarde | CI4: At (apparent age, formule artikel) | CJ4: Differentiaalvergelijking afname c per week | CK4: Hoeveelheid N die over is in groenbemester(kg) | CL4: N-mineralisatie uit groenbemester (kg/week) | CM4: Cumulatief gemineraliseerd N uit groenbemester | CN4: Beschikbare Nmin uit groenbemester | CP4: Timing van onderwerken groenbemester | CQ4: Hoeveelheid C die over is in gewasresten (kg) | CR4: fTemp | CS4: fGrond | CT4: fpH | CU4: F-waarde | CV4: At (apparent age, formule artikel) | CW4: Differentiaalvergelijking afname c per week | CX4: Hoeveelheid N die over is in gewasresten (kg) | CY4: N-mineralisatie uitgewasresten (kg/week) | CZ4: Cumulatief gemineraliseerd N uit gewasresten | DA4: Beschikbare Nmin uit gewasresten | DC4: Timing van toediening meststof | DD4: Hoeveelheid C die over is in meststof (kg) | DE4: fTemp | DF4: fGrond | DG4: fpH | DH4: F-waarde | DI4: At (apparent age, formule artikel) | DJ4: Differentiaalvergelijking afname c per week | DK4: Hoeveelheid N die over is in meststof (kg) | DL4: N-mineralisatie uit de meststof (kg/week) | DM4: Cumulatief gemineraliseerd N uit mest | DN4: Nmin bij toedienen | DO4: MineraleN bij toedienen, afh. van toedieningstechniek | DP4: Nmin uit mest1 | DQ4: Gewogen aandeel gewasopname | DR4: Denitrificatie | DS4: Denitrificatie cumulatief | DT4: Beschikbare Nmin uit mest 1 | DV4: Timing van toediening meststof | DW4: Hoeveelheid C die over is in meststof (kg) | DX4: fTemp | DY4: fGrond | DZ4: fpH | EA4: F-waarde | EB4: At (apparent age, formule artikel) | EC4: Differentiaalvergelijking afname c per week | ED4: Hoeveelheid N die over is in meststof (kg) | EE4: N-mineralisatie uit de meststof (kg/week) | EF4: Cumulatief gemineraliseerd N uit mest | EG4: Nmin bij toedienen | EH4: MineraleN bij toedienen, afh. van toedieningstechniek | EI4: Nmin uit mest2 | EJ4: Gewogen aandeel gewasopname | EK4: Denitrificatie | EL4: Denitrificatie cumulatief | EM4: Beschikbare Nmin uit mest 2 | EO4: Timing van toediening meststof | EP4: Hoeveelheid C die over is in meststof (kg) | EQ4: fTemp | ER4: fGrond | ES4: fpH | ET4: F-waarde | EU4: At (apparent age, formule artikel) | EV4: Differentiaalvergelijking afname c per week | EW4: Hoeveelheid N die over is in meststof (kg) | EX4: N-mineralisatie uit de meststof (kg/week) | EY4: Cumulatief gemineraliseerd N uit mest | EZ4: Nmin bij toedienen | FA4: MineraleN bij toedienen, afh. van toedieningstechniek | FB4: Nmin uit mest3 | FC4: Gewogen aandeel gewasopname | FD4: Denitrificatie | FE4: Denitrificatie cumulatief | FF4: Beschikbare Nmin uit mest 3 | FH4: Timing van toediening meststof | FI4: Hoeveelheid C die over is in meststof (kg) | FJ4: fTemp | FK4: fGrond | FL4: fpH | FM4: F-waarde | FN4: At (apparent age, formule artikel) | FO4: Differentiaalvergelijking afname c per week | FP4: Hoeveelheid N die over is in meststof (kg) | FQ4: N-mineralisatie uit de meststof (kg/week) | FR4: Cumulatief gemineraliseerd N uit mest | FS4: Nmin bij toedienen | FT4: MineraleN bij toedienen, afh. van toedieningstechniek | FU4: Nmin uit mest4 | FV4: Gewogen aandeel gewasopname | FW4: Denitrificatie | FX4: Denitrificatie cumulatief | FY4: Beschikbare Nmin uit mest 4 | GA4: Timing van toediening meststof | GB4: Hoeveelheid C die over is in meststof (kg) | GC4: fTemp | GD4: fGrond | GE4: fpH | GF4: F-waarde | GG4: At (apparent age, formule artikel) | GH4: Differentiaalvergelijking afname c per week | GI4: Hoeveelheid N die over is in meststof (kg) | GJ4: N-mineralisatie uit de meststof (kg/week) | GK4: Cumulatief gemineraliseerd N uit mest | GL4: Nmin bij toedienen | GM4: MineraleN bij toedienen, afh. van toedieningstechniek | GN4: Nmin uit mest5 | GO4: Gewogen aandeel gewasopname | GP4: Denitrificatie | GQ4: Denitrificatie cumulatief | GR4: Beschikbare Nmin uit mest 5 | GT4: Timing van toediening meststof | GU4: Hoeveelheid C die over is in meststof (kg) | GV4: fTemp | GW4: fGrond | GX4: fpH | GY4: F-waarde | GZ4: At (apparent age, formule artikel) | HA4: Differentiaalvergelijking afname c per week | HB4: Hoeveelheid N die over is in meststof (kg) | HC4: N-mineralisatie uit de meststof (kg/week) | HD4: Cumulatief gemineraliseerd N uit mest | HE4: Nmin bij toedienen | HF4: MineraleN bij toedienen, afh. van toedieningstechniek | HG4: Nmin uit mest6 | HH4: Gewogen aandeel gewasopname | HI4: Denitrificatie | HJ4: Denitrificatie cumulatief | HK4: Beschikbare Nmin uit mest 6
A6: -52 | C6: =IF(Invulscherm!$B$9="Noord Nederland",IF(Invulscherm!$B$4="koud jaar",Temperatuur!C3,IF(Invulscherm!$B$4="warm jaar",Temperatuur!B3,Temperatuur!A3)),IF(Invulscherm!$B$9="Midden Nederland",IF(Invulscherm!$B$4="koud jaar",Temperatuur!F3,IF(Invulscherm!$B$4="warm jaar",Temperatuur!E3,Temperatuur!D3)),IF(Invulscherm!$B$9="Zuid Nederland",IF(Invulscherm!$B$4="koud jaar",Temperatuur!I3,IF(Invulscherm!$B$4="warm jaar",Temperatuur!H3,Temperatuur!G3)),IF(Invulscherm!$B$4="koud jaar",Temperatuur!L3,IF(Invulscherm!$B$4="warm jaar",Temperatuur!K3,Temperatuur!J3))))) -> 1.533333333 | D6: =IF(Invulscherm!$B$15<>"",IF(Invulscherm!$AB$18+0.999<A6,D5,IF(Invulscherm!$AB$17>A6,(D7-1),IF((Invulscherm!$AB$17+0.999)<A6,(D5+1),0))),"") ->  | E6: =IF(Invulscherm!$B$15<>"",IF($D6<0,0,INDEX((Gewasopname!$B$12:$D$86,Gewasopname!$F$12:$H$86,Gewasopname!$J$12:$L$86,Gewasopname!$N$12:$P$86,Gewasopname!$R$12:$T$86,Gewasopname!$V$12:$X$86,Gewasopname!$Z$12:$AB$81,Gewasopname!$AD$12:$AF$81,Gewasopname!$AH$12:$AJ$71,Gewasopname!$AL$12:$AN$71,Gewasopname!$AP$12:$AR$81,Gewasopname!$AT$12:$AV$81,Gewasopname!$AX$12:$AZ$81,Gewasopname!$BB$12:$BD$81,Gewasopname!$BF$12:$BH$63,Gewasopname!$BJ$12:$BL$63,Gewasopname!$BN$12:$BP$63,Gewasopname!$BR$12:$BT$63,Gewasopname!$BV$12:$BX$63,Gewasopname!$BZ$12:$CB$63,Gewasopname!$CD$12:$CF$63,Gewasopname!$CH$12:$CJ$63,Gewasopname!$CL$12:$CN$63,Gewasopname!$CP$12:$CR$63,Gewasopname!$CT$12:$CV$63,Gewasopname!$CX$12:$CZ$63,Gewasopname!$DB$12:$DD$63,Gewasopname!$DF$12:$DH$63,Gewasopname!$DJ$12:$DL$63,Gewasopname!$DN$12:$DP$63),$D6+1,2,$E$3)),"") ->  | F6: =IF(Invulscherm!$B$15<>"",IF(Invulscherm!$B$15="Suikerbiet",E6,E6*(Invulscherm!$B$19/(HLOOKUP(Invulscherm!$B$15,Gewasopname!$B$2:$DP$63,4,FALSE)))),0) -> 0 | G6: =IF($A6<=Invulscherm!$AB$18,F6,"") -> 0 | H6: =IF(Invulscherm!$B$15<>"",IF($D6<0,0,INDEX((Gewasopname!$B$12:$D$86,Gewasopname!$F$12:$H$86,Gewasopname!$J$12:$L$86,Gewasopname!$N$12:$P$86,Gewasopname!$R$12:$T$86,Gewasopname!$V$12:$X$86,Gewasopname!$Z$12:$AB$81,Gewasopname!$AD$12:$AF$81,Gewasopname!$AH$12:$AJ$71,Gewasopname!$AL$12:$AN$71,Gewasopname!$AP$12:$AR$81,Gewasopname!$AT$12:$AV$81,Gewasopname!$AX$12:$AZ$81,Gewasopname!$BB$12:$BD$81,Gewasopname!$BF$12:$BH$63,Gewasopname!$BJ$12:$BL$63,Gewasopname!$BN$12:$BP$63,Gewasopname!$BR$12:$BT$63,Gewasopname!$BV$12:$BX$63,Gewasopname!$BZ$12:$CB$63,Gewasopname!$CD$12:$CF$63,Gewasopname!$CH$12:$CJ$63,Gewasopname!$CL$12:$CN$63,Gewasopname!$CP$12:$CR$63,Gewasopname!$CT$12:$CV$63,Gewasopname!$CX$12:$CZ$63,Gewasopname!$DB$12:$DD$63,Gewasopname!$DF$12:$DH$63,Gewasopname!$DJ$12:$DL$63,Gewasopname!$DN$12:$DP$63),$D6+1,3,$E$3)),"") ->  | I6: =IF($A6<=Invulscherm!$AB$18,H6,"") ->  | J6: =IF(Invulscherm!$B$15<>"",IF($D6<0,0,INDEX((Gewasopname!$B$12:$E$86,Gewasopname!$F$12:$I$86,Gewasopname!$J$12:$M$86,Gewasopname!$N$12:$Q$86,Gewasopname!$R$12:$U$86,Gewasopname!$V$12:$Y$86,Gewasopname!$Z$12:$AC$81,Gewasopname!$AD$12:$AG$81,Gewasopname!$AH$12:$AK$71,Gewasopname!$AL$12:$AO$71,Gewasopname!$AP$12:$AS$81,Gewasopname!$AT$12:$AW$81,Gewasopname!$AX$12:$BA$81,Gewasopname!$BB$12:$BE$81,Gewasopname!$BF$12:$BI$63,Gewasopname!$BJ$12:$BM$63,Gewasopname!$BN$12:$BQ$63,Gewasopname!$BR$12:$BU$63,Gewasopname!$BV$12:$BY$63,Gewasopname!$BZ$12:$CC$63,Gewasopname!$CD$12:$CG$63,Gewasopname!$CH$12:$CK$63,Gewasopname!$CL$12:$CO$63,Gewasopname!$CP$12:$CS$63,Gewasopname!$CT$12:$CW$63,Gewasopname!$CX$12:$DA$63,Gewasopname!$DB$12:$DE$63,Gewasopname!$DF$12:$DI$63,Gewasopname!$DJ$12:$DM$63,Gewasopname!$DN$12:$DQ$63),$D6+1,4,$E$3)),"") ->  | K6: =IF(Invulscherm!$B$15<>"",IF(Invulscherm!$B$15="Suikerbiet",J6,J6*(Invulscherm!$B$19/(HLOOKUP(Invulscherm!$B$15,Gewasopname!$B$2:$DP$63,4,FALSE)))),0) -> 0 | L6: =IF($A6<=Invulscherm!$AB$18,K6,"") -> 0 | M6: =CA6 -> -58.60179773 | N6: =IF($A6<=Invulscherm!$AB$18,M6,"") -> -58.60179773 | O6: =DT6 -> 0 | P6: =IF($A6<=Invulscherm!$AB$18,O6,"") -> 0 | Q6: =EM6 -> 0 | R6: =IF($A6<=Invulscherm!$AB$18,Q6,"") -> 0 | S6: =FF6 -> 0 | T6: =IF($A6<=Invulscherm!$AB$18,S6,"") -> 0 | U6: =FY6 -> 0 | V6: =IF($A6<=Invulscherm!$AB$18,U6,"") -> 0 | W6: =GR6 -> 0 | X6: =IF($A6<=Invulscherm!$AB$18,W6,"") -> 0 | Y6: =HK6 -> 0 | Z6: =IF($A6<=Invulscherm!$AB$18,Y6,"") -> 0 | AA6: =(K6+M6+O6+Q6+S6+U6+W6+Y6)-F6 -> -58.60179773 | AB6: =IF(A6<=Invulscherm!$AB$18,"",AA6) ->  | AD6: =IF($A6>=Invulscherm!$AB$17,IF($A6<=Invulscherm!$AB$18,(G6+I6-$L6-$N6),""),0) -> 0 | AE6: =IF($A6>=Invulscherm!$AB$20,IF($A6<=Invulscherm!$AB$18,(AD6-P6),""),"") ->  | AF6: =IF($A6>=Invulscherm!$AB$20,IF($A6<=Invulscherm!$AB$18,($AE6-$R6),""),"") ->  | AG6: =IF($A6>=Invulscherm!$AB$20,IF($A6<=Invulscherm!$AB$18,($AF6-$T6),""),"") ->  | AH6: =IF($A6>=Invulscherm!$AB$20,IF($A6<=Invulscherm!$AB$18,($AG6-$V6),""),"") ->  | AI6: =IF($A6>=Invulscherm!$AB$20,IF($A6<=Invulscherm!$AB$18,($AH6-$X6),""),"") ->  | AJ6: =IF($A6>=Invulscherm!$AB$20,IF($A6<=Invulscherm!$AB$18,($AI6-$Z6),""),"") ->  | AK6: =IF($A6>Invulscherm!$AB$20,IF($A6<=Invulscherm!$AB$18,IF(AJ6<-10,"ja","nee"),""),"") ->  | AL6: =IF(AND(Invulscherm!$AB$20<>"",Invulscherm!$B$15<>""),IF($A6>=Invulscherm!$AB$20,IF($A6<=Invulscherm!$AB$18,IF(AJ6>5,"ja","nee"),""),""),"ja") -> ja | AN6: =IF(Invulscherm!$B$13="",IF($A6>Invulscherm!$U$13,0,IF($A6<Invulscherm!$U$13,0,Standaardwaarden!$B$21*Standaardwaarden!$B$20*(Invulscherm!$B$10/100)*Standaardwaarden!$B$23)),IF($A6>Invulscherm!$AB$13,0,IF($A6<Invulscherm!$AB$13,0,Standaardwaarden!$B$21*Standaardwaarden!$B$20*(Invulscherm!$B$10/100)*Standaardwaarden!$B$23))) -> 0 | AO6: =IF(AN6>0,AN6,AO5+AV5) -> 0 | AP6: =IF($C6>27,3.5,IF($C6<-0.999,0,IF(-1<$C6<9.001,0.09*($C6+1),0.88*2^(($C6-9)/9)))) -> 0.4951528332 | AQ6: =(-0.322*LN(Invulscherm!$B$10)+1.2233)*(IF(Invulscherm!$B$8=Invulscherm!$AJ$8,Standaardwaarden!$B$32,IF(Invulscherm!$B$8=Invulscherm!$AJ$9,Standaardwaarden!$B$33,IF(Invulscherm!$B$8=Invulscherm!$AJ$10,Standaardwaarden!$B$34,IF(Invulscherm!$B$8=Invulscherm!$AJ$11,Standaardwaarden!$B$35,IF(Invulscherm!$B$8=Invulscherm!$AJ$12,Standaardwaarden!$B$36,Standaardwaarden!$B$37)))))) -> 0.8500906167 | AS6: =(1/(1+EXP(-1.5*(Invulscherm!$B$11-4)))) -> 0.9770226301 | AT6: =AP6*AQ6*AS6 -> 0.411253033 | AU6: =IF(Invulscherm!$B$13="",IF(($A6-1)>Invulscherm!$U$13,AU5+AT6/52,IF(($A6-1)<Invulscherm!$U$13,"",Standaardwaarden!$B$22+AT6/52)),IF(($A6-1)>Invulscherm!$AB$13,AU5+AT6/52,IF(($A6-1)<Invulscherm!$AB$13,"",Standaardwaarden!$B$22+AT6/52))) ->  | AV6: =IF(Invulscherm!$B$13="",IF(($A6-1)>Invulscherm!$U$13,AO6*(-2.82)*AT6*(1/52)*(AU6^(-1.6)),0),IF(($A6-1)>Invulscherm!$AB$13,AO6*(-2.82)*AT6*(1/52)*(AU6^(-1.6)),0)) -> 0 | AW6: =IF(Invulscherm!$B$13="",IF(($A6-1)>Invulscherm!$U$13,AW5+AX5,IF(($A6-1)<Invulscherm!$U$13,0,(Standaardwaarden!$B$20*Standaardwaarden!$B$21*(Invulscherm!$B$10/100)*Standaardwaarden!$B$23)/Standaardwaarden!$B$25)),IF(($A6-1)>Invulscherm!$AB$13,AW5+AX5,IF(($A6-1)<Invulscherm!$AB$13,0,(Standaardwaarden!$B$20*Standaardwaarden!$B$21*(Invulscherm!$B$10/100)*Standaardwaarden!$B$23)/Standaardwaarden!$B$25))) -> 0 | AX6: =IF(Invulscherm!$B$13="",IF(($A6-1)>Invulscherm!$U$13,((AV6*(1+Standaardwaarden!$B$29))/(AO6/AW6))-(((AV6*(1+Standaardwaarden!$B$29))-AV6)*(1/Standaardwaarden!$B$28)),0),IF(($A6-1)>Invulscherm!$AB$13,((AV6*(1+Standaardwaarden!$B$29))/(AO6/AW6))-(((AV6*(1+Standaardwaarden!$B$29))-AV6)*(1/Standaardwaarden!$B$28)),0)) -> 0 | AY6: =-AX6+AY5 -> 0 | AZ6: =IF(Invulscherm!$B$13="",IF(($A6-1)<Invulscherm!$U$13,0,Invulscherm!$T$12),IF(($A6-1)<Invulscherm!$AB$13,0,Invulscherm!$B$12)) -> 0 | BA6: =AY6+AZ6 -> 0 | BB6: =BA6+CN6+DA6 -> 0 | BC6: =IF(BB6>0,($F6*BB6/($BB6+$DP6+$EI6+$FB6+$FU6+$GN6+$HG6)),0) -> 0 | BD6: =IF(BB6>0,(Standaardwaarden!$B$30*(BB6-BC6-BD5)*((-$AV6-$CJ6-$CW6-$DJ6-$EC6-$EV6-$FO6-$GH6-$HA6)*(1+Standaardwaarden!$B$29))/10000),0) -> 0 | BE6: =BE5+BD6 -> 0 | BF6: =BB6-BE6 -> 0 | BH6: =Standaardwaarden!$B$21*Standaardwaarden!$B$20*(Invulscherm!$B$10/100)*Standaardwaarden!$B$23 -> 49670.31409 | BI6: =IF(BH6>0,BH6,BI5+BP5) -> 49670.31409 | BJ6: =IF($C6>27,3.5,IF($C6<-0.999,0,IF(-1<$C6<9.001,0.09*($C6+1),0.88*2^(($C6-9)/9)))) -> 0.4951528332 | BK6: =(-0.322*LN(Invulscherm!$B$10)+1.2233)*(IF(Invulscherm!$B$8=Invulscherm!$AJ$8,Standaardwaarden!$B$32,IF(Invulscherm!$B$8=Invulscherm!$AJ$9,Standaardwaarden!$B$33,IF(Invulscherm!$B$8=Invulscherm!$AJ$10,Standaardwaarden!$B$34,IF(Invulscherm!$B$8=Invulscherm!$AJ$11,Standaardwaarden!$B$35,IF(Invulscherm!$B$8=Invulscherm!$AJ$12,Standaardwaarden!$B$36,Standaardwaarden!$B$37)))))) -> 0.8500906167 | BM6: =(1/(1+EXP(-1.5*(Invulscherm!$B$11-4)))) -> 0.9770226301 | BN6: =BJ6*BK6*BM6 -> 0.411253033 | BO6: =Standaardwaarden!$B$22+BN6/52 -> 16.00790871 | BP6: =BI6*(-2.82)*BN6*(1/52)*(BO6^(-1.6)) -> -13.10739618 | BQ6: =Standaardwaarden!$B$20*Standaardwaarden!$B$21*(Invulscherm!$B$10/100)*Standaardwaarden!$B$23/Standaardwaarden!$B$25 -> 4967.031409 | BR6: =((BP6*(1+Standaardwaarden!$B$29))/(BI6/BQ6))-(((BP6*(1+Standaardwaarden!$B$29))-BP6)*(1/Standaardwaarden!$B$28)) -> -1.028426469 | BS6: =-BR6+BS5 -> 1.028426469 | BT6: 0 | BU6: =BS6+BT6 -> 1.028426469 | BV6: =BU6+CN6+DA6 -> 1.028426469 | BW6: =IF(BV6>0,($F6*BV6/($BV6+$DP6+$EI6+$FB6+$FU6+$GN6+$HG6)),0) -> 0 | BX6: =IF(BV6>0,(Standaardwaarden!$B$30*(BV6-BW6-BX5)*((-$BP6-$CJ6-$CW6-$DJ6-$EC6-$EV6-$FO6-$GH6-$HA6)*(1+Standaardwaarden!$B$29))/10000),0) -> 0.001887199044 | BY6: =(BY5+BX6) -> 0.001887199044 | BZ6: =BV6-BY6 -> 1.02653927 | CA6: =IF(Invulscherm!$AB$13="",IF(A6<Invulscherm!$U$13,(BZ6+(Invulscherm!$T$12-(VLOOKUP(Invulscherm!$U$13,$A$6:$BZ$110,78,FALSE)))),IF(A6>Invulscherm!$U$13,BF6,Invulscherm!$T$12)),IF(A6<Invulscherm!$AB$13,(BZ6+(Invulscherm!$B$12-(VLOOKUP(Invulscherm!$AB$13,$A$6:$BZ$110,78,FALSE)))),IF(A6>Invulscherm!$AB$13,BF6,Invulscherm!$B$12))) -> -58.60179773 | CC6: =IF($A6>Invulscherm!$AB$15,0,IF($A6<Invulscherm!$AB$15,0,Invulscherm!$AB$29*Invulscherm!$AB$31)) -> 0 | CD6: =IF(CC6>0,CC6,CD5+CJ5) -> 0 | CE6: =IF($C6>27,3.5,IF($C6<-0.999,0,IF(-1<$C6<9.001,0.09*($C6+1),0.88*2^(($C6-9)/9)))) -> 0.4951528332 | CF6: =IF(Invulscherm!$B$8=Invulscherm!$AJ$8,Standaardwaarden!$B$32,IF(Invulscherm!$B$8=Invulscherm!$AJ$9,Standaardwaarden!$B$33,IF(Invulscherm!$B$8=Invulscherm!$AJ$10,Standaardwaarden!$B$34,IF(Invulscherm!$B$8=Invulscherm!$AJ$11,Standaardwaarden!$B$35,IF(Invulscherm!$B$8=Invulscherm!$AJ$12,Standaardwaarden!$B$36,Standaardwaarden!$B$37))))) -> 0.85 | CG6: =(1/(1+EXP(-1.5*(Invulscherm!$B$11-4)))) -> 0.9770226301 | CH6: =CE6*CF6*CG6 -> 0.4112091949 | CI6: =IF($A6>Invulscherm!$AB$15,CI5+CH6/52,IF($A6<Invulscherm!$AB$15,"",Invulscherm!$AB$32+CH6/52)) ->  | CJ6: =IF($A6>Invulscherm!$AB$15,CD6*(-2.82)*CH6*(1/52)*(CI6^(-1.6)),0) -> 0 | CK6: =IF($A6>Invulscherm!$AB$15,CK5+CL5,IF($A6<Invulscherm!$AB$15,0,Invulscherm!$AB$29*Invulscherm!$AB$30)) -> 0 | CL6: =IF(CK6>0,IF($A6>Invulscherm!$AB$15,((CJ6*(1+Standaardwaarden!$B$29))/(CD6/CK6))-(((CJ6*(1+Standaardwaarden!$B$29))-CJ6)*(1/Standaardwaarden!$B$28)),0),0) -> 0 | CM6: =-CL6+CM5 -> 0 | CN6: =IF(Invulscherm!$B$13="",IF(A6<Invulscherm!$U$13,0,(CM6-VLOOKUP(Invulscherm!$U$13,$A$4:$HK$110,91,FALSE))),IF(A6<Invulscherm!$AB$13,0,(CM6-VLOOKUP(Invulscherm!$AB$13,$A$4:$HK$110,91,FALSE)))) -> 0 | CP6: =IF($A6>Invulscherm!$AB$16,0,IF($A6<Invulscherm!$AB$16,0,Invulscherm!$AB$36)) -> 0 | CQ6: =IF(CP6>0,CP6,CQ5+CW5) -> 0 | CR6: =IF($C6>27,3.5,IF($C6<-0.999,0,IF(-1<$C6<9.001,0.09*($C6+1),0.88*2^(($C6-9)/9)))) -> 0.4951528332 | CS6: =IF(Invulscherm!$B$8=Invulscherm!$AJ$8,Standaardwaarden!$B$32,IF(Invulscherm!$B$8=Invulscherm!$AJ$9,Standaardwaarden!$B$33,IF(Invulscherm!$B$8=Invulscherm!$AJ$10,Standaardwaarden!$B$34,IF(Invulscherm!$B$8=Invulscherm!$AJ$11,Standaardwaarden!$B$35,IF(Invulscherm!$B$8=Invulscherm!$AJ$12,Standaardwaarden!$B$36,Standaardwaarden!$B$37))))) -> 0.85 | CT6: =(1/(1+EXP(-1.5*(Invulscherm!$B$11-4)))) -> 0.9770226301 | CU6: =CR6*CS6*CT6 -> 0.4112091949 | CV6: =IF($A6>Invulscherm!$AB$16,CV5+CU6/52,IF($A6<Invulscherm!$AB$16,"",Invulscherm!$AB$37+CU6/52)) ->  | CW6: =IF($A6>Invulscherm!$AB$16,CQ6*(-2.82)*CU6*(1/52)*(CV6^(-1.6)),0) -> 0 | CX6: =IF($A6>Invulscherm!$AB$16,CX5+CY5,IF($A6<Invulscherm!$AB$16,0,Invulscherm!$AB$35)) -> 0 | CY6: =IF(CX6>0,IF($A6>Invulscherm!$AB$16,((CW6*(1+Standaardwaarden!$B$29))/(CQ6/CX6))-(((CW6*(1+Standaardwaarden!$B$29))-CW6)*(1/Standaardwaarden!$B$28)),0),0) -> 0 | CZ6: =-CY6+CZ5 -> 0 | DA6: =IF(Invulscherm!$B$13="",IF(A6<Invulscherm!$U$13,0,(CZ6-VLOOKUP(Invulscherm!$U$13,$A$4:$HK$110,104,FALSE))),IF(A6<Invulscherm!$AB$13,0,(CZ6-VLOOKUP(Invulscherm!$AB$13,$A$4:$HK$110,104,FALSE)))) -> 0 | DC6: =IF(AND(Invulscherm!$B$32=Invulscherm!$AQ$8,Invulscherm!$B$33<>""),IF($A6>Invulscherm!$AB$20,0,IF($A6<Invulscherm!$AB$20,0,Invulscherm!$C$33*Invulscherm!$C$37*(VLOOKUP(Invulscherm!$B$33,Meststoffen!$A$3:$P$62,7,FALSE)))),"") ->  | DD6: =IF(AND(Invulscherm!$B$32=Invulscherm!$AQ$8,Invulscherm!$B$33<>""),IF(DC6>0,DC6,DD5+DJ5),"") ->  | DE6: =IF(AND(Invulscherm!$B$32=Invulscherm!$AQ$8,Invulscherm!$B$33<>""),IF($C6>27,3.5,IF($C6<-0.999,0,IF(-1<$C6<9.001,0.09*($C6+1),0.88*2^(($C6-9)/9)))),"") ->  | DF6: =IF(AND(Invulscherm!$B$32=Invulscherm!$AQ$8,Invulscherm!$B$33<>""),IF(Invulscherm!$B$8=Invulscherm!$AJ$8,Standaardwaarden!$B$32,IF(Invulscherm!$B$8=Invulscherm!$AJ$9,Standaardwaarden!$B$33,IF(Invulscherm!$B$8=Invulscherm!$AJ$10,Standaardwaarden!$B$34,IF(Invulscherm!$B$8=Invulscherm!$AJ$11,Standaardwaarden!$B$35,IF(Invulscherm!$B$8=Invulscherm!$AJ$12,Standaardwaarden!$B$36,Standaardwaarden!$B$37))))),"") ->  | DG6: =IF(AND(Invulscherm!$B$32=Invulscherm!$AQ$8,Invulscherm!$B$33<>""),(1/(1+EXP(-1.5*(Invulscherm!$B$11-4)))),"") ->  | DH6: =IF(AND(Invulscherm!$B$32=Invulscherm!$AQ$8,Invulscherm!$B$33<>""),DE6*DF6*DG6,"") ->  | DI6: =IF(AND(Invulscherm!$B$32=Invulscherm!$AQ$8,Invulscherm!$B$33<>""),IF($A6>Invulscherm!$AB$20,DI5+DH6/52,IF($A6<Invulscherm!$AB$20,"",(VLOOKUP(Invulscherm!$B$33,Meststoffen!$A$3:$P$62,6,FALSE))+DH6/52)),"") ->  | DJ6: =IF(AND(Invulscherm!$B$32=Invulscherm!$AQ$8,Invulscherm!$B$33<>""),IF($A6>Invulscherm!$AB$20,DD6*(-2.82)*DH6*(1/52)*(DI6^(-1.6)),0),0) -> 0 | DK6: =IF(AND(Invulscherm!$B$32=Invulscherm!$AQ$8,Invulscherm!$B$33<>""),IF($A6>Invulscherm!$AB$20,DK5+DL5,IF($A6<Invulscherm!$AB$20,0,IF(Invulscherm!$D$28="Uitslag + 10%",1.1*(Invulscherm!$C$33*(Invulscherm!$C$35-Invulscherm!$C$36)),IF(Invulscherm!$D$28="Uitslag - 10%",0.9*(Invulscherm!$C$33*(Invulscherm!$C$35-Invulscherm!$C$36)),Invulscherm!$C$33*(Invulscherm!$C$35-Invulscherm!$C$36))))),0) -> 0 | DL6: =IF((DK6)>0,((DJ6*(1+Standaardwaarden!$B$29))/(DD6/DK6))-(((DJ6*(1+Standaardwaarden!$B$29))-DJ6)*(1/Standaardwaarden!$B$28)),0) -> 0 | DM6: =-DL6+DM5 -> 0 | DN6: =IF(AND(Invulscherm!$B$32=Invulscherm!$AQ$8,Invulscherm!$B$33<>""),IF($A6<Invulscherm!$AB$20,"",IF(Invulscherm!$D$28="Uitslag + 10%",1.1*(Invulscherm!$C$33*Invulscherm!$C$36),IF(Invulscherm!$D$28="Uitslag - 10%",0.9*(Invulscherm!$C$33*Invulscherm!$C$36),Invulscherm!$C$33*Invulscherm!$C$36))),IF($A6<Invulscherm!$AB$20,"",Invulscherm!$C$33*0.98)) ->  | DO6: =IF($A6<Invulscherm!$AB$20,0,IF(AND(Invulscherm!$AB$20<Invulscherm!$AB$13,$A6>Invulscherm!$AB$13),0,IF(AND(Invulscherm!$B$32=Invulscherm!$AQ$8,Invulscherm!$B$33<>""),IF(Invulscherm!$B$34=Invulscherm!$AS$8,DN6*Invulscherm!$AT$8,IF(Invulscherm!$B$34=Invulscherm!$AS$9,DN6*Invulscherm!$AT$9,DN6*Invulscherm!$AT$10)),Invulscherm!$C$33*0.98))) -> 0 | DP6: =DM6+DO6 -> 0 | DQ6: =$F6*DP6/($BV6+$DP6+$EI6+$FB6+$FU6+$GN6+$HG6) -> 0 | DR6: =IF(DP6>0,(Standaardwaarden!$B$30*(DP6-DQ6-DR5)*((-$AV6-$CJ6-$CW6-$DJ6-$EC6-$EV6-$FO6-$GH6-$HA6)*(1+Standaardwaarden!$B$29))/10000),0) -> 0 | DS6: =(DS5+DR6) -> 0 | DT6: =IF(DP6>0,IF($A6>Invulscherm!$AB$13,(DP6-DS6),0),0) -> 0 | DV6: =IF(AND(Invulscherm!$F$32=Invulscherm!$AQ$8,Invulscherm!$F$33<>""),IF($A6>Invulscherm!$AB$21,0,IF($A6<Invulscherm!$AB$21,0,Invulscherm!$G$33*Invulscherm!$G$37*(VLOOKUP(Invulscherm!$F$33,Meststoffen!$A$3:$P$62,7,FALSE)))),"") ->  | DW6: =IF(AND(Invulscherm!$F$32=Invulscherm!$AQ$8,Invulscherm!$F$33<>""),IF(DV6>0,DV6,DW5+EC5),"") ->  | DX6: =IF(AND(Invulscherm!$F$32=Invulscherm!$AQ$8,Invulscherm!$F$33<>""),IF($C6>27,3.5,IF($C6<-0.999,0,IF(-1<$C6<9.001,0.09*($C6+1),0.88*2^(($C6-9)/9)))),"") ->  | DY6: =IF(AND(Invulscherm!$F$32=Invulscherm!$AQ$8,Invulscherm!$F$33<>""),IF(Invulscherm!$B$8=Invulscherm!$AJ$8,Standaardwaarden!$B$32,IF(Invulscherm!$B$8=Invulscherm!$AJ$9,Standaardwaarden!$B$33,IF(Invulscherm!$B$8=Invulscherm!$AJ$10,Standaardwaarden!$B$34,IF(Invulscherm!$B$8=Invulscherm!$AJ$11,Standaardwaarden!$B$35,IF(Invulscherm!$B$8=Invulscherm!$AJ$12,Standaardwaarden!$B$36,Standaardwaarden!$B$37))))),"") ->  | DZ6: =IF(AND(Invulscherm!$F$32=Invulscherm!$AQ$8,Invulscherm!$F$33<>""),(1/(1+EXP(-1.5*(Invulscherm!$B$11-4)))),"") ->  | EA6: =IF(AND(Invulscherm!$F$32=Invulscherm!$AQ$8,Invulscherm!$F$33<>""),DX6*DY6*DZ6,"") ->  | EB6: =IF(AND(Invulscherm!$F$32=Invulscherm!$AQ$8,Invulscherm!$F$33<>""),IF($A6>Invulscherm!$AB$21,EB5+EA6/52,IF($A6<Invulscherm!$AB$21,"",(VLOOKUP(Invulscherm!$F$33,Meststoffen!$A$3:$P$62,6,FALSE))+EA6/52)),"") ->  | EC6: =IF(AND(Invulscherm!$F$32=Invulscherm!$AQ$8,Invulscherm!$F$33<>""),IF($A6>Invulscherm!$AB$21,DW6*(-2.82)*EA6*(1/52)*(EB6^(-1.6)),0),0) -> 0 | ED6: =IF(AND(Invulscherm!$F$32=Invulscherm!$AQ$8,Invulscherm!$F$33<>""),IF($A6>Invulscherm!$AB$21,ED5+EE5,IF($A6<Invulscherm!$AB$21,0,IF(Invulscherm!$D$28="Uitslag + 10%",1.1*(Invulscherm!$G$33*(Invulscherm!$G$35-Invulscherm!$G$36)),IF(Invulscherm!$D$28="Uitslag - 10%",0.9*(Invulscherm!$G$33*(Invulscherm!$G$35-Invulscherm!$G$36)),Invulscherm!$G$33*(Invulscherm!$G$35-Invulscherm!$G$36))))),0) -> 0 | EE6: =IF((ED6)>0,((EC6*(1+Standaardwaarden!$B$29))/(DW6/ED6))-(((EC6*(1+Standaardwaarden!$B$29))-EC6)*(1/Standaardwaarden!$B$28)),0) -> 0 | EF6: =-EE6+EF5 -> 0 | EG6: =IF(AND(Invulscherm!$F$32=Invulscherm!$AQ$8,Invulscherm!$F$33<>""),IF($A6<Invulscherm!$AB$21,"",IF(Invulscherm!$D$28="Uitslag + 10%",1.1*(Invulscherm!$G$33*Invulscherm!$G$36),IF(Invulscherm!$D$28="Uitslag - 10%",0.9*(Invulscherm!$G$33*Invulscherm!$G$36),Invulscherm!$G$33*Invulscherm!$G$36))),Invulscherm!$G$33*0.98) -> 0 | EH6: =IF($A6<Invulscherm!$AB$21,0,IF(AND(Invulscherm!$AB$21<Invulscherm!$AB$13,$A6>Invulscherm!$AB$13),0,IF(AND(Invulscherm!$F$32=Invulscherm!$AQ$8,Invulscherm!$F$33<>""),IF(Invulscherm!$F$34=Invulscherm!$AS$8,EG6*Invulscherm!$AT$8,EG6*Invulscherm!$AT$9),Invulscherm!$G$33*0.98))) -> 0 | EI6: =EF6+EH6 -> 0 | EJ6: =$F6*EI6/($BV6+$DP6+$EI6+$FB6+$FU6+$GN6+$HG6) -> 0 | EK6: =IF(EI6>0,(Standaardwaarden!$B$30*(EI6-EJ6-EK5)*((-$AV6-$CJ6-$CW6-$DJ6-$EC6-$EV6-$FO6-$GH6-$HA6)*(1+Standaardwaarden!$B$29))/10000),0) -> 0 | EL6: =(EL5+EK6) -> 0 | EM6: =IF(EI6>0,IF($A6>Invulscherm!$AB$13,(EI6-EL6),0),0) -> 0 | EO6: =IF(AND(Invulscherm!$J$32=Invulscherm!$AQ$8,Invulscherm!$J$33<>""),IF($A6>Invulscherm!$AB$22,0,IF($A6<Invulscherm!$AB$22,0,Invulscherm!$K$33*Invulscherm!$K$37*(VLOOKUP(Invulscherm!$J$33,Meststoffen!$A$3:$P$62,7,FALSE)))),"") ->  | EP6: =IF(AND(Invulscherm!$J$32=Invulscherm!$AQ$8,Invulscherm!$J$33<>""),IF(EO6>0,EO6,EP5+EV5),"") ->  | EQ6: =IF(AND(Invulscherm!$J$32=Invulscherm!$AQ$8,Invulscherm!$J$33<>""),IF($C6>27,3.5,IF($C6<-0.999,0,IF(-1<$C6<9.001,0.09*($C6+1),0.88*2^(($C6-9)/9)))),"") ->  | ER6: =IF(AND(Invulscherm!$J$32=Invulscherm!$AQ$8,Invulscherm!$J$33<>""),IF(Invulscherm!$B$8=Invulscherm!$AJ$8,Standaardwaarden!$B$32,IF(Invulscherm!$B$8=Invulscherm!$AJ$9,Standaardwaarden!$B$33,IF(Invulscherm!$B$8=Invulscherm!$AJ$10,Standaardwaarden!$B$34,IF(Invulscherm!$B$8=Invulscherm!$AJ$11,Standaardwaarden!$B$35,IF(Invulscherm!$B$8=Invulscherm!$AJ$12,Standaardwaarden!$B$36,Standaardwaarden!$B$37))))),"") ->  | ES6: =IF(AND(Invulscherm!$J$32=Invulscherm!$AQ$8,Invulscherm!$J$33<>""),(1/(1+EXP(-1.5*(Invulscherm!$B$11-4)))),"") ->  | ET6: =IF(AND(Invulscherm!$J$32=Invulscherm!$AQ$8,Invulscherm!$J$33<>""),EQ6*ER6*ES6,"") ->  | EU6: =IF(AND(Invulscherm!$J$32=Invulscherm!$AQ$8,Invulscherm!$J$33<>""),IF($A6>Invulscherm!$AB$22,EU5+ET6/52,IF($A6<Invulscherm!$AB$22,"",(VLOOKUP(Invulscherm!$J$33,Meststoffen!$A$3:$P$62,6,FALSE))+ET6/52)),"") ->  | EV6: =IF(AND(Invulscherm!$J$32=Invulscherm!$AQ$8,Invulscherm!$J$33<>""),IF($A6>Invulscherm!$AB$22,EP6*(-2.82)*ET6*(1/52)*(EU6^(-1.6)),0),0) -> 0 | EW6: =IF(AND(Invulscherm!$J$32=Invulscherm!$AQ$8,Invulscherm!$J$33<>""),IF($A6>Invulscherm!$AB$22,EW5+EX5,IF($A6<Invulscherm!$AB$22,0,IF(Invulscherm!$D$28="Uitslag + 10%",1.1*(Invulscherm!$K$33*(Invulscherm!$K$35-Invulscherm!$K$36)),IF(Invulscherm!$D$28="Uitslag - 10%",0.9*(Invulscherm!$K$33*(Invulscherm!$K$35-Invulscherm!$K$36)),Invulscherm!$K$33*(Invulscherm!$K$35-Invulscherm!$K$36))))),0) -> 0 | EX6: =IF((EW6)>0,((EV6*(1+Standaardwaarden!$B$29))/(EP6/EW6))-(((EV6*(1+Standaardwaarden!$B$29))-EV6)*(1/Standaardwaarden!$B$28)),0) -> 0 | EY6: =-EX6+EY5 -> 0 | EZ6: =IF(AND(Invulscherm!$J$32=Invulscherm!$AQ$8,Invulscherm!$J$33<>""),IF($A6<Invulscherm!$AB$22,"",IF(Invulscherm!$D$28="Uitslag + 10%",1.1*(Invulscherm!$K$33*Invulscherm!$K$36),IF(Invulscherm!$D$28="Uitslag - 10%",0.9*(Invulscherm!$K$33*Invulscherm!$K$36),Invulscherm!$K$33*Invulscherm!$K$36))),Invulscherm!$K$33*0.98) -> 0 | FA6: =IF($A6<Invulscherm!$AB$22,0,IF(AND(Invulscherm!$AB$22<Invulscherm!$AB$13,$A6>Invulscherm!$AB$13),0,IF(AND(Invulscherm!$J$32=Invulscherm!$AQ$8,Invulscherm!$J$33<>""),IF(Invulscherm!$J$34=Invulscherm!$AS$8,EZ6*Invulscherm!$AT$8,EZ6*Invulscherm!$AT$9),Invulscherm!$K$33*0.98))) -> 0 | FB6: =EY6+FA6 -> 0 | FC6: =$F6*FB6/($BV6+$DP6+$EI6+$FB6+$FU6+$GN6+$HG6) -> 0 | FD6: =IF(FB6>0,(Standaardwaarden!$B$30*(FB6-FC6-FD5)*((-$AV6-$CJ6-$CW6-$DJ6-$EC6-$EV6-$FO6-$GH6-$HA6)*(1+Standaardwaarden!$B$29))/10000),0) -> 0 | FE6: =(FE5+FD6) -> 0 | FF6: =IF(FB6>0,IF($A6>Invulscherm!$AB$13,(FB6-FE6),0),0) -> 0 | FH6: =IF(AND(Invulscherm!$B$43=Invulscherm!$AQ$8,Invulscherm!$B$44<>""),IF($A6>Invulscherm!$AB$23,0,IF($A6<Invulscherm!$AB$23,0,Invulscherm!$C$44*Invulscherm!$C$48*(VLOOKUP(Invulscherm!$B$44,Meststoffen!$A$3:$P$62,7,FALSE)))),"") ->  | FI6: =IF(AND(Invulscherm!$B$43=Invulscherm!$AQ$8,Invulscherm!$B$44<>""),IF(FH6>0,FH6,FI5+FO5),"") ->  | FJ6: =IF(AND(Invulscherm!$B$43=Invulscherm!$AQ$8,Invulscherm!$B$44<>""),IF($C6>27,3.5,IF($C6<-0.999,0,IF(-1<$C6<9.001,0.09*($C6+1),0.88*2^(($C6-9)/9)))),"") ->  | FK6: =IF(AND(Invulscherm!$B$43=Invulscherm!$AQ$8,Invulscherm!$B$44<>""),IF(Invulscherm!$B$8=Invulscherm!$AJ$8,Standaardwaarden!$B$32,IF(Invulscherm!$B$8=Invulscherm!$AJ$9,Standaardwaarden!$B$33,IF(Invulscherm!$B$8=Invulscherm!$AJ$10,Standaardwaarden!$B$34,IF(Invulscherm!$B$8=Invulscherm!$AJ$11,Standaardwaarden!$B$35,IF(Invulscherm!$B$8=Invulscherm!$AJ$12,Standaardwaarden!$B$36,Standaardwaarden!$B$37))))),"") ->  | FL6: =IF(AND(Invulscherm!$B$43=Invulscherm!$AQ$8,Invulscherm!$B$44<>""),(1/(1+EXP(-1.5*(Invulscherm!$B$11-4)))),"") ->  | FM6: =IF(AND(Invulscherm!$B$43=Invulscherm!$AQ$8,Invulscherm!$B$44<>""),FJ6*FK6*FL6,"") ->  | FN6: =IF(AND(Invulscherm!$B$43=Invulscherm!$AQ$8,Invulscherm!$B$44<>""),IF($A6>Invulscherm!$AB$23,FN5+FM6/52,IF($A6<Invulscherm!$AB$23,"",(VLOOKUP(Invulscherm!$B$44,Meststoffen!$A$3:$P$62,6,FALSE))+FM6/52)),"") ->  | FO6: =IF(AND(Invulscherm!$B$43=Invulscherm!$AQ$8,Invulscherm!$B$44<>""),IF($A6>Invulscherm!$AB$23,FI6*(-2.82)*FM6*(1/52)*(FN6^(-1.6)),0),0) -> 0 | FP6: =IF(AND(Invulscherm!$B$43=Invulscherm!$AQ$8,Invulscherm!$B$44<>""),IF($A6>Invulscherm!$AB$23,FP5+FQ5,IF($A6<Invulscherm!$AB$23,0,IF(Invulscherm!$D$28="Uitslag + 10%",1.1*(Invulscherm!$C$44*(Invulscherm!$C$46-Invulscherm!$C$47)),IF(Invulscherm!$D$28="Uitslag - 10%",0.9*(Invulscherm!$C$44*(Invulscherm!$C$46-Invulscherm!$C$47)),Invulscherm!$C$44*(Invulscherm!$C$46-Invulscherm!$C$47))))),0) -> 0 | FQ6: =IF((FP6)>0,((FO6*(1+Standaardwaarden!$B$29))/(FI6/FP6))-(((FO6*(1+Standaardwaarden!$B$29))-FO6)*(1/Standaardwaarden!$B$28)),0) -> 0 | FR6: =-FQ6+FR5 -> 0 | FS6: =IF(AND(Invulscherm!$B$43=Invulscherm!$AQ$8,Invulscherm!$B$44<>""),IF($A6<Invulscherm!$AB$23,"",IF(Invulscherm!$D$28="Uitslag + 10%",1.1*(Invulscherm!$C$44*Invulscherm!$C$47),IF(Invulscherm!$D$28="Uitslag - 10%",0.9*(Invulscherm!$C$44*Invulscherm!$C$47),Invulscherm!$C$44*Invulscherm!$C$47))),Invulscherm!$C$44*0.98) -> 0 | FT6: =IF($A6<Invulscherm!$AB$23,0,IF(AND(Invulscherm!$AB$23<Invulscherm!$AB$13,$A6>Invulscherm!$AB$13),0,IF(AND(Invulscherm!$B$43=Invulscherm!$AQ$8,Invulscherm!$B$44<>""),IF(Invulscherm!$B$45=Invulscherm!$AS$8,FS6*Invulscherm!$AT$8,FS6*Invulscherm!$AT$9),Invulscherm!$C$44*0.98))) -> 0 | FU6: =FR6+FT6 -> 0 | FV6: =$F6*FU6/($BV6+$DP6+$EI6+$FB6+$FU6+$GN6+$HG6) -> 0 | FW6: =IF(FU6>0,(Standaardwaarden!$B$30*(FU6-FV6-FW5)*((-$AV6-$CJ6-$CW6-$DJ6-$EC6-$EV6-$FO6-$GH6-$HA6)*(1+Standaardwaarden!$B$29))/10000),0) -> 0 | FX6: =(FX5+FW6) -> 0 | FY6: =IF(FU6>0,IF($A6>Invulscherm!$AB$13,(FU6-FX6),0),0) -> 0 | GA6: =IF(AND(Invulscherm!$F$43=Invulscherm!$AQ$8,Invulscherm!$F$44<>""),IF($A6>Invulscherm!$AB$24,0,IF($A6<Invulscherm!$AB$24,0,Invulscherm!$G$44*Invulscherm!$G$48*(VLOOKUP(Invulscherm!$F$44,Meststoffen!$A$3:$P$62,7,FALSE)))),"") ->  | GB6: =IF(AND(Invulscherm!$F$43=Invulscherm!$AQ$8,Invulscherm!$F$44<>""),IF(GA6>0,GA6,GB5+GH5),"") ->  | GC6: =IF(AND(Invulscherm!$F$43=Invulscherm!$AQ$8,Invulscherm!$F$44<>""),IF($C6>27,3.5,IF($C6<-0.999,0,IF(-1<$C6<9.001,0.09*($C6+1),0.88*2^(($C6-9)/9)))),"") ->  | GD6: =IF(AND(Invulscherm!$F$43=Invulscherm!$AQ$8,Invulscherm!$F$44<>""),IF(Invulscherm!$B$8=Invulscherm!$AJ$8,Standaardwaarden!$B$32,IF(Invulscherm!$B$8=Invulscherm!$AJ$9,Standaardwaarden!$B$33,IF(Invulscherm!$B$8=Invulscherm!$AJ$10,Standaardwaarden!$B$34,IF(Invulscherm!$B$8=Invulscherm!$AJ$11,Standaardwaarden!$B$35,IF(Invulscherm!$B$8=Invulscherm!$AJ$12,Standaardwaarden!$B$36,Standaardwaarden!$B$37))))),"") ->  | GE6: =IF(AND(Invulscherm!$F$43=Invulscherm!$AQ$8,Invulscherm!$F$44<>""),(1/(1+EXP(-1.5*(Invulscherm!$B$11-4)))),"") ->  | GF6: =IF(AND(Invulscherm!$F$43=Invulscherm!$AQ$8,Invulscherm!$F$44<>""),GC6*GD6*GE6,"") ->  | GG6: =IF(AND(Invulscherm!$F$43=Invulscherm!$AQ$8,Invulscherm!$F$44<>""),IF($A6>Invulscherm!$AB$24,GG5+GF6/52,IF($A6<Invulscherm!$AB$24,"",(VLOOKUP(Invulscherm!$F$44,Meststoffen!$A$3:$P$62,6,FALSE))+GF6/52)),"") ->  | GH6: =IF(AND(Invulscherm!$F$43=Invulscherm!$AQ$8,Invulscherm!$F$44<>""),IF($A6>Invulscherm!$AB$24,GB6*(-2.82)*GF6*(1/52)*(GG6^(-1.6)),0),0) -> 0 | GI6: =IF(AND(Invulscherm!$F$43=Invulscherm!$AQ$8,Invulscherm!$F$44<>""),IF($A6>Invulscherm!$AB$24,GI5+GJ5,IF($A6<Invulscherm!$AB$24,0,IF(Invulscherm!$D$28="Uitslag + 10%",1.1*(Invulscherm!$G$44*(Invulscherm!$G$46-Invulscherm!$G$47)),IF(Invulscherm!$D$28="Uitslag - 10%",0.9*(Invulscherm!$G$44*(Invulscherm!$G$46-Invulscherm!$G$47)),Invulscherm!$G$44*(Invulscherm!$G$46-Invulscherm!$G$47))))),0) -> 0 | GJ6: =IF((GI6)>0,((GH6*(1+Standaardwaarden!$B$29))/(GB6/GI6))-(((GH6*(1+Standaardwaarden!$B$29))-GH6)*(1/Standaardwaarden!$B$28)),0) -> 0 | GK6: =-GJ6+GK5 -> 0 | GL6: =IF(AND(Invulscherm!$F$43=Invulscherm!$AQ$8,Invulscherm!$F$44<>""),IF($A6<Invulscherm!$AB$24,"",IF(Invulscherm!$D$28="Uitslag + 10%",1.1*(Invulscherm!$G$44*Invulscherm!$G$47),IF(Invulscherm!$D$28="Uitslag - 10%",0.9*(Invulscherm!$G$44*Invulscherm!$G$47),Invulscherm!$G$44*Invulscherm!$G$47))),Invulscherm!$G$44*0.98) -> 0 | GM6: =IF($A6<Invulscherm!$AB$24,0,IF(AND(Invulscherm!$AB$24<Invulscherm!$AB$13,$A6>Invulscherm!$AB$13),0,IF(AND(Invulscherm!$F$43=Invulscherm!$AQ$8,Invulscherm!$F$44<>""),IF(Invulscherm!$F$45=Invulscherm!$AS$8,GL6*Invulscherm!$AT$8,GL6*Invulscherm!$AT$9),Invulscherm!$G$44*0.98))) -> 0 | GN6: =GK6+GM6 -> 0 | GO6: =$F6*GN6/($BV6+$DP6+$EI6+$FB6+$FU6+$GN6+$HG6) -> 0 | GP6: =IF(GN6>0,(Standaardwaarden!$B$30*(GN6-GO6-GP5)*((-$AV6-$CJ6-$CW6-$DJ6-$EC6-$EV6-$FO6-$GH6-$HA6)*(1+Standaardwaarden!$B$29))/10000),0) -> 0 | GQ6: =(GQ5+GP6) -> 0 | GR6: =IF(GN6>0,IF($A6>Invulscherm!$AB$13,(GN6-GQ6),0),0) -> 0 | GT6: =IF(AND(Invulscherm!$J$43=Invulscherm!$AQ$8,Invulscherm!$J$44<>""),IF($A6>Invulscherm!$AB$25,0,IF($A6<Invulscherm!$AB$25,0,Invulscherm!$K$44*Invulscherm!$K$48*(VLOOKUP(Invulscherm!$J$44,Meststoffen!$A$3:$P$62,7,FALSE)))),"") ->  | GU6: =IF(AND(Invulscherm!$J$43=Invulscherm!$AQ$8,Invulscherm!$J$44<>""),IF(GT6>0,GT6,GU5+HA5),"") ->  | GV6: =IF(AND(Invulscherm!$J$43=Invulscherm!$AQ$8,Invulscherm!$J$44<>""),IF($C6>27,3.5,IF($C6<-0.999,0,IF(-1<$C6<9.001,0.09*($C6+1),0.88*2^(($C6-9)/9)))),"") ->  | GW6: =IF(AND(Invulscherm!$J$43=Invulscherm!$AQ$8,Invulscherm!$J$44<>""),IF(Invulscherm!$B$8=Invulscherm!$AJ$8,Standaardwaarden!$B$32,IF(Invulscherm!$B$8=Invulscherm!$AJ$9,Standaardwaarden!$B$33,IF(Invulscherm!$B$8=Invulscherm!$AJ$10,Standaardwaarden!$B$34,IF(Invulscherm!$B$8=Invulscherm!$AJ$11,Standaardwaarden!$B$35,IF(Invulscherm!$B$8=Invulscherm!$AJ$12,Standaardwaarden!$B$36,Standaardwaarden!$B$37))))),"") ->  | GX6: =IF(AND(Invulscherm!$J$43=Invulscherm!$AQ$8,Invulscherm!$J$44<>""),(1/(1+EXP(-1.5*(Invulscherm!$B$11-4)))),"") ->  | GY6: =IF(AND(Invulscherm!$J$43=Invulscherm!$AQ$8,Invulscherm!$J$44<>""),GV6*GW6*GX6,"") ->  | GZ6: =IF(AND(Invulscherm!$J$43=Invulscherm!$AQ$8,Invulscherm!$J$44<>""),IF($A6>Invulscherm!$AB$25,GZ5+GY6/52,IF($A6<Invulscherm!$AB$25,"",(VLOOKUP(Invulscherm!$J$44,Meststoffen!$A$3:$P$62,6,FALSE))+GY6/52)),"") ->  | HA6: =IF(AND(Invulscherm!$J$43=Invulscherm!$AQ$8,Invulscherm!$J$44<>""),IF($A6>Invulscherm!$AB$25,GU6*(-2.82)*GY6*(1/52)*(GZ6^(-1.6)),0),0) -> 0 | HB6: =IF(AND(Invulscherm!$J$43=Invulscherm!$AQ$8,Invulscherm!$J$44<>""),IF($A6>Invulscherm!$AB$25,HB5+HC5,IF($A6<Invulscherm!$AB$25,0,IF(Invulscherm!$D$28="Uitslag + 10%",1.1*(Invulscherm!$K$44*(Invulscherm!$K$46-Invulscherm!$K$47)),IF(Invulscherm!$D$28="Uitslag - 10%",0.9*(Invulscherm!$K$44*(Invulscherm!$K$46-Invulscherm!$K$47)),Invulscherm!$K$44*(Invulscherm!$K$46-Invulscherm!$K$47))))),0) -> 0 | HC6: =IF((HB6)>0,((HA6*(1+Standaardwaarden!$B$29))/(GU6/HB6))-(((HA6*(1+Standaardwaarden!$B$29))-HA6)*(1/Standaardwaarden!$B$28)),0) -> 0 | HD6: =-HC6+HD5 -> 0 | HE6: =IF(AND(Invulscherm!$J$43=Invulscherm!$AQ$8,Invulscherm!$J$44<>""),IF($A6<Invulscherm!$AB$25,"",IF(Invulscherm!$D$28="Uitslag + 10%",1.1*(Invulscherm!$K$44*Invulscherm!$K$47),IF(Invulscherm!$D$28="Uitslag - 10%",0.9*(Invulscherm!$K$44*Invulscherm!$K$47),Invulscherm!$K$44*Invulscherm!$K$47))),Invulscherm!$K$44*0.98) -> 0 | HF6: =IF($A6<Invulscherm!$AB$25,0,IF(AND(Invulscherm!$AB$25<Invulscherm!$AB$13,$A6>Invulscherm!$AB$13),0,IF(AND(Invulscherm!$J$43=Invulscherm!$AQ$8,Invulscherm!$J$44<>""),IF(Invulscherm!$J$45=Invulscherm!$AS$8,HE6*Invulscherm!$AT$8,HE6*Invulscherm!$AT$9),Invulscherm!$K$44*0.98))) -> 0 | HG6: =HD6+HF6 -> 0 | HH6: =$F6*HG6/($BV6+$DP6+$EI6+$FB6+$FU6+$GN6+$HG6) -> 0 | HI6: =IF(HG6>0,(Standaardwaarden!$B$30*(HG6-HH6-HI5)*((-$AV6-$CJ6-$CW6-$DJ6-$EC6-$EV6-$FO6-$GH6-$HA6)*(1+Standaardwaarden!$B$29))/10000),0) -> 0 | HJ6: =(HJ5+HI6) -> 0 | HK6: =IF(HG6>0,IF($A6>Invulscherm!$AB$13,(HG6-HJ6),0),0) -> 0
A7: -51 | C7: =IF(Invulscherm!$B$9="Noord Nederland",IF(Invulscherm!$B$4="koud jaar",Temperatuur!C4,IF(Invulscherm!$B$4="warm jaar",Temperatuur!B4,Temperatuur!A4)),IF(Invulscherm!$B$9="Midden Nederland",IF(Invulscherm!$B$4="koud jaar",Temperatuur!F4,IF(Invulscherm!$B$4="warm jaar",Temperatuur!E4,Temperatuur!D4)),IF(Invulscherm!$B$9="Zuid Nederland",IF(Invulscherm!$B$4="koud jaar",Temperatuur!I4,IF(Invulscherm!$B$4="warm jaar",Temperatuur!H4,Temperatuur!G4)),IF(Invulscherm!$B$4="koud jaar",Temperatuur!L4,IF(Invulscherm!$B$4="warm jaar",Temperatuur!K4,Temperatuur!J4))))) -> -5.723809524 | D7: =IF(Invulscherm!$B$15<>"",IF(Invulscherm!$AB$18+0.999<A7,D6,IF(Invulscherm!$AB$17>A7,(D8-1),IF((Invulscherm!$AB$17+0.999)<A7,(D6+1),0))),"") ->  | E7: =IF(Invulscherm!$B$15<>"",IF($D7<0,0,INDEX((Gewasopname!$B$12:$D$86,Gewasopname!$F$12:$H$86,Gewasopname!$J$12:$L$86,Gewasopname!$N$12:$P$86,Gewasopname!$R$12:$T$86,Gewasopname!$V$12:$X$86,Gewasopname!$Z$12:$AB$81,Gewasopname!$AD$12:$AF$81,Gewasopname!$AH$12:$AJ$71,Gewasopname!$AL$12:$AN$71,Gewasopname!$AP$12:$AR$81,Gewasopname!$AT$12:$AV$81,Gewasopname!$AX$12:$AZ$81,Gewasopname!$BB$12:$BD$81,Gewasopname!$BF$12:$BH$63,Gewasopname!$BJ$12:$BL$63,Gewasopname!$BN$12:$BP$63,Gewasopname!$BR$12:$BT$63,Gewasopname!$BV$12:$BX$63,Gewasopname!$BZ$12:$CB$63,Gewasopname!$CD$12:$CF$63,Gewasopname!$CH$12:$CJ$63,Gewasopname!$CL$12:$CN$63,Gewasopname!$CP$12:$CR$63,Gewasopname!$CT$12:$CV$63,Gewasopname!$CX$12:$CZ$63,Gewasopname!$DB$12:$DD$63,Gewasopname!$DF$12:$DH$63,Gewasopname!$DJ$12:$DL$63,Gewasopname!$DN$12:$DP$63),$D7+1,2,$E$3)),"") ->  | F7: =IF(Invulscherm!$B$15<>"",IF(Invulscherm!$B$15="Suikerbiet",E7,E7*(Invulscherm!$B$19/(HLOOKUP(Invulscherm!$B$15,Gewasopname!$B$2:$DP$63,4,FALSE)))),0) -> 0 | G7: =IF($A7<=Invulscherm!$AB$18,F7,"") -> 0 | H7: =IF(Invulscherm!$B$15<>"",IF($D7<0,0,INDEX((Gewasopname!$B$12:$D$86,Gewasopname!$F$12:$H$86,Gewasopname!$J$12:$L$86,Gewasopname!$N$12:$P$86,Gewasopname!$R$12:$T$86,Gewasopname!$V$12:$X$86,Gewasopname!$Z$12:$AB$81,Gewasopname!$AD$12:$AF$81,Gewasopname!$AH$12:$AJ$71,Gewasopname!$AL$12:$AN$71,Gewasopname!$AP$12:$AR$81,Gewasopname!$AT$12:$AV$81,Gewasopname!$AX$12:$AZ$81,Gewasopname!$BB$12:$BD$81,Gewasopname!$BF$12:$BH$63,Gewasopname!$BJ$12:$BL$63,Gewasopname!$BN$12:$BP$63,Gewasopname!$BR$12:$BT$63,Gewasopname!$BV$12:$BX$63,Gewasopname!$BZ$12:$CB$63,Gewasopname!$CD$12:$CF$63,Gewasopname!$CH$12:$CJ$63,Gewasopname!$CL$12:$CN$63,Gewasopname!$CP$12:$CR$63,Gewasopname!$CT$12:$CV$63,Gewasopname!$CX$12:$CZ$63,Gewasopname!$DB$12:$DD$63,Gewasopname!$DF$12:$DH$63,Gewasopname!$DJ$12:$DL$63,Gewasopname!$DN$12:$DP$63),$D7+1,3,$E$3)),"") ->  | I7: =IF($A7<=Invulscherm!$AB$18,H7,"") ->  | J7: =IF(Invulscherm!$B$15<>"",IF($D7<0,0,INDEX((Gewasopname!$B$12:$E$86,Gewasopname!$F$12:$I$86,Gewasopname!$J$12:$M$86,Gewasopname!$N$12:$Q$86,Gewasopname!$R$12:$U$86,Gewasopname!$V$12:$Y$86,Gewasopname!$Z$12:$AC$81,Gewasopname!$AD$12:$AG$81,Gewasopname!$AH$12:$AK$71,Gewasopname!$AL$12:$AO$71,Gewasopname!$AP$12:$AS$81,Gewasopname!$AT$12:$AW$81,Gewasopname!$AX$12:$BA$81,Gewasopname!$BB$12:$BE$81,Gewasopname!$BF$12:$BI$63,Gewasopname!$BJ$12:$BM$63,Gewasopname!$BN$12:$BQ$63,Gewasopname!$BR$12:$BU$63,Gewasopname!$BV$12:$BY$63,Gewasopname!$BZ$12:$CC$63,Gewasopname!$CD$12:$CG$63,Gewasopname!$CH$12:$CK$63,Gewasopname!$CL$12:$CO$63,Gewasopname!$CP$12:$CS$63,Gewasopname!$CT$12:$CW$63,Gewasopname!$CX$12:$DA$63,Gewasopname!$DB$12:$DE$63,Gewasopname!$DF$12:$DI$63,Gewasopname!$DJ$12:$DM$63,Gewasopname!$DN$12:$DQ$63),$D7+1,4,$E$3)),"") ->  | K7: =IF(Invulscherm!$B$15<>"",IF(Invulscherm!$B$15="Suikerbiet",J7,J7*(Invulscherm!$B$19/(HLOOKUP(Invulscherm!$B$15,Gewasopname!$B$2:$DP$63,4,FALSE)))),0) -> 0 | L7: =IF($A7<=Invulscherm!$AB$18,K7,"") -> 0 | M7: =CA7 -> -58.60179773 | N7: =IF($A7<=Invulscherm!$AB$18,M7,"") -> -58.60179773 | O7: =DT7 -> 0 | P7: =IF($A7<=Invulscherm!$AB$18,O7,"") -> 0 | Q7: =EM7 -> 0 | R7: =IF($A7<=Invulscherm!$AB$18,Q7,"") -> 0 | S7: =FF7 -> 0 | T7: =IF($A7<=Invulscherm!$AB$18,S7,"") -> 0 | U7: =FY7 -> 0 | V7: =IF($A7<=Invulscherm!$AB$18,U7,"") -> 0 | W7: =GR7 -> 0 | X7: =IF($A7<=Invulscherm!$AB$18,W7,"") -> 0 | Y7: =HK7 -> 0 | Z7: =IF($A7<=Invulscherm!$AB$18,Y7,"") -> 0 | AA7: =(K7+M7+O7+Q7+S7+U7+W7+Y7)-F7 -> -58.60179773 | AB7: =IF(A7<=Invulscherm!$AB$18,"",AA7) ->  | AD7: =IF($A7>=Invulscherm!$AB$17,IF($A7<=Invulscherm!$AB$18,(G7+I7-$L7-$N7),""),0) -> 0 | AE7: =IF($A7>=Invulscherm!$AB$20,IF($A7<=Invulscherm!$AB$18,(AD7-P7),""),"") ->  | AF7: =IF($A7>=Invulscherm!$AB$20,IF($A7<=Invulscherm!$AB$18,($AE7-$R7),""),"") ->  | AG7: =IF($A7>=Invulscherm!$AB$20,IF($A7<=Invulscherm!$AB$18,($AF7-$T7),""),"") ->  | AH7: =IF($A7>=Invulscherm!$AB$20,IF($A7<=Invulscherm!$AB$18,($AG7-$V7),""),"") ->  | AI7: =IF($A7>=Invulscherm!$AB$20,IF($A7<=Invulscherm!$AB$18,($AH7-$X7),""),"") ->  | AJ7: =IF($A7>=Invulscherm!$AB$20,IF($A7<=Invulscherm!$AB$18,($AI7-$Z7),""),"") ->  | AK7: =IF($A7>Invulscherm!$AB$20,IF($A7<=Invulscherm!$AB$18,IF(AJ7<-10,"ja","nee"),""),"") ->  | AL7: =IF(AND(Invulscherm!$AB$20<>"",Invulscherm!$B$15<>""),IF($A7>=Invulscherm!$AB$20,IF($A7<=Invulscherm!$AB$18,IF(AJ7>5,"ja","nee"),""),""),"ja") -> ja | AN7: =IF(Invulscherm!$B$13="",IF($A7>Invulscherm!$U$13,0,IF($A7<Invulscherm!$U$13,0,Standaardwaarden!$B$21*Standaardwaarden!$B$20*(Invulscherm!$B$10/100)*Standaardwaarden!$B$23)),IF($A7>Invulscherm!$AB$13,0,IF($A7<Invulscherm!$AB$13,0,Standaardwaarden!$B$21*Standaardwaarden!$B$20*(Invulscherm!$B$10/100)*Standaardwaarden!$B$23))) -> 0 | AO7: 0 | AP7: 0 | AQ7: =(-0.322*LN(Invulscherm!$B$10)+1.2233)*(IF(Invulscherm!$B$8=Invulscherm!$AJ$8,Standaardwaarden!$B$32,IF(Invulscherm!$B$8=Invulscherm!$AJ$9,Standaardwaarden!$B$33,IF(Invulscherm!$B$8=Invulscherm!$AJ$10,Standaardwaarden!$B$34,IF(Invulscherm!$B$8=Invulscherm!$AJ$11,Standaardwaarden!$B$35,IF(Invulscherm!$B$8=Invulscherm!$AJ$12,Standaardwaarden!$B$36,Standaardwaarden!$B$37)))))) -> 0.8500906167 | AS7: =(1/(1+EXP(-1.5*(Invulscherm!$B$11-4)))) -> 0.9770226301 | AT7: 0 | AU7: =IF(Invulscherm!$B$13="",IF(($A7-1)>Invulscherm!$U$13,AU6+AT7/52,IF(($A7-1)<Invulscherm!$U$13,"",Standaardwaarden!$B$22+AT7/52)),IF(($A7-1)>Invulscherm!$AB$13,AU6+AT7/52,IF(($A7-1)<Invulscherm!$AB$13,"",Standaardwaarden!$B$22+AT7/52))) ->  | AV7: =IF(Invulscherm!$B$13="",IF(($A7-1)>Invulscherm!$U$13,AO7*(-2.82)*AT7*(1/52)*(AU7^(-1.6)),0),IF(($A7-1)>Invulscherm!$AB$13,AO7*(-2.82)*AT7*(1/52)*(AU7^(-1.6)),0)) -> 0 | AW7: =IF(Invulscherm!$B$13="",IF(($A7-1)>Invulscherm!$U$13,AW6+AX6,IF(($A7-1)<Invulscherm!$U$13,0,(Standaardwaarden!$B$20*Standaardwaarden!$B$21*(Invulscherm!$B$10/100)*Standaardwaarden!$B$23)/Standaardwaarden!$B$25)),IF(($A7-1)>Invulscherm!$AB$13,AW6+AX6,IF(($A7-1)<Invulscherm!$AB$13,0,(Standaardwaarden!$B$20*Standaardwaarden!$B$21*(Invulscherm!$B$10/100)*Standaardwaarden!$B$23)/Standaardwaarden!$B$25))) -> 0 | AX7: =IF(Invulscherm!$B$13="",IF(($A7-1)>Invulscherm!$U$13,((AV7*(1+Standaardwaarden!$B$29))/(AO7/AW7))-(((AV7*(1+Standaardwaarden!$B$29))-AV7)*(1/Standaardwaarden!$B$28)),0),IF(($A7-1)>Invulscherm!$AB$13,((AV7*(1+Standaardwaarden!$B$29))/(AO7/AW7))-(((AV7*(1+Standaardwaarden!$B$29))-AV7)*(1/Standaardwaarden!$B$28)),0)) -> 0 | AY7: 0 | AZ7: =IF(Invulscherm!$B$13="",IF(($A7-1)<Invulscherm!$U$13,0,Invulscherm!$T$12),IF(($A7-1)<Invulscherm!$AB$13,0,Invulscherm!$B$12)) -> 0 | BA7: 0 | BB7: 0 | BC7: 0 | BD7: =IF(BB7>0,(Standaardwaarden!$B$30*(BB7-BC7-BD6)*((-$AV7-$CJ7-$CW7-$DJ7-$EC7-$EV7-$FO7-$GH7-$HA7)*(1+Standaardwaarden!$B$29))/10000),0) -> 0 | BE7: =BE6+BD7 -> 0 | BF7: =BB7-BE7 -> 0 | BH7: 0 | BI7: 49657.20669 | BJ7: 0 | BK7: =(-0.322*LN(Invulscherm!$B$10)+1.2233)*(IF(Invulscherm!$B$8=Invulscherm!$AJ$8,Standaardwaarden!$B$32,IF(Invulscherm!$B$8=Invulscherm!$AJ$9,Standaardwaarden!$B$33,IF(Invulscherm!$B$8=Invulscherm!$AJ$10,Standaardwaarden!$B$34,IF(Invulscherm!$B$8=Invulscherm!$AJ$11,Standaardwaarden!$B$35,IF(Invulscherm!$B$8=Invulscherm!$AJ$12,Standaardwaarden!$B$36,Standaardwaarden!$B$37)))))) -> 0.8500906167 | BM7: =(1/(1+EXP(-1.5*(Invulscherm!$B$11-4)))) -> 0.9770226301 | BN7: 0 | BO7: =BO6+BN7/52 -> 16.00790871 | BP7: 0 | BQ7: =BQ6+BR6 -> 4966.002982 | BR7: =((BP7*(1+Standaardwaarden!$B$29))/(BI7/BQ7))-(((BP7*(1+Standaardwaarden!$B$29))-BP7)*(1/Standaardwaarden!$B$28)) -> 0 | BS7: =-BR7+BS6 -> 1.028426469 | BT7: 0 | BU7: 1.028426469 | BV7: =BU7+CN7+DA7 -> 1.028426469 | BW7: 0 | BX7: =IF(BV7>0,(Standaardwaarden!$B$30*(BV7-BW7-BX6)*((-$BP7-$CJ7-$CW7-$DJ7-$EC7-$EV7-$FO7-$GH7-$HA7)*(1+Standaardwaarden!$B$29))/10000),0) -> 0 | BY7: 0.001887199044 | BZ7: 1.02653927 | CA7: =IF(Invulscherm!$AB$13="",IF(A7<Invulscherm!$U$13,(BZ7+(Invulscherm!$T$12-(VLOOKUP(Invulscherm!$U$13,$A$6:$BZ$110,78,FALSE)))),IF(A7>Invulscherm!$U$13,BF7,Invulscherm!$T$12)),IF(A7<Invulscherm!$AB$13,(BZ7+(Invulscherm!$B$12-(VLOOKUP(Invulscherm!$AB$13,$A$6:$BZ$110,78,FALSE)))),IF(A7>Invulscherm!$AB$13,BF7,Invulscherm!$B$12))) -> -58.60179773 | CC7: =IF($A7>Invulscherm!$AB$15,0,IF($A7<Invulscherm!$AB$15,0,Invulscherm!$AB$29*Invulscherm!$AB$31)) -> 0 | CD7: =IF(CC7>0,CC7,CD6+CJ6) -> 0 | CE7: =IF($C7>27,3.5,IF($C7<-0.999,0,IF(-1<$C7<9.001,0.09*($C7+1),0.88*2^(($C7-9)/9)))) -> 0 | CF7: =IF(Invulscherm!$B$8=Invulscherm!$AJ$8,Standaardwaarden!$B$32,IF(Invulscherm!$B$8=Invulscherm!$AJ$9,Standaardwaarden!$B$33,IF(Invulscherm!$B$8=Invulscherm!$AJ$10,Standaardwaarden!$B$34,IF(Invulscherm!$B$8=Invulscherm!$AJ$11,Standaardwaarden!$B$35,IF(Invulscherm!$B$8=Invulscherm!$AJ$12,Standaardwaarden!$B$36,Standaardwaarden!$B$37))))) -> 0.85 | CG7: =(1/(1+EXP(-1.5*(Invulscherm!$B$11-4)))) -> 0.9770226301 | CH7: =CE7*CF7*CG7 -> 0 | CI7: =IF($A7>Invulscherm!$AB$15,CI6+CH7/52,IF($A7<Invulscherm!$AB$15,"",Invulscherm!$AB$32+CH7/52)) ->  | CJ7: =IF($A7>Invulscherm!$AB$15,CD7*(-2.82)*CH7*(1/52)*(CI7^(-1.6)),0) -> 0 | CK7: =IF($A7>Invulscherm!$AB$15,CK6+CL6,IF($A7<Invulscherm!$AB$15,0,Invulscherm!$AB$29*Invulscherm!$AB$30)) -> 0 | CL7: =IF(CK7>0,IF($A7>Invulscherm!$AB$15,((CJ7*(1+Standaardwaarden!$B$29))/(CD7/CK7))-(((CJ7*(1+Standaardwaarden!$B$29))-CJ7)*(1/Standaardwaarden!$B$28)),0),0) -> 0 | CM7: =-CL7+CM6 -> 0 | CN7: =IF(Invulscherm!$B$13="",IF(A7<Invulscherm!$U$13,0,(CM7-VLOOKUP(Invulscherm!$U$13,$A$4:$HK$110,91,FALSE))),IF(A7<Invulscherm!$AB$13,0,(CM7-VLOOKUP(Invulscherm!$AB$13,$A$4:$HK$110,91,FALSE)))) -> 0 | CP7: =IF($A7>Invulscherm!$AB$16,0,IF($A7<Invulscherm!$AB$16,0,Invulscherm!$AB$36)) -> 0 | CQ7: =IF(CP7>0,CP7,CQ6+CW6) -> 0 | CR7: =IF($C7>27,3.5,IF($C7<-0.999,0,IF(-1<$C7<9.001,0.09*($C7+1),0.88*2^(($C7-9)/9)))) -> 0 | CS7: =IF(Invulscherm!$B$8=Invulscherm!$AJ$8,Standaardwaarden!$B$32,IF(Invulscherm!$B$8=Invulscherm!$AJ$9,Standaardwaarden!$B$33,IF(Invulscherm!$B$8=Invulscherm!$AJ$10,Standaardwaarden!$B$34,IF(Invulscherm!$B$8=Invulscherm!$AJ$11,Standaardwaarden!$B$35,IF(Invulscherm!$B$8=Invulscherm!$AJ$12,Standaardwaarden!$B$36,Standaardwaarden!$B$37))))) -> 0.85 | CT7: =(1/(1+EXP(-1.5*(Invulscherm!$B$11-4)))) -> 0.9770226301 | CU7: =CR7*CS7*CT7 -> 0 | CV7: =IF($A7>Invulscherm!$AB$16,CV6+CU7/52,IF($A7<Invulscherm!$AB$16,"",Invulscherm!$AB$37+CU7/52)) ->  | CW7: =IF($A7>Invulscherm!$AB$16,CQ7*(-2.82)*CU7*(1/52)*(CV7^(-1.6)),0) -> 0 | CX7: =IF($A7>Invulscherm!$AB$16,CX6+CY6,IF($A7<Invulscherm!$AB$16,0,Invulscherm!$AB$35)) -> 0 | CY7: =IF(CX7>0,IF($A7>Invulscherm!$AB$16,((CW7*(1+Standaardwaarden!$B$29))/(CQ7/CX7))-(((CW7*(1+Standaardwaarden!$B$29))-CW7)*(1/Standaardwaarden!$B$28)),0),0) -> 0 | CZ7: =-CY7+CZ6 -> 0 | DA7: =IF(Invulscherm!$B$13="",IF(A7<Invulscherm!$U$13,0,(CZ7-VLOOKUP(Invulscherm!$U$13,$A$4:$HK$110,104,FALSE))),IF(A7<Invulscherm!$AB$13,0,(CZ7-VLOOKUP(Invulscherm!$AB$13,$A$4:$HK$110,104,FALSE)))) -> 0 | DC7: =IF(AND(Invulscherm!$B$32=Invulscherm!$AQ$8,Invulscherm!$B$33<>""),IF($A7>Invulscherm!$AB$20,0,IF($A7<Invulscherm!$AB$20,0,Invulscherm!$C$33*Invulscherm!$C$37*(VLOOKUP(Invulscherm!$B$33,Meststoffen!$A$3:$P$62,7,FALSE)))),"") ->  | DD7: =IF(AND(Invulscherm!$B$32=Invulscherm!$AQ$8,Invulscherm!$B$33<>""),IF(DC7>0,DC7,DD6+DJ6),"") ->  | DE7: =IF(AND(Invulscherm!$B$32=Invulscherm!$AQ$8,Invulscherm!$B$33<>""),IF($C7>27,3.5,IF($C7<-0.999,0,IF(-1<$C7<9.001,0.09*($C7+1),0.88*2^(($C7-9)/9)))),"") ->  | DF7: =IF(AND(Invulscherm!$B$32=Invulscherm!$AQ$8,Invulscherm!$B$33<>""),IF(Invulscherm!$B$8=Invulscherm!$AJ$8,Standaardwaarden!$B$32,IF(Invulscherm!$B$8=Invulscherm!$AJ$9,Standaardwaarden!$B$33,IF(Invulscherm!$B$8=Invulscherm!$AJ$10,Standaardwaarden!$B$34,IF(Invulscherm!$B$8=Invulscherm!$AJ$11,Standaardwaarden!$B$35,IF(Invulscherm!$B$8=Invulscherm!$AJ$12,Standaardwaarden!$B$36,Standaardwaarden!$B$37))))),"") ->  | DG7: =IF(AND(Invulscherm!$B$32=Invulscherm!$AQ$8,Invulscherm!$B$33<>""),(1/(1+EXP(-1.5*(Invulscherm!$B$11-4)))),"") ->  | DH7: =IF(AND(Invulscherm!$B$32=Invulscherm!$AQ$8,Invulscherm!$B$33<>""),DE7*DF7*DG7,"") ->  | DI7: =IF(AND(Invulscherm!$B$32=Invulscherm!$AQ$8,Invulscherm!$B$33<>""),IF($A7>Invulscherm!$AB$20,DI6+DH7/52,IF($A7<Invulscherm!$AB$20,"",(VLOOKUP(Invulscherm!$B$33,Meststoffen!$A$3:$P$62,6,FALSE))+DH7/52)),"") ->  | DJ7: =IF(AND(Invulscherm!$B$32=Invulscherm!$AQ$8,Invulscherm!$B$33<>""),IF($A7>Invulscherm!$AB$20,DD7*(-2.82)*DH7*(1/52)*(DI7^(-1.6)),0),0) -> 0 | DK7: =IF(AND(Invulscherm!$B$32=Invulscherm!$AQ$8,Invulscherm!$B$33<>""),IF($A7>Invulscherm!$AB$20,DK6+DL6,IF($A7<Invulscherm!$AB$20,0,IF(Invulscherm!$D$28="Uitslag + 10%",1.1*(Invulscherm!$C$33*(Invulscherm!$C$35-Invulscherm!$C$36)),IF(Invulscherm!$D$28="Uitslag - 10%",0.9*(Invulscherm!$C$33*(Invulscherm!$C$35-Invulscherm!$C$36)),Invulscherm!$C$33*(Invulscherm!$C$35-Invulscherm!$C$36))))),0) -> 0 | DL7: =IF((DK7)>0,((DJ7*(1+Standaardwaarden!$B$29))/(DD7/DK7))-(((DJ7*(1+Standaardwaarden!$B$29))-DJ7)*(1/Standaardwaarden!$B$28)),0) -> 0 | DM7: 0 | DN7: =IF(AND(Invulscherm!$B$32=Invulscherm!$AQ$8,Invulscherm!$B$33<>""),IF($A7<Invulscherm!$AB$20,"",IF(Invulscherm!$D$28="Uitslag + 10%",1.1*(Invulscherm!$C$33*Invulscherm!$C$36),IF(Invulscherm!$D$28="Uitslag - 10%",0.9*(Invulscherm!$C$33*Invulscherm!$C$36),Invulscherm!$C$33*Invulscherm!$C$36))),IF($A7<Invulscherm!$AB$20,"",Invulscherm!$C$33*0.98)) ->  | DO7: =IF($A7<Invulscherm!$AB$20,0,IF(AND(Invulscherm!$AB$20<Invulscherm!$AB$13,$A7>Invulscherm!$AB$13),0,IF(AND(Invulscherm!$B$32=Invulscherm!$AQ$8,Invulscherm!$B$33<>""),IF(Invulscherm!$B$34=Invulscherm!$AS$8,DN7*Invulscherm!$AT$8,IF(Invulscherm!$B$34=Invulscherm!$AS$9,DN7*Invulscherm!$AT$9,DN7*Invulscherm!$AT$10)),Invulscherm!$C$33*0.98))) -> 0 | DP7: =DM7+DO7 -> 0 | DQ7: 0 | DR7: =IF(DP7>0,(Standaardwaarden!$B$30*(DP7-DQ7-DR6)*((-$AV7-$CJ7-$CW7-$DJ7-$EC7-$EV7-$FO7-$GH7-$HA7)*(1+Standaardwaarden!$B$29))/10000),0) -> 0 | DS7: 0 | DT7: =IF(DP7>0,IF($A7>Invulscherm!$AB$13,(DP7-DS7),0),0) -> 0 | DV7: =IF(AND(Invulscherm!$F$32=Invulscherm!$AQ$8,Invulscherm!$F$33<>""),IF($A7>Invulscherm!$AB$21,0,IF($A7<Invulscherm!$AB$21,0,Invulscherm!$G$33*Invulscherm!$G$37*(VLOOKUP(Invulscherm!$F$33,Meststoffen!$A$3:$P$62,7,FALSE)))),"") ->  | DW7: =IF(AND(Invulscherm!$F$32=Invulscherm!$AQ$8,Invulscherm!$F$33<>""),IF(DV7>0,DV7,DW6+EC6),"") ->  | DX7: =IF(AND(Invulscherm!$F$32=Invulscherm!$AQ$8,Invulscherm!$F$33<>""),IF($C7>27,3.5,IF($C7<-0.999,0,IF(-1<$C7<9.001,0.09*($C7+1),0.88*2^(($C7-9)/9)))),"") ->  | DY7: =IF(AND(Invulscherm!$F$32=Invulscherm!$AQ$8,Invulscherm!$F$33<>""),IF(Invulscherm!$B$8=Invulscherm!$AJ$8,Standaardwaarden!$B$32,IF(Invulscherm!$B$8=Invulscherm!$AJ$9,Standaardwaarden!$B$33,IF(Invulscherm!$B$8=Invulscherm!$AJ$10,Standaardwaarden!$B$34,IF(Invulscherm!$B$8=Invulscherm!$AJ$11,Standaardwaarden!$B$35,IF(Invulscherm!$B$8=Invulscherm!$AJ$12,Standaardwaarden!$B$36,Standaardwaarden!$B$37))))),"") ->  | DZ7: =IF(AND(Invulscherm!$F$32=Invulscherm!$AQ$8,Invulscherm!$F$33<>""),(1/(1+EXP(-1.5*(Invulscherm!$B$11-4)))),"") ->  | EA7: =IF(AND(Invulscherm!$F$32=Invulscherm!$AQ$8,Invulscherm!$F$33<>""),DX7*DY7*DZ7,"") ->  | EB7: =IF(AND(Invulscherm!$F$32=Invulscherm!$AQ$8,Invulscherm!$F$33<>""),IF($A7>Invulscherm!$AB$21,EB6+EA7/52,IF($A7<Invulscherm!$AB$21,"",(VLOOKUP(Invulscherm!$F$33,Meststoffen!$A$3:$P$62,6,FALSE))+EA7/52)),"") ->  | EC7: =IF(AND(Invulscherm!$F$32=Invulscherm!$AQ$8,Invulscherm!$F$33<>""),IF($A7>Invulscherm!$AB$21,DW7*(-2.82)*EA7*(1/52)*(EB7^(-1.6)),0),0) -> 0 | ED7: =IF(AND(Invulscherm!$F$32=Invulscherm!$AQ$8,Invulscherm!$F$33<>""),IF($A7>Invulscherm!$AB$21,ED6+EE6,IF($A7<Invulscherm!$AB$21,0,IF(Invulscherm!$D$28="Uitslag + 10%",1.1*(Invulscherm!$G$33*(Invulscherm!$G$35-Invulscherm!$G$36)),IF(Invulscherm!$D$28="Uitslag - 10%",0.9*(Invulscherm!$G$33*(Invulscherm!$G$35-Invulscherm!$G$36)),Invulscherm!$G$33*(Invulscherm!$G$35-Invulscherm!$G$36))))),0) -> 0 | EE7: =IF((ED7)>0,((EC7*(1+Standaardwaarden!$B$29))/(DW7/ED7))-(((EC7*(1+Standaardwaarden!$B$29))-EC7)*(1/Standaardwaarden!$B$28)),0) -> 0 | EF7: 0 | EG7: =IF(AND(Invulscherm!$F$32=Invulscherm!$AQ$8,Invulscherm!$F$33<>""),IF($A7<Invulscherm!$AB$21,"",IF(Invulscherm!$D$28="Uitslag + 10%",1.1*(Invulscherm!$G$33*Invulscherm!$G$36),IF(Invulscherm!$D$28="Uitslag - 10%",0.9*(Invulscherm!$G$33*Invulscherm!$G$36),Invulscherm!$G$33*Invulscherm!$G$36))),Invulscherm!$G$33*0.98) -> 0 | EH7: =IF($A7<Invulscherm!$AB$21,0,IF(AND(Invulscherm!$AB$21<Invulscherm!$AB$13,$A7>Invulscherm!$AB$13),0,IF(AND(Invulscherm!$F$32=Invulscherm!$AQ$8,Invulscherm!$F$33<>""),IF(Invulscherm!$F$34=Invulscherm!$AS$8,EG7*Invulscherm!$AT$8,EG7*Invulscherm!$AT$9),Invulscherm!$G$33*0.98))) -> 0 | EI7: =EF7+EH7 -> 0 | EJ7: 0 | EK7: =IF(EI7>0,(Standaardwaarden!$B$30*(EI7-EJ7-EK6)*((-$AV7-$CJ7-$CW7-$DJ7-$EC7-$EV7-$FO7-$GH7-$HA7)*(1+Standaardwaarden!$B$29))/10000),0) -> 0 | EL7: 0 | EM7: =IF(EI7>0,IF($A7>Invulscherm!$AB$13,(EI7-EL7),0),0) -> 0 | EO7: =IF(AND(Invulscherm!$J$32=Invulscherm!$AQ$8,Invulscherm!$J$33<>""),IF($A7>Invulscherm!$AB$22,0,IF($A7<Invulscherm!$AB$22,0,Invulscherm!$K$33*Invulscherm!$K$37*(VLOOKUP(Invulscherm!$J$33,Meststoffen!$A$3:$P$62,7,FALSE)))),"") ->  | EP7: =IF(AND(Invulscherm!$J$32=Invulscherm!$AQ$8,Invulscherm!$J$33<>""),IF(EO7>0,EO7,EP6+EV6),"") ->  | EQ7: =IF(AND(Invulscherm!$J$32=Invulscherm!$AQ$8,Invulscherm!$J$33<>""),IF($C7>27,3.5,IF($C7<-0.999,0,IF(-1<$C7<9.001,0.09*($C7+1),0.88*2^(($C7-9)/9)))),"") ->  | ER7: =IF(AND(Invulscherm!$J$32=Invulscherm!$AQ$8,Invulscherm!$J$33<>""),IF(Invulscherm!$B$8=Invulscherm!$AJ$8,Standaardwaarden!$B$32,IF(Invulscherm!$B$8=Invulscherm!$AJ$9,Standaardwaarden!$B$33,IF(Invulscherm!$B$8=Invulscherm!$AJ$10,Standaardwaarden!$B$34,IF(Invulscherm!$B$8=Invulscherm!$AJ$11,Standaardwaarden!$B$35,IF(Invulscherm!$B$8=Invulscherm!$AJ$12,Standaardwaarden!$B$36,Standaardwaarden!$B$37))))),"") ->  | ES7: =IF(AND(Invulscherm!$J$32=Invulscherm!$AQ$8,Invulscherm!$J$33<>""),(1/(1+EXP(-1.5*(Invulscherm!$B$11-4)))),"") ->  | ET7: =IF(AND(Invulscherm!$J$32=Invulscherm!$AQ$8,Invulscherm!$J$33<>""),EQ7*ER7*ES7,"") ->  | EU7: =IF(AND(Invulscherm!$J$32=Invulscherm!$AQ$8,Invulscherm!$J$33<>""),IF($A7>Invulscherm!$AB$22,EU6+ET7/52,IF($A7<Invulscherm!$AB$22,"",(VLOOKUP(Invulscherm!$J$33,Meststoffen!$A$3:$P$62,6,FALSE))+ET7/52)),"") ->  | EV7: =IF(AND(Invulscherm!$J$32=Invulscherm!$AQ$8,Invulscherm!$J$33<>""),IF($A7>Invulscherm!$AB$22,EP7*(-2.82)*ET7*(1/52)*(EU7^(-1.6)),0),0) -> 0 | EW7: =IF(AND(Invulscherm!$J$32=Invulscherm!$AQ$8,Invulscherm!$J$33<>""),IF($A7>Invulscherm!$AB$22,EW6+EX6,IF($A7<Invulscherm!$AB$22,0,IF(Invulscherm!$D$28="Uitslag + 10%",1.1*(Invulscherm!$K$33*(Invulscherm!$K$35-Invulscherm!$K$36)),IF(Invulscherm!$D$28="Uitslag - 10%",0.9*(Invulscherm!$K$33*(Invulscherm!$K$35-Invulscherm!$K$36)),Invulscherm!$K$33*(Invulscherm!$K$35-Invulscherm!$K$36))))),0) -> 0 | EX7: =IF((EW7)>0,((EV7*(1+Standaardwaarden!$B$29))/(EP7/EW7))-(((EV7*(1+Standaardwaarden!$B$29))-EV7)*(1/Standaardwaarden!$B$28)),0) -> 0 | EY7: 0 | EZ7: =IF(AND(Invulscherm!$J$32=Invulscherm!$AQ$8,Invulscherm!$J$33<>""),IF($A7<Invulscherm!$AB$22,"",IF(Invulscherm!$D$28="Uitslag + 10%",1.1*(Invulscherm!$K$33*Invulscherm!$K$36),IF(Invulscherm!$D$28="Uitslag - 10%",0.9*(Invulscherm!$K$33*Invulscherm!$K$36),Invulscherm!$K$33*Invulscherm!$K$36))),Invulscherm!$K$33*0.98) -> 0 | FA7: =IF($A7<Invulscherm!$AB$22,0,IF(AND(Invulscherm!$AB$22<Invulscherm!$AB$13,$A7>Invulscherm!$AB$13),0,IF(AND(Invulscherm!$J$32=Invulscherm!$AQ$8,Invulscherm!$J$33<>""),IF(Invulscherm!$J$34=Invulscherm!$AS$8,EZ7*Invulscherm!$AT$8,EZ7*Invulscherm!$AT$9),Invulscherm!$K$33*0.98))) -> 0 | FB7: 0 | FC7: 0 | FD7: =IF(FB7>0,(Standaardwaarden!$B$30*(FB7-FC7-FD6)*((-$AV7-$CJ7-$CW7-$DJ7-$EC7-$EV7-$FO7-$GH7-$HA7)*(1+Standaardwaarden!$B$29))/10000),0) -> 0 | FE7: 0 | FF7: =IF(FB7>0,IF($A7>Invulscherm!$AB$13,(FB7-FE7),0),0) -> 0 | FH7: =IF(AND(Invulscherm!$B$43=Invulscherm!$AQ$8,Invulscherm!$B$44<>""),IF($A7>Invulscherm!$AB$23,0,IF($A7<Invulscherm!$AB$23,0,Invulscherm!$C$44*Invulscherm!$C$48*(VLOOKUP(Invulscherm!$B$44,Meststoffen!$A$3:$P$62,7,FALSE)))),"") ->  | FI7: =IF(AND(Invulscherm!$B$43=Invulscherm!$AQ$8,Invulscherm!$B$44<>""),IF(FH7>0,FH7,FI6+FO6),"") ->  | FJ7: =IF(AND(Invulscherm!$B$43=Invulscherm!$AQ$8,Invulscherm!$B$44<>""),IF($C7>27,3.5,IF($C7<-0.999,0,IF(-1<$C7<9.001,0.09*($C7+1),0.88*2^(($C7-9)/9)))),"") ->  | FK7: =IF(AND(Invulscherm!$B$43=Invulscherm!$AQ$8,Invulscherm!$B$44<>""),IF(Invulscherm!$B$8=Invulscherm!$AJ$8,Standaardwaarden!$B$32,IF(Invulscherm!$B$8=Invulscherm!$AJ$9,Standaardwaarden!$B$33,IF(Invulscherm!$B$8=Invulscherm!$AJ$10,Standaardwaarden!$B$34,IF(Invulscherm!$B$8=Invulscherm!$AJ$11,Standaardwaarden!$B$35,IF(Invulscherm!$B$8=Invulscherm!$AJ$12,Standaardwaarden!$B$36,Standaardwaarden!$B$37))))),"") ->  | FL7: =IF(AND(Invulscherm!$B$43=Invulscherm!$AQ$8,Invulscherm!$B$44<>""),(1/(1+EXP(-1.5*(Invulscherm!$B$11-4)))),"") ->  | FM7: =IF(AND(Invulscherm!$B$43=Invulscherm!$AQ$8,Invulscherm!$B$44<>""),FJ7*FK7*FL7,"") ->  | FN7: =IF(AND(Invulscherm!$B$43=Invulscherm!$AQ$8,Invulscherm!$B$44<>""),IF($A7>Invulscherm!$AB$23,FN6+FM7/52,IF($A7<Invulscherm!$AB$23,"",(VLOOKUP(Invulscherm!$B$44,Meststoffen!$A$3:$P$62,6,FALSE))+FM7/52)),"") ->  | FO7: =IF(AND(Invulscherm!$B$43=Invulscherm!$AQ$8,Invulscherm!$B$44<>""),IF($A7>Invulscherm!$AB$23,FI7*(-2.82)*FM7*(1/52)*(FN7^(-1.6)),0),0) -> 0 | FP7: =IF(AND(Invulscherm!$B$43=Invulscherm!$AQ$8,Invulscherm!$B$44<>""),IF($A7>Invulscherm!$AB$23,FP6+FQ6,IF($A7<Invulscherm!$AB$23,0,IF(Invulscherm!$D$28="Uitslag + 10%",1.1*(Invulscherm!$C$44*(Invulscherm!$C$46-Invulscherm!$C$47)),IF(Invulscherm!$D$28="Uitslag - 10%",0.9*(Invulscherm!$C$44*(Invulscherm!$C$46-Invulscherm!$C$47)),Invulscherm!$C$44*(Invulscherm!$C$46-Invulscherm!$C$47))))),0) -> 0 | FQ7: =IF((FP7)>0,((FO7*(1+Standaardwaarden!$B$29))/(FI7/FP7))-(((FO7*(1+Standaardwaarden!$B$29))-FO7)*(1/Standaardwaarden!$B$28)),0) -> 0 | FR7: 0 | FS7: =IF(AND(Invulscherm!$B$43=Invulscherm!$AQ$8,Invulscherm!$B$44<>""),IF($A7<Invulscherm!$AB$23,"",IF(Invulscherm!$D$28="Uitslag + 10%",1.1*(Invulscherm!$C$44*Invulscherm!$C$47),IF(Invulscherm!$D$28="Uitslag - 10%",0.9*(Invulscherm!$C$44*Invulscherm!$C$47),Invulscherm!$C$44*Invulscherm!$C$47))),Invulscherm!$C$44*0.98) -> 0 | FT7: =IF($A7<Invulscherm!$AB$23,0,IF(AND(Invulscherm!$AB$23<Invulscherm!$AB$13,$A7>Invulscherm!$AB$13),0,IF(AND(Invulscherm!$B$43=Invulscherm!$AQ$8,Invulscherm!$B$44<>""),IF(Invulscherm!$B$45=Invulscherm!$AS$8,FS7*Invulscherm!$AT$8,FS7*Invulscherm!$AT$9),Invulscherm!$C$44*0.98))) -> 0 | FU7: =FR7+FT7 -> 0 | FV7: 0 | FW7: =IF(FU7>0,(Standaardwaarden!$B$30*(FU7-FV7-FW6)*((-$AV7-$CJ7-$CW7-$DJ7-$EC7-$EV7-$FO7-$GH7-$HA7)*(1+Standaardwaarden!$B$29))/10000),0) -> 0 | FX7: 0 | FY7: =IF(FU7>0,IF($A7>Invulscherm!$AB$13,(FU7-FX7),0),0) -> 0 | GA7: =IF(AND(Invulscherm!$F$43=Invulscherm!$AQ$8,Invulscherm!$F$44<>""),IF($A7>Invulscherm!$AB$24,0,IF($A7<Invulscherm!$AB$24,0,Invulscherm!$G$44*Invulscherm!$G$48*(VLOOKUP(Invulscherm!$F$44,Meststoffen!$A$3:$P$62,7,FALSE)))),"") ->  | GB7: =IF(AND(Invulscherm!$F$43=Invulscherm!$AQ$8,Invulscherm!$F$44<>""),IF(GA7>0,GA7,GB6+GH6),"") ->  | GC7: =IF(AND(Invulscherm!$F$43=Invulscherm!$AQ$8,Invulscherm!$F$44<>""),IF($C7>27,3.5,IF($C7<-0.999,0,IF(-1<$C7<9.001,0.09*($C7+1),0.88*2^(($C7-9)/9)))),"") ->  | GD7: =IF(AND(Invulscherm!$F$43=Invulscherm!$AQ$8,Invulscherm!$F$44<>""),IF(Invulscherm!$B$8=Invulscherm!$AJ$8,Standaardwaarden!$B$32,IF(Invulscherm!$B$8=Invulscherm!$AJ$9,Standaardwaarden!$B$33,IF(Invulscherm!$B$8=Invulscherm!$AJ$10,Standaardwaarden!$B$34,IF(Invulscherm!$B$8=Invulscherm!$AJ$11,Standaardwaarden!$B$35,IF(Invulscherm!$B$8=Invulscherm!$AJ$12,Standaardwaarden!$B$36,Standaardwaarden!$B$37))))),"") ->  | GE7: =IF(AND(Invulscherm!$F$43=Invulscherm!$AQ$8,Invulscherm!$F$44<>""),(1/(1+EXP(-1.5*(Invulscherm!$B$11-4)))),"") ->  | GF7: =IF(AND(Invulscherm!$F$43=Invulscherm!$AQ$8,Invulscherm!$F$44<>""),GC7*GD7*GE7,"") ->  | GG7: =IF(AND(Invulscherm!$F$43=Invulscherm!$AQ$8,Invulscherm!$F$44<>""),IF($A7>Invulscherm!$AB$24,GG6+GF7/52,IF($A7<Invulscherm!$AB$24,"",(VLOOKUP(Invulscherm!$F$44,Meststoffen!$A$3:$P$62,6,FALSE))+GF7/52)),"") ->  | GH7: =IF(AND(Invulscherm!$F$43=Invulscherm!$AQ$8,Invulscherm!$F$44<>""),IF($A7>Invulscherm!$AB$24,GB7*(-2.82)*GF7*(1/52)*(GG7^(-1.6)),0),0) -> 0 | GI7: =IF(AND(Invulscherm!$F$43=Invulscherm!$AQ$8,Invulscherm!$F$44<>""),IF($A7>Invulscherm!$AB$24,GI6+GJ6,IF($A7<Invulscherm!$AB$24,0,IF(Invulscherm!$D$28="Uitslag + 10%",1.1*(Invulscherm!$G$44*(Invulscherm!$G$46-Invulscherm!$G$47)),IF(Invulscherm!$D$28="Uitslag - 10%",0.9*(Invulscherm!$G$44*(Invulscherm!$G$46-Invulscherm!$G$47)),Invulscherm!$G$44*(Invulscherm!$G$46-Invulscherm!$G$47))))),0) -> 0 | GJ7: =IF((GI7)>0,((GH7*(1+Standaardwaarden!$B$29))/(GB7/GI7))-(((GH7*(1+Standaardwaarden!$B$29))-GH7)*(1/Standaardwaarden!$B$28)),0) -> 0 | GK7: 0 | GL7: =IF(AND(Invulscherm!$F$43=Invulscherm!$AQ$8,Invulscherm!$F$44<>""),IF($A7<Invulscherm!$AB$24,"",IF(Invulscherm!$D$28="Uitslag + 10%",1.1*(Invulscherm!$G$44*Invulscherm!$G$47),IF(Invulscherm!$D$28="Uitslag - 10%",0.9*(Invulscherm!$G$44*Invulscherm!$G$47),Invulscherm!$G$44*Invulscherm!$G$47))),Invulscherm!$G$44*0.98) -> 0 | GM7: =IF($A7<Invulscherm!$AB$24,0,IF(AND(Invulscherm!$AB$24<Invulscherm!$AB$13,$A7>Invulscherm!$AB$13),0,IF(AND(Invulscherm!$F$43=Invulscherm!$AQ$8,Invulscherm!$F$44<>""),IF(Invulscherm!$F$45=Invulscherm!$AS$8,GL7*Invulscherm!$AT$8,GL7*Invulscherm!$AT$9),Invulscherm!$G$44*0.98))) -> 0 | GN7: 0 | GO7: 0 | GP7: =IF(GN7>0,(Standaardwaarden!$B$30*(GN7-GO7-GP6)*((-$AV7-$CJ7-$CW7-$DJ7-$EC7-$EV7-$FO7-$GH7-$HA7)*(1+Standaardwaarden!$B$29))/10000),0) -> 0 | GQ7: 0 | GR7: =IF(GN7>0,IF($A7>Invulscherm!$AB$13,(GN7-GQ7),0),0) -> 0 | GT7: =IF(AND(Invulscherm!$J$43=Invulscherm!$AQ$8,Invulscherm!$J$44<>""),IF($A7>Invulscherm!$AB$25,0,IF($A7<Invulscherm!$AB$25,0,Invulscherm!$K$44*Invulscherm!$K$48*(VLOOKUP(Invulscherm!$J$44,Meststoffen!$A$3:$P$62,7,FALSE)))),"") ->  | GU7: =IF(AND(Invulscherm!$J$43=Invulscherm!$AQ$8,Invulscherm!$J$44<>""),IF(GT7>0,GT7,GU6+HA6),"") ->  | GV7: =IF(AND(Invulscherm!$J$43=Invulscherm!$AQ$8,Invulscherm!$J$44<>""),IF($C7>27,3.5,IF($C7<-0.999,0,IF(-1<$C7<9.001,0.09*($C7+1),0.88*2^(($C7-9)/9)))),"") ->  | GW7: =IF(AND(Invulscherm!$J$43=Invulscherm!$AQ$8,Invulscherm!$J$44<>""),IF(Invulscherm!$B$8=Invulscherm!$AJ$8,Standaardwaarden!$B$32,IF(Invulscherm!$B$8=Invulscherm!$AJ$9,Standaardwaarden!$B$33,IF(Invulscherm!$B$8=Invulscherm!$AJ$10,Standaardwaarden!$B$34,IF(Invulscherm!$B$8=Invulscherm!$AJ$11,Standaardwaarden!$B$35,IF(Invulscherm!$B$8=Invulscherm!$AJ$12,Standaardwaarden!$B$36,Standaardwaarden!$B$37))))),"") ->  | GX7: =IF(AND(Invulscherm!$J$43=Invulscherm!$AQ$8,Invulscherm!$J$44<>""),(1/(1+EXP(-1.5*(Invulscherm!$B$11-4)))),"") ->  | GY7: =IF(AND(Invulscherm!$J$43=Invulscherm!$AQ$8,Invulscherm!$J$44<>""),GV7*GW7*GX7,"") ->  | GZ7: =IF(AND(Invulscherm!$J$43=Invulscherm!$AQ$8,Invulscherm!$J$44<>""),IF($A7>Invulscherm!$AB$25,GZ6+GY7/52,IF($A7<Invulscherm!$AB$25,"",(VLOOKUP(Invulscherm!$J$44,Meststoffen!$A$3:$P$62,6,FALSE))+GY7/52)),"") ->  | HA7: =IF(AND(Invulscherm!$J$43=Invulscherm!$AQ$8,Invulscherm!$J$44<>""),IF($A7>Invulscherm!$AB$25,GU7*(-2.82)*GY7*(1/52)*(GZ7^(-1.6)),0),0) -> 0 | HB7: =IF(AND(Invulscherm!$J$43=Invulscherm!$AQ$8,Invulscherm!$J$44<>""),IF($A7>Invulscherm!$AB$25,HB6+HC6,IF($A7<Invulscherm!$AB$25,0,IF(Invulscherm!$D$28="Uitslag + 10%",1.1*(Invulscherm!$K$44*(Invulscherm!$K$46-Invulscherm!$K$47)),IF(Invulscherm!$D$28="Uitslag - 10%",0.9*(Invulscherm!$K$44*(Invulscherm!$K$46-Invulscherm!$K$47)),Invulscherm!$K$44*(Invulscherm!$K$46-Invulscherm!$K$47))))),0) -> 0 | HC7: =IF((HB7)>0,((HA7*(1+Standaardwaarden!$B$29))/(GU7/HB7))-(((HA7*(1+Standaardwaarden!$B$29))-HA7)*(1/Standaardwaarden!$B$28)),0) -> 0 | HD7: 0 | HE7: =IF(AND(Invulscherm!$J$43=Invulscherm!$AQ$8,Invulscherm!$J$44<>""),IF($A7<Invulscherm!$AB$25,"",IF(Invulscherm!$D$28="Uitslag + 10%",1.1*(Invulscherm!$K$44*Invulscherm!$K$47),IF(Invulscherm!$D$28="Uitslag - 10%",0.9*(Invulscherm!$K$44*Invulscherm!$K$47),Invulscherm!$K$44*Invulscherm!$K$47))),Invulscherm!$K$44*0.98) -> 0 | HF7: =IF($A7<Invulscherm!$AB$25,0,IF(AND(Invulscherm!$AB$25<Invulscherm!$AB$13,$A7>Invulscherm!$AB$13),0,IF(AND(Invulscherm!$J$43=Invulscherm!$AQ$8,Invulscherm!$J$44<>""),IF(Invulscherm!$J$45=Invulscherm!$AS$8,HE7*Invulscherm!$AT$8,HE7*Invulscherm!$AT$9),Invulscherm!$K$44*0.98))) -> 0 | HG7: =HD7+HF7 -> 0 | HH7: 0 | HI7: =IF(HG7>0,(Standaardwaarden!$B$30*(HG7-HH7-HI6)*((-$AV7-$CJ7-$CW7-$DJ7-$EC7-$EV7-$FO7-$GH7-$HA7)*(1+Standaardwaarden!$B$29))/10000),0) -> 0 | HJ7: 0 | HK7: =IF(HG7>0,IF($A7>Invulscherm!$AB$13,(HG7-HJ7),0),0) -> 0
A8: -50 | C8: =IF(Invulscherm!$B$9="Noord Nederland",IF(Invulscherm!$B$4="koud jaar",Temperatuur!C5,IF(Invulscherm!$B$4="warm jaar",Temperatuur!B5,Temperatuur!A5)),IF(Invulscherm!$B$9="Midden Nederland",IF(Invulscherm!$B$4="koud jaar",Temperatuur!F5,IF(Invulscherm!$B$4="warm jaar",Temperatuur!E5,Temperatuur!D5)),IF(Invulscherm!$B$9="Zuid Nederland",IF(Invulscherm!$B$4="koud jaar",Temperatuur!I5,IF(Invulscherm!$B$4="warm jaar",Temperatuur!H5,Temperatuur!G5)),IF(Invulscherm!$B$4="koud jaar",Temperatuur!L5,IF(Invulscherm!$B$4="warm jaar",Temperatuur!K5,Temperatuur!J5))))) -> -6.957142857 | D8: =IF(Invulscherm!$B$15<>"",IF(Invulscherm!$AB$18+0.999<A8,D7,IF(Invulscherm!$AB$17>A8,(D9-1),IF((Invulscherm!$AB$17+0.999)<A8,(D7+1),0))),"") ->  | E8: =IF(Invulscherm!$B$15<>"",IF($D8<0,0,INDEX((Gewasopname!$B$12:$D$86,Gewasopname!$F$12:$H$86,Gewasopname!$J$12:$L$86,Gewasopname!$N$12:$P$86,Gewasopname!$R$12:$T$86,Gewasopname!$V$12:$X$86,Gewasopname!$Z$12:$AB$81,Gewasopname!$AD$12:$AF$81,Gewasopname!$AH$12:$AJ$71,Gewasopname!$AL$12:$AN$71,Gewasopname!$AP$12:$AR$81,Gewasopname!$AT$12:$AV$81,Gewasopname!$AX$12:$AZ$81,Gewasopname!$BB$12:$BD$81,Gewasopname!$BF$12:$BH$63,Gewasopname!$BJ$12:$BL$63,Gewasopname!$BN$12:$BP$63,Gewasopname!$BR$12:$BT$63,Gewasopname!$BV$12:$BX$63,Gewasopname!$BZ$12:$CB$63,Gewasopname!$CD$12:$CF$63,Gewasopname!$CH$12:$CJ$63,Gewasopname!$CL$12:$CN$63,Gewasopname!$CP$12:$CR$63,Gewasopname!$CT$12:$CV$63,Gewasopname!$CX$12:$CZ$63,Gewasopname!$DB$12:$DD$63,Gewasopname!$DF$12:$DH$63,Gewasopname!$DJ$12:$DL$63,Gewasopname!$DN$12:$DP$63),$D8+1,2,$E$3)),"") ->  | F8: =IF(Invulscherm!$B$15<>"",IF(Invulscherm!$B$15="Suikerbiet",E8,E8*(Invulscherm!$B$19/(HLOOKUP(Invulscherm!$B$15,Gewasopname!$B$2:$DP$63,4,FALSE)))),0) -> 0 | G8: =IF($A8<=Invulscherm!$AB$18,F8,"") -> 0 | H8: =IF(Invulscherm!$B$15<>"",IF($D8<0,0,INDEX((Gewasopname!$B$12:$D$86,Gewasopname!$F$12:$H$86,Gewasopname!$J$12:$L$86,Gewasopname!$N$12:$P$86,Gewasopname!$R$12:$T$86,Gewasopname!$V$12:$X$86,Gewasopname!$Z$12:$AB$81,Gewasopname!$AD$12:$AF$81,Gewasopname!$AH$12:$AJ$71,Gewasopname!$AL$12:$AN$71,Gewasopname!$AP$12:$AR$81,Gewasopname!$AT$12:$AV$81,Gewasopname!$AX$12:$AZ$81,Gewasopname!$BB$12:$BD$81,Gewasopname!$BF$12:$BH$63,Gewasopname!$BJ$12:$BL$63,Gewasopname!$BN$12:$BP$63,Gewasopname!$BR$12:$BT$63,Gewasopname!$BV$12:$BX$63,Gewasopname!$BZ$12:$CB$63,Gewasopname!$CD$12:$CF$63,Gewasopname!$CH$12:$CJ$63,Gewasopname!$CL$12:$CN$63,Gewasopname!$CP$12:$CR$63,Gewasopname!$CT$12:$CV$63,Gewasopname!$CX$12:$CZ$63,Gewasopname!$DB$12:$DD$63,Gewasopname!$DF$12:$DH$63,Gewasopname!$DJ$12:$DL$63,Gewasopname!$DN$12:$DP$63),$D8+1,3,$E$3)),"") ->  | I8: =IF($A8<=Invulscherm!$AB$18,H8,"") ->  | J8: =IF(Invulscherm!$B$15<>"",IF($D8<0,0,INDEX((Gewasopname!$B$12:$E$86,Gewasopname!$F$12:$I$86,Gewasopname!$J$12:$M$86,Gewasopname!$N$12:$Q$86,Gewasopname!$R$12:$U$86,Gewasopname!$V$12:$Y$86,Gewasopname!$Z$12:$AC$81,Gewasopname!$AD$12:$AG$81,Gewasopname!$AH$12:$AK$71,Gewasopname!$AL$12:$AO$71,Gewasopname!$AP$12:$AS$81,Gewasopname!$AT$12:$AW$81,Gewasopname!$AX$12:$BA$81,Gewasopname!$BB$12:$BE$81,Gewasopname!$BF$12:$BI$63,Gewasopname!$BJ$12:$BM$63,Gewasopname!$BN$12:$BQ$63,Gewasopname!$BR$12:$BU$63,Gewasopname!$BV$12:$BY$63,Gewasopname!$BZ$12:$CC$63,Gewasopname!$CD$12:$CG$63,Gewasopname!$CH$12:$CK$63,Gewasopname!$CL$12:$CO$63,Gewasopname!$CP$12:$CS$63,Gewasopname!$CT$12:$CW$63,Gewasopname!$CX$12:$DA$63,Gewasopname!$DB$12:$DE$63,Gewasopname!$DF$12:$DI$63,Gewasopname!$DJ$12:$DM$63,Gewasopname!$DN$12:$DQ$63),$D8+1,4,$E$3)),"") ->  | K8: =IF(Invulscherm!$B$15<>"",IF(Invulscherm!$B$15="Suikerbiet",J8,J8*(Invulscherm!$B$19/(HLOOKUP(Invulscherm!$B$15,Gewasopname!$B$2:$DP$63,4,FALSE)))),0) -> 0 | L8: =IF($A8<=Invulscherm!$AB$18,K8,"") -> 0 | M8: -58.60179773 | N8: =IF($A8<=Invulscherm!$AB$18,M8,"") -> -58.60179773 | O8: 0 | P8: =IF($A8<=Invulscherm!$AB$18,O8,"") -> 0 | Q8: 0 | R8: =IF($A8<=Invulscherm!$AB$18,Q8,"") -> 0 | S8: 0 | T8: =IF($A8<=Invulscherm!$AB$18,S8,"") -> 0 | U8: 0 | V8: =IF($A8<=Invulscherm!$AB$18,U8,"") -> 0 | W8: 0 | X8: =IF($A8<=Invulscherm!$AB$18,W8,"") -> 0 | Y8: 0 | Z8: =IF($A8<=Invulscherm!$AB$18,Y8,"") -> 0 | AA8: -58.60179773 | AB8: =IF(A8<=Invulscherm!$AB$18,"",AA8) ->  | AD8: =IF($A8>=Invulscherm!$AB$17,IF($A8<=Invulscherm!$AB$18,(G8+I8-$L8-$N8),""),0) -> 0 | AE8: =IF($A8>=Invulscherm!$AB$20,IF($A8<=Invulscherm!$AB$18,(AD8-P8),""),"") ->  | AF8: =IF($A8>=Invulscherm!$AB$20,IF($A8<=Invulscherm!$AB$18,($AE8-$R8),""),"") ->  | AG8: =IF($A8>=Invulscherm!$AB$20,IF($A8<=Invulscherm!$AB$18,($AF8-$T8),""),"") ->  | AH8: =IF($A8>=Invulscherm!$AB$20,IF($A8<=Invulscherm!$AB$18,($AG8-$V8),""),"") ->  | AI8: =IF($A8>=Invulscherm!$AB$20,IF($A8<=Invulscherm!$AB$18,($AH8-$X8),""),"") ->  | AJ8: =IF($A8>=Invulscherm!$AB$20,IF($A8<=Invulscherm!$AB$18,($AI8-$Z8),""),"") ->  | AK8: =IF($A8>Invulscherm!$AB$20,IF($A8<=Invulscherm!$AB$18,IF(AJ8<-10,"ja","nee"),""),"") ->  | AL8: =IF(AND(Invulscherm!$AB$20<>"",Invulscherm!$B$15<>""),IF($A8>=Invulscherm!$AB$20,IF($A8<=Invulscherm!$AB$18,IF(AJ8>5,"ja","nee"),""),""),"ja") -> ja | AN8: =IF(Invulscherm!$B$13="",IF($A8>Invulscherm!$U$13,0,IF($A8<Invulscherm!$U$13,0,Standaardwaarden!$B$21*Standaardwaarden!$B$20*(Invulscherm!$B$10/100)*Standaardwaarden!$B$23)),IF($A8>Invulscherm!$AB$13,0,IF($A8<Invulscherm!$AB$13,0,Standaardwaarden!$B$21*Standaardwaarden!$B$20*(Invulscherm!$B$10/100)*Standaardwaarden!$B$23))) -> 0 | AO8: =IF(AN8>0,AN8,AO7+AV7) -> 0 | AP8: 0 | AQ8: =(-0.322*LN(Invulscherm!$B$10)+1.2233)*(IF(Invulscherm!$B$8=Invulscherm!$AJ$8,Standaardwaarden!$B$32,IF(Invulscherm!$B$8=Invulscherm!$AJ$9,Standaardwaarden!$B$33,IF(Invulscherm!$B$8=Invulscherm!$AJ$10,Standaardwaarden!$B$34,IF(Invulscherm!$B$8=Invulscherm!$AJ$11,Standaardwaarden!$B$35,IF(Invulscherm!$B$8=Invulscherm!$AJ$12,Standaardwaarden!$B$36,Standaardwaarden!$B$37)))))) -> 0.8500906167 | AS8: =(1/(1+EXP(-1.5*(Invulscherm!$B$11-4)))) -> 0.9770226301 | AT8: 0 | AU8: =IF(Invulscherm!$B$13="",IF(($A8-1)>Invulscherm!$U$13,AU7+AT8/52,IF(($A8-1)<Invulscherm!$U$13,"",Standaardwaarden!$B$22+AT8/52)),IF(($A8-1)>Invulscherm!$AB$13,AU7+AT8/52,IF(($A8-1)<Invulscherm!$AB$13,"",Standaardwaarden!$B$22+AT8/52))) ->  | AV8: =IF(Invulscherm!$B$13="",IF(($A8-1)>Invulscherm!$U$13,AO8*(-2.82)*AT8*(1/52)*(AU8^(-1.6)),0),IF(($A8-1)>Invulscherm!$AB$13,AO8*(-2.82)*AT8*(1/52)*(AU8^(-1.6)),0)) -> 0 | AW8: =IF(Invulscherm!$B$13="",IF(($A8-1)>Invulscherm!$U$13,AW7+AX7,IF(($A8-1)<Invulscherm!$U$13,0,(Standaardwaarden!$B$20*Standaardwaarden!$B$21*(Invulscherm!$B$10/100)*Standaardwaarden!$B$23)/Standaardwaarden!$B$25)),IF(($A8-1)>Invulscherm!$AB$13,AW7+AX7,IF(($A8-1)<Invulscherm!$AB$13,0,(Standaardwaarden!$B$20*Standaardwaarden!$B$21*(Invulscherm!$B$10/100)*Standaardwaarden!$B$23)/Standaardwaarden!$B$25))) -> 0 | AX8: =IF(Invulscherm!$B$13="",IF(($A8-1)>Invulscherm!$U$13,((AV8*(1+Standaardwaarden!$B$29))/(AO8/AW8))-(((AV8*(1+Standaardwaarden!$B$29))-AV8)*(1/Standaardwaarden!$B$28)),0),IF(($A8-1)>Invulscherm!$AB$13,((AV8*(1+Standaardwaarden!$B$29))/(AO8/AW8))-(((AV8*(1+Standaardwaarden!$B$29))-AV8)*(1/Standaardwaarden!$B$28)),0)) -> 0 | AY8: 0 | AZ8: =IF(Invulscherm!$B$13="",IF(($A8-1)<Invulscherm!$U$13,0,Invulscherm!$T$12),IF(($A8-1)<Invulscherm!$AB$13,0,Invulscherm!$B$12)) -> 0 | BA8: 0 | BB8: 0 | BC8: 0 | BD8: =IF(BB8>0,(Standaardwaarden!$B$30*(BB8-BC8-BD7)*((-$AV8-$CJ8-$CW8-$DJ8-$EC8-$EV8-$FO8-$GH8-$HA8)*(1+Standaardwaarden!$B$29))/10000),0) -> 0 | BE8: 0 | BF8: 0 | BH8: 0 | BI8: 49657.20669 | BJ8: 0 | BK8: =(-0.322*LN(Invulscherm!$B$10)+1.2233)*(IF(Invulscherm!$B$8=Invulscherm!$AJ$8,Standaardwaarden!$B$32,IF(Invulscherm!$B$8=Invulscherm!$AJ$9,Standaardwaarden!$B$33,IF(Invulscherm!$B$8=Invulscherm!$AJ$10,Standaardwaarden!$B$34,IF(Invulscherm!$B$8=Invulscherm!$AJ$11,Standaardwaarden!$B$35,IF(Invulscherm!$B$8=Invulscherm!$AJ$12,Standaardwaarden!$B$36,Standaardwaarden!$B$37)))))) -> 0.8500906167 | BM8: =(1/(1+EXP(-1.5*(Invulscherm!$B$11-4)))) -> 0.9770226301 | BN8: 0 | BO8: =BO7+BN8/52 -> 16.00790871 | BP8: 0 | BQ8: =BQ7+BR7 -> 4966.002982 | BR8: =((BP8*(1+Standaardwaarden!$B$29))/(BI8/BQ8))-(((BP8*(1+Standaardwaarden!$B$29))-BP8)*(1/Standaardwaarden!$B$28)) -> 0 | BS8: 1.028426469 | BT8: 0 | BU8: 1.028426469 | BV8: 1.028426469 | BW8: 0 | BX8: =IF(BV8>0,(Standaardwaarden!$B$30*(BV8-BW8-BX7)*((-$BP8-$CJ8-$CW8-$DJ8-$EC8-$EV8-$FO8-$GH8-$HA8)*(1+Standaardwaarden!$B$29))/10000),0) -> 0 | BY8: 0.001887199044 | BZ8: 1.02653927 | CA8: =IF(Invulscherm!$AB$13="",IF(A8<Invulscherm!$U$13,(BZ8+(Invulscherm!$T$12-(VLOOKUP(Invulscherm!$U$13,$A$6:$BZ$110,78,FALSE)))),IF(A8>Invulscherm!$U$13,BF8,Invulscherm!$T$12)),IF(A8<Invulscherm!$AB$13,(BZ8+(Invulscherm!$B$12-(VLOOKUP(Invulscherm!$AB$13,$A$6:$BZ$110,78,FALSE)))),IF(A8>Invulscherm!$AB$13,BF8,Invulscherm!$B$12))) -> -58.60179773 | CC8: =IF($A8>Invulscherm!$AB$15,0,IF($A8<Invulscherm!$AB$15,0,Invulscherm!$AB$29*Invulscherm!$AB$31)) -> 0 | CD8: 0 | CE8: 0 | CF8: =IF(Invulscherm!$B$8=Invulscherm!$AJ$8,Standaardwaarden!$B$32,IF(Invulscherm!$B$8=Invulscherm!$AJ$9,Standaardwaarden!$B$33,IF(Invulscherm!$B$8=Invulscherm!$AJ$10,Standaardwaarden!$B$34,IF(Invulscherm!$B$8=Invulscherm!$AJ$11,Standaardwaarden!$B$35,IF(Invulscherm!$B$8=Invulscherm!$AJ$12,Standaardwaarden!$B$36,Standaardwaarden!$B$37))))) -> 0.85 | CG8: =(1/(1+EXP(-1.5*(Invulscherm!$B$11-4)))) -> 0.9770226301 | CH8: 0 | CI8: =IF($A8>Invulscherm!$AB$15,CI7+CH8/52,IF($A8<Invulscherm!$AB$15,"",Invulscherm!$AB$32+CH8/52)) ->  | CJ8: =IF($A8>Invulscherm!$AB$15,CD8*(-2.82)*CH8*(1/52)*(CI8^(-1.6)),0) -> 0 | CK8: =IF($A8>Invulscherm!$AB$15,CK7+CL7,IF($A8<Invulscherm!$AB$15,0,Invulscherm!$AB$29*Invulscherm!$AB$30)) -> 0 | CL8: =IF(CK8>0,IF($A8>Invulscherm!$AB$15,((CJ8*(1+Standaardwaarden!$B$29))/(CD8/CK8))-(((CJ8*(1+Standaardwaarden!$B$29))-CJ8)*(1/Standaardwaarden!$B$28)),0),0) -> 0 | CM8: 0 | CN8: =IF(Invulscherm!$B$13="",IF(A8<Invulscherm!$U$13,0,(CM8-VLOOKUP(Invulscherm!$U$13,$A$4:$HK$110,91,FALSE))),IF(A8<Invulscherm!$AB$13,0,(CM8-VLOOKUP(Invulscherm!$AB$13,$A$4:$HK$110,91,FALSE)))) -> 0 | CP8: =IF($A8>Invulscherm!$AB$16,0,IF($A8<Invulscherm!$AB$16,0,Invulscherm!$AB$36)) -> 0 | CQ8: 0 | CR8: 0 | CS8: =IF(Invulscherm!$B$8=Invulscherm!$AJ$8,Standaardwaarden!$B$32,IF(Invulscherm!$B$8=Invulscherm!$AJ$9,Standaardwaarden!$B$33,IF(Invulscherm!$B$8=Invulscherm!$AJ$10,Standaardwaarden!$B$34,IF(Invulscherm!$B$8=Invulscherm!$AJ$11,Standaardwaarden!$B$35,IF(Invulscherm!$B$8=Invulscherm!$AJ$12,Standaardwaarden!$B$36,Standaardwaarden!$B$37))))) -> 0.85 | CT8: =(1/(1+EXP(-1.5*(Invulscherm!$B$11-4)))) -> 0.9770226301 | CU8: 0 | CV8: =IF($A8>Invulscherm!$AB$16,CV7+CU8/52,IF($A8<Invulscherm!$AB$16,"",Invulscherm!$AB$37+CU8/52)) ->  | CW8: =IF($A8>Invulscherm!$AB$16,CQ8*(-2.82)*CU8*(1/52)*(CV8^(-1.6)),0) -> 0 | CX8: =IF($A8>Invulscherm!$AB$16,CX7+CY7,IF($A8<Invulscherm!$AB$16,0,Invulscherm!$AB$35)) -> 0 | CY8: =IF(CX8>0,IF($A8>Invulscherm!$AB$16,((CW8*(1+Standaardwaarden!$B$29))/(CQ8/CX8))-(((CW8*(1+Standaardwaarden!$B$29))-CW8)*(1/Standaardwaarden!$B$28)),0),0) -> 0 | CZ8: 0 | DA8: =IF(Invulscherm!$B$13="",IF(A8<Invulscherm!$U$13,0,(CZ8-VLOOKUP(Invulscherm!$U$13,$A$4:$HK$110,104,FALSE))),IF(A8<Invulscherm!$AB$13,0,(CZ8-VLOOKUP(Invulscherm!$AB$13,$A$4:$HK$110,104,FALSE)))) -> 0 | DC8: =IF(AND(Invulscherm!$B$32=Invulscherm!$AQ$8,Invulscherm!$B$33<>""),IF($A8>Invulscherm!$AB$20,0,IF($A8<Invulscherm!$AB$20,0,Invulscherm!$C$33*Invulscherm!$C$37*(VLOOKUP(Invulscherm!$B$33,Meststoffen!$A$3:$P$62,7,FALSE)))),"") ->  | DD8: =IF(AND(Invulscherm!$B$32=Invulscherm!$AQ$8,Invulscherm!$B$33<>""),IF(DC8>0,DC8,DD7+DJ7),"") ->  | DE8: =IF(AND(Invulscherm!$B$32=Invulscherm!$AQ$8,Invulscherm!$B$33<>""),IF($C8>27,3.5,IF($C8<-0.999,0,IF(-1<$C8<9.001,0.09*($C8+1),0.88*2^(($C8-9)/9)))),"") ->  | DF8: =IF(AND(Invulscherm!$B$32=Invulscherm!$AQ$8,Invulscherm!$B$33<>""),IF(Invulscherm!$B$8=Invulscherm!$AJ$8,Standaardwaarden!$B$32,IF(Invulscherm!$B$8=Invulscherm!$AJ$9,Standaardwaarden!$B$33,IF(Invulscherm!$B$8=Invulscherm!$AJ$10,Standaardwaarden!$B$34,IF(Invulscherm!$B$8=Invulscherm!$AJ$11,Standaardwaarden!$B$35,IF(Invulscherm!$B$8=Invulscherm!$AJ$12,Standaardwaarden!$B$36,Standaardwaarden!$B$37))))),"") ->  | DG8: =IF(AND(Invulscherm!$B$32=Invulscherm!$AQ$8,Invulscherm!$B$33<>""),(1/(1+EXP(-1.5*(Invulscherm!$B$11-4)))),"") ->  | DH8: =IF(AND(Invulscherm!$B$32=Invulscherm!$AQ$8,Invulscherm!$B$33<>""),DE8*DF8*DG8,"") ->  | DI8: =IF(AND(Invulscherm!$B$32=Invulscherm!$AQ$8,Invulscherm!$B$33<>""),IF($A8>Invulscherm!$AB$20,DI7+DH8/52,IF($A8<Invulscherm!$AB$20,"",(VLOOKUP(Invulscherm!$B$33,Meststoffen!$A$3:$P$62,6,FALSE))+DH8/52)),"") ->  | DJ8: =IF(AND(Invulscherm!$B$32=Invulscherm!$AQ$8,Invulscherm!$B$33<>""),IF($A8>Invulscherm!$AB$20,DD8*(-2.82)*DH8*(1/52)*(DI8^(-1.6)),0),0) -> 0 | DK8: =IF(AND(Invulscherm!$B$32=Invulscherm!$AQ$8,Invulscherm!$B$33<>""),IF($A8>Invulscherm!$AB$20,DK7+DL7,IF($A8<Invulscherm!$AB$20,0,IF(Invulscherm!$D$28="Uitslag + 10%",1.1*(Invulscherm!$C$33*(Invulscherm!$C$35-Invulscherm!$C$36)),IF(Invulscherm!$D$28="Uitslag - 10%",0.9*(Invulscherm!$C$33*(Invulscherm!$C$35-Invulscherm!$C$36)),Invulscherm!$C$33*(Invulscherm!$C$35-Invulscherm!$C$36))))),0) -> 0 | DL8: =IF((DK8)>0,((DJ8*(1+Standaardwaarden!$B$29))/(DD8/DK8))-(((DJ8*(1+Standaardwaarden!$B$29))-DJ8)*(1/Standaardwaarden!$B$28)),0) -> 0 | DM8: 0 | DN8: =IF(AND(Invulscherm!$B$32=Invulscherm!$AQ$8,Invulscherm!$B$33<>""),IF($A8<Invulscherm!$AB$20,"",IF(Invulscherm!$D$28="Uitslag + 10%",1.1*(Invulscherm!$C$33*Invulscherm!$C$36),IF(Invulscherm!$D$28="Uitslag - 10%",0.9*(Invulscherm!$C$33*Invulscherm!$C$36),Invulscherm!$C$33*Invulscherm!$C$36))),IF($A8<Invulscherm!$AB$20,"",Invulscherm!$C$33*0.98)) ->  | DO8: =IF($A8<Invulscherm!$AB$20,0,IF(AND(Invulscherm!$AB$20<Invulscherm!$AB$13,$A8>Invulscherm!$AB$13),0,IF(AND(Invulscherm!$B$32=Invulscherm!$AQ$8,Invulscherm!$B$33<>""),IF(Invulscherm!$B$34=Invulscherm!$AS$8,DN8*Invulscherm!$AT$8,IF(Invulscherm!$B$34=Invulscherm!$AS$9,DN8*Invulscherm!$AT$9,DN8*Invulscherm!$AT$10)),Invulscherm!$C$33*0.98))) -> 0 | DP8: 0 | DQ8: 0 | DR8: =IF(DP8>0,(Standaardwaarden!$B$30*(DP8-DQ8-DR7)*((-$AV8-$CJ8-$CW8-$DJ8-$EC8-$EV8-$FO8-$GH8-$HA8)*(1+Standaardwaarden!$B$29))/10000),0) -> 0 | DS8: 0 | DT8: =IF(DP8>0,IF($A8>Invulscherm!$AB$13,(DP8-DS8),0),0) -> 0 | DV8: =IF(AND(Invulscherm!$F$32=Invulscherm!$AQ$8,Invulscherm!$F$33<>""),IF($A8>Invulscherm!$AB$21,0,IF($A8<Invulscherm!$AB$21,0,Invulscherm!$G$33*Invulscherm!$G$37*(VLOOKUP(Invulscherm!$F$33,Meststoffen!$A$3:$P$62,7,FALSE)))),"") ->  | DW8: =IF(AND(Invulscherm!$F$32=Invulscherm!$AQ$8,Invulscherm!$F$33<>""),IF(DV8>0,DV8,DW7+EC7),"") ->  | DX8: =IF(AND(Invulscherm!$F$32=Invulscherm!$AQ$8,Invulscherm!$F$33<>""),IF($C8>27,3.5,IF($C8<-0.999,0,IF(-1<$C8<9.001,0.09*($C8+1),0.88*2^(($C8-9)/9)))),"") ->  | DY8: =IF(AND(Invulscherm!$F$32=Invulscherm!$AQ$8,Invulscherm!$F$33<>""),IF(Invulscherm!$B$8=Invulscherm!$AJ$8,Standaardwaarden!$B$32,IF(Invulscherm!$B$8=Invulscherm!$AJ$9,Standaardwaarden!$B$33,IF(Invulscherm!$B$8=Invulscherm!$AJ$10,Standaardwaarden!$B$34,IF(Invulscherm!$B$8=Invulscherm!$AJ$11,Standaardwaarden!$B$35,IF(Invulscherm!$B$8=Invulscherm!$AJ$12,Standaardwaarden!$B$36,Standaardwaarden!$B$37))))),"") ->  | DZ8: =IF(AND(Invulscherm!$F$32=Invulscherm!$AQ$8,Invulscherm!$F$33<>""),(1/(1+EXP(-1.5*(Invulscherm!$B$11-4)))),"") ->  | EA8: =IF(AND(Invulscherm!$F$32=Invulscherm!$AQ$8,Invulscherm!$F$33<>""),DX8*DY8*DZ8,"") ->  | EB8: =IF(AND(Invulscherm!$F$32=Invulscherm!$AQ$8,Invulscherm!$F$33<>""),IF($A8>Invulscherm!$AB$21,EB7+EA8/52,IF($A8<Invulscherm!$AB$21,"",(VLOOKUP(Invulscherm!$F$33,Meststoffen!$A$3:$P$62,6,FALSE))+EA8/52)),"") ->  | EC8: =IF(AND(Invulscherm!$F$32=Invulscherm!$AQ$8,Invulscherm!$F$33<>""),IF($A8>Invulscherm!$AB$21,DW8*(-2.82)*EA8*(1/52)*(EB8^(-1.6)),0),0) -> 0 | ED8: =IF(AND(Invulscherm!$F$32=Invulscherm!$AQ$8,Invulscherm!$F$33<>""),IF($A8>Invulscherm!$AB$21,ED7+EE7,IF($A8<Invulscherm!$AB$21,0,IF(Invulscherm!$D$28="Uitslag + 10%",1.1*(Invulscherm!$G$33*(Invulscherm!$G$35-Invulscherm!$G$36)),IF(Invulscherm!$D$28="Uitslag - 10%",0.9*(Invulscherm!$G$33*(Invulscherm!$G$35-Invulscherm!$G$36)),Invulscherm!$G$33*(Invulscherm!$G$35-Invulscherm!$G$36))))),0) -> 0 | EE8: =IF((ED8)>0,((EC8*(1+Standaardwaarden!$B$29))/(DW8/ED8))-(((EC8*(1+Standaardwaarden!$B$29))-EC8)*(1/Standaardwaarden!$B$28)),0) -> 0 | EF8: 0 | EG8: =IF(AND(Invulscherm!$F$32=Invulscherm!$AQ$8,Invulscherm!$F$33<>""),IF($A8<Invulscherm!$AB$21,"",IF(Invulscherm!$D$28="Uitslag + 10%",1.1*(Invulscherm!$G$33*Invulscherm!$G$36),IF(Invulscherm!$D$28="Uitslag - 10%",0.9*(Invulscherm!$G$33*Invulscherm!$G$36),Invulscherm!$G$33*Invulscherm!$G$36))),Invulscherm!$G$33*0.98) -> 0 | EH8: =IF($A8<Invulscherm!$AB$21,0,IF(AND(Invulscherm!$AB$21<Invulscherm!$AB$13,$A8>Invulscherm!$AB$13),0,IF(AND(Invulscherm!$F$32=Invulscherm!$AQ$8,Invulscherm!$F$33<>""),IF(Invulscherm!$F$34=Invulscherm!$AS$8,EG8*Invulscherm!$AT$8,EG8*Invulscherm!$AT$9),Invulscherm!$G$33*0.98))) -> 0 | EI8: 0 | EJ8: 0 | EK8: =IF(EI8>0,(Standaardwaarden!$B$30*(EI8-EJ8-EK7)*((-$AV8-$CJ8-$CW8-$DJ8-$EC8-$EV8-$FO8-$GH8-$HA8)*(1+Standaardwaarden!$B$29))/10000),0) -> 0 | EL8: 0 | EM8: =IF(EI8>0,IF($A8>Invulscherm!$AB$13,(EI8-EL8),0),0) -> 0 | EO8: =IF(AND(Invulscherm!$J$32=Invulscherm!$AQ$8,Invulscherm!$J$33<>""),IF($A8>Invulscherm!$AB$22,0,IF($A8<Invulscherm!$AB$22,0,Invulscherm!$K$33*Invulscherm!$K$37*(VLOOKUP(Invulscherm!$J$33,Meststoffen!$A$3:$P$62,7,FALSE)))),"") ->  | EP8: =IF(AND(Invulscherm!$J$32=Invulscherm!$AQ$8,Invulscherm!$J$33<>""),IF(EO8>0,EO8,EP7+EV7),"") ->  | EQ8: =IF(AND(Invulscherm!$J$32=Invulscherm!$AQ$8,Invulscherm!$J$33<>""),IF($C8>27,3.5,IF($C8<-0.999,0,IF(-1<$C8<9.001,0.09*($C8+1),0.88*2^(($C8-9)/9)))),"") ->  | ER8: =IF(AND(Invulscherm!$J$32=Invulscherm!$AQ$8,Invulscherm!$J$33<>""),IF(Invulscherm!$B$8=Invulscherm!$AJ$8,Standaardwaarden!$B$32,IF(Invulscherm!$B$8=Invulscherm!$AJ$9,Standaardwaarden!$B$33,IF(Invulscherm!$B$8=Invulscherm!$AJ$10,Standaardwaarden!$B$34,IF(Invulscherm!$B$8=Invulscherm!$AJ$11,Standaardwaarden!$B$35,IF(Invulscherm!$B$8=Invulscherm!$AJ$12,Standaardwaarden!$B$36,Standaardwaarden!$B$37))))),"") ->  | ES8: =IF(AND(Invulscherm!$J$32=Invulscherm!$AQ$8,Invulscherm!$J$33<>""),(1/(1+EXP(-1.5*(Invulscherm!$B$11-4)))),"") ->  | ET8: =IF(AND(Invulscherm!$J$32=Invulscherm!$AQ$8,Invulscherm!$J$33<>""),EQ8*ER8*ES8,"") ->  | EU8: =IF(AND(Invulscherm!$J$32=Invulscherm!$AQ$8,Invulscherm!$J$33<>""),IF($A8>Invulscherm!$AB$22,EU7+ET8/52,IF($A8<Invulscherm!$AB$22,"",(VLOOKUP(Invulscherm!$J$33,Meststoffen!$A$3:$P$62,6,FALSE))+ET8/52)),"") ->  | EV8: =IF(AND(Invulscherm!$J$32=Invulscherm!$AQ$8,Invulscherm!$J$33<>""),IF($A8>Invulscherm!$AB$22,EP8*(-2.82)*ET8*(1/52)*(EU8^(-1.6)),0),0) -> 0 | EW8: =IF(AND(Invulscherm!$J$32=Invulscherm!$AQ$8,Invulscherm!$J$33<>""),IF($A8>Invulscherm!$AB$22,EW7+EX7,IF($A8<Invulscherm!$AB$22,0,IF(Invulscherm!$D$28="Uitslag + 10%",1.1*(Invulscherm!$K$33*(Invulscherm!$K$35-Invulscherm!$K$36)),IF(Invulscherm!$D$28="Uitslag - 10%",0.9*(Invulscherm!$K$33*(Invulscherm!$K$35-Invulscherm!$K$36)),Invulscherm!$K$33*(Invulscherm!$K$35-Invulscherm!$K$36))))),0) -> 0 | EX8: =IF((EW8)>0,((EV8*(1+Standaardwaarden!$B$29))/(EP8/EW8))-(((EV8*(1+Standaardwaarden!$B$29))-EV8)*(1/Standaardwaarden!$B$28)),0) -> 0 | EY8: 0 | EZ8: =IF(AND(Invulscherm!$J$32=Invulscherm!$AQ$8,Invulscherm!$J$33<>""),IF($A8<Invulscherm!$AB$22,"",IF(Invulscherm!$D$28="Uitslag + 10%",1.1*(Invulscherm!$K$33*Invulscherm!$K$36),IF(Invulscherm!$D$28="Uitslag - 10%",0.9*(Invulscherm!$K$33*Invulscherm!$K$36),Invulscherm!$K$33*Invulscherm!$K$36))),Invulscherm!$K$33*0.98) -> 0 | FA8: =IF($A8<Invulscherm!$AB$22,0,IF(AND(Invulscherm!$AB$22<Invulscherm!$AB$13,$A8>Invulscherm!$AB$13),0,IF(AND(Invulscherm!$J$32=Invulscherm!$AQ$8,Invulscherm!$J$33<>""),IF(Invulscherm!$J$34=Invulscherm!$AS$8,EZ8*Invulscherm!$AT$8,EZ8*Invulscherm!$AT$9),Invulscherm!$K$33*0.98))) -> 0 | FB8: 0 | FC8: 0 | FD8: =IF(FB8>0,(Standaardwaarden!$B$30*(FB8-FC8-FD7)*((-$AV8-$CJ8-$CW8-$DJ8-$EC8-$EV8-$FO8-$GH8-$HA8)*(1+Standaardwaarden!$B$29))/10000),0) -> 0 | FE8: 0 | FF8: =IF(FB8>0,IF($A8>Invulscherm!$AB$13,(FB8-FE8),0),0) -> 0 | FH8: =IF(AND(Invulscherm!$B$43=Invulscherm!$AQ$8,Invulscherm!$B$44<>""),IF($A8>Invulscherm!$AB$23,0,IF($A8<Invulscherm!$AB$23,0,Invulscherm!$C$44*Invulscherm!$C$48*(VLOOKUP(Invulscherm!$B$44,Meststoffen!$A$3:$P$62,7,FALSE)))),"") ->  | FI8: =IF(AND(Invulscherm!$B$43=Invulscherm!$AQ$8,Invulscherm!$B$44<>""),IF(FH8>0,FH8,FI7+FO7),"") ->  | FJ8: =IF(AND(Invulscherm!$B$43=Invulscherm!$AQ$8,Invulscherm!$B$44<>""),IF($C8>27,3.5,IF($C8<-0.999,0,IF(-1<$C8<9.001,0.09*($C8+1),0.88*2^(($C8-9)/9)))),"") ->  | FK8: =IF(AND(Invulscherm!$B$43=Invulscherm!$AQ$8,Invulscherm!$B$44<>""),IF(Invulscherm!$B$8=Invulscherm!$AJ$8,Standaardwaarden!$B$32,IF(Invulscherm!$B$8=Invulscherm!$AJ$9,Standaardwaarden!$B$33,IF(Invulscherm!$B$8=Invulscherm!$AJ$10,Standaardwaarden!$B$34,IF(Invulscherm!$B$8=Invulscherm!$AJ$11,Standaardwaarden!$B$35,IF(Invulscherm!$B$8=Invulscherm!$AJ$12,Standaardwaarden!$B$36,Standaardwaarden!$B$37))))),"") ->  | FL8: =IF(AND(Invulscherm!$B$43=Invulscherm!$AQ$8,Invulscherm!$B$44<>""),(1/(1+EXP(-1.5*(Invulscherm!$B$11-4)))),"") ->  | FM8: =IF(AND(Invulscherm!$B$43=Invulscherm!$AQ$8,Invulscherm!$B$44<>""),FJ8*FK8*FL8,"") ->  | FN8: =IF(AND(Invulscherm!$B$43=Invulscherm!$AQ$8,Invulscherm!$B$44<>""),IF($A8>Invulscherm!$AB$23,FN7+FM8/52,IF($A8<Invulscherm!$AB$23,"",(VLOOKUP(Invulscherm!$B$44,Meststoffen!$A$3:$P$62,6,FALSE))+FM8/52)),"") ->  | FO8: =IF(AND(Invulscherm!$B$43=Invulscherm!$AQ$8,Invulscherm!$B$44<>""),IF($A8>Invulscherm!$AB$23,FI8*(-2.82)*FM8*(1/52)*(FN8^(-1.6)),0),0) -> 0 | FP8: =IF(AND(Invulscherm!$B$43=Invulscherm!$AQ$8,Invulscherm!$B$44<>""),IF($A8>Invulscherm!$AB$23,FP7+FQ7,IF($A8<Invulscherm!$AB$23,0,IF(Invulscherm!$D$28="Uitslag + 10%",1.1*(Invulscherm!$C$44*(Invulscherm!$C$46-Invulscherm!$C$47)),IF(Invulscherm!$D$28="Uitslag - 10%",0.9*(Invulscherm!$C$44*(Invulscherm!$C$46-Invulscherm!$C$47)),Invulscherm!$C$44*(Invulscherm!$C$46-Invulscherm!$C$47))))),0) -> 0 | FQ8: =IF((FP8)>0,((FO8*(1+Standaardwaarden!$B$29))/(FI8/FP8))-(((FO8*(1+Standaardwaarden!$B$29))-FO8)*(1/Standaardwaarden!$B$28)),0) -> 0 | FR8: 0 | FS8: =IF(AND(Invulscherm!$B$43=Invulscherm!$AQ$8,Invulscherm!$B$44<>""),IF($A8<Invulscherm!$AB$23,"",IF(Invulscherm!$D$28="Uitslag + 10%",1.1*(Invulscherm!$C$44*Invulscherm!$C$47),IF(Invulscherm!$D$28="Uitslag - 10%",0.9*(Invulscherm!$C$44*Invulscherm!$C$47),Invulscherm!$C$44*Invulscherm!$C$47))),Invulscherm!$C$44*0.98) -> 0 | FT8: =IF($A8<Invulscherm!$AB$23,0,IF(AND(Invulscherm!$AB$23<Invulscherm!$AB$13,$A8>Invulscherm!$AB$13),0,IF(AND(Invulscherm!$B$43=Invulscherm!$AQ$8,Invulscherm!$B$44<>""),IF(Invulscherm!$B$45=Invulscherm!$AS$8,FS8*Invulscherm!$AT$8,FS8*Invulscherm!$AT$9),Invulscherm!$C$44*0.98))) -> 0 | FU8: 0 | FV8: 0 | FW8: =IF(FU8>0,(Standaardwaarden!$B$30*(FU8-FV8-FW7)*((-$AV8-$CJ8-$CW8-$DJ8-$EC8-$EV8-$FO8-$GH8-$HA8)*(1+Standaardwaarden!$B$29))/10000),0) -> 0 | FX8: 0 | FY8: =IF(FU8>0,IF($A8>Invulscherm!$AB$13,(FU8-FX8),0),0) -> 0 | GA8: =IF(AND(Invulscherm!$F$43=Invulscherm!$AQ$8,Invulscherm!$F$44<>""),IF($A8>Invulscherm!$AB$24,0,IF($A8<Invulscherm!$AB$24,0,Invulscherm!$G$44*Invulscherm!$G$48*(VLOOKUP(Invulscherm!$F$44,Meststoffen!$A$3:$P$62,7,FALSE)))),"") ->  | GB8: =IF(AND(Invulscherm!$F$43=Invulscherm!$AQ$8,Invulscherm!$F$44<>""),IF(GA8>0,GA8,GB7+GH7),"") ->  | GC8: =IF(AND(Invulscherm!$F$43=Invulscherm!$AQ$8,Invulscherm!$F$44<>""),IF($C8>27,3.5,IF($C8<-0.999,0,IF(-1<$C8<9.001,0.09*($C8+1),0.88*2^(($C8-9)/9)))),"") ->  | GD8: =IF(AND(Invulscherm!$F$43=Invulscherm!$AQ$8,Invulscherm!$F$44<>""),IF(Invulscherm!$B$8=Invulscherm!$AJ$8,Standaardwaarden!$B$32,IF(Invulscherm!$B$8=Invulscherm!$AJ$9,Standaardwaarden!$B$33,IF(Invulscherm!$B$8=Invulscherm!$AJ$10,Standaardwaarden!$B$34,IF(Invulscherm!$B$8=Invulscherm!$AJ$11,Standaardwaarden!$B$35,IF(Invulscherm!$B$8=Invulscherm!$AJ$12,Standaardwaarden!$B$36,Standaardwaarden!$B$37))))),"") ->  | GE8: =IF(AND(Invulscherm!$F$43=Invulscherm!$AQ$8,Invulscherm!$F$44<>""),(1/(1+EXP(-1.5*(Invulscherm!$B$11-4)))),"") ->  | GF8: =IF(AND(Invulscherm!$F$43=Invulscherm!$AQ$8,Invulscherm!$F$44<>""),GC8*GD8*GE8,"") ->  | GG8: =IF(AND(Invulscherm!$F$43=Invulscherm!$AQ$8,Invulscherm!$F$44<>""),IF($A8>Invulscherm!$AB$24,GG7+GF8/52,IF($A8<Invulscherm!$AB$24,"",(VLOOKUP(Invulscherm!$F$44,Meststoffen!$A$3:$P$62,6,FALSE))+GF8/52)),"") ->  | GH8: =IF(AND(Invulscherm!$F$43=Invulscherm!$AQ$8,Invulscherm!$F$44<>""),IF($A8>Invulscherm!$AB$24,GB8*(-2.82)*GF8*(1/52)*(GG8^(-1.6)),0),0) -> 0 | GI8: =IF(AND(Invulscherm!$F$43=Invulscherm!$AQ$8,Invulscherm!$F$44<>""),IF($A8>Invulscherm!$AB$24,GI7+GJ7,IF($A8<Invulscherm!$AB$24,0,IF(Invulscherm!$D$28="Uitslag + 10%",1.1*(Invulscherm!$G$44*(Invulscherm!$G$46-Invulscherm!$G$47)),IF(Invulscherm!$D$28="Uitslag - 10%",0.9*(Invulscherm!$G$44*(Invulscherm!$G$46-Invulscherm!$G$47)),Invulscherm!$G$44*(Invulscherm!$G$46-Invulscherm!$G$47))))),0) -> 0 | GJ8: =IF((GI8)>0,((GH8*(1+Standaardwaarden!$B$29))/(GB8/GI8))-(((GH8*(1+Standaardwaarden!$B$29))-GH8)*(1/Standaardwaarden!$B$28)),0) -> 0 | GK8: 0 | GL8: =IF(AND(Invulscherm!$F$43=Invulscherm!$AQ$8,Invulscherm!$F$44<>""),IF($A8<Invulscherm!$AB$24,"",IF(Invulscherm!$D$28="Uitslag + 10%",1.1*(Invulscherm!$G$44*Invulscherm!$G$47),IF(Invulscherm!$D$28="Uitslag - 10%",0.9*(Invulscherm!$G$44*Invulscherm!$G$47),Invulscherm!$G$44*Invulscherm!$G$47))),Invulscherm!$G$44*0.98) -> 0 | GM8: =IF($A8<Invulscherm!$AB$24,0,IF(AND(Invulscherm!$AB$24<Invulscherm!$AB$13,$A8>Invulscherm!$AB$13),0,IF(AND(Invulscherm!$F$43=Invulscherm!$AQ$8,Invulscherm!$F$44<>""),IF(Invulscherm!$F$45=Invulscherm!$AS$8,GL8*Invulscherm!$AT$8,GL8*Invulscherm!$AT$9),Invulscherm!$G$44*0.98))) -> 0 | GN8: 0 | GO8: 0 | GP8: =IF(GN8>0,(Standaardwaarden!$B$30*(GN8-GO8-GP7)*((-$AV8-$CJ8-$CW8-$DJ8-$EC8-$EV8-$FO8-$GH8-$HA8)*(1+Standaardwaarden!$B$29))/10000),0) -> 0 | GQ8: 0 | GR8: =IF(GN8>0,IF($A8>Invulscherm!$AB$13,(GN8-GQ8),0),0) -> 0 | GT8: =IF(AND(Invulscherm!$J$43=Invulscherm!$AQ$8,Invulscherm!$J$44<>""),IF($A8>Invulscherm!$AB$25,0,IF($A8<Invulscherm!$AB$25,0,Invulscherm!$K$44*Invulscherm!$K$48*(VLOOKUP(Invulscherm!$J$44,Meststoffen!$A$3:$P$62,7,FALSE)))),"") ->  | GU8: =IF(AND(Invulscherm!$J$43=Invulscherm!$AQ$8,Invulscherm!$J$44<>""),IF(GT8>0,GT8,GU7+HA7),"") ->  | GV8: =IF(AND(Invulscherm!$J$43=Invulscherm!$AQ$8,Invulscherm!$J$44<>""),IF($C8>27,3.5,IF($C8<-0.999,0,IF(-1<$C8<9.001,0.09*($C8+1),0.88*2^(($C8-9)/9)))),"") ->  | GW8: =IF(AND(Invulscherm!$J$43=Invulscherm!$AQ$8,Invulscherm!$J$44<>""),IF(Invulscherm!$B$8=Invulscherm!$AJ$8,Standaardwaarden!$B$32,IF(Invulscherm!$B$8=Invulscherm!$AJ$9,Standaardwaarden!$B$33,IF(Invulscherm!$B$8=Invulscherm!$AJ$10,Standaardwaarden!$B$34,IF(Invulscherm!$B$8=Invulscherm!$AJ$11,Standaardwaarden!$B$35,IF(Invulscherm!$B$8=Invulscherm!$AJ$12,Standaardwaarden!$B$36,Standaardwaarden!$B$37))))),"") ->  | GX8: =IF(AND(Invulscherm!$J$43=Invulscherm!$AQ$8,Invulscherm!$J$44<>""),(1/(1+EXP(-1.5*(Invulscherm!$B$11-4)))),"") ->  | GY8: =IF(AND(Invulscherm!$J$43=Invulscherm!$AQ$8,Invulscherm!$J$44<>""),GV8*GW8*GX8,"") ->  | GZ8: =IF(AND(Invulscherm!$J$43=Invulscherm!$AQ$8,Invulscherm!$J$44<>""),IF($A8>Invulscherm!$AB$25,GZ7+GY8/52,IF($A8<Invulscherm!$AB$25,"",(VLOOKUP(Invulscherm!$J$44,Meststoffen!$A$3:$P$62,6,FALSE))+GY8/52)),"") ->  | HA8: =IF(AND(Invulscherm!$J$43=Invulscherm!$AQ$8,Invulscherm!$J$44<>""),IF($A8>Invulscherm!$AB$25,GU8*(-2.82)*GY8*(1/52)*(GZ8^(-1.6)),0),0) -> 0 | HB8: =IF(AND(Invulscherm!$J$43=Invulscherm!$AQ$8,Invulscherm!$J$44<>""),IF($A8>Invulscherm!$AB$25,HB7+HC7,IF($A8<Invulscherm!$AB$25,0,IF(Invulscherm!$D$28="Uitslag + 10%",1.1*(Invulscherm!$K$44*(Invulscherm!$K$46-Invulscherm!$K$47)),IF(Invulscherm!$D$28="Uitslag - 10%",0.9*(Invulscherm!$K$44*(Invulscherm!$K$46-Invulscherm!$K$47)),Invulscherm!$K$44*(Invulscherm!$K$46-Invulscherm!$K$47))))),0) -> 0 | HC8: =IF((HB8)>0,((HA8*(1+Standaardwaarden!$B$29))/(GU8/HB8))-(((HA8*(1+Standaardwaarden!$B$29))-HA8)*(1/Standaardwaarden!$B$28)),0) -> 0 | HD8: 0 | HE8: =IF(AND(Invulscherm!$J$43=Invulscherm!$AQ$8,Invulscherm!$J$44<>""),IF($A8<Invulscherm!$AB$25,"",IF(Invulscherm!$D$28="Uitslag + 10%",1.1*(Invulscherm!$K$44*Invulscherm!$K$47),IF(Invulscherm!$D$28="Uitslag - 10%",0.9*(Invulscherm!$K$44*Invulscherm!$K$47),Invulscherm!$K$44*Invulscherm!$K$47))),Invulscherm!$K$44*0.98) -> 0 | HF8: =IF($A8<Invulscherm!$AB$25,0,IF(AND(Invulscherm!$AB$25<Invulscherm!$AB$13,$A8>Invulscherm!$AB$13),0,IF(AND(Invulscherm!$J$43=Invulscherm!$AQ$8,Invulscherm!$J$44<>""),IF(Invulscherm!$J$45=Invulscherm!$AS$8,HE8*Invulscherm!$AT$8,HE8*Invulscherm!$AT$9),Invulscherm!$K$44*0.98))) -> 0 | HG8: 0 | HH8: 0 | HI8: =IF(HG8>0,(Standaardwaarden!$B$30*(HG8-HH8-HI7)*((-$AV8-$CJ8-$CW8-$DJ8-$EC8-$EV8-$FO8-$GH8-$HA8)*(1+Standaardwaarden!$B$29))/10000),0) -> 0 | HJ8: 0 | HK8: =IF(HG8>0,IF($A8>Invulscherm!$AB$13,(HG8-HJ8),0),0) -> 0
A9: -49 | C9: =IF(Invulscherm!$B$9="Noord Nederland",IF(Invulscherm!$B$4="koud jaar",Temperatuur!C6,IF(Invulscherm!$B$4="warm jaar",Temperatuur!B6,Temperatuur!A6)),IF(Invulscherm!$B$9="Midden Nederland",IF(Invulscherm!$B$4="koud jaar",Temperatuur!F6,IF(Invulscherm!$B$4="warm jaar",Temperatuur!E6,Temperatuur!D6)),IF(Invulscherm!$B$9="Zuid Nederland",IF(Invulscherm!$B$4="koud jaar",Temperatuur!I6,IF(Invulscherm!$B$4="warm jaar",Temperatuur!H6,Temperatuur!G6)),IF(Invulscherm!$B$4="koud jaar",Temperatuur!L6,IF(Invulscherm!$B$4="warm jaar",Temperatuur!K6,Temperatuur!J6))))) -> -6.571428571 | D9: =IF(Invulscherm!$B$15<>"",IF(Invulscherm!$AB$18+0.999<A9,D8,IF(Invulscherm!$AB$17>A9,(D10-1),IF((Invulscherm!$AB$17+0.999)<A9,(D8+1),0))),"") ->  | E9: =IF(Invulscherm!$B$15<>"",IF($D9<0,0,INDEX((Gewasopname!$B$12:$D$86,Gewasopname!$F$12:$H$86,Gewasopname!$J$12:$L$86,Gewasopname!$N$12:$P$86,Gewasopname!$R$12:$T$86,Gewasopname!$V$12:$X$86,Gewasopname!$Z$12:$AB$81,Gewasopname!$AD$12:$AF$81,Gewasopname!$AH$12:$AJ$71,Gewasopname!$AL$12:$AN$71,Gewasopname!$AP$12:$AR$81,Gewasopname!$AT$12:$AV$81,Gewasopname!$AX$12:$AZ$81,Gewasopname!$BB$12:$BD$81,Gewasopname!$BF$12:$BH$63,Gewasopname!$BJ$12:$BL$63,Gewasopname!$BN$12:$BP$63,Gewasopname!$BR$12:$BT$63,Gewasopname!$BV$12:$BX$63,Gewasopname!$BZ$12:$CB$63,Gewasopname!$CD$12:$CF$63,Gewasopname!$CH$12:$CJ$63,Gewasopname!$CL$12:$CN$63,Gewasopname!$CP$12:$CR$63,Gewasopname!$CT$12:$CV$63,Gewasopname!$CX$12:$CZ$63,Gewasopname!$DB$12:$DD$63,Gewasopname!$DF$12:$DH$63,Gewasopname!$DJ$12:$DL$63,Gewasopname!$DN$12:$DP$63),$D9+1,2,$E$3)),"") ->  | F9: =IF(Invulscherm!$B$15<>"",IF(Invulscherm!$B$15="Suikerbiet",E9,E9*(Invulscherm!$B$19/(HLOOKUP(Invulscherm!$B$15,Gewasopname!$B$2:$DP$63,4,FALSE)))),0) -> 0 | G9: =IF($A9<=Invulscherm!$AB$18,F9,"") -> 0 | H9: =IF(Invulscherm!$B$15<>"",IF($D9<0,0,INDEX((Gewasopname!$B$12:$D$86,Gewasopname!$F$12:$H$86,Gewasopname!$J$12:$L$86,Gewasopname!$N$12:$P$86,Gewasopname!$R$12:$T$86,Gewasopname!$V$12:$X$86,Gewasopname!$Z$12:$AB$81,Gewasopname!$AD$12:$AF$81,Gewasopname!$AH$12:$AJ$71,Gewasopname!$AL$12:$AN$71,Gewasopname!$AP$12:$AR$81,Gewasopname!$AT$12:$AV$81,Gewasopname!$AX$12:$AZ$81,Gewasopname!$BB$12:$BD$81,Gewasopname!$BF$12:$BH$63,Gewasopname!$BJ$12:$BL$63,Gewasopname!$BN$12:$BP$63,Gewasopname!$BR$12:$BT$63,Gewasopname!$BV$12:$BX$63,Gewasopname!$BZ$12:$CB$63,Gewasopname!$CD$12:$CF$63,Gewasopname!$CH$12:$CJ$63,Gewasopname!$CL$12:$CN$63,Gewasopname!$CP$12:$CR$63,Gewasopname!$CT$12:$CV$63,Gewasopname!$CX$12:$CZ$63,Gewasopname!$DB$12:$DD$63,Gewasopname!$DF$12:$DH$63,Gewasopname!$DJ$12:$DL$63,Gewasopname!$DN$12:$DP$63),$D9+1,3,$E$3)),"") ->  | I9: =IF($A9<=Invulscherm!$AB$18,H9,"") ->  | J9: =IF(Invulscherm!$B$15<>"",IF($D9<0,0,INDEX((Gewasopname!$B$12:$E$86,Gewasopname!$F$12:$I$86,Gewasopname!$J$12:$M$86,Gewasopname!$N$12:$Q$86,Gewasopname!$R$12:$U$86,Gewasopname!$V$12:$Y$86,Gewasopname!$Z$12:$AC$81,Gewasopname!$AD$12:$AG$81,Gewasopname!$AH$12:$AK$71,Gewasopname!$AL$12:$AO$71,Gewasopname!$AP$12:$AS$81,Gewasopname!$AT$12:$AW$81,Gewasopname!$AX$12:$BA$81,Gewasopname!$BB$12:$BE$81,Gewasopname!$BF$12:$BI$63,Gewasopname!$BJ$12:$BM$63,Gewasopname!$BN$12:$BQ$63,Gewasopname!$BR$12:$BU$63,Gewasopname!$BV$12:$BY$63,Gewasopname!$BZ$12:$CC$63,Gewasopname!$CD$12:$CG$63,Gewasopname!$CH$12:$CK$63,Gewasopname!$CL$12:$CO$63,Gewasopname!$CP$12:$CS$63,Gewasopname!$CT$12:$CW$63,Gewasopname!$CX$12:$DA$63,Gewasopname!$DB$12:$DE$63,Gewasopname!$DF$12:$DI$63,Gewasopname!$DJ$12:$DM$63,Gewasopname!$DN$12:$DQ$63),$D9+1,4,$E$3)),"") ->  | K9: =IF(Invulscherm!$B$15<>"",IF(Invulscherm!$B$15="Suikerbiet",J9,J9*(Invulscherm!$B$19/(HLOOKUP(Invulscherm!$B$15,Gewasopname!$B$2:$DP$63,4,FALSE)))),0) -> 0 | L9: =IF($A9<=Invulscherm!$AB$18,K9,"") -> 0 | M9: -58.60179773 | N9: =IF($A9<=Invulscherm!$AB$18,M9,"") -> -58.60179773 | O9: 0 | P9: =IF($A9<=Invulscherm!$AB$18,O9,"") -> 0 | Q9: 0 | R9: =IF($A9<=Invulscherm!$AB$18,Q9,"") -> 0 | S9: 0 | T9: =IF($A9<=Invulscherm!$AB$18,S9,"") -> 0 | U9: 0 | V9: =IF($A9<=Invulscherm!$AB$18,U9,"") -> 0 | W9: 0 | X9: =IF($A9<=Invulscherm!$AB$18,W9,"") -> 0 | Y9: 0 | Z9: =IF($A9<=Invulscherm!$AB$18,Y9,"") -> 0 | AA9: -58.60179773 | AB9: =IF(A9<=Invulscherm!$AB$18,"",AA9) ->  | AD9: =IF($A9>=Invulscherm!$AB$17,IF($A9<=Invulscherm!$AB$18,(G9+I9-$L9-$N9),""),0) -> 0 | AE9: =IF($A9>=Invulscherm!$AB$20,IF($A9<=Invulscherm!$AB$18,(AD9-P9),""),"") ->  | AF9: =IF($A9>=Invulscherm!$AB$20,IF($A9<=Invulscherm!$AB$18,($AE9-$R9),""),"") ->  | AG9: =IF($A9>=Invulscherm!$AB$20,IF($A9<=Invulscherm!$AB$18,($AF9-$T9),""),"") ->  | AH9: =IF($A9>=Invulscherm!$AB$20,IF($A9<=Invulscherm!$AB$18,($AG9-$V9),""),"") ->  | AI9: =IF($A9>=Invulscherm!$AB$20,IF($A9<=Invulscherm!$AB$18,($AH9-$X9),""),"") ->  | AJ9: =IF($A9>=Invulscherm!$AB$20,IF($A9<=Invulscherm!$AB$18,($AI9-$Z9),""),"") ->  | AK9: =IF($A9>Invulscherm!$AB$20,IF($A9<=Invulscherm!$AB$18,IF(AJ9<-10,"ja","nee"),""),"") ->  | AL9: =IF(AND(Invulscherm!$AB$20<>"",Invulscherm!$B$15<>""),IF($A9>=Invulscherm!$AB$20,IF($A9<=Invulscherm!$AB$18,IF(AJ9>5,"ja","nee"),""),""),"ja") -> ja | AN9: =IF(Invulscherm!$B$13="",IF($A9>Invulscherm!$U$13,0,IF($A9<Invulscherm!$U$13,0,Standaardwaarden!$B$21*Standaardwaarden!$B$20*(Invulscherm!$B$10/100)*Standaardwaarden!$B$23)),IF($A9>Invulscherm!$AB$13,0,IF($A9<Invulscherm!$AB$13,0,Standaardwaarden!$B$21*Standaardwaarden!$B$20*(Invulscherm!$B$10/100)*Standaardwaarden!$B$23))) -> 0 | AO9: 0 | AP9: 0 | AQ9: =(-0.322*LN(Invulscherm!$B$10)+1.2233)*(IF(Invulscherm!$B$8=Invulscherm!$AJ$8,Standaardwaarden!$B$32,IF(Invulscherm!$B$8=Invulscherm!$AJ$9,Standaardwaarden!$B$33,IF(Invulscherm!$B$8=Invulscherm!$AJ$10,Standaardwaarden!$B$34,IF(Invulscherm!$B$8=Invulscherm!$AJ$11,Standaardwaarden!$B$35,IF(Invulscherm!$B$8=Invulscherm!$AJ$12,Standaardwaarden!$B$36,Standaardwaarden!$B$37)))))) -> 0.8500906167 | AS9: =(1/(1+EXP(-1.5*(Invulscherm!$B$11-4)))) -> 0.9770226301 | AT9: 0 | AU9: =IF(Invulscherm!$B$13="",IF(($A9-1)>Invulscherm!$U$13,AU8+AT9/52,IF(($A9-1)<Invulscherm!$U$13,"",Standaardwaarden!$B$22+AT9/52)),IF(($A9-1)>Invulscherm!$AB$13,AU8+AT9/52,IF(($A9-1)<Invulscherm!$AB$13,"",Standaardwaarden!$B$22+AT9/52))) ->  | AV9: =IF(Invulscherm!$B$13="",IF(($A9-1)>Invulscherm!$U$13,AO9*(-2.82)*AT9*(1/52)*(AU9^(-1.6)),0),IF(($A9-1)>Invulscherm!$AB$13,AO9*(-2.82)*AT9*(1/52)*(AU9^(-1.6)),0)) -> 0 | AW9: =IF(Invulscherm!$B$13="",IF(($A9-1)>Invulscherm!$U$13,AW8+AX8,IF(($A9-1)<Invulscherm!$U$13,0,(Standaardwaarden!$B$20*Standaardwaarden!$B$21*(Invulscherm!$B$10/100)*Standaardwaarden!$B$23)/Standaardwaarden!$B$25)),IF(($A9-1)>Invulscherm!$AB$13,AW8+AX8,IF(($A9-1)<Invulscherm!$AB$13,0,(Standaardwaarden!$B$20*Standaardwaarden!$B$21*(Invulscherm!$B$10/100)*Standaardwaarden!$B$23)/Standaardwaarden!$B$25))) -> 0 | AX9: =IF(Invulscherm!$B$13="",IF(($A9-1)>Invulscherm!$U$13,((AV9*(1+Standaardwaarden!$B$29))/(AO9/AW9))-(((AV9*(1+Standaardwaarden!$B$29))-AV9)*(1/Standaardwaarden!$B$28)),0),IF(($A9-1)>Invulscherm!$AB$13,((AV9*(1+Standaardwaarden!$B$29))/(AO9/AW9))-(((AV9*(1+Standaardwaarden!$B$29))-AV9)*(1/Standaardwaarden!$B$28)),0)) -> 0 | AY9: 0 | AZ9: =IF(Invulscherm!$B$13="",IF(($A9-1)<Invulscherm!$U$13,0,Invulscherm!$T$12),IF(($A9-1)<Invulscherm!$AB$13,0,Invulscherm!$B$12)) -> 0 | BA9: 0 | BB9: 0 | BC9: 0 | BD9: =IF(BB9>0,(Standaardwaarden!$B$30*(BB9-BC9-BD8)*((-$AV9-$CJ9-$CW9-$DJ9-$EC9-$EV9-$FO9-$GH9-$HA9)*(1+Standaardwaarden!$B$29))/10000),0) -> 0 | BE9: 0 | BF9: 0 | BH9: 0 | BI9: 49657.20669 | BJ9: 0 | BK9: =(-0.322*LN(Invulscherm!$B$10)+1.2233)*(IF(Invulscherm!$B$8=Invulscherm!$AJ$8,Standaardwaarden!$B$32,IF(Invulscherm!$B$8=Invulscherm!$AJ$9,Standaardwaarden!$B$33,IF(Invulscherm!$B$8=Invulscherm!$AJ$10,Standaardwaarden!$B$34,IF(Invulscherm!$B$8=Invulscherm!$AJ$11,Standaardwaarden!$B$35,IF(Invulscherm!$B$8=Invulscherm!$AJ$12,Standaardwaarden!$B$36,Standaardwaarden!$B$37)))))) -> 0.8500906167 | BM9: =(1/(1+EXP(-1.5*(Invulscherm!$B$11-4)))) -> 0.9770226301 | BN9: 0 | BO9: 16.00790871 | BP9: 0 | BQ9: 4966.002982 | BR9: =((BP9*(1+Standaardwaarden!$B$29))/(BI9/BQ9))-(((BP9*(1+Standaardwaarden!$B$29))-BP9)*(1/Standaardwaarden!$B$28)) -> 0 | BS9: 1.028426469 | BT9: 0 | BU9: 1.028426469 | BV9: 1.028426469 | BW9: 0 | BX9: =IF(BV9>0,(Standaardwaarden!$B$30*(BV9-BW9-BX8)*((-$BP9-$CJ9-$CW9-$DJ9-$EC9-$EV9-$FO9-$GH9-$HA9)*(1+Standaardwaarden!$B$29))/10000),0) -> 0 | BY9: 0.001887199044 | BZ9: 1.02653927 | CA9: =IF(Invulscherm!$AB$13="",IF(A9<Invulscherm!$U$13,(BZ9+(Invulscherm!$T$12-(VLOOKUP(Invulscherm!$U$13,$A$6:$BZ$110,78,FALSE)))),IF(A9>Invulscherm!$U$13,BF9,Invulscherm!$T$12)),IF(A9<Invulscherm!$AB$13,(BZ9+(Invulscherm!$B$12-(VLOOKUP(Invulscherm!$AB$13,$A$6:$BZ$110,78,FALSE)))),IF(A9>Invulscherm!$AB$13,BF9,Invulscherm!$B$12))) -> -58.60179773 | CC9: =IF($A9>Invulscherm!$AB$15,0,IF($A9<Invulscherm!$AB$15,0,Invulscherm!$AB$29*Invulscherm!$AB$31)) -> 0 | CD9: 0 | CE9: 0 | CF9: =IF(Invulscherm!$B$8=Invulscherm!$AJ$8,Standaardwaarden!$B$32,IF(Invulscherm!$B$8=Invulscherm!$AJ$9,Standaardwaarden!$B$33,IF(Invulscherm!$B$8=Invulscherm!$AJ$10,Standaardwaarden!$B$34,IF(Invulscherm!$B$8=Invulscherm!$AJ$11,Standaardwaarden!$B$35,IF(Invulscherm!$B$8=Invulscherm!$AJ$12,Standaardwaarden!$B$36,Standaardwaarden!$B$37))))) -> 0.85 | CG9: =(1/(1+EXP(-1.5*(Invulscherm!$B$11-4)))) -> 0.9770226301 | CH9: 0 | CI9: =IF($A9>Invulscherm!$AB$15,CI8+CH9/52,IF($A9<Invulscherm!$AB$15,"",Invulscherm!$AB$32+CH9/52)) ->  | CJ9: =IF($A9>Invulscherm!$AB$15,CD9*(-2.82)*CH9*(1/52)*(CI9^(-1.6)),0) -> 0 | CK9: =IF($A9>Invulscherm!$AB$15,CK8+CL8,IF($A9<Invulscherm!$AB$15,0,Invulscherm!$AB$29*Invulscherm!$AB$30)) -> 0 | CL9: =IF(CK9>0,IF($A9>Invulscherm!$AB$15,((CJ9*(1+Standaardwaarden!$B$29))/(CD9/CK9))-(((CJ9*(1+Standaardwaarden!$B$29))-CJ9)*(1/Standaardwaarden!$B$28)),0),0) -> 0 | CM9: 0 | CN9: =IF(Invulscherm!$B$13="",IF(A9<Invulscherm!$U$13,0,(CM9-VLOOKUP(Invulscherm!$U$13,$A$4:$HK$110,91,FALSE))),IF(A9<Invulscherm!$AB$13,0,(CM9-VLOOKUP(Invulscherm!$AB$13,$A$4:$HK$110,91,FALSE)))) -> 0 | CP9: =IF($A9>Invulscherm!$AB$16,0,IF($A9<Invulscherm!$AB$16,0,Invulscherm!$AB$36)) -> 0 | CQ9: 0 | CR9: 0 | CS9: =IF(Invulscherm!$B$8=Invulscherm!$AJ$8,Standaardwaarden!$B$32,IF(Invulscherm!$B$8=Invulscherm!$AJ$9,Standaardwaarden!$B$33,IF(Invulscherm!$B$8=Invulscherm!$AJ$10,Standaardwaarden!$B$34,IF(Invulscherm!$B$8=Invulscherm!$AJ$11,Standaardwaarden!$B$35,IF(Invulscherm!$B$8=Invulscherm!$AJ$12,Standaardwaarden!$B$36,Standaardwaarden!$B$37))))) -> 0.85 | CT9: =(1/(1+EXP(-1.5*(Invulscherm!$B$11-4)))) -> 0.9770226301 | CU9: 0 | CV9: =IF($A9>Invulscherm!$AB$16,CV8+CU9/52,IF($A9<Invulscherm!$AB$16,"",Invulscherm!$AB$37+CU9/52)) ->  | CW9: =IF($A9>Invulscherm!$AB$16,CQ9*(-2.82)*CU9*(1/52)*(CV9^(-1.6)),0) -> 0 | CX9: =IF($A9>Invulscherm!$AB$16,CX8+CY8,IF($A9<Invulscherm!$AB$16,0,Invulscherm!$AB$35)) -> 0 | CY9: =IF(CX9>0,IF($A9>Invulscherm!$AB$16,((CW9*(1+Standaardwaarden!$B$29))/(CQ9/CX9))-(((CW9*(1+Standaardwaarden!$B$29))-CW9)*(1/Standaardwaarden!$B$28)),0),0) -> 0 | CZ9: 0 | DA9: =IF(Invulscherm!$B$13="",IF(A9<Invulscherm!$U$13,0,(CZ9-VLOOKUP(Invulscherm!$U$13,$A$4:$HK$110,104,FALSE))),IF(A9<Invulscherm!$AB$13,0,(CZ9-VLOOKUP(Invulscherm!$AB$13,$A$4:$HK$110,104,FALSE)))) -> 0 | DC9: =IF(AND(Invulscherm!$B$32=Invulscherm!$AQ$8,Invulscherm!$B$33<>""),IF($A9>Invulscherm!$AB$20,0,IF($A9<Invulscherm!$AB$20,0,Invulscherm!$C$33*Invulscherm!$C$37*(VLOOKUP(Invulscherm!$B$33,Meststoffen!$A$3:$P$62,7,FALSE)))),"") ->  | DD9: =IF(AND(Invulscherm!$B$32=Invulscherm!$AQ$8,Invulscherm!$B$33<>""),IF(DC9>0,DC9,DD8+DJ8),"") ->  | DE9: =IF(AND(Invulscherm!$B$32=Invulscherm!$AQ$8,Invulscherm!$B$33<>""),IF($C9>27,3.5,IF($C9<-0.999,0,IF(-1<$C9<9.001,0.09*($C9+1),0.88*2^(($C9-9)/9)))),"") ->  | DF9: =IF(AND(Invulscherm!$B$32=Invulscherm!$AQ$8,Invulscherm!$B$33<>""),IF(Invulscherm!$B$8=Invulscherm!$AJ$8,Standaardwaarden!$B$32,IF(Invulscherm!$B$8=Invulscherm!$AJ$9,Standaardwaarden!$B$33,IF(Invulscherm!$B$8=Invulscherm!$AJ$10,Standaardwaarden!$B$34,IF(Invulscherm!$B$8=Invulscherm!$AJ$11,Standaardwaarden!$B$35,IF(Invulscherm!$B$8=Invulscherm!$AJ$12,Standaardwaarden!$B$36,Standaardwaarden!$B$37))))),"") ->  | DG9: =IF(AND(Invulscherm!$B$32=Invulscherm!$AQ$8,Invulscherm!$B$33<>""),(1/(1+EXP(-1.5*(Invulscherm!$B$11-4)))),"") ->  | DH9: =IF(AND(Invulscherm!$B$32=Invulscherm!$AQ$8,Invulscherm!$B$33<>""),DE9*DF9*DG9,"") ->  | DI9: =IF(AND(Invulscherm!$B$32=Invulscherm!$AQ$8,Invulscherm!$B$33<>""),IF($A9>Invulscherm!$AB$20,DI8+DH9/52,IF($A9<Invulscherm!$AB$20,"",(VLOOKUP(Invulscherm!$B$33,Meststoffen!$A$3:$P$62,6,FALSE))+DH9/52)),"") ->  | DJ9: =IF(AND(Invulscherm!$B$32=Invulscherm!$AQ$8,Invulscherm!$B$33<>""),IF($A9>Invulscherm!$AB$20,DD9*(-2.82)*DH9*(1/52)*(DI9^(-1.6)),0),0) -> 0 | DK9: =IF(AND(Invulscherm!$B$32=Invulscherm!$AQ$8,Invulscherm!$B$33<>""),IF($A9>Invulscherm!$AB$20,DK8+DL8,IF($A9<Invulscherm!$AB$20,0,IF(Invulscherm!$D$28="Uitslag + 10%",1.1*(Invulscherm!$C$33*(Invulscherm!$C$35-Invulscherm!$C$36)),IF(Invulscherm!$D$28="Uitslag - 10%",0.9*(Invulscherm!$C$33*(Invulscherm!$C$35-Invulscherm!$C$36)),Invulscherm!$C$33*(Invulscherm!$C$35-Invulscherm!$C$36))))),0) -> 0 | DL9: =IF((DK9)>0,((DJ9*(1+Standaardwaarden!$B$29))/(DD9/DK9))-(((DJ9*(1+Standaardwaarden!$B$29))-DJ9)*(1/Standaardwaarden!$B$28)),0) -> 0 | DM9: 0 | DN9: =IF(AND(Invulscherm!$B$32=Invulscherm!$AQ$8,Invulscherm!$B$33<>""),IF($A9<Invulscherm!$AB$20,"",IF(Invulscherm!$D$28="Uitslag + 10%",1.1*(Invulscherm!$C$33*Invulscherm!$C$36),IF(Invulscherm!$D$28="Uitslag - 10%",0.9*(Invulscherm!$C$33*Invulscherm!$C$36),Invulscherm!$C$33*Invulscherm!$C$36))),IF($A9<Invulscherm!$AB$20,"",Invulscherm!$C$33*0.98)) ->  | DO9: =IF($A9<Invulscherm!$AB$20,0,IF(AND(Invulscherm!$AB$20<Invulscherm!$AB$13,$A9>Invulscherm!$AB$13),0,IF(AND(Invulscherm!$B$32=Invulscherm!$AQ$8,Invulscherm!$B$33<>""),IF(Invulscherm!$B$34=Invulscherm!$AS$8,DN9*Invulscherm!$AT$8,IF(Invulscherm!$B$34=Invulscherm!$AS$9,DN9*Invulscherm!$AT$9,DN9*Invulscherm!$AT$10)),Invulscherm!$C$33*0.98))) -> 0 | DP9: 0 | DQ9: 0 | DR9: =IF(DP9>0,(Standaardwaarden!$B$30*(DP9-DQ9-DR8)*((-$AV9-$CJ9-$CW9-$DJ9-$EC9-$EV9-$FO9-$GH9-$HA9)*(1+Standaardwaarden!$B$29))/10000),0) -> 0 | DS9: 0 | DT9: =IF(DP9>0,IF($A9>Invulscherm!$AB$13,(DP9-DS9),0),0) -> 0 | DV9: =IF(AND(Invulscherm!$F$32=Invulscherm!$AQ$8,Invulscherm!$F$33<>""),IF($A9>Invulscherm!$AB$21,0,IF($A9<Invulscherm!$AB$21,0,Invulscherm!$G$33*Invulscherm!$G$37*(VLOOKUP(Invulscherm!$F$33,Meststoffen!$A$3:$P$62,7,FALSE)))),"") ->  | DW9: =IF(AND(Invulscherm!$F$32=Invulscherm!$AQ$8,Invulscherm!$F$33<>""),IF(DV9>0,DV9,DW8+EC8),"") ->  | DX9: =IF(AND(Invulscherm!$F$32=Invulscherm!$AQ$8,Invulscherm!$F$33<>""),IF($C9>27,3.5,IF($C9<-0.999,0,IF(-1<$C9<9.001,0.09*($C9+1),0.88*2^(($C9-9)/9)))),"") ->  | DY9: =IF(AND(Invulscherm!$F$32=Invulscherm!$AQ$8,Invulscherm!$F$33<>""),IF(Invulscherm!$B$8=Invulscherm!$AJ$8,Standaardwaarden!$B$32,IF(Invulscherm!$B$8=Invulscherm!$AJ$9,Standaardwaarden!$B$33,IF(Invulscherm!$B$8=Invulscherm!$AJ$10,Standaardwaarden!$B$34,IF(Invulscherm!$B$8=Invulscherm!$AJ$11,Standaardwaarden!$B$35,IF(Invulscherm!$B$8=Invulscherm!$AJ$12,Standaardwaarden!$B$36,Standaardwaarden!$B$37))))),"") ->  | DZ9: =IF(AND(Invulscherm!$F$32=Invulscherm!$AQ$8,Invulscherm!$F$33<>""),(1/(1+EXP(-1.5*(Invulscherm!$B$11-4)))),"") ->  | EA9: =IF(AND(Invulscherm!$F$32=Invulscherm!$AQ$8,Invulscherm!$F$33<>""),DX9*DY9*DZ9,"") ->  | EB9: =IF(AND(Invulscherm!$F$32=Invulscherm!$AQ$8,Invulscherm!$F$33<>""),IF($A9>Invulscherm!$AB$21,EB8+EA9/52,IF($A9<Invulscherm!$AB$21,"",(VLOOKUP(Invulscherm!$F$33,Meststoffen!$A$3:$P$62,6,FALSE))+EA9/52)),"") ->  | EC9: =IF(AND(Invulscherm!$F$32=Invulscherm!$AQ$8,Invulscherm!$F$33<>""),IF($A9>Invulscherm!$AB$21,DW9*(-2.82)*EA9*(1/52)*(EB9^(-1.6)),0),0) -> 0 | ED9: =IF(AND(Invulscherm!$F$32=Invulscherm!$AQ$8,Invulscherm!$F$33<>""),IF($A9>Invulscherm!$AB$21,ED8+EE8,IF($A9<Invulscherm!$AB$21,0,IF(Invulscherm!$D$28="Uitslag + 10%",1.1*(Invulscherm!$G$33*(Invulscherm!$G$35-Invulscherm!$G$36)),IF(Invulscherm!$D$28="Uitslag - 10%",0.9*(Invulscherm!$G$33*(Invulscherm!$G$35-Invulscherm!$G$36)),Invulscherm!$G$33*(Invulscherm!$G$35-Invulscherm!$G$36))))),0) -> 0 | EE9: =IF((ED9)>0,((EC9*(1+Standaardwaarden!$B$29))/(DW9/ED9))-(((EC9*(1+Standaardwaarden!$B$29))-EC9)*(1/Standaardwaarden!$B$28)),0) -> 0 | EF9: 0 | EG9: =IF(AND(Invulscherm!$F$32=Invulscherm!$AQ$8,Invulscherm!$F$33<>""),IF($A9<Invulscherm!$AB$21,"",IF(Invulscherm!$D$28="Uitslag + 10%",1.1*(Invulscherm!$G$33*Invulscherm!$G$36),IF(Invulscherm!$D$28="Uitslag - 10%",0.9*(Invulscherm!$G$33*Invulscherm!$G$36),Invulscherm!$G$33*Invulscherm!$G$36))),Invulscherm!$G$33*0.98) -> 0 | EH9: =IF($A9<Invulscherm!$AB$21,0,IF(AND(Invulscherm!$AB$21<Invulscherm!$AB$13,$A9>Invulscherm!$AB$13),0,IF(AND(Invulscherm!$F$32=Invulscherm!$AQ$8,Invulscherm!$F$33<>""),IF(Invulscherm!$F$34=Invulscherm!$AS$8,EG9*Invulscherm!$AT$8,EG9*Invulscherm!$AT$9),Invulscherm!$G$33*0.98))) -> 0 | EI9: 0 | EJ9: 0 | EK9: =IF(EI9>0,(Standaardwaarden!$B$30*(EI9-EJ9-EK8)*((-$AV9-$CJ9-$CW9-$DJ9-$EC9-$EV9-$FO9-$GH9-$HA9)*(1+Standaardwaarden!$B$29))/10000),0) -> 0 | EL9: 0 | EM9: =IF(EI9>0,IF($A9>Invulscherm!$AB$13,(EI9-EL9),0),0) -> 0 | EO9: =IF(AND(Invulscherm!$J$32=Invulscherm!$AQ$8,Invulscherm!$J$33<>""),IF($A9>Invulscherm!$AB$22,0,IF($A9<Invulscherm!$AB$22,0,Invulscherm!$K$33*Invulscherm!$K$37*(VLOOKUP(Invulscherm!$J$33,Meststoffen!$A$3:$P$62,7,FALSE)))),"") ->  | EP9: =IF(AND(Invulscherm!$J$32=Invulscherm!$AQ$8,Invulscherm!$J$33<>""),IF(EO9>0,EO9,EP8+EV8),"") ->  | EQ9: =IF(AND(Invulscherm!$J$32=Invulscherm!$AQ$8,Invulscherm!$J$33<>""),IF($C9>27,3.5,IF($C9<-0.999,0,IF(-1<$C9<9.001,0.09*($C9+1),0.88*2^(($C9-9)/9)))),"") ->  | ER9: =IF(AND(Invulscherm!$J$32=Invulscherm!$AQ$8,Invulscherm!$J$33<>""),IF(Invulscherm!$B$8=Invulscherm!$AJ$8,Standaardwaarden!$B$32,IF(Invulscherm!$B$8=Invulscherm!$AJ$9,Standaardwaarden!$B$33,IF(Invulscherm!$B$8=Invulscherm!$AJ$10,Standaardwaarden!$B$34,IF(Invulscherm!$B$8=Invulscherm!$AJ$11,Standaardwaarden!$B$35,IF(Invulscherm!$B$8=Invulscherm!$AJ$12,Standaardwaarden!$B$36,Standaardwaarden!$B$37))))),"") ->  | ES9: =IF(AND(Invulscherm!$J$32=Invulscherm!$AQ$8,Invulscherm!$J$33<>""),(1/(1+EXP(-1.5*(Invulscherm!$B$11-4)))),"") ->  | ET9: =IF(AND(Invulscherm!$J$32=Invulscherm!$AQ$8,Invulscherm!$J$33<>""),EQ9*ER9*ES9,"") ->  | EU9: =IF(AND(Invulscherm!$J$32=Invulscherm!$AQ$8,Invulscherm!$J$33<>""),IF($A9>Invulscherm!$AB$22,EU8+ET9/52,IF($A9<Invulscherm!$AB$22,"",(VLOOKUP(Invulscherm!$J$33,Meststoffen!$A$3:$P$62,6,FALSE))+ET9/52)),"") ->  | EV9: =IF(AND(Invulscherm!$J$32=Invulscherm!$AQ$8,Invulscherm!$J$33<>""),IF($A9>Invulscherm!$AB$22,EP9*(-2.82)*ET9*(1/52)*(EU9^(-1.6)),0),0) -> 0 | EW9: =IF(AND(Invulscherm!$J$32=Invulscherm!$AQ$8,Invulscherm!$J$33<>""),IF($A9>Invulscherm!$AB$22,EW8+EX8,IF($A9<Invulscherm!$AB$22,0,IF(Invulscherm!$D$28="Uitslag + 10%",1.1*(Invulscherm!$K$33*(Invulscherm!$K$35-Invulscherm!$K$36)),IF(Invulscherm!$D$28="Uitslag - 10%",0.9*(Invulscherm!$K$33*(Invulscherm!$K$35-Invulscherm!$K$36)),Invulscherm!$K$33*(Invulscherm!$K$35-Invulscherm!$K$36))))),0) -> 0 | EX9: =IF((EW9)>0,((EV9*(1+Standaardwaarden!$B$29))/(EP9/EW9))-(((EV9*(1+Standaardwaarden!$B$29))-EV9)*(1/Standaardwaarden!$B$28)),0) -> 0 | EY9: 0 | EZ9: =IF(AND(Invulscherm!$J$32=Invulscherm!$AQ$8,Invulscherm!$J$33<>""),IF($A9<Invulscherm!$AB$22,"",IF(Invulscherm!$D$28="Uitslag + 10%",1.1*(Invulscherm!$K$33*Invulscherm!$K$36),IF(Invulscherm!$D$28="Uitslag - 10%",0.9*(Invulscherm!$K$33*Invulscherm!$K$36),Invulscherm!$K$33*Invulscherm!$K$36))),Invulscherm!$K$33*0.98) -> 0 | FA9: =IF($A9<Invulscherm!$AB$22,0,IF(AND(Invulscherm!$AB$22<Invulscherm!$AB$13,$A9>Invulscherm!$AB$13),0,IF(AND(Invulscherm!$J$32=Invulscherm!$AQ$8,Invulscherm!$J$33<>""),IF(Invulscherm!$J$34=Invulscherm!$AS$8,EZ9*Invulscherm!$AT$8,EZ9*Invulscherm!$AT$9),Invulscherm!$K$33*0.98))) -> 0 | FB9: 0 | FC9: 0 | FD9: =IF(FB9>0,(Standaardwaarden!$B$30*(FB9-FC9-FD8)*((-$AV9-$CJ9-$CW9-$DJ9-$EC9-$EV9-$FO9-$GH9-$HA9)*(1+Standaardwaarden!$B$29))/10000),0) -> 0 | FE9: 0 | FF9: =IF(FB9>0,IF($A9>Invulscherm!$AB$13,(FB9-FE9),0),0) -> 0 | FH9: =IF(AND(Invulscherm!$B$43=Invulscherm!$AQ$8,Invulscherm!$B$44<>""),IF($A9>Invulscherm!$AB$23,0,IF($A9<Invulscherm!$AB$23,0,Invulscherm!$C$44*Invulscherm!$C$48*(VLOOKUP(Invulscherm!$B$44,Meststoffen!$A$3:$P$62,7,FALSE)))),"") ->  | FI9: =IF(AND(Invulscherm!$B$43=Invulscherm!$AQ$8,Invulscherm!$B$44<>""),IF(FH9>0,FH9,FI8+FO8),"") ->  | FJ9: =IF(AND(Invulscherm!$B$43=Invulscherm!$AQ$8,Invulscherm!$B$44<>""),IF($C9>27,3.5,IF($C9<-0.999,0,IF(-1<$C9<9.001,0.09*($C9+1),0.88*2^(($C9-9)/9)))),"") ->  | FK9: =IF(AND(Invulscherm!$B$43=Invulscherm!$AQ$8,Invulscherm!$B$44<>""),IF(Invulscherm!$B$8=Invulscherm!$AJ$8,Standaardwaarden!$B$32,IF(Invulscherm!$B$8=Invulscherm!$AJ$9,Standaardwaarden!$B$33,IF(Invulscherm!$B$8=Invulscherm!$AJ$10,Standaardwaarden!$B$34,IF(Invulscherm!$B$8=Invulscherm!$AJ$11,Standaardwaarden!$B$35,IF(Invulscherm!$B$8=Invulscherm!$AJ$12,Standaardwaarden!$B$36,Standaardwaarden!$B$37))))),"") ->  | FL9: =IF(AND(Invulscherm!$B$43=Invulscherm!$AQ$8,Invulscherm!$B$44<>""),(1/(1+EXP(-1.5*(Invulscherm!$B$11-4)))),"") ->  | FM9: =IF(AND(Invulscherm!$B$43=Invulscherm!$AQ$8,Invulscherm!$B$44<>""),FJ9*FK9*FL9,"") ->  | FN9: =IF(AND(Invulscherm!$B$43=Invulscherm!$AQ$8,Invulscherm!$B$44<>""),IF($A9>Invulscherm!$AB$23,FN8+FM9/52,IF($A9<Invulscherm!$AB$23,"",(VLOOKUP(Invulscherm!$B$44,Meststoffen!$A$3:$P$62,6,FALSE))+FM9/52)),"") ->  | FO9: =IF(AND(Invulscherm!$B$43=Invulscherm!$AQ$8,Invulscherm!$B$44<>""),IF($A9>Invulscherm!$AB$23,FI9*(-2.82)*FM9*(1/52)*(FN9^(-1.6)),0),0) -> 0 | FP9: =IF(AND(Invulscherm!$B$43=Invulscherm!$AQ$8,Invulscherm!$B$44<>""),IF($A9>Invulscherm!$AB$23,FP8+FQ8,IF($A9<Invulscherm!$AB$23,0,IF(Invulscherm!$D$28="Uitslag + 10%",1.1*(Invulscherm!$C$44*(Invulscherm!$C$46-Invulscherm!$C$47)),IF(Invulscherm!$D$28="Uitslag - 10%",0.9*(Invulscherm!$C$44*(Invulscherm!$C$46-Invulscherm!$C$47)),Invulscherm!$C$44*(Invulscherm!$C$46-Invulscherm!$C$47))))),0) -> 0 | FQ9: =IF((FP9)>0,((FO9*(1+Standaardwaarden!$B$29))/(FI9/FP9))-(((FO9*(1+Standaardwaarden!$B$29))-FO9)*(1/Standaardwaarden!$B$28)),0) -> 0 | FR9: 0 | FS9: =IF(AND(Invulscherm!$B$43=Invulscherm!$AQ$8,Invulscherm!$B$44<>""),IF($A9<Invulscherm!$AB$23,"",IF(Invulscherm!$D$28="Uitslag + 10%",1.1*(Invulscherm!$C$44*Invulscherm!$C$47),IF(Invulscherm!$D$28="Uitslag - 10%",0.9*(Invulscherm!$C$44*Invulscherm!$C$47),Invulscherm!$C$44*Invulscherm!$C$47))),Invulscherm!$C$44*0.98) -> 0 | FT9: =IF($A9<Invulscherm!$AB$23,0,IF(AND(Invulscherm!$AB$23<Invulscherm!$AB$13,$A9>Invulscherm!$AB$13),0,IF(AND(Invulscherm!$B$43=Invulscherm!$AQ$8,Invulscherm!$B$44<>""),IF(Invulscherm!$B$45=Invulscherm!$AS$8,FS9*Invulscherm!$AT$8,FS9*Invulscherm!$AT$9),Invulscherm!$C$44*0.98))) -> 0 | FU9: 0 | FV9: 0 | FW9: =IF(FU9>0,(Standaardwaarden!$B$30*(FU9-FV9-FW8)*((-$AV9-$CJ9-$CW9-$DJ9-$EC9-$EV9-$FO9-$GH9-$HA9)*(1+Standaardwaarden!$B$29))/10000),0) -> 0 | FX9: 0 | FY9: =IF(FU9>0,IF($A9>Invulscherm!$AB$13,(FU9-FX9),0),0) -> 0 | GA9: =IF(AND(Invulscherm!$F$43=Invulscherm!$AQ$8,Invulscherm!$F$44<>""),IF($A9>Invulscherm!$AB$24,0,IF($A9<Invulscherm!$AB$24,0,Invulscherm!$G$44*Invulscherm!$G$48*(VLOOKUP(Invulscherm!$F$44,Meststoffen!$A$3:$P$62,7,FALSE)))),"") ->  | GB9: =IF(AND(Invulscherm!$F$43=Invulscherm!$AQ$8,Invulscherm!$F$44<>""),IF(GA9>0,GA9,GB8+GH8),"") ->  | GC9: =IF(AND(Invulscherm!$F$43=Invulscherm!$AQ$8,Invulscherm!$F$44<>""),IF($C9>27,3.5,IF($C9<-0.999,0,IF(-1<$C9<9.001,0.09*($C9+1),0.88*2^(($C9-9)/9)))),"") ->  | GD9: =IF(AND(Invulscherm!$F$43=Invulscherm!$AQ$8,Invulscherm!$F$44<>""),IF(Invulscherm!$B$8=Invulscherm!$AJ$8,Standaardwaarden!$B$32,IF(Invulscherm!$B$8=Invulscherm!$AJ$9,Standaardwaarden!$B$33,IF(Invulscherm!$B$8=Invulscherm!$AJ$10,Standaardwaarden!$B$34,IF(Invulscherm!$B$8=Invulscherm!$AJ$11,Standaardwaarden!$B$35,IF(Invulscherm!$B$8=Invulscherm!$AJ$12,Standaardwaarden!$B$36,Standaardwaarden!$B$37))))),"") ->  | GE9: =IF(AND(Invulscherm!$F$43=Invulscherm!$AQ$8,Invulscherm!$F$44<>""),(1/(1+EXP(-1.5*(Invulscherm!$B$11-4)))),"") ->  | GF9: =IF(AND(Invulscherm!$F$43=Invulscherm!$AQ$8,Invulscherm!$F$44<>""),GC9*GD9*GE9,"") ->  | GG9: =IF(AND(Invulscherm!$F$43=Invulscherm!$AQ$8,Invulscherm!$F$44<>""),IF($A9>Invulscherm!$AB$24,GG8+GF9/52,IF($A9<Invulscherm!$AB$24,"",(VLOOKUP(Invulscherm!$F$44,Meststoffen!$A$3:$P$62,6,FALSE))+GF9/52)),"") ->  | GH9: =IF(AND(Invulscherm!$F$43=Invulscherm!$AQ$8,Invulscherm!$F$44<>""),IF($A9>Invulscherm!$AB$24,GB9*(-2.82)*GF9*(1/52)*(GG9^(-1.6)),0),0) -> 0 | GI9: =IF(AND(Invulscherm!$F$43=Invulscherm!$AQ$8,Invulscherm!$F$44<>""),IF($A9>Invulscherm!$AB$24,GI8+GJ8,IF($A9<Invulscherm!$AB$24,0,IF(Invulscherm!$D$28="Uitslag + 10%",1.1*(Invulscherm!$G$44*(Invulscherm!$G$46-Invulscherm!$G$47)),IF(Invulscherm!$D$28="Uitslag - 10%",0.9*(Invulscherm!$G$44*(Invulscherm!$G$46-Invulscherm!$G$47)),Invulscherm!$G$44*(Invulscherm!$G$46-Invulscherm!$G$47))))),0) -> 0 | GJ9: =IF((GI9)>0,((GH9*(1+Standaardwaarden!$B$29))/(GB9/GI9))-(((GH9*(1+Standaardwaarden!$B$29))-GH9)*(1/Standaardwaarden!$B$28)),0) -> 0 | GK9: 0 | GL9: =IF(AND(Invulscherm!$F$43=Invulscherm!$AQ$8,Invulscherm!$F$44<>""),IF($A9<Invulscherm!$AB$24,"",IF(Invulscherm!$D$28="Uitslag + 10%",1.1*(Invulscherm!$G$44*Invulscherm!$G$47),IF(Invulscherm!$D$28="Uitslag - 10%",0.9*(Invulscherm!$G$44*Invulscherm!$G$47),Invulscherm!$G$44*Invulscherm!$G$47))),Invulscherm!$G$44*0.98) -> 0 | GM9: =IF($A9<Invulscherm!$AB$24,0,IF(AND(Invulscherm!$AB$24<Invulscherm!$AB$13,$A9>Invulscherm!$AB$13),0,IF(AND(Invulscherm!$F$43=Invulscherm!$AQ$8,Invulscherm!$F$44<>""),IF(Invulscherm!$F$45=Invulscherm!$AS$8,GL9*Invulscherm!$AT$8,GL9*Invulscherm!$AT$9),Invulscherm!$G$44*0.98))) -> 0 | GN9: 0 | GO9: 0 | GP9: =IF(GN9>0,(Standaardwaarden!$B$30*(GN9-GO9-GP8)*((-$AV9-$CJ9-$CW9-$DJ9-$EC9-$EV9-$FO9-$GH9-$HA9)*(1+Standaardwaarden!$B$29))/10000),0) -> 0 | GQ9: 0 | GR9: =IF(GN9>0,IF($A9>Invulscherm!$AB$13,(GN9-GQ9),0),0) -> 0 | GT9: =IF(AND(Invulscherm!$J$43=Invulscherm!$AQ$8,Invulscherm!$J$44<>""),IF($A9>Invulscherm!$AB$25,0,IF($A9<Invulscherm!$AB$25,0,Invulscherm!$K$44*Invulscherm!$K$48*(VLOOKUP(Invulscherm!$J$44,Meststoffen!$A$3:$P$62,7,FALSE)))),"") ->  | GU9: =IF(AND(Invulscherm!$J$43=Invulscherm!$AQ$8,Invulscherm!$J$44<>""),IF(GT9>0,GT9,GU8+HA8),"") ->  | GV9: =IF(AND(Invulscherm!$J$43=Invulscherm!$AQ$8,Invulscherm!$J$44<>""),IF($C9>27,3.5,IF($C9<-0.999,0,IF(-1<$C9<9.001,0.09*($C9+1),0.88*2^(($C9-9)/9)))),"") ->  | GW9: =IF(AND(Invulscherm!$J$43=Invulscherm!$AQ$8,Invulscherm!$J$44<>""),IF(Invulscherm!$B$8=Invulscherm!$AJ$8,Standaardwaarden!$B$32,IF(Invulscherm!$B$8=Invulscherm!$AJ$9,Standaardwaarden!$B$33,IF(Invulscherm!$B$8=Invulscherm!$AJ$10,Standaardwaarden!$B$34,IF(Invulscherm!$B$8=Invulscherm!$AJ$11,Standaardwaarden!$B$35,IF(Invulscherm!$B$8=Invulscherm!$AJ$12,Standaardwaarden!$B$36,Standaardwaarden!$B$37))))),"") ->  | GX9: =IF(AND(Invulscherm!$J$43=Invulscherm!$AQ$8,Invulscherm!$J$44<>""),(1/(1+EXP(-1.5*(Invulscherm!$B$11-4)))),"") ->  | GY9: =IF(AND(Invulscherm!$J$43=Invulscherm!$AQ$8,Invulscherm!$J$44<>""),GV9*GW9*GX9,"") ->  | GZ9: =IF(AND(Invulscherm!$J$43=Invulscherm!$AQ$8,Invulscherm!$J$44<>""),IF($A9>Invulscherm!$AB$25,GZ8+GY9/52,IF($A9<Invulscherm!$AB$25,"",(VLOOKUP(Invulscherm!$J$44,Meststoffen!$A$3:$P$62,6,FALSE))+GY9/52)),"") ->  | HA9: =IF(AND(Invulscherm!$J$43=Invulscherm!$AQ$8,Invulscherm!$J$44<>""),IF($A9>Invulscherm!$AB$25,GU9*(-2.82)*GY9*(1/52)*(GZ9^(-1.6)),0),0) -> 0 | HB9: =IF(AND(Invulscherm!$J$43=Invulscherm!$AQ$8,Invulscherm!$J$44<>""),IF($A9>Invulscherm!$AB$25,HB8+HC8,IF($A9<Invulscherm!$AB$25,0,IF(Invulscherm!$D$28="Uitslag + 10%",1.1*(Invulscherm!$K$44*(Invulscherm!$K$46-Invulscherm!$K$47)),IF(Invulscherm!$D$28="Uitslag - 10%",0.9*(Invulscherm!$K$44*(Invulscherm!$K$46-Invulscherm!$K$47)),Invulscherm!$K$44*(Invulscherm!$K$46-Invulscherm!$K$47))))),0) -> 0 | HC9: =IF((HB9)>0,((HA9*(1+Standaardwaarden!$B$29))/(GU9/HB9))-(((HA9*(1+Standaardwaarden!$B$29))-HA9)*(1/Standaardwaarden!$B$28)),0) -> 0 | HD9: 0 | HE9: =IF(AND(Invulscherm!$J$43=Invulscherm!$AQ$8,Invulscherm!$J$44<>""),IF($A9<Invulscherm!$AB$25,"",IF(Invulscherm!$D$28="Uitslag + 10%",1.1*(Invulscherm!$K$44*Invulscherm!$K$47),IF(Invulscherm!$D$28="Uitslag - 10%",0.9*(Invulscherm!$K$44*Invulscherm!$K$47),Invulscherm!$K$44*Invulscherm!$K$47))),Invulscherm!$K$44*0.98) -> 0 | HF9: =IF($A9<Invulscherm!$AB$25,0,IF(AND(Invulscherm!$AB$25<Invulscherm!$AB$13,$A9>Invulscherm!$AB$13),0,IF(AND(Invulscherm!$J$43=Invulscherm!$AQ$8,Invulscherm!$J$44<>""),IF(Invulscherm!$J$45=Invulscherm!$AS$8,HE9*Invulscherm!$AT$8,HE9*Invulscherm!$AT$9),Invulscherm!$K$44*0.98))) -> 0 | HG9: 0 | HH9: 0 | HI9: =IF(HG9>0,(Standaardwaarden!$B$30*(HG9-HH9-HI8)*((-$AV9-$CJ9-$CW9-$DJ9-$EC9-$EV9-$FO9-$GH9-$HA9)*(1+Standaardwaarden!$B$29))/10000),0) -> 0 | HJ9: 0 | HK9: =IF(HG9>0,IF($A9>Invulscherm!$AB$13,(HG9-HJ9),0),0) -> 0
A10: -48 | C10: =IF(Invulscherm!$B$9="Noord Nederland",IF(Invulscherm!$B$4="koud jaar",Temperatuur!C7,IF(Invulscherm!$B$4="warm jaar",Temperatuur!B7,Temperatuur!A7)),IF(Invulscherm!$B$9="Midden Nederland",IF(Invulscherm!$B$4="koud jaar",Temperatuur!F7,IF(Invulscherm!$B$4="warm jaar",Temperatuur!E7,Temperatuur!D7)),IF(Invulscherm!$B$9="Zuid Nederland",IF(Invulscherm!$B$4="koud jaar",Temperatuur!I7,IF(Invulscherm!$B$4="warm jaar",Temperatuur!H7,Temperatuur!G7)),IF(Invulscherm!$B$4="koud jaar",Temperatuur!L7,IF(Invulscherm!$B$4="warm jaar",Temperatuur!K7,Temperatuur!J7))))) -> 1.461904762 | D10: =IF(Invulscherm!$B$15<>"",IF(Invulscherm!$AB$18+0.999<A10,D9,IF(Invulscherm!$AB$17>A10,(D11-1),IF((Invulscherm!$AB$17+0.999)<A10,(D9+1),0))),"") ->  | E10: =IF(Invulscherm!$B$15<>"",IF($D10<0,0,INDEX((Gewasopname!$B$12:$D$86,Gewasopname!$F$12:$H$86,Gewasopname!$J$12:$L$86,Gewasopname!$N$12:$P$86,Gewasopname!$R$12:$T$86,Gewasopname!$V$12:$X$86,Gewasopname!$Z$12:$AB$81,Gewasopname!$AD$12:$AF$81,Gewasopname!$AH$12:$AJ$71,Gewasopname!$AL$12:$AN$71,Gewasopname!$AP$12:$AR$81,Gewasopname!$AT$12:$AV$81,Gewasopname!$AX$12:$AZ$81,Gewasopname!$BB$12:$BD$81,Gewasopname!$BF$12:$BH$63,Gewasopname!$BJ$12:$BL$63,Gewasopname!$BN$12:$BP$63,Gewasopname!$BR$12:$BT$63,Gewasopname!$BV$12:$BX$63,Gewasopname!$BZ$12:$CB$63,Gewasopname!$CD$12:$CF$63,Gewasopname!$CH$12:$CJ$63,Gewasopname!$CL$12:$CN$63,Gewasopname!$CP$12:$CR$63,Gewasopname!$CT$12:$CV$63,Gewasopname!$CX$12:$CZ$63,Gewasopname!$DB$12:$DD$63,Gewasopname!$DF$12:$DH$63,Gewasopname!$DJ$12:$DL$63,Gewasopname!$DN$12:$DP$63),$D10+1,2,$E$3)),"") ->  | F10: =IF(Invulscherm!$B$15<>"",IF(Invulscherm!$B$15="Suikerbiet",E10,E10*(Invulscherm!$B$19/(HLOOKUP(Invulscherm!$B$15,Gewasopname!$B$2:$DP$63,4,FALSE)))),0) -> 0 | G10: =IF($A10<=Invulscherm!$AB$18,F10,"") -> 0 | H10: =IF(Invulscherm!$B$15<>"",IF($D10<0,0,INDEX((Gewasopname!$B$12:$D$86,Gewasopname!$F$12:$H$86,Gewasopname!$J$12:$L$86,Gewasopname!$N$12:$P$86,Gewasopname!$R$12:$T$86,Gewasopname!$V$12:$X$86,Gewasopname!$Z$12:$AB$81,Gewasopname!$AD$12:$AF$81,Gewasopname!$AH$12:$AJ$71,Gewasopname!$AL$12:$AN$71,Gewasopname!$AP$12:$AR$81,Gewasopname!$AT$12:$AV$81,Gewasopname!$AX$12:$AZ$81,Gewasopname!$BB$12:$BD$81,Gewasopname!$BF$12:$BH$63,Gewasopname!$BJ$12:$BL$63,Gewasopname!$BN$12:$BP$63,Gewasopname!$BR$12:$BT$63,Gewasopname!$BV$12:$BX$63,Gewasopname!$BZ$12:$CB$63,Gewasopname!$CD$12:$CF$63,Gewasopname!$CH$12:$CJ$63,Gewasopname!$CL$12:$CN$63,Gewasopname!$CP$12:$CR$63,Gewasopname!$CT$12:$CV$63,Gewasopname!$CX$12:$CZ$63,Gewasopname!$DB$12:$DD$63,Gewasopname!$DF$12:$DH$63,Gewasopname!$DJ$12:$DL$63,Gewasopname!$DN$12:$DP$63),$D10+1,3,$E$3)),"") ->  | I10: =IF($A10<=Invulscherm!$AB$18,H10,"") ->  | J10: =IF(Invulscherm!$B$15<>"",IF($D10<0,0,INDEX((Gewasopname!$B$12:$E$86,Gewasopname!$F$12:$I$86,Gewasopname!$J$12:$M$86,Gewasopname!$N$12:$Q$86,Gewasopname!$R$12:$U$86,Gewasopname!$V$12:$Y$86,Gewasopname!$Z$12:$AC$81,Gewasopname!$AD$12:$AG$81,Gewasopname!$AH$12:$AK$71,Gewasopname!$AL$12:$AO$71,Gewasopname!$AP$12:$AS$81,Gewasopname!$AT$12:$AW$81,Gewasopname!$AX$12:$BA$81,Gewasopname!$BB$12:$BE$81,Gewasopname!$BF$12:$BI$63,Gewasopname!$BJ$12:$BM$63,Gewasopname!$BN$12:$BQ$63,Gewasopname!$BR$12:$BU$63,Gewasopname!$BV$12:$BY$63,Gewasopname!$BZ$12:$CC$63,Gewasopname!$CD$12:$CG$63,Gewasopname!$CH$12:$CK$63,Gewasopname!$CL$12:$CO$63,Gewasopname!$CP$12:$CS$63,Gewasopname!$CT$12:$CW$63,Gewasopname!$CX$12:$DA$63,Gewasopname!$DB$12:$DE$63,Gewasopname!$DF$12:$DI$63,Gewasopname!$DJ$12:$DM$63,Gewasopname!$DN$12:$DQ$63),$D10+1,4,$E$3)),"") ->  | K10: =IF(Invulscherm!$B$15<>"",IF(Invulscherm!$B$15="Suikerbiet",J10,J10*(Invulscherm!$B$19/(HLOOKUP(Invulscherm!$B$15,Gewasopname!$B$2:$DP$63,4,FALSE)))),0) -> 0 | L10: =IF($A10<=Invulscherm!$AB$18,K10,"") -> 0 | M10: -57.58372056 | N10: =IF($A10<=Invulscherm!$AB$18,M10,"") -> -57.58372056 | O10: 0 | P10: =IF($A10<=Invulscherm!$AB$18,O10,"") -> 0 | Q10: 0 | R10: =IF($A10<=Invulscherm!$AB$18,Q10,"") -> 0 | S10: 0 | T10: =IF($A10<=Invulscherm!$AB$18,S10,"") -> 0 | U10: 0 | V10: =IF($A10<=Invulscherm!$AB$18,U10,"") -> 0 | W10: 0 | X10: =IF($A10<=Invulscherm!$AB$18,W10,"") -> 0 | Y10: 0 | Z10: =IF($A10<=Invulscherm!$AB$18,Y10,"") -> 0 | AA10: -57.58372056 | AB10: =IF(A10<=Invulscherm!$AB$18,"",AA10) ->  | AD10: =IF($A10>=Invulscherm!$AB$17,IF($A10<=Invulscherm!$AB$18,(G10+I10-$L10-$N10),""),0) -> 0 | AE10: =IF($A10>=Invulscherm!$AB$20,IF($A10<=Invulscherm!$AB$18,(AD10-P10),""),"") ->  | AF10: =IF($A10>=Invulscherm!$AB$20,IF($A10<=Invulscherm!$AB$18,($AE10-$R10),""),"") ->  | AG10: =IF($A10>=Invulscherm!$AB$20,IF($A10<=Invulscherm!$AB$18,($AF10-$T10),""),"") ->  | AH10: =IF($A10>=Invulscherm!$AB$20,IF($A10<=Invulscherm!$AB$18,($AG10-$V10),""),"") ->  | AI10: =IF($A10>=Invulscherm!$AB$20,IF($A10<=Invulscherm!$AB$18,($AH10-$X10),""),"") ->  | AJ10: =IF($A10>=Invulscherm!$AB$20,IF($A10<=Invulscherm!$AB$18,($AI10-$Z10),""),"") ->  | AK10: =IF($A10>Invulscherm!$AB$20,IF($A10<=Invulscherm!$AB$18,IF(AJ10<-10,"ja","nee"),""),"") ->  | AL10: =IF(AND(Invulscherm!$AB$20<>"",Invulscherm!$B$15<>""),IF($A10>=Invulscherm!$AB$20,IF($A10<=Invulscherm!$AB$18,IF(AJ10>5,"ja","nee"),""),""),"ja") -> ja | AN10: =IF(Invulscherm!$B$13="",IF($A10>Invulscherm!$U$13,0,IF($A10<Invulscherm!$U$13,0,Standaardwaarden!$B$21*Standaardwaarden!$B$20*(Invulscherm!$B$10/100)*Standaardwaarden!$B$23)),IF($A10>Invulscherm!$AB$13,0,IF($A10<Invulscherm!$AB$13,0,Standaardwaarden!$B$21*Standaardwaarden!$B$20*(Invulscherm!$B$10/100)*Standaardwaarden!$B$23))) -> 0 | AO10: 0 | AP10: 0.4924363928 | AQ10: =(-0.322*LN(Invulscherm!$B$10)+1.2233)*(IF(Invulscherm!$B$8=Invulscherm!$AJ$8,Standaardwaarden!$B$32,IF(Invulscherm!$B$8=Invulscherm!$AJ$9,Standaardwaarden!$B$33,IF(Invulscherm!$B$8=Invulscherm!$AJ$10,Standaardwaarden!$B$34,IF(Invulscherm!$B$8=Invulscherm!$AJ$11,Standaardwaarden!$B$35,IF(Invulscherm!$B$8=Invulscherm!$AJ$12,Standaardwaarden!$B$36,Standaardwaarden!$B$37)))))) -> 0.8500906167 | AS10: =(1/(1+EXP(-1.5*(Invulscherm!$B$11-4)))) -> 0.9770226301 | AT10: 0.4089968724 | AU10: =IF(Invulscherm!$B$13="",IF(($A10-1)>Invulscherm!$U$13,AU9+AT10/52,IF(($A10-1)<Invulscherm!$U$13,"",Standaardwaarden!$B$22+AT10/52)),IF(($A10-1)>Invulscherm!$AB$13,AU9+AT10/52,IF(($A10-1)<Invulscherm!$AB$13,"",Standaardwaarden!$B$22+AT10/52))) ->  | AV10: =IF(Invulscherm!$B$13="",IF(($A10-1)>Invulscherm!$U$13,AO10*(-2.82)*AT10*(1/52)*(AU10^(-1.6)),0),IF(($A10-1)>Invulscherm!$AB$13,AO10*(-2.82)*AT10*(1/52)*(AU10^(-1.6)),0)) -> 0 | AW10: =IF(Invulscherm!$B$13="",IF(($A10-1)>Invulscherm!$U$13,AW9+AX9,IF(($A10-1)<Invulscherm!$U$13,0,(Standaardwaarden!$B$20*Standaardwaarden!$B$21*(Invulscherm!$B$10/100)*Standaardwaarden!$B$23)/Standaardwaarden!$B$25)),IF(($A10-1)>Invulscherm!$AB$13,AW9+AX9,IF(($A10-1)<Invulscherm!$AB$13,0,(Standaardwaarden!$B$20*Standaardwaarden!$B$21*(Invulscherm!$B$10/100)*Standaardwaarden!$B$23)/Standaardwaarden!$B$25))) -> 0 | AX10: =IF(Invulscherm!$B$13="",IF(($A10-1)>Invulscherm!$U$13,((AV10*(1+Standaardwaarden!$B$29))/(AO10/AW10))-(((AV10*(1+Standaardwaarden!$B$29))-AV10)*(1/Standaardwaarden!$B$28)),0),IF(($A10-1)>Invulscherm!$AB$13,((AV10*(1+Standaardwaarden!$B$29))/(AO10/AW10))-(((AV10*(1+Standaardwaarden!$B$29))-AV10)*(1/Standaardwaarden!$B$28)),0)) -> 0 | AY10: 0 | AZ10: =IF(Invulscherm!$B$13="",IF(($A10-1)<Invulscherm!$U$13,0,Invulscherm!$T$12),IF(($A10-1)<Invulscherm!$AB$13,0,Invulscherm!$B$12)) -> 0 | BA10: 0 | BB10: 0 | BC10: 0 | BD10: =IF(BB10>0,(Standaardwaarden!$B$30*(BB10-BC10-BD9)*((-$AV10-$CJ10-$CW10-$DJ10-$EC10-$EV10-$FO10-$GH10-$HA10)*(1+Standaardwaarden!$B$29))/10000),0) -> 0 | BE10: 0 | BF10: 0 | BH10: 0 | BI10: 49657.20669 | BJ10: 0.4924363928 | BK10: =(-0.322*LN(Invulscherm!$B$10)+1.2233)*(IF(Invulscherm!$B$8=Invulscherm!$AJ$8,Standaardwaarden!$B$32,IF(Invulscherm!$B$8=Invulscherm!$AJ$9,Standaardwaarden!$B$33,IF(Invulscherm!$B$8=Invulscherm!$AJ$10,Standaardwaarden!$B$34,IF(Invulscherm!$B$8=Invulscherm!$AJ$11,Standaardwaarden!$B$35,IF(Invulscherm!$B$8=Invulscherm!$AJ$12,Standaardwaarden!$B$36,Standaardwaarden!$B$37)))))) -> 0.8500906167 | BM10: =(1/(1+EXP(-1.5*(Invulscherm!$B$11-4)))) -> 0.9770226301 | BN10: 0.4089968724 | BO10: 16.01577404 | BP10: -13.02180973 | BQ10: 4966.002982 | BR10: =((BP10*(1+Standaardwaarden!$B$29))/(BI10/BQ10))-(((BP10*(1+Standaardwaarden!$B$29))-BP10)*(1/Standaardwaarden!$B$28)) -> -1.02181487 | BS10: 2.050241339 | BT10: 0 | BU10: 2.050241339 | BV10: 2.050241339 | BW10: 0 | BX10: =IF(BV10>0,(Standaardwaarden!$B$30*(BV10-BW10-BX9)*((-$BP10-$CJ10-$CW10-$DJ10-$EC10-$EV10-$FO10-$GH10-$HA10)*(1+Standaardwaarden!$B$29))/10000),0) -> 0.003737699365 | BY10: 0.00562489841 | BZ10: 2.044616441 | CA10: =IF(Invulscherm!$AB$13="",IF(A10<Invulscherm!$U$13,(BZ10+(Invulscherm!$T$12-(VLOOKUP(Invulscherm!$U$13,$A$6:$BZ$110,78,FALSE)))),IF(A10>Invulscherm!$U$13,BF10,Invulscherm!$T$12)),IF(A10<Invulscherm!$AB$13,(BZ10+(Invulscherm!$B$12-(VLOOKUP(Invulscherm!$AB$13,$A$6:$BZ$110,78,FALSE)))),IF(A10>Invulscherm!$AB$13,BF10,Invulscherm!$B$12))) -> -57.58372056 | CC10: =IF($A10>Invulscherm!$AB$15,0,IF($A10<Invulscherm!$AB$15,0,Invulscherm!$AB$29*Invulscherm!$AB$31)) -> 0 | CD10: 0 | CE10: 0.4924363928 | CF10: =IF(Invulscherm!$B$8=Invulscherm!$AJ$8,Standaardwaarden!$B$32,IF(Invulscherm!$B$8=Invulscherm!$AJ$9,Standaardwaarden!$B$33,IF(Invulscherm!$B$8=Invulscherm!$AJ$10,Standaardwaarden!$B$34,IF(Invulscherm!$B$8=Invulscherm!$AJ$11,Standaardwaarden!$B$35,IF(Invulscherm!$B$8=Invulscherm!$AJ$12,Standaardwaarden!$B$36,Standaardwaarden!$B$37))))) -> 0.85 | CG10: =(1/(1+EXP(-1.5*(Invulscherm!$B$11-4)))) -> 0.9770226301 | CH10: 0.4089532747 | CI10: =IF($A10>Invulscherm!$AB$15,CI9+CH10/52,IF($A10<Invulscherm!$AB$15,"",Invulscherm!$AB$32+CH10/52)) ->  | CJ10: =IF($A10>Invulscherm!$AB$15,CD10*(-2.82)*CH10*(1/52)*(CI10^(-1.6)),0) -> 0 | CK10: =IF($A10>Invulscherm!$AB$15,CK9+CL9,IF($A10<Invulscherm!$AB$15,0,Invulscherm!$AB$29*Invulscherm!$AB$30)) -> 0 | CL10: =IF(CK10>0,IF($A10>Invulscherm!$AB$15,((CJ10*(1+Standaardwaarden!$B$29))/(CD10/CK10))-(((CJ10*(1+Standaardwaarden!$B$29))-CJ10)*(1/Standaardwaarden!$B$28)),0),0) -> 0 | CM10: 0 | CN10: =IF(Invulscherm!$B$13="",IF(A10<Invulscherm!$U$13,0,(CM10-VLOOKUP(Invulscherm!$U$13,$A$4:$HK$110,91,FALSE))),IF(A10<Invulscherm!$AB$13,0,(CM10-VLOOKUP(Invulscherm!$AB$13,$A$4:$HK$110,91,FALSE)))) -> 0 | CP10: =IF($A10>Invulscherm!$AB$16,0,IF($A10<Invulscherm!$AB$16,0,Invulscherm!$AB$36)) -> 0 | CQ10: 0 | CR10: 0.4924363928 | CS10: =IF(Invulscherm!$B$8=Invulscherm!$AJ$8,Standaardwaarden!$B$32,IF(Invulscherm!$B$8=Invulscherm!$AJ$9,Standaardwaarden!$B$33,IF(Invulscherm!$B$8=Invulscherm!$AJ$10,Standaardwaarden!$B$34,IF(Invulscherm!$B$8=Invulscherm!$AJ$11,Standaardwaarden!$B$35,IF(Invulscherm!$B$8=Invulscherm!$AJ$12,Standaardwaarden!$B$36,Standaardwaarden!$B$37))))) -> 0.85 | CT10: =(1/(1+EXP(-1.5*(Invulscherm!$B$11-4)))) -> 0.9770226301 | CU10: 0.4089532747 | CV10: =IF($A10>Invulscherm!$AB$16,CV9+CU10/52,IF($A10<Invulscherm!$AB$16,"",Invulscherm!$AB$37+CU10/52)) ->  | CW10: =IF($A10>Invulscherm!$AB$16,CQ10*(-2.82)*CU10*(1/52)*(CV10^(-1.6)),0) -> 0 | CX10: =IF($A10>Invulscherm!$AB$16,CX9+CY9,IF($A10<Invulscherm!$AB$16,0,Invulscherm!$AB$35)) -> 0 | CY10: =IF(CX10>0,IF($A10>Invulscherm!$AB$16,((CW10*(1+Standaardwaarden!$B$29))/(CQ10/CX10))-(((CW10*(1+Standaardwaarden!$B$29))-CW10)*(1/Standaardwaarden!$B$28)),0),0) -> 0 | CZ10: 0 | DA10: =IF(Invulscherm!$B$13="",IF(A10<Invulscherm!$U$13,0,(CZ10-VLOOKUP(Invulscherm!$U$13,$A$4:$HK$110,104,FALSE))),IF(A10<Invulscherm!$AB$13,0,(CZ10-VLOOKUP(Invulscherm!$AB$13,$A$4:$HK$110,104,FALSE)))) -> 0 | DC10: =IF(AND(Invulscherm!$B$32=Invulscherm!$AQ$8,Invulscherm!$B$33<>""),IF($A10>Invulscherm!$AB$20,0,IF($A10<Invulscherm!$AB$20,0,Invulscherm!$C$33*Invulscherm!$C$37*(VLOOKUP(Invulscherm!$B$33,Meststoffen!$A$3:$P$62,7,FALSE)))),"") ->  | DD10: =IF(AND(Invulscherm!$B$32=Invulscherm!$AQ$8,Invulscherm!$B$33<>""),IF(DC10>0,DC10,DD9+DJ9),"") ->  | DE10: =IF(AND(Invulscherm!$B$32=Invulscherm!$AQ$8,Invulscherm!$B$33<>""),IF($C10>27,3.5,IF($C10<-0.999,0,IF(-1<$C10<9.001,0.09*($C10+1),0.88*2^(($C10-9)/9)))),"") ->  | DF10: =IF(AND(Invulscherm!$B$32=Invulscherm!$AQ$8,Invulscherm!$B$33<>""),IF(Invulscherm!$B$8=Invulscherm!$AJ$8,Standaardwaarden!$B$32,IF(Invulscherm!$B$8=Invulscherm!$AJ$9,Standaardwaarden!$B$33,IF(Invulscherm!$B$8=Invulscherm!$AJ$10,Standaardwaarden!$B$34,IF(Invulscherm!$B$8=Invulscherm!$AJ$11,Standaardwaarden!$B$35,IF(Invulscherm!$B$8=Invulscherm!$AJ$12,Standaardwaarden!$B$36,Standaardwaarden!$B$37))))),"") ->  | DG10: =IF(AND(Invulscherm!$B$32=Invulscherm!$AQ$8,Invulscherm!$B$33<>""),(1/(1+EXP(-1.5*(Invulscherm!$B$11-4)))),"") ->  | DH10: =IF(AND(Invulscherm!$B$32=Invulscherm!$AQ$8,Invulscherm!$B$33<>""),DE10*DF10*DG10,"") ->  | DI10: =IF(AND(Invulscherm!$B$32=Invulscherm!$AQ$8,Invulscherm!$B$33<>""),IF($A10>Invulscherm!$AB$20,DI9+DH10/52,IF($A10<Invulscherm!$AB$20,"",(VLOOKUP(Invulscherm!$B$33,Meststoffen!$A$3:$P$62,6,FALSE))+DH10/52)),"") ->  | DJ10: =IF(AND(Invulscherm!$B$32=Invulscherm!$AQ$8,Invulscherm!$B$33<>""),IF($A10>Invulscherm!$AB$20,DD10*(-2.82)*DH10*(1/52)*(DI10^(-1.6)),0),0) -> 0 | DK10: =IF(AND(Invulscherm!$B$32=Invulscherm!$AQ$8,Invulscherm!$B$33<>""),IF($A10>Invulscherm!$AB$20,DK9+DL9,IF($A10<Invulscherm!$AB$20,0,IF(Invulscherm!$D$28="Uitslag + 10%",1.1*(Invulscherm!$C$33*(Invulscherm!$C$35-Invulscherm!$C$36)),IF(Invulscherm!$D$28="Uitslag - 10%",0.9*(Invulscherm!$C$33*(Invulscherm!$C$35-Invulscherm!$C$36)),Invulscherm!$C$33*(Invulscherm!$C$35-Invulscherm!$C$36))))),0) -> 0 | DL10: =IF((DK10)>0,((DJ10*(1+Standaardwaarden!$B$29))/(DD10/DK10))-(((DJ10*(1+Standaardwaarden!$B$29))-DJ10)*(1/Standaardwaarden!$B$28)),0) -> 0 | DM10: 0 | DN10: =IF(AND(Invulscherm!$B$32=Invulscherm!$AQ$8,Invulscherm!$B$33<>""),IF($A10<Invulscherm!$AB$20,"",IF(Invulscherm!$D$28="Uitslag + 10%",1.1*(Invulscherm!$C$33*Invulscherm!$C$36),IF(Invulscherm!$D$28="Uitslag - 10%",0.9*(Invulscherm!$C$33*Invulscherm!$C$36),Invulscherm!$C$33*Invulscherm!$C$36))),IF($A10<Invulscherm!$AB$20,"",Invulscherm!$C$33*0.98)) ->  | DO10: =IF($A10<Invulscherm!$AB$20,0,IF(AND(Invulscherm!$AB$20<Invulscherm!$AB$13,$A10>Invulscherm!$AB$13),0,IF(AND(Invulscherm!$B$32=Invulscherm!$AQ$8,Invulscherm!$B$33<>""),IF(Invulscherm!$B$34=Invulscherm!$AS$8,DN10*Invulscherm!$AT$8,IF(Invulscherm!$B$34=Invulscherm!$AS$9,DN10*Invulscherm!$AT$9,DN10*Invulscherm!$AT$10)),Invulscherm!$C$33*0.98))) -> 0 | DP10: 0 | DQ10: 0 | DR10: =IF(DP10>0,(Standaardwaarden!$B$30*(DP10-DQ10-DR9)*((-$AV10-$CJ10-$CW10-$DJ10-$EC10-$EV10-$FO10-$GH10-$HA10)*(1+Standaardwaarden!$B$29))/10000),0) -> 0 | DS10: 0 | DT10: =IF(DP10>0,IF($A10>Invulscherm!$AB$13,(DP10-DS10),0),0) -> 0 | DV10: =IF(AND(Invulscherm!$F$32=Invulscherm!$AQ$8,Invulscherm!$F$33<>""),IF($A10>Invulscherm!$AB$21,0,IF($A10<Invulscherm!$AB$21,0,Invulscherm!$G$33*Invulscherm!$G$37*(VLOOKUP(Invulscherm!$F$33,Meststoffen!$A$3:$P$62,7,FALSE)))),"") ->  | DW10: =IF(AND(Invulscherm!$F$32=Invulscherm!$AQ$8,Invulscherm!$F$33<>""),IF(DV10>0,DV10,DW9+EC9),"") ->  | DX10: =IF(AND(Invulscherm!$F$32=Invulscherm!$AQ$8,Invulscherm!$F$33<>""),IF($C10>27,3.5,IF($C10<-0.999,0,IF(-1<$C10<9.001,0.09*($C10+1),0.88*2^(($C10-9)/9)))),"") ->  | DY10: =IF(AND(Invulscherm!$F$32=Invulscherm!$AQ$8,Invulscherm!$F$33<>""),IF(Invulscherm!$B$8=Invulscherm!$AJ$8,Standaardwaarden!$B$32,IF(Invulscherm!$B$8=Invulscherm!$AJ$9,Standaardwaarden!$B$33,IF(Invulscherm!$B$8=Invulscherm!$AJ$10,Standaardwaarden!$B$34,IF(Invulscherm!$B$8=Invulscherm!$AJ$11,Standaardwaarden!$B$35,IF(Invulscherm!$B$8=Invulscherm!$AJ$12,Standaardwaarden!$B$36,Standaardwaarden!$B$37))))),"") ->  | DZ10: =IF(AND(Invulscherm!$F$32=Invulscherm!$AQ$8,Invulscherm!$F$33<>""),(1/(1+EXP(-1.5*(Invulscherm!$B$11-4)))),"") ->  | EA10: =IF(AND(Invulscherm!$F$32=Invulscherm!$AQ$8,Invulscherm!$F$33<>""),DX10*DY10*DZ10,"") ->  | EB10: =IF(AND(Invulscherm!$F$32=Invulscherm!$AQ$8,Invulscherm!$F$33<>""),IF($A10>Invulscherm!$AB$21,EB9+EA10/52,IF($A10<Invulscherm!$AB$21,"",(VLOOKUP(Invulscherm!$F$33,Meststoffen!$A$3:$P$62,6,FALSE))+EA10/52)),"") ->  | EC10: =IF(AND(Invulscherm!$F$32=Invulscherm!$AQ$8,Invulscherm!$F$33<>""),IF($A10>Invulscherm!$AB$21,DW10*(-2.82)*EA10*(1/52)*(EB10^(-1.6)),0),0) -> 0 | ED10: =IF(AND(Invulscherm!$F$32=Invulscherm!$AQ$8,Invulscherm!$F$33<>""),IF($A10>Invulscherm!$AB$21,ED9+EE9,IF($A10<Invulscherm!$AB$21,0,IF(Invulscherm!$D$28="Uitslag + 10%",1.1*(Invulscherm!$G$33*(Invulscherm!$G$35-Invulscherm!$G$36)),IF(Invulscherm!$D$28="Uitslag - 10%",0.9*(Invulscherm!$G$33*(Invulscherm!$G$35-Invulscherm!$G$36)),Invulscherm!$G$33*(Invulscherm!$G$35-Invulscherm!$G$36))))),0) -> 0 | EE10: =IF((ED10)>0,((EC10*(1+Standaardwaarden!$B$29))/(DW10/ED10))-(((EC10*(1+Standaardwaarden!$B$29))-EC10)*(1/Standaardwaarden!$B$28)),0) -> 0 | EF10: 0 | EG10: =IF(AND(Invulscherm!$F$32=Invulscherm!$AQ$8,Invulscherm!$F$33<>""),IF($A10<Invulscherm!$AB$21,"",IF(Invulscherm!$D$28="Uitslag + 10%",1.1*(Invulscherm!$G$33*Invulscherm!$G$36),IF(Invulscherm!$D$28="Uitslag - 10%",0.9*(Invulscherm!$G$33*Invulscherm!$G$36),Invulscherm!$G$33*Invulscherm!$G$36))),Invulscherm!$G$33*0.98) -> 0 | EH10: =IF($A10<Invulscherm!$AB$21,0,IF(AND(Invulscherm!$AB$21<Invulscherm!$AB$13,$A10>Invulscherm!$AB$13),0,IF(AND(Invulscherm!$F$32=Invulscherm!$AQ$8,Invulscherm!$F$33<>""),IF(Invulscherm!$F$34=Invulscherm!$AS$8,EG10*Invulscherm!$AT$8,EG10*Invulscherm!$AT$9),Invulscherm!$G$33*0.98))) -> 0 | EI10: 0 | EJ10: 0 | EK10: =IF(EI10>0,(Standaardwaarden!$B$30*(EI10-EJ10-EK9)*((-$AV10-$CJ10-$CW10-$DJ10-$EC10-$EV10-$FO10-$GH10-$HA10)*(1+Standaardwaarden!$B$29))/10000),0) -> 0 | EL10: 0 | EM10: =IF(EI10>0,IF($A10>Invulscherm!$AB$13,(EI10-EL10),0),0) -> 0 | EO10: =IF(AND(Invulscherm!$J$32=Invulscherm!$AQ$8,Invulscherm!$J$33<>""),IF($A10>Invulscherm!$AB$22,0,IF($A10<Invulscherm!$AB$22,0,Invulscherm!$K$33*Invulscherm!$K$37*(VLOOKUP(Invulscherm!$J$33,Meststoffen!$A$3:$P$62,7,FALSE)))),"") ->  | EP10: =IF(AND(Invulscherm!$J$32=Invulscherm!$AQ$8,Invulscherm!$J$33<>""),IF(EO10>0,EO10,EP9+EV9),"") ->  | EQ10: =IF(AND(Invulscherm!$J$32=Invulscherm!$AQ$8,Invulscherm!$J$33<>""),IF($C10>27,3.5,IF($C10<-0.999,0,IF(-1<$C10<9.001,0.09*($C10+1),0.88*2^(($C10-9)/9)))),"") ->  | ER10: =IF(AND(Invulscherm!$J$32=Invulscherm!$AQ$8,Invulscherm!$J$33<>""),IF(Invulscherm!$B$8=Invulscherm!$AJ$8,Standaardwaarden!$B$32,IF(Invulscherm!$B$8=Invulscherm!$AJ$9,Standaardwaarden!$B$33,IF(Invulscherm!$B$8=Invulscherm!$AJ$10,Standaardwaarden!$B$34,IF(Invulscherm!$B$8=Invulscherm!$AJ$11,Standaardwaarden!$B$35,IF(Invulscherm!$B$8=Invulscherm!$AJ$12,Standaardwaarden!$B$36,Standaardwaarden!$B$37))))),"") ->  | ES10: =IF(AND(Invulscherm!$J$32=Invulscherm!$AQ$8,Invulscherm!$J$33<>""),(1/(1+EXP(-1.5*(Invulscherm!$B$11-4)))),"") ->  | ET10: =IF(AND(Invulscherm!$J$32=Invulscherm!$AQ$8,Invulscherm!$J$33<>""),EQ10*ER10*ES10,"") ->  | EU10: =IF(AND(Invulscherm!$J$32=Invulscherm!$AQ$8,Invulscherm!$J$33<>""),IF($A10>Invulscherm!$AB$22,EU9+ET10/52,IF($A10<Invulscherm!$AB$22,"",(VLOOKUP(Invulscherm!$J$33,Meststoffen!$A$3:$P$62,6,FALSE))+ET10/52)),"") ->  | EV10: =IF(AND(Invulscherm!$J$32=Invulscherm!$AQ$8,Invulscherm!$J$33<>""),IF($A10>Invulscherm!$AB$22,EP10*(-2.82)*ET10*(1/52)*(EU10^(-1.6)),0),0) -> 0 | EW10: =IF(AND(Invulscherm!$J$32=Invulscherm!$AQ$8,Invulscherm!$J$33<>""),IF($A10>Invulscherm!$AB$22,EW9+EX9,IF($A10<Invulscherm!$AB$22,0,IF(Invulscherm!$D$28="Uitslag + 10%",1.1*(Invulscherm!$K$33*(Invulscherm!$K$35-Invulscherm!$K$36)),IF(Invulscherm!$D$28="Uitslag - 10%",0.9*(Invulscherm!$K$33*(Invulscherm!$K$35-Invulscherm!$K$36)),Invulscherm!$K$33*(Invulscherm!$K$35-Invulscherm!$K$36))))),0) -> 0 | EX10: =IF((EW10)>0,((EV10*(1+Standaardwaarden!$B$29))/(EP10/EW10))-(((EV10*(1+Standaardwaarden!$B$29))-EV10)*(1/Standaardwaarden!$B$28)),0) -> 0 | EY10: 0 | EZ10: =IF(AND(Invulscherm!$J$32=Invulscherm!$AQ$8,Invulscherm!$J$33<>""),IF($A10<Invulscherm!$AB$22,"",IF(Invulscherm!$D$28="Uitslag + 10%",1.1*(Invulscherm!$K$33*Invulscherm!$K$36),IF(Invulscherm!$D$28="Uitslag - 10%",0.9*(Invulscherm!$K$33*Invulscherm!$K$36),Invulscherm!$K$33*Invulscherm!$K$36))),Invulscherm!$K$33*0.98) -> 0 | FA10: =IF($A10<Invulscherm!$AB$22,0,IF(AND(Invulscherm!$AB$22<Invulscherm!$AB$13,$A10>Invulscherm!$AB$13),0,IF(AND(Invulscherm!$J$32=Invulscherm!$AQ$8,Invulscherm!$J$33<>""),IF(Invulscherm!$J$34=Invulscherm!$AS$8,EZ10*Invulscherm!$AT$8,EZ10*Invulscherm!$AT$9),Invulscherm!$K$33*0.98))) -> 0 | FB10: 0 | FC10: 0 | FD10: =IF(FB10>0,(Standaardwaarden!$B$30*(FB10-FC10-FD9)*((-$AV10-$CJ10-$CW10-$DJ10-$EC10-$EV10-$FO10-$GH10-$HA10)*(1+Standaardwaarden!$B$29))/10000),0) -> 0 | FE10: 0 | FF10: =IF(FB10>0,IF($A10>Invulscherm!$AB$13,(FB10-FE10),0),0) -> 0 | FH10: =IF(AND(Invulscherm!$B$43=Invulscherm!$AQ$8,Invulscherm!$B$44<>""),IF($A10>Invulscherm!$AB$23,0,IF($A10<Invulscherm!$AB$23,0,Invulscherm!$C$44*Invulscherm!$C$48*(VLOOKUP(Invulscherm!$B$44,Meststoffen!$A$3:$P$62,7,FALSE)))),"") ->  | FI10: =IF(AND(Invulscherm!$B$43=Invulscherm!$AQ$8,Invulscherm!$B$44<>""),IF(FH10>0,FH10,FI9+FO9),"") ->  | FJ10: =IF(AND(Invulscherm!$B$43=Invulscherm!$AQ$8,Invulscherm!$B$44<>""),IF($C10>27,3.5,IF($C10<-0.999,0,IF(-1<$C10<9.001,0.09*($C10+1),0.88*2^(($C10-9)/9)))),"") ->  | FK10: =IF(AND(Invulscherm!$B$43=Invulscherm!$AQ$8,Invulscherm!$B$44<>""),IF(Invulscherm!$B$8=Invulscherm!$AJ$8,Standaardwaarden!$B$32,IF(Invulscherm!$B$8=Invulscherm!$AJ$9,Standaardwaarden!$B$33,IF(Invulscherm!$B$8=Invulscherm!$AJ$10,Standaardwaarden!$B$34,IF(Invulscherm!$B$8=Invulscherm!$AJ$11,Standaardwaarden!$B$35,IF(Invulscherm!$B$8=Invulscherm!$AJ$12,Standaardwaarden!$B$36,Standaardwaarden!$B$37))))),"") ->  | FL10: =IF(AND(Invulscherm!$B$43=Invulscherm!$AQ$8,Invulscherm!$B$44<>""),(1/(1+EXP(-1.5*(Invulscherm!$B$11-4)))),"") ->  | FM10: =IF(AND(Invulscherm!$B$43=Invulscherm!$AQ$8,Invulscherm!$B$44<>""),FJ10*FK10*FL10,"") ->  | FN10: =IF(AND(Invulscherm!$B$43=Invulscherm!$AQ$8,Invulscherm!$B$44<>""),IF($A10>Invulscherm!$AB$23,FN9+FM10/52,IF($A10<Invulscherm!$AB$23,"",(VLOOKUP(Invulscherm!$B$44,Meststoffen!$A$3:$P$62,6,FALSE))+FM10/52)),"") ->  | FO10: =IF(AND(Invulscherm!$B$43=Invulscherm!$AQ$8,Invulscherm!$B$44<>""),IF($A10>Invulscherm!$AB$23,FI10*(-2.82)*FM10*(1/52)*(FN10^(-1.6)),0),0) -> 0 | FP10: =IF(AND(Invulscherm!$B$43=Invulscherm!$AQ$8,Invulscherm!$B$44<>""),IF($A10>Invulscherm!$AB$23,FP9+FQ9,IF($A10<Invulscherm!$AB$23,0,IF(Invulscherm!$D$28="Uitslag + 10%",1.1*(Invulscherm!$C$44*(Invulscherm!$C$46-Invulscherm!$C$47)),IF(Invulscherm!$D$28="Uitslag - 10%",0.9*(Invulscherm!$C$44*(Invulscherm!$C$46-Invulscherm!$C$47)),Invulscherm!$C$44*(Invulscherm!$C$46-Invulscherm!$C$47))))),0) -> 0 | FQ10: =IF((FP10)>0,((FO10*(1+Standaardwaarden!$B$29))/(FI10/FP10))-(((FO10*(1+Standaardwaarden!$B$29))-FO10)*(1/Standaardwaarden!$B$28)),0) -> 0 | FR10: 0 | FS10: =IF(AND(Invulscherm!$B$43=Invulscherm!$AQ$8,Invulscherm!$B$44<>""),IF($A10<Invulscherm!$AB$23,"",IF(Invulscherm!$D$28="Uitslag + 10%",1.1*(Invulscherm!$C$44*Invulscherm!$C$47),IF(Invulscherm!$D$28="Uitslag - 10%",0.9*(Invulscherm!$C$44*Invulscherm!$C$47),Invulscherm!$C$44*Invulscherm!$C$47))),Invulscherm!$C$44*0.98) -> 0 | FT10: =IF($A10<Invulscherm!$AB$23,0,IF(AND(Invulscherm!$AB$23<Invulscherm!$AB$13,$A10>Invulscherm!$AB$13),0,IF(AND(Invulscherm!$B$43=Invulscherm!$AQ$8,Invulscherm!$B$44<>""),IF(Invulscherm!$B$45=Invulscherm!$AS$8,FS10*Invulscherm!$AT$8,FS10*Invulscherm!$AT$9),Invulscherm!$C$44*0.98))) -> 0 | FU10: 0 | FV10: 0 | FW10: =IF(FU10>0,(Standaardwaarden!$B$30*(FU10-FV10-FW9)*((-$AV10-$CJ10-$CW10-$DJ10-$EC10-$EV10-$FO10-$GH10-$HA10)*(1+Standaardwaarden!$B$29))/10000),0) -> 0 | FX10: 0 | FY10: =IF(FU10>0,IF($A10>Invulscherm!$AB$13,(FU10-FX10),0),0) -> 0 | GA10: =IF(AND(Invulscherm!$F$43=Invulscherm!$AQ$8,Invulscherm!$F$44<>""),IF($A10>Invulscherm!$AB$24,0,IF($A10<Invulscherm!$AB$24,0,Invulscherm!$G$44*Invulscherm!$G$48*(VLOOKUP(Invulscherm!$F$44,Meststoffen!$A$3:$P$62,7,FALSE)))),"") ->  | GB10: =IF(AND(Invulscherm!$F$43=Invulscherm!$AQ$8,Invulscherm!$F$44<>""),IF(GA10>0,GA10,GB9+GH9),"") ->  | GC10: =IF(AND(Invulscherm!$F$43=Invulscherm!$AQ$8,Invulscherm!$F$44<>""),IF($C10>27,3.5,IF($C10<-0.999,0,IF(-1<$C10<9.001,0.09*($C10+1),0.88*2^(($C10-9)/9)))),"") ->  | GD10: =IF(AND(Invulscherm!$F$43=Invulscherm!$AQ$8,Invulscherm!$F$44<>""),IF(Invulscherm!$B$8=Invulscherm!$AJ$8,Standaardwaarden!$B$32,IF(Invulscherm!$B$8=Invulscherm!$AJ$9,Standaardwaarden!$B$33,IF(Invulscherm!$B$8=Invulscherm!$AJ$10,Standaardwaarden!$B$34,IF(Invulscherm!$B$8=Invulscherm!$AJ$11,Standaardwaarden!$B$35,IF(Invulscherm!$B$8=Invulscherm!$AJ$12,Standaardwaarden!$B$36,Standaardwaarden!$B$37))))),"") ->  | GE10: =IF(AND(Invulscherm!$F$43=Invulscherm!$AQ$8,Invulscherm!$F$44<>""),(1/(1+EXP(-1.5*(Invulscherm!$B$11-4)))),"") ->  | GF10: =IF(AND(Invulscherm!$F$43=Invulscherm!$AQ$8,Invulscherm!$F$44<>""),GC10*GD10*GE10,"") ->  | GG10: =IF(AND(Invulscherm!$F$43=Invulscherm!$AQ$8,Invulscherm!$F$44<>""),IF($A10>Invulscherm!$AB$24,GG9+GF10/52,IF($A10<Invulscherm!$AB$24,"",(VLOOKUP(Invulscherm!$F$44,Meststoffen!$A$3:$P$62,6,FALSE))+GF10/52)),"") ->  | GH10: =IF(AND(Invulscherm!$F$43=Invulscherm!$AQ$8,Invulscherm!$F$44<>""),IF($A10>Invulscherm!$AB$24,GB10*(-2.82)*GF10*(1/52)*(GG10^(-1.6)),0),0) -> 0 | GI10: =IF(AND(Invulscherm!$F$43=Invulscherm!$AQ$8,Invulscherm!$F$44<>""),IF($A10>Invulscherm!$AB$24,GI9+GJ9,IF($A10<Invulscherm!$AB$24,0,IF(Invulscherm!$D$28="Uitslag + 10%",1.1*(Invulscherm!$G$44*(Invulscherm!$G$46-Invulscherm!$G$47)),IF(Invulscherm!$D$28="Uitslag - 10%",0.9*(Invulscherm!$G$44*(Invulscherm!$G$46-Invulscherm!$G$47)),Invulscherm!$G$44*(Invulscherm!$G$46-Invulscherm!$G$47))))),0) -> 0 | GJ10: =IF((GI10)>0,((GH10*(1+Standaardwaarden!$B$29))/(GB10/GI10))-(((GH10*(1+Standaardwaarden!$B$29))-GH10)*(1/Standaardwaarden!$B$28)),0) -> 0 | GK10: 0 | GL10: =IF(AND(Invulscherm!$F$43=Invulscherm!$AQ$8,Invulscherm!$F$44<>""),IF($A10<Invulscherm!$AB$24,"",IF(Invulscherm!$D$28="Uitslag + 10%",1.1*(Invulscherm!$G$44*Invulscherm!$G$47),IF(Invulscherm!$D$28="Uitslag - 10%",0.9*(Invulscherm!$G$44*Invulscherm!$G$47),Invulscherm!$G$44*Invulscherm!$G$47))),Invulscherm!$G$44*0.98) -> 0 | GM10: =IF($A10<Invulscherm!$AB$24,0,IF(AND(Invulscherm!$AB$24<Invulscherm!$AB$13,$A10>Invulscherm!$AB$13),0,IF(AND(Invulscherm!$F$43=Invulscherm!$AQ$8,Invulscherm!$F$44<>""),IF(Invulscherm!$F$45=Invulscherm!$AS$8,GL10*Invulscherm!$AT$8,GL10*Invulscherm!$AT$9),Invulscherm!$G$44*0.98))) -> 0 | GN10: 0 | GO10: 0 | GP10: =IF(GN10>0,(Standaardwaarden!$B$30*(GN10-GO10-GP9)*((-$AV10-$CJ10-$CW10-$DJ10-$EC10-$EV10-$FO10-$GH10-$HA10)*(1+Standaardwaarden!$B$29))/10000),0) -> 0 | GQ10: 0 | GR10: =IF(GN10>0,IF($A10>Invulscherm!$AB$13,(GN10-GQ10),0),0) -> 0 | GT10: =IF(AND(Invulscherm!$J$43=Invulscherm!$AQ$8,Invulscherm!$J$44<>""),IF($A10>Invulscherm!$AB$25,0,IF($A10<Invulscherm!$AB$25,0,Invulscherm!$K$44*Invulscherm!$K$48*(VLOOKUP(Invulscherm!$J$44,Meststoffen!$A$3:$P$62,7,FALSE)))),"") ->  | GU10: =IF(AND(Invulscherm!$J$43=Invulscherm!$AQ$8,Invulscherm!$J$44<>""),IF(GT10>0,GT10,GU9+HA9),"") ->  | GV10: =IF(AND(Invulscherm!$J$43=Invulscherm!$AQ$8,Invulscherm!$J$44<>""),IF($C10>27,3.5,IF($C10<-0.999,0,IF(-1<$C10<9.001,0.09*($C10+1),0.88*2^(($C10-9)/9)))),"") ->  | GW10: =IF(AND(Invulscherm!$J$43=Invulscherm!$AQ$8,Invulscherm!$J$44<>""),IF(Invulscherm!$B$8=Invulscherm!$AJ$8,Standaardwaarden!$B$32,IF(Invulscherm!$B$8=Invulscherm!$AJ$9,Standaardwaarden!$B$33,IF(Invulscherm!$B$8=Invulscherm!$AJ$10,Standaardwaarden!$B$34,IF(Invulscherm!$B$8=Invulscherm!$AJ$11,Standaardwaarden!$B$35,IF(Invulscherm!$B$8=Invulscherm!$AJ$12,Standaardwaarden!$B$36,Standaardwaarden!$B$37))))),"") ->  | GX10: =IF(AND(Invulscherm!$J$43=Invulscherm!$AQ$8,Invulscherm!$J$44<>""),(1/(1+EXP(-1.5*(Invulscherm!$B$11-4)))),"") ->  | GY10: =IF(AND(Invulscherm!$J$43=Invulscherm!$AQ$8,Invulscherm!$J$44<>""),GV10*GW10*GX10,"") ->  | GZ10: =IF(AND(Invulscherm!$J$43=Invulscherm!$AQ$8,Invulscherm!$J$44<>""),IF($A10>Invulscherm!$AB$25,GZ9+GY10/52,IF($A10<Invulscherm!$AB$25,"",(VLOOKUP(Invulscherm!$J$44,Meststoffen!$A$3:$P$62,6,FALSE))+GY10/52)),"") ->  | HA10: =IF(AND(Invulscherm!$J$43=Invulscherm!$AQ$8,Invulscherm!$J$44<>""),IF($A10>Invulscherm!$AB$25,GU10*(-2.82)*GY10*(1/52)*(GZ10^(-1.6)),0),0) -> 0 | HB10: =IF(AND(Invulscherm!$J$43=Invulscherm!$AQ$8,Invulscherm!$J$44<>""),IF($A10>Invulscherm!$AB$25,HB9+HC9,IF($A10<Invulscherm!$AB$25,0,IF(Invulscherm!$D$28="Uitslag + 10%",1.1*(Invulscherm!$K$44*(Invulscherm!$K$46-Invulscherm!$K$47)),IF(Invulscherm!$D$28="Uitslag - 10%",0.9*(Invulscherm!$K$44*(Invulscherm!$K$46-Invulscherm!$K$47)),Invulscherm!$K$44*(Invulscherm!$K$46-Invulscherm!$K$47))))),0) -> 0 | HC10: =IF((HB10)>0,((HA10*(1+Standaardwaarden!$B$29))/(GU10/HB10))-(((HA10*(1+Standaardwaarden!$B$29))-HA10)*(1/Standaardwaarden!$B$28)),0) -> 0 | HD10: 0 | HE10: =IF(AND(Invulscherm!$J$43=Invulscherm!$AQ$8,Invulscherm!$J$44<>""),IF($A10<Invulscherm!$AB$25,"",IF(Invulscherm!$D$28="Uitslag + 10%",1.1*(Invulscherm!$K$44*Invulscherm!$K$47),IF(Invulscherm!$D$28="Uitslag - 10%",0.9*(Invulscherm!$K$44*Invulscherm!$K$47),Invulscherm!$K$44*Invulscherm!$K$47))),Invulscherm!$K$44*0.98) -> 0 | HF10: =IF($A10<Invulscherm!$AB$25,0,IF(AND(Invulscherm!$AB$25<Invulscherm!$AB$13,$A10>Invulscherm!$AB$13),0,IF(AND(Invulscherm!$J$43=Invulscherm!$AQ$8,Invulscherm!$J$44<>""),IF(Invulscherm!$J$45=Invulscherm!$AS$8,HE10*Invulscherm!$AT$8,HE10*Invulscherm!$AT$9),Invulscherm!$K$44*0.98))) -> 0 | HG10: 0 | HH10: 0 | HI10: =IF(HG10>0,(Standaardwaarden!$B$30*(HG10-HH10-HI9)*((-$AV10-$CJ10-$CW10-$DJ10-$EC10-$EV10-$FO10-$GH10-$HA10)*(1+Standaardwaarden!$B$29))/10000),0) -> 0 | HJ10: 0 | HK10: =IF(HG10>0,IF($A10>Invulscherm!$AB$13,(HG10-HJ10),0),0) -> 0
A11: -47 | C11: =IF(Invulscherm!$B$9="Noord Nederland",IF(Invulscherm!$B$4="koud jaar",Temperatuur!C8,IF(Invulscherm!$B$4="warm jaar",Temperatuur!B8,Temperatuur!A8)),IF(Invulscherm!$B$9="Midden Nederland",IF(Invulscherm!$B$4="koud jaar",Temperatuur!F8,IF(Invulscherm!$B$4="warm jaar",Temperatuur!E8,Temperatuur!D8)),IF(Invulscherm!$B$9="Zuid Nederland",IF(Invulscherm!$B$4="koud jaar",Temperatuur!I8,IF(Invulscherm!$B$4="warm jaar",Temperatuur!H8,Temperatuur!G8)),IF(Invulscherm!$B$4="koud jaar",Temperatuur!L8,IF(Invulscherm!$B$4="warm jaar",Temperatuur!K8,Temperatuur!J8))))) -> 5.766666667 | D11: =IF(Invulscherm!$B$15<>"",IF(Invulscherm!$AB$18+0.999<A11,D10,IF(Invulscherm!$AB$17>A11,(D12-1),IF((Invulscherm!$AB$17+0.999)<A11,(D10+1),0))),"") ->  | E11: =IF(Invulscherm!$B$15<>"",IF($D11<0,0,INDEX((Gewasopname!$B$12:$D$86,Gewasopname!$F$12:$H$86,Gewasopname!$J$12:$L$86,Gewasopname!$N$12:$P$86,Gewasopname!$R$12:$T$86,Gewasopname!$V$12:$X$86,Gewasopname!$Z$12:$AB$81,Gewasopname!$AD$12:$AF$81,Gewasopname!$AH$12:$AJ$71,Gewasopname!$AL$12:$AN$71,Gewasopname!$AP$12:$AR$81,Gewasopname!$AT$12:$AV$81,Gewasopname!$AX$12:$AZ$81,Gewasopname!$BB$12:$BD$81,Gewasopname!$BF$12:$BH$63,Gewasopname!$BJ$12:$BL$63,Gewasopname!$BN$12:$BP$63,Gewasopname!$BR$12:$BT$63,Gewasopname!$BV$12:$BX$63,Gewasopname!$BZ$12:$CB$63,Gewasopname!$CD$12:$CF$63,Gewasopname!$CH$12:$CJ$63,Gewasopname!$CL$12:$CN$63,Gewasopname!$CP$12:$CR$63,Gewasopname!$CT$12:$CV$63,Gewasopname!$CX$12:$CZ$63,Gewasopname!$DB$12:$DD$63,Gewasopname!$DF$12:$DH$63,Gewasopname!$DJ$12:$DL$63,Gewasopname!$DN$12:$DP$63),$D11+1,2,$E$3)),"") ->  | F11: =IF(Invulscherm!$B$15<>"",IF(Invulscherm!$B$15="Suikerbiet",E11,E11*(Invulscherm!$B$19/(HLOOKUP(Invulscherm!$B$15,Gewasopname!$B$2:$DP$63,4,FALSE)))),0) -> 0 | G11: =IF($A11<=Invulscherm!$AB$18,F11,"") -> 0 | H11: =IF(Invulscherm!$B$15<>"",IF($D11<0,0,INDEX((Gewasopname!$B$12:$D$86,Gewasopname!$F$12:$H$86,Gewasopname!$J$12:$L$86,Gewasopname!$N$12:$P$86,Gewasopname!$R$12:$T$86,Gewasopname!$V$12:$X$86,Gewasopname!$Z$12:$AB$81,Gewasopname!$AD$12:$AF$81,Gewasopname!$AH$12:$AJ$71,Gewasopname!$AL$12:$AN$71,Gewasopname!$AP$12:$AR$81,Gewasopname!$AT$12:$AV$81,Gewasopname!$AX$12:$AZ$81,Gewasopname!$BB$12:$BD$81,Gewasopname!$BF$12:$BH$63,Gewasopname!$BJ$12:$BL$63,Gewasopname!$BN$12:$BP$63,Gewasopname!$BR$12:$BT$63,Gewasopname!$BV$12:$BX$63,Gewasopname!$BZ$12:$CB$63,Gewasopname!$CD$12:$CF$63,Gewasopname!$CH$12:$CJ$63,Gewasopname!$CL$12:$CN$63,Gewasopname!$CP$12:$CR$63,Gewasopname!$CT$12:$CV$63,Gewasopname!$CX$12:$CZ$63,Gewasopname!$DB$12:$DD$63,Gewasopname!$DF$12:$DH$63,Gewasopname!$DJ$12:$DL$63,Gewasopname!$DN$12:$DP$63),$D11+1,3,$E$3)),"") ->  | I11: =IF($A11<=Invulscherm!$AB$18,H11,"") ->  | J11: =IF(Invulscherm!$B$15<>"",IF($D11<0,0,INDEX((Gewasopname!$B$12:$E$86,Gewasopname!$F$12:$I$86,Gewasopname!$J$12:$M$86,Gewasopname!$N$12:$Q$86,Gewasopname!$R$12:$U$86,Gewasopname!$V$12:$Y$86,Gewasopname!$Z$12:$AC$81,Gewasopname!$AD$12:$AG$81,Gewasopname!$AH$12:$AK$71,Gewasopname!$AL$12:$AO$71,Gewasopname!$AP$12:$AS$81,Gewasopname!$AT$12:$AW$81,Gewasopname!$AX$12:$BA$81,Gewasopname!$BB$12:$BE$81,Gewasopname!$BF$12:$BI$63,Gewasopname!$BJ$12:$BM$63,Gewasopname!$BN$12:$BQ$63,Gewasopname!$BR$12:$BU$63,Gewasopname!$BV$12:$BY$63,Gewasopname!$BZ$12:$CC$63,Gewasopname!$CD$12:$CG$63,Gewasopname!$CH$12:$CK$63,Gewasopname!$CL$12:$CO$63,Gewasopname!$CP$12:$CS$63,Gewasopname!$CT$12:$CW$63,Gewasopname!$CX$12:$DA$63,Gewasopname!$DB$12:$DE$63,Gewasopname!$DF$12:$DI$63,Gewasopname!$DJ$12:$DM$63,Gewasopname!$DN$12:$DQ$63),$D11+1,4,$E$3)),"") ->  | K11: =IF(Invulscherm!$B$15<>"",IF(Invulscherm!$B$15="Suikerbiet",J11,J11*(Invulscherm!$B$19/(HLOOKUP(Invulscherm!$B$15,Gewasopname!$B$2:$DP$63,4,FALSE)))),0) -> 0 | L11: =IF($A11<=Invulscherm!$AB$18,K11,"") -> 0 | M11: -56.17080508 | N11: =IF($A11<=Invulscherm!$AB$18,M11,"") -> -56.17080508 | O11: 0 | P11: =IF($A11<=Invulscherm!$AB$18,O11,"") -> 0 | Q11: 0 | R11: =IF($A11<=Invulscherm!$AB$18,Q11,"") -> 0 | S11: 0 | T11: =IF($A11<=Invulscherm!$AB$18,S11,"") -> 0 | U11: 0 | V11: =IF($A11<=Invulscherm!$AB$18,U11,"") -> 0 | W11: 0 | X11: =IF($A11<=Invulscherm!$AB$18,W11,"") -> 0 | Y11: 0 | Z11: =IF($A11<=Invulscherm!$AB$18,Y11,"") -> 0 | AA11: -56.17080508 | AB11: =IF(A11<=Invulscherm!$AB$18,"",AA11) ->  | AD11: =IF($A11>=Invulscherm!$AB$17,IF($A11<=Invulscherm!$AB$18,(G11+I11-$L11-$N11),""),0) -> 0 | AE11: =IF($A11>=Invulscherm!$AB$20,IF($A11<=Invulscherm!$AB$18,(AD11-P11),""),"") ->  | AF11: =IF($A11>=Invulscherm!$AB$20,IF($A11<=Invulscherm!$AB$18,($AE11-$R11),""),"") ->  | AG11: =IF($A11>=Invulscherm!$AB$20,IF($A11<=Invulscherm!$AB$18,($AF11-$T11),""),"") ->  | AH11: =IF($A11>=Invulscherm!$AB$20,IF($A11<=Invulscherm!$AB$18,($AG11-$V11),""),"") ->  | AI11: =IF($A11>=Invulscherm!$AB$20,IF($A11<=Invulscherm!$AB$18,($AH11-$X11),""),"") ->  | AJ11: =IF($A11>=Invulscherm!$AB$20,IF($A11<=Invulscherm!$AB$18,($AI11-$Z11),""),"") ->  | AK11: =IF($A11>Invulscherm!$AB$20,IF($A11<=Invulscherm!$AB$18,IF(AJ11<-10,"ja","nee"),""),"") ->  | AL11: =IF(AND(Invulscherm!$AB$20<>"",Invulscherm!$B$15<>""),IF($A11>=Invulscherm!$AB$20,IF($A11<=Invulscherm!$AB$18,IF(AJ11>5,"ja","nee"),""),""),"ja") -> ja | AN11: =IF(Invulscherm!$B$13="",IF($A11>Invulscherm!$U$13,0,IF($A11<Invulscherm!$U$13,0,Standaardwaarden!$B$21*Standaardwaarden!$B$20*(Invulscherm!$B$10/100)*Standaardwaarden!$B$23)),IF($A11>Invulscherm!$AB$13,0,IF($A11<Invulscherm!$AB$13,0,Standaardwaarden!$B$21*Standaardwaarden!$B$20*(Invulscherm!$B$10/100)*Standaardwaarden!$B$23))) -> 0 | AO11: 0 | AP11: 0.6860169699 | AQ11: =(-0.322*LN(Invulscherm!$B$10)+1.2233)*(IF(Invulscherm!$B$8=Invulscherm!$AJ$8,Standaardwaarden!$B$32,IF(Invulscherm!$B$8=Invulscherm!$AJ$9,Standaardwaarden!$B$33,IF(Invulscherm!$B$8=Invulscherm!$AJ$10,Standaardwaarden!$B$34,IF(Invulscherm!$B$8=Invulscherm!$AJ$11,Standaardwaarden!$B$35,IF(Invulscherm!$B$8=Invulscherm!$AJ$12,Standaardwaarden!$B$36,Standaardwaarden!$B$37)))))) -> 0.8500906167 | AS11: =(1/(1+EXP(-1.5*(Invulscherm!$B$11-4)))) -> 0.9770226301 | AT11: 0.5697767248 | AU11: =IF(Invulscherm!$B$13="",IF(($A11-1)>Invulscherm!$U$13,AU10+AT11/52,IF(($A11-1)<Invulscherm!$U$13,"",Standaardwaarden!$B$22+AT11/52)),IF(($A11-1)>Invulscherm!$AB$13,AU10+AT11/52,IF(($A11-1)<Invulscherm!$AB$13,"",Standaardwaarden!$B$22+AT11/52))) ->  | AV11: =IF(Invulscherm!$B$13="",IF(($A11-1)>Invulscherm!$U$13,AO11*(-2.82)*AT11*(1/52)*(AU11^(-1.6)),0),IF(($A11-1)>Invulscherm!$AB$13,AO11*(-2.82)*AT11*(1/52)*(AU11^(-1.6)),0)) -> 0 | AW11: =IF(Invulscherm!$B$13="",IF(($A11-1)>Invulscherm!$U$13,AW10+AX10,IF(($A11-1)<Invulscherm!$U$13,0,(Standaardwaarden!$B$20*Standaardwaarden!$B$21*(Invulscherm!$B$10/100)*Standaardwaarden!$B$23)/Standaardwaarden!$B$25)),IF(($A11-1)>Invulscherm!$AB$13,AW10+AX10,IF(($A11-1)<Invulscherm!$AB$13,0,(Standaardwaarden!$B$20*Standaardwaarden!$B$21*(Invulscherm!$B$10/100)*Standaardwaarden!$B$23)/Standaardwaarden!$B$25))) -> 0 | AX11: =IF(Invulscherm!$B$13="",IF(($A11-1)>Invulscherm!$U$13,((AV11*(1+Standaardwaarden!$B$29))/(AO11/AW11))-(((AV11*(1+Standaardwaarden!$B$29))-AV11)*(1/Standaardwaarden!$B$28)),0),IF(($A11-1)>Invulscherm!$AB$13,((AV11*(1+Standaardwaarden!$B$29))/(AO11/AW11))-(((AV11*(1+Standaardwaarden!$B$29))-AV11)*(1/Standaardwaarden!$B$28)),0)) -> 0 | AY11: 0 | AZ11: =IF(Invulscherm!$B$13="",IF(($A11-1)<Invulscherm!$U$13,0,Invulscherm!$T$12),IF(($A11-1)<Invulscherm!$AB$13,0,Invulscherm!$B$12)) -> 0 | BA11: 0 | BB11: 0 | BC11: 0 | BD11: =IF(BB11>0,(Standaardwaarden!$B$30*(BB11-BC11-BD10)*((-$AV11-$CJ11-$CW11-$DJ11-$EC11-$EV11-$FO11-$GH11-$HA11)*(1+Standaardwaarden!$B$29))/10000),0) -> 0 | BE11: 0 | BF11: 0 | BH11: 0 | BI11: 49644.18488 | BJ11: 0.6860169699 | BK11: =(-0.322*LN(Invulscherm!$B$10)+1.2233)*(IF(Invulscherm!$B$8=Invulscherm!$AJ$8,Standaardwaarden!$B$32,IF(Invulscherm!$B$8=Invulscherm!$AJ$9,Standaardwaarden!$B$33,IF(Invulscherm!$B$8=Invulscherm!$AJ$10,Standaardwaarden!$B$34,IF(Invulscherm!$B$8=Invulscherm!$AJ$11,Standaardwaarden!$B$35,IF(Invulscherm!$B$8=Invulscherm!$AJ$12,Standaardwaarden!$B$36,Standaardwaarden!$B$37)))))) -> 0.8500906167 | BM11: =(1/(1+EXP(-1.5*(Invulscherm!$B$11-4)))) -> 0.9770226301 | BN11: 0.5697767248 | BO11: 16.02673128 | BP11: -18.11619243 | BQ11: 4964.981167 | BR11: =((BP11*(1+Standaardwaarden!$B$29))/(BI11/BQ11))-(((BP11*(1+Standaardwaarden!$B$29))-BP11)*(1/Standaardwaarden!$B$28)) -> -1.421711796 | BS11: 3.471953135 | BT11: 0 | BU11: 3.471953135 | BV11: 3.471953135 | BW11: 0 | BX11: =IF(BV11>0,(Standaardwaarden!$B$30*(BV11-BW11-BX10)*((-$BP11-$CJ11-$CW11-$DJ11-$EC11-$EV11-$FO11-$GH11-$HA11)*(1+Standaardwaarden!$B$29))/10000),0) -> 0.00879632015 | BY11: 0.01442121856 | BZ11: 3.457531916 | CA11: =IF(Invulscherm!$AB$13="",IF(A11<Invulscherm!$U$13,(BZ11+(Invulscherm!$T$12-(VLOOKUP(Invulscherm!$U$13,$A$6:$BZ$110,78,FALSE)))),IF(A11>Invulscherm!$U$13,BF11,Invulscherm!$T$12)),IF(A11<Invulscherm!$AB$13,(BZ11+(Invulscherm!$B$12-(VLOOKUP(Invulscherm!$AB$13,$A$6:$BZ$110,78,FALSE)))),IF(A11>Invulscherm!$AB$13,BF11,Invulscherm!$B$12))) -> -56.17080508 | CC11: =IF($A11>Invulscherm!$AB$15,0,IF($A11<Invulscherm!$AB$15,0,Invulscherm!$AB$29*Invulscherm!$AB$31)) -> 0 | CD11: 0 | CE11: 0.6860169699 | CF11: =IF(Invulscherm!$B$8=Invulscherm!$AJ$8,Standaardwaarden!$B$32,IF(Invulscherm!$B$8=Invulscherm!$AJ$9,Standaardwaarden!$B$33,IF(Invulscherm!$B$8=Invulscherm!$AJ$10,Standaardwaarden!$B$34,IF(Invulscherm!$B$8=Invulscherm!$AJ$11,Standaardwaarden!$B$35,IF(Invulscherm!$B$8=Invulscherm!$AJ$12,Standaardwaarden!$B$36,Standaardwaarden!$B$37))))) -> 0.85 | CG11: =(1/(1+EXP(-1.5*(Invulscherm!$B$11-4)))) -> 0.9770226301 | CH11: 0.5697159886 | CI11: =IF($A11>Invulscherm!$AB$15,CI10+CH11/52,IF($A11<Invulscherm!$AB$15,"",Invulscherm!$AB$32+CH11/52)) ->  | CJ11: =IF($A11>Invulscherm!$AB$15,CD11*(-2.82)*CH11*(1/52)*(CI11^(-1.6)),0) -> 0 | CK11: =IF($A11>Invulscherm!$AB$15,CK10+CL10,IF($A11<Invulscherm!$AB$15,0,Invulscherm!$AB$29*Invulscherm!$AB$30)) -> 0 | CL11: =IF(CK11>0,IF($A11>Invulscherm!$AB$15,((CJ11*(1+Standaardwaarden!$B$29))/(CD11/CK11))-(((CJ11*(1+Standaardwaarden!$B$29))-CJ11)*(1/Standaardwaarden!$B$28)),0),0) -> 0 | CM11: 0 | CN11: =IF(Invulscherm!$B$13="",IF(A11<Invulscherm!$U$13,0,(CM11-VLOOKUP(Invulscherm!$U$13,$A$4:$HK$110,91,FALSE))),IF(A11<Invulscherm!$AB$13,0,(CM11-VLOOKUP(Invulscherm!$AB$13,$A$4:$HK$110,91,FALSE)))) -> 0 | CP11: =IF($A11>Invulscherm!$AB$16,0,IF($A11<Invulscherm!$AB$16,0,Invulscherm!$AB$36)) -> 0 | CQ11: 0 | CR11: 0.6860169699 | CS11: =IF(Invulscherm!$B$8=Invulscherm!$AJ$8,Standaardwaarden!$B$32,IF(Invulscherm!$B$8=Invulscherm!$AJ$9,Standaardwaarden!$B$33,IF(Invulscherm!$B$8=Invulscherm!$AJ$10,Standaardwaarden!$B$34,IF(Invulscherm!$B$8=Invulscherm!$AJ$11,Standaardwaarden!$B$35,IF(Invulscherm!$B$8=Invulscherm!$AJ$12,Standaardwaarden!$B$36,Standaardwaarden!$B$37))))) -> 0.85 | CT11: =(1/(1+EXP(-1.5*(Invulscherm!$B$11-4)))) -> 0.9770226301 | CU11: 0.5697159886 | CV11: =IF($A11>Invulscherm!$AB$16,CV10+CU11/52,IF($A11<Invulscherm!$AB$16,"",Invulscherm!$AB$37+CU11/52)) ->  | CW11: =IF($A11>Invulscherm!$AB$16,CQ11*(-2.82)*CU11*(1/52)*(CV11^(-1.6)),0) -> 0 | CX11: =IF($A11>Invulscherm!$AB$16,CX10+CY10,IF($A11<Invulscherm!$AB$16,0,Invulscherm!$AB$35)) -> 0 | CY11: =IF(CX11>0,IF($A11>Invulscherm!$AB$16,((CW11*(1+Standaardwaarden!$B$29))/(CQ11/CX11))-(((CW11*(1+Standaardwaarden!$B$29))-CW11)*(1/Standaardwaarden!$B$28)),0),0) -> 0 | CZ11: 0 | DA11: =IF(Invulscherm!$B$13="",IF(A11<Invulscherm!$U$13,0,(CZ11-VLOOKUP(Invulscherm!$U$13,$A$4:$HK$110,104,FALSE))),IF(A11<Invulscherm!$AB$13,0,(CZ11-VLOOKUP(Invulscherm!$AB$13,$A$4:$HK$110,104,FALSE)))) -> 0 | DC11: =IF(AND(Invulscherm!$B$32=Invulscherm!$AQ$8,Invulscherm!$B$33<>""),IF($A11>Invulscherm!$AB$20,0,IF($A11<Invulscherm!$AB$20,0,Invulscherm!$C$33*Invulscherm!$C$37*(VLOOKUP(Invulscherm!$B$33,Meststoffen!$A$3:$P$62,7,FALSE)))),"") ->  | DD11: =IF(AND(Invulscherm!$B$32=Invulscherm!$AQ$8,Invulscherm!$B$33<>""),IF(DC11>0,DC11,DD10+DJ10),"") ->  | DE11: =IF(AND(Invulscherm!$B$32=Invulscherm!$AQ$8,Invulscherm!$B$33<>""),IF($C11>27,3.5,IF($C11<-0.999,0,IF(-1<$C11<9.001,0.09*($C11+1),0.88*2^(($C11-9)/9)))),"") ->  | DF11: =IF(AND(Invulscherm!$B$32=Invulscherm!$AQ$8,Invulscherm!$B$33<>""),IF(Invulscherm!$B$8=Invulscherm!$AJ$8,Standaardwaarden!$B$32,IF(Invulscherm!$B$8=Invulscherm!$AJ$9,Standaardwaarden!$B$33,IF(Invulscherm!$B$8=Invulscherm!$AJ$10,Standaardwaarden!$B$34,IF(Invulscherm!$B$8=Invulscherm!$AJ$11,Standaardwaarden!$B$35,IF(Invulscherm!$B$8=Invulscherm!$AJ$12,Standaardwaarden!$B$36,Standaardwaarden!$B$37))))),"") ->  | DG11: =IF(AND(Invulscherm!$B$32=Invulscherm!$AQ$8,Invulscherm!$B$33<>""),(1/(1+EXP(-1.5*(Invulscherm!$B$11-4)))),"") ->  | DH11: =IF(AND(Invulscherm!$B$32=Invulscherm!$AQ$8,Invulscherm!$B$33<>""),DE11*DF11*DG11,"") ->  | DI11: =IF(AND(Invulscherm!$B$32=Invulscherm!$AQ$8,Invulscherm!$B$33<>""),IF($A11>Invulscherm!$AB$20,DI10+DH11/52,IF($A11<Invulscherm!$AB$20,"",(VLOOKUP(Invulscherm!$B$33,Meststoffen!$A$3:$P$62,6,FALSE))+DH11/52)),"") ->  | DJ11: =IF(AND(Invulscherm!$B$32=Invulscherm!$AQ$8,Invulscherm!$B$33<>""),IF($A11>Invulscherm!$AB$20,DD11*(-2.82)*DH11*(1/52)*(DI11^(-1.6)),0),0) -> 0 | DK11: =IF(AND(Invulscherm!$B$32=Invulscherm!$AQ$8,Invulscherm!$B$33<>""),IF($A11>Invulscherm!$AB$20,DK10+DL10,IF($A11<Invulscherm!$AB$20,0,IF(Invulscherm!$D$28="Uitslag + 10%",1.1*(Invulscherm!$C$33*(Invulscherm!$C$35-Invulscherm!$C$36)),IF(Invulscherm!$D$28="Uitslag - 10%",0.9*(Invulscherm!$C$33*(Invulscherm!$C$35-Invulscherm!$C$36)),Invulscherm!$C$33*(Invulscherm!$C$35-Invulscherm!$C$36))))),0) -> 0 | DL11: =IF((DK11)>0,((DJ11*(1+Standaardwaarden!$B$29))/(DD11/DK11))-(((DJ11*(1+Standaardwaarden!$B$29))-DJ11)*(1/Standaardwaarden!$B$28)),0) -> 0 | DM11: 0 | DN11: =IF(AND(Invulscherm!$B$32=Invulscherm!$AQ$8,Invulscherm!$B$33<>""),IF($A11<Invulscherm!$AB$20,"",IF(Invulscherm!$D$28="Uitslag + 10%",1.1*(Invulscherm!$C$33*Invulscherm!$C$36),IF(Invulscherm!$D$28="Uitslag - 10%",0.9*(Invulscherm!$C$33*Invulscherm!$C$36),Invulscherm!$C$33*Invulscherm!$C$36))),IF($A11<Invulscherm!$AB$20,"",Invulscherm!$C$33*0.98)) ->  | DO11: =IF($A11<Invulscherm!$AB$20,0,IF(AND(Invulscherm!$AB$20<Invulscherm!$AB$13,$A11>Invulscherm!$AB$13),0,IF(AND(Invulscherm!$B$32=Invulscherm!$AQ$8,Invulscherm!$B$33<>""),IF(Invulscherm!$B$34=Invulscherm!$AS$8,DN11*Invulscherm!$AT$8,IF(Invulscherm!$B$34=Invulscherm!$AS$9,DN11*Invulscherm!$AT$9,DN11*Invulscherm!$AT$10)),Invulscherm!$C$33*0.98))) -> 0 | DP11: 0 | DQ11: 0 | DR11: =IF(DP11>0,(Standaardwaarden!$B$30*(DP11-DQ11-DR10)*((-$AV11-$CJ11-$CW11-$DJ11-$EC11-$EV11-$FO11-$GH11-$HA11)*(1+Standaardwaarden!$B$29))/10000),0) -> 0 | DS11: 0 | DT11: =IF(DP11>0,IF($A11>Invulscherm!$AB$13,(DP11-DS11),0),0) -> 0 | DV11: =IF(AND(Invulscherm!$F$32=Invulscherm!$AQ$8,Invulscherm!$F$33<>""),IF($A11>Invulscherm!$AB$21,0,IF($A11<Invulscherm!$AB$21,0,Invulscherm!$G$33*Invulscherm!$G$37*(VLOOKUP(Invulscherm!$F$33,Meststoffen!$A$3:$P$62,7,FALSE)))),"") ->  | DW11: =IF(AND(Invulscherm!$F$32=Invulscherm!$AQ$8,Invulscherm!$F$33<>""),IF(DV11>0,DV11,DW10+EC10),"") ->  | DX11: =IF(AND(Invulscherm!$F$32=Invulscherm!$AQ$8,Invulscherm!$F$33<>""),IF($C11>27,3.5,IF($C11<-0.999,0,IF(-1<$C11<9.001,0.09*($C11+1),0.88*2^(($C11-9)/9)))),"") ->  | DY11: =IF(AND(Invulscherm!$F$32=Invulscherm!$AQ$8,Invulscherm!$F$33<>""),IF(Invulscherm!$B$8=Invulscherm!$AJ$8,Standaardwaarden!$B$32,IF(Invulscherm!$B$8=Invulscherm!$AJ$9,Standaardwaarden!$B$33,IF(Invulscherm!$B$8=Invulscherm!$AJ$10,Standaardwaarden!$B$34,IF(Invulscherm!$B$8=Invulscherm!$AJ$11,Standaardwaarden!$B$35,IF(Invulscherm!$B$8=Invulscherm!$AJ$12,Standaardwaarden!$B$36,Standaardwaarden!$B$37))))),"") ->  | DZ11: =IF(AND(Invulscherm!$F$32=Invulscherm!$AQ$8,Invulscherm!$F$33<>""),(1/(1+EXP(-1.5*(Invulscherm!$B$11-4)))),"") ->  | EA11: =IF(AND(Invulscherm!$F$32=Invulscherm!$AQ$8,Invulscherm!$F$33<>""),DX11*DY11*DZ11,"") ->  | EB11: =IF(AND(Invulscherm!$F$32=Invulscherm!$AQ$8,Invulscherm!$F$33<>""),IF($A11>Invulscherm!$AB$21,EB10+EA11/52,IF($A11<Invulscherm!$AB$21,"",(VLOOKUP(Invulscherm!$F$33,Meststoffen!$A$3:$P$62,6,FALSE))+EA11/52)),"") ->  | EC11: =IF(AND(Invulscherm!$F$32=Invulscherm!$AQ$8,Invulscherm!$F$33<>""),IF($A11>Invulscherm!$AB$21,DW11*(-2.82)*EA11*(1/52)*(EB11^(-1.6)),0),0) -> 0 | ED11: =IF(AND(Invulscherm!$F$32=Invulscherm!$AQ$8,Invulscherm!$F$33<>""),IF($A11>Invulscherm!$AB$21,ED10+EE10,IF($A11<Invulscherm!$AB$21,0,IF(Invulscherm!$D$28="Uitslag + 10%",1.1*(Invulscherm!$G$33*(Invulscherm!$G$35-Invulscherm!$G$36)),IF(Invulscherm!$D$28="Uitslag - 10%",0.9*(Invulscherm!$G$33*(Invulscherm!$G$35-Invulscherm!$G$36)),Invulscherm!$G$33*(Invulscherm!$G$35-Invulscherm!$G$36))))),0) -> 0 | EE11: =IF((ED11)>0,((EC11*(1+Standaardwaarden!$B$29))/(DW11/ED11))-(((EC11*(1+Standaardwaarden!$B$29))-EC11)*(1/Standaardwaarden!$B$28)),0) -> 0 | EF11: 0 | EG11: =IF(AND(Invulscherm!$F$32=Invulscherm!$AQ$8,Invulscherm!$F$33<>""),IF($A11<Invulscherm!$AB$21,"",IF(Invulscherm!$D$28="Uitslag + 10%",1.1*(Invulscherm!$G$33*Invulscherm!$G$36),IF(Invulscherm!$D$28="Uitslag - 10%",0.9*(Invulscherm!$G$33*Invulscherm!$G$36),Invulscherm!$G$33*Invulscherm!$G$36))),Invulscherm!$G$33*0.98) -> 0 | EH11: =IF($A11<Invulscherm!$AB$21,0,IF(AND(Invulscherm!$AB$21<Invulscherm!$AB$13,$A11>Invulscherm!$AB$13),0,IF(AND(Invulscherm!$F$32=Invulscherm!$AQ$8,Invulscherm!$F$33<>""),IF(Invulscherm!$F$34=Invulscherm!$AS$8,EG11*Invulscherm!$AT$8,EG11*Invulscherm!$AT$9),Invulscherm!$G$33*0.98))) -> 0 | EI11: 0 | EJ11: 0 | EK11: =IF(EI11>0,(Standaardwaarden!$B$30*(EI11-EJ11-EK10)*((-$AV11-$CJ11-$CW11-$DJ11-$EC11-$EV11-$FO11-$GH11-$HA11)*(1+Standaardwaarden!$B$29))/10000),0) -> 0 | EL11: 0 | EM11: =IF(EI11>0,IF($A11>Invulscherm!$AB$13,(EI11-EL11),0),0) -> 0 | EO11: =IF(AND(Invulscherm!$J$32=Invulscherm!$AQ$8,Invulscherm!$J$33<>""),IF($A11>Invulscherm!$AB$22,0,IF($A11<Invulscherm!$AB$22,0,Invulscherm!$K$33*Invulscherm!$K$37*(VLOOKUP(Invulscherm!$J$33,Meststoffen!$A$3:$P$62,7,FALSE)))),"") ->  | EP11: =IF(AND(Invulscherm!$J$32=Invulscherm!$AQ$8,Invulscherm!$J$33<>""),IF(EO11>0,EO11,EP10+EV10),"") ->  | EQ11: =IF(AND(Invulscherm!$J$32=Invulscherm!$AQ$8,Invulscherm!$J$33<>""),IF($C11>27,3.5,IF($C11<-0.999,0,IF(-1<$C11<9.001,0.09*($C11+1),0.88*2^(($C11-9)/9)))),"") ->  | ER11: =IF(AND(Invulscherm!$J$32=Invulscherm!$AQ$8,Invulscherm!$J$33<>""),IF(Invulscherm!$B$8=Invulscherm!$AJ$8,Standaardwaarden!$B$32,IF(Invulscherm!$B$8=Invulscherm!$AJ$9,Standaardwaarden!$B$33,IF(Invulscherm!$B$8=Invulscherm!$AJ$10,Standaardwaarden!$B$34,IF(Invulscherm!$B$8=Invulscherm!$AJ$11,Standaardwaarden!$B$35,IF(Invulscherm!$B$8=Invulscherm!$AJ$12,Standaardwaarden!$B$36,Standaardwaarden!$B$37))))),"") ->  | ES11: =IF(AND(Invulscherm!$J$32=Invulscherm!$AQ$8,Invulscherm!$J$33<>""),(1/(1+EXP(-1.5*(Invulscherm!$B$11-4)))),"") ->  | ET11: =IF(AND(Invulscherm!$J$32=Invulscherm!$AQ$8,Invulscherm!$J$33<>""),EQ11*ER11*ES11,"") ->  | EU11: =IF(AND(Invulscherm!$J$32=Invulscherm!$AQ$8,Invulscherm!$J$33<>""),IF($A11>Invulscherm!$AB$22,EU10+ET11/52,IF($A11<Invulscherm!$AB$22,"",(VLOOKUP(Invulscherm!$J$33,Meststoffen!$A$3:$P$62,6,FALSE))+ET11/52)),"") ->  | EV11: =IF(AND(Invulscherm!$J$32=Invulscherm!$AQ$8,Invulscherm!$J$33<>""),IF($A11>Invulscherm!$AB$22,EP11*(-2.82)*ET11*(1/52)*(EU11^(-1.6)),0),0) -> 0 | EW11: =IF(AND(Invulscherm!$J$32=Invulscherm!$AQ$8,Invulscherm!$J$33<>""),IF($A11>Invulscherm!$AB$22,EW10+EX10,IF($A11<Invulscherm!$AB$22,0,IF(Invulscherm!$D$28="Uitslag + 10%",1.1*(Invulscherm!$K$33*(Invulscherm!$K$35-Invulscherm!$K$36)),IF(Invulscherm!$D$28="Uitslag - 10%",0.9*(Invulscherm!$K$33*(Invulscherm!$K$35-Invulscherm!$K$36)),Invulscherm!$K$33*(Invulscherm!$K$35-Invulscherm!$K$36))))),0) -> 0 | EX11: =IF((EW11)>0,((EV11*(1+Standaardwaarden!$B$29))/(EP11/EW11))-(((EV11*(1+Standaardwaarden!$B$29))-EV11)*(1/Standaardwaarden!$B$28)),0) -> 0 | EY11: 0 | EZ11: =IF(AND(Invulscherm!$J$32=Invulscherm!$AQ$8,Invulscherm!$J$33<>""),IF($A11<Invulscherm!$AB$22,"",IF(Invulscherm!$D$28="Uitslag + 10%",1.1*(Invulscherm!$K$33*Invulscherm!$K$36),IF(Invulscherm!$D$28="Uitslag - 10%",0.9*(Invulscherm!$K$33*Invulscherm!$K$36),Invulscherm!$K$33*Invulscherm!$K$36))),Invulscherm!$K$33*0.98) -> 0 | FA11: =IF($A11<Invulscherm!$AB$22,0,IF(AND(Invulscherm!$AB$22<Invulscherm!$AB$13,$A11>Invulscherm!$AB$13),0,IF(AND(Invulscherm!$J$32=Invulscherm!$AQ$8,Invulscherm!$J$33<>""),IF(Invulscherm!$J$34=Invulscherm!$AS$8,EZ11*Invulscherm!$AT$8,EZ11*Invulscherm!$AT$9),Invulscherm!$K$33*0.98))) -> 0 | FB11: 0 | FC11: 0 | FD11: =IF(FB11>0,(Standaardwaarden!$B$30*(FB11-FC11-FD10)*((-$AV11-$CJ11-$CW11-$DJ11-$EC11-$EV11-$FO11-$GH11-$HA11)*(1+Standaardwaarden!$B$29))/10000),0) -> 0 | FE11: 0 | FF11: =IF(FB11>0,IF($A11>Invulscherm!$AB$13,(FB11-FE11),0),0) -> 0 | FH11: =IF(AND(Invulscherm!$B$43=Invulscherm!$AQ$8,Invulscherm!$B$44<>""),IF($A11>Invulscherm!$AB$23,0,IF($A11<Invulscherm!$AB$23,0,Invulscherm!$C$44*Invulscherm!$C$48*(VLOOKUP(Invulscherm!$B$44,Meststoffen!$A$3:$P$62,7,FALSE)))),"") ->  | FI11: =IF(AND(Invulscherm!$B$43=Invulscherm!$AQ$8,Invulscherm!$B$44<>""),IF(FH11>0,FH11,FI10+FO10),"") ->  | FJ11: =IF(AND(Invulscherm!$B$43=Invulscherm!$AQ$8,Invulscherm!$B$44<>""),IF($C11>27,3.5,IF($C11<-0.999,0,IF(-1<$C11<9.001,0.09*($C11+1),0.88*2^(($C11-9)/9)))),"") ->  | FK11: =IF(AND(Invulscherm!$B$43=Invulscherm!$AQ$8,Invulscherm!$B$44<>""),IF(Invulscherm!$B$8=Invulscherm!$AJ$8,Standaardwaarden!$B$32,IF(Invulscherm!$B$8=Invulscherm!$AJ$9,Standaardwaarden!$B$33,IF(Invulscherm!$B$8=Invulscherm!$AJ$10,Standaardwaarden!$B$34,IF(Invulscherm!$B$8=Invulscherm!$AJ$11,Standaardwaarden!$B$35,IF(Invulscherm!$B$8=Invulscherm!$AJ$12,Standaardwaarden!$B$36,Standaardwaarden!$B$37))))),"") ->  | FL11: =IF(AND(Invulscherm!$B$43=Invulscherm!$AQ$8,Invulscherm!$B$44<>""),(1/(1+EXP(-1.5*(Invulscherm!$B$11-4)))),"") ->  | FM11: =IF(AND(Invulscherm!$B$43=Invulscherm!$AQ$8,Invulscherm!$B$44<>""),FJ11*FK11*FL11,"") ->  | FN11: =IF(AND(Invulscherm!$B$43=Invulscherm!$AQ$8,Invulscherm!$B$44<>""),IF($A11>Invulscherm!$AB$23,FN10+FM11/52,IF($A11<Invulscherm!$AB$23,"",(VLOOKUP(Invulscherm!$B$44,Meststoffen!$A$3:$P$62,6,FALSE))+FM11/52)),"") ->  | FO11: =IF(AND(Invulscherm!$B$43=Invulscherm!$AQ$8,Invulscherm!$B$44<>""),IF($A11>Invulscherm!$AB$23,FI11*(-2.82)*FM11*(1/52)*(FN11^(-1.6)),0),0) -> 0 | FP11: =IF(AND(Invulscherm!$B$43=Invulscherm!$AQ$8,Invulscherm!$B$44<>""),IF($A11>Invulscherm!$AB$23,FP10+FQ10,IF($A11<Invulscherm!$AB$23,0,IF(Invulscherm!$D$28="Uitslag + 10%",1.1*(Invulscherm!$C$44*(Invulscherm!$C$46-Invulscherm!$C$47)),IF(Invulscherm!$D$28="Uitslag - 10%",0.9*(Invulscherm!$C$44*(Invulscherm!$C$46-Invulscherm!$C$47)),Invulscherm!$C$44*(Invulscherm!$C$46-Invulscherm!$C$47))))),0) -> 0 | FQ11: =IF((FP11)>0,((FO11*(1+Standaardwaarden!$B$29))/(FI11/FP11))-(((FO11*(1+Standaardwaarden!$B$29))-FO11)*(1/Standaardwaarden!$B$28)),0) -> 0 | FR11: 0 | FS11: =IF(AND(Invulscherm!$B$43=Invulscherm!$AQ$8,Invulscherm!$B$44<>""),IF($A11<Invulscherm!$AB$23,"",IF(Invulscherm!$D$28="Uitslag + 10%",1.1*(Invulscherm!$C$44*Invulscherm!$C$47),IF(Invulscherm!$D$28="Uitslag - 10%",0.9*(Invulscherm!$C$44*Invulscherm!$C$47),Invulscherm!$C$44*Invulscherm!$C$47))),Invulscherm!$C$44*0.98) -> 0 | FT11: =IF($A11<Invulscherm!$AB$23,0,IF(AND(Invulscherm!$AB$23<Invulscherm!$AB$13,$A11>Invulscherm!$AB$13),0,IF(AND(Invulscherm!$B$43=Invulscherm!$AQ$8,Invulscherm!$B$44<>""),IF(Invulscherm!$B$45=Invulscherm!$AS$8,FS11*Invulscherm!$AT$8,FS11*Invulscherm!$AT$9),Invulscherm!$C$44*0.98))) -> 0 | FU11: 0 | FV11: 0 | FW11: =IF(FU11>0,(Standaardwaarden!$B$30*(FU11-FV11-FW10)*((-$AV11-$CJ11-$CW11-$DJ11-$EC11-$EV11-$FO11-$GH11-$HA11)*(1+Standaardwaarden!$B$29))/10000),0) -> 0 | FX11: 0 | FY11: =IF(FU11>0,IF($A11>Invulscherm!$AB$13,(FU11-FX11),0),0) -> 0 | GA11: =IF(AND(Invulscherm!$F$43=Invulscherm!$AQ$8,Invulscherm!$F$44<>""),IF($A11>Invulscherm!$AB$24,0,IF($A11<Invulscherm!$AB$24,0,Invulscherm!$G$44*Invulscherm!$G$48*(VLOOKUP(Invulscherm!$F$44,Meststoffen!$A$3:$P$62,7,FALSE)))),"") ->  | GB11: =IF(AND(Invulscherm!$F$43=Invulscherm!$AQ$8,Invulscherm!$F$44<>""),IF(GA11>0,GA11,GB10+GH10),"") ->  | GC11: =IF(AND(Invulscherm!$F$43=Invulscherm!$AQ$8,Invulscherm!$F$44<>""),IF($C11>27,3.5,IF($C11<-0.999,0,IF(-1<$C11<9.001,0.09*($C11+1),0.88*2^(($C11-9)/9)))),"") ->  | GD11: =IF(AND(Invulscherm!$F$43=Invulscherm!$AQ$8,Invulscherm!$F$44<>""),IF(Invulscherm!$B$8=Invulscherm!$AJ$8,Standaardwaarden!$B$32,IF(Invulscherm!$B$8=Invulscherm!$AJ$9,Standaardwaarden!$B$33,IF(Invulscherm!$B$8=Invulscherm!$AJ$10,Standaardwaarden!$B$34,IF(Invulscherm!$B$8=Invulscherm!$AJ$11,Standaardwaarden!$B$35,IF(Invulscherm!$B$8=Invulscherm!$AJ$12,Standaardwaarden!$B$36,Standaardwaarden!$B$37))))),"") ->  | GE11: =IF(AND(Invulscherm!$F$43=Invulscherm!$AQ$8,Invulscherm!$F$44<>""),(1/(1+EXP(-1.5*(Invulscherm!$B$11-4)))),"") ->  | GF11: =IF(AND(Invulscherm!$F$43=Invulscherm!$AQ$8,Invulscherm!$F$44<>""),GC11*GD11*GE11,"") ->  | GG11: =IF(AND(Invulscherm!$F$43=Invulscherm!$AQ$8,Invulscherm!$F$44<>""),IF($A11>Invulscherm!$AB$24,GG10+GF11/52,IF($A11<Invulscherm!$AB$24,"",(VLOOKUP(Invulscherm!$F$44,Meststoffen!$A$3:$P$62,6,FALSE))+GF11/52)),"") ->  | GH11: =IF(AND(Invulscherm!$F$43=Invulscherm!$AQ$8,Invulscherm!$F$44<>""),IF($A11>Invulscherm!$AB$24,GB11*(-2.82)*GF11*(1/52)*(GG11^(-1.6)),0),0) -> 0 | GI11: =IF(AND(Invulscherm!$F$43=Invulscherm!$AQ$8,Invulscherm!$F$44<>""),IF($A11>Invulscherm!$AB$24,GI10+GJ10,IF($A11<Invulscherm!$AB$24,0,IF(Invulscherm!$D$28="Uitslag + 10%",1.1*(Invulscherm!$G$44*(Invulscherm!$G$46-Invulscherm!$G$47)),IF(Invulscherm!$D$28="Uitslag - 10%",0.9*(Invulscherm!$G$44*(Invulscherm!$G$46-Invulscherm!$G$47)),Invulscherm!$G$44*(Invulscherm!$G$46-Invulscherm!$G$47))))),0) -> 0 | GJ11: =IF((GI11)>0,((GH11*(1+Standaardwaarden!$B$29))/(GB11/GI11))-(((GH11*(1+Standaardwaarden!$B$29))-GH11)*(1/Standaardwaarden!$B$28)),0) -> 0 | GK11: 0 | GL11: =IF(AND(Invulscherm!$F$43=Invulscherm!$AQ$8,Invulscherm!$F$44<>""),IF($A11<Invulscherm!$AB$24,"",IF(Invulscherm!$D$28="Uitslag + 10%",1.1*(Invulscherm!$G$44*Invulscherm!$G$47),IF(Invulscherm!$D$28="Uitslag - 10%",0.9*(Invulscherm!$G$44*Invulscherm!$G$47),Invulscherm!$G$44*Invulscherm!$G$47))),Invulscherm!$G$44*0.98) -> 0 | GM11: =IF($A11<Invulscherm!$AB$24,0,IF(AND(Invulscherm!$AB$24<Invulscherm!$AB$13,$A11>Invulscherm!$AB$13),0,IF(AND(Invulscherm!$F$43=Invulscherm!$AQ$8,Invulscherm!$F$44<>""),IF(Invulscherm!$F$45=Invulscherm!$AS$8,GL11*Invulscherm!$AT$8,GL11*Invulscherm!$AT$9),Invulscherm!$G$44*0.98))) -> 0 | GN11: 0 | GO11: 0 | GP11: =IF(GN11>0,(Standaardwaarden!$B$30*(GN11-GO11-GP10)*((-$AV11-$CJ11-$CW11-$DJ11-$EC11-$EV11-$FO11-$GH11-$HA11)*(1+Standaardwaarden!$B$29))/10000),0) -> 0 | GQ11: 0 | GR11: =IF(GN11>0,IF($A11>Invulscherm!$AB$13,(GN11-GQ11),0),0) -> 0 | GT11: =IF(AND(Invulscherm!$J$43=Invulscherm!$AQ$8,Invulscherm!$J$44<>""),IF($A11>Invulscherm!$AB$25,0,IF($A11<Invulscherm!$AB$25,0,Invulscherm!$K$44*Invulscherm!$K$48*(VLOOKUP(Invulscherm!$J$44,Meststoffen!$A$3:$P$62,7,FALSE)))),"") ->  | GU11: =IF(AND(Invulscherm!$J$43=Invulscherm!$AQ$8,Invulscherm!$J$44<>""),IF(GT11>0,GT11,GU10+HA10),"") ->  | GV11: =IF(AND(Invulscherm!$J$43=Invulscherm!$AQ$8,Invulscherm!$J$44<>""),IF($C11>27,3.5,IF($C11<-0.999,0,IF(-1<$C11<9.001,0.09*($C11+1),0.88*2^(($C11-9)/9)))),"") ->  | GW11: =IF(AND(Invulscherm!$J$43=Invulscherm!$AQ$8,Invulscherm!$J$44<>""),IF(Invulscherm!$B$8=Invulscherm!$AJ$8,Standaardwaarden!$B$32,IF(Invulscherm!$B$8=Invulscherm!$AJ$9,Standaardwaarden!$B$33,IF(Invulscherm!$B$8=Invulscherm!$AJ$10,Standaardwaarden!$B$34,IF(Invulscherm!$B$8=Invulscherm!$AJ$11,Standaardwaarden!$B$35,IF(Invulscherm!$B$8=Invulscherm!$AJ$12,Standaardwaarden!$B$36,Standaardwaarden!$B$37))))),"") ->  | GX11: =IF(AND(Invulscherm!$J$43=Invulscherm!$AQ$8,Invulscherm!$J$44<>""),(1/(1+EXP(-1.5*(Invulscherm!$B$11-4)))),"") ->  | GY11: =IF(AND(Invulscherm!$J$43=Invulscherm!$AQ$8,Invulscherm!$J$44<>""),GV11*GW11*GX11,"") ->  | GZ11: =IF(AND(Invulscherm!$J$43=Invulscherm!$AQ$8,Invulscherm!$J$44<>""),IF($A11>Invulscherm!$AB$25,GZ10+GY11/52,IF($A11<Invulscherm!$AB$25,"",(VLOOKUP(Invulscherm!$J$44,Meststoffen!$A$3:$P$62,6,FALSE))+GY11/52)),"") ->  | HA11: =IF(AND(Invulscherm!$J$43=Invulscherm!$AQ$8,Invulscherm!$J$44<>""),IF($A11>Invulscherm!$AB$25,GU11*(-2.82)*GY11*(1/52)*(GZ11^(-1.6)),0),0) -> 0 | HB11: =IF(AND(Invulscherm!$J$43=Invulscherm!$AQ$8,Invulscherm!$J$44<>""),IF($A11>Invulscherm!$AB$25,HB10+HC10,IF($A11<Invulscherm!$AB$25,0,IF(Invulscherm!$D$28="Uitslag + 10%",1.1*(Invulscherm!$K$44*(Invulscherm!$K$46-Invulscherm!$K$47)),IF(Invulscherm!$D$28="Uitslag - 10%",0.9*(Invulscherm!$K$44*(Invulscherm!$K$46-Invulscherm!$K$47)),Invulscherm!$K$44*(Invulscherm!$K$46-Invulscherm!$K$47))))),0) -> 0 | HC11: =IF((HB11)>0,((HA11*(1+Standaardwaarden!$B$29))/(GU11/HB11))-(((HA11*(1+Standaardwaarden!$B$29))-HA11)*(1/Standaardwaarden!$B$28)),0) -> 0 | HD11: 0 | HE11: =IF(AND(Invulscherm!$J$43=Invulscherm!$AQ$8,Invulscherm!$J$44<>""),IF($A11<Invulscherm!$AB$25,"",IF(Invulscherm!$D$28="Uitslag + 10%",1.1*(Invulscherm!$K$44*Invulscherm!$K$47),IF(Invulscherm!$D$28="Uitslag - 10%",0.9*(Invulscherm!$K$44*Invulscherm!$K$47),Invulscherm!$K$44*Invulscherm!$K$47))),Invulscherm!$K$44*0.98) -> 0 | HF11: =IF($A11<Invulscherm!$AB$25,0,IF(AND(Invulscherm!$AB$25<Invulscherm!$AB$13,$A11>Invulscherm!$AB$13),0,IF(AND(Invulscherm!$J$43=Invulscherm!$AQ$8,Invulscherm!$J$44<>""),IF(Invulscherm!$J$45=Invulscherm!$AS$8,HE11*Invulscherm!$AT$8,HE11*Invulscherm!$AT$9),Invulscherm!$K$44*0.98))) -> 0 | HG11: 0 | HH11: 0 | HI11: =IF(HG11>0,(Standaardwaarden!$B$30*(HG11-HH11-HI10)*((-$AV11-$CJ11-$CW11-$DJ11-$EC11-$EV11-$FO11-$GH11-$HA11)*(1+Standaardwaarden!$B$29))/10000),0) -> 0 | HJ11: 0 | HK11: =IF(HG11>0,IF($A11>Invulscherm!$AB$13,(HG11-HJ11),0),0) -> 0
A12: -46 | C12: =IF(Invulscherm!$B$9="Noord Nederland",IF(Invulscherm!$B$4="koud jaar",Temperatuur!C9,IF(Invulscherm!$B$4="warm jaar",Temperatuur!B9,Temperatuur!A9)),IF(Invulscherm!$B$9="Midden Nederland",IF(Invulscherm!$B$4="koud jaar",Temperatuur!F9,IF(Invulscherm!$B$4="warm jaar",Temperatuur!E9,Temperatuur!D9)),IF(Invulscherm!$B$9="Zuid Nederland",IF(Invulscherm!$B$4="koud jaar",Temperatuur!I9,IF(Invulscherm!$B$4="warm jaar",Temperatuur!H9,Temperatuur!G9)),IF(Invulscherm!$B$4="koud jaar",Temperatuur!L9,IF(Invulscherm!$B$4="warm jaar",Temperatuur!K9,Temperatuur!J9))))) -> -2.323809524 | D12: =IF(Invulscherm!$B$15<>"",IF(Invulscherm!$AB$18+0.999<A12,D11,IF(Invulscherm!$AB$17>A12,(D13-1),IF((Invulscherm!$AB$17+0.999)<A12,(D11+1),0))),"") ->  | E12: =IF(Invulscherm!$B$15<>"",IF($D12<0,0,INDEX((Gewasopname!$B$12:$D$86,Gewasopname!$F$12:$H$86,Gewasopname!$J$12:$L$86,Gewasopname!$N$12:$P$86,Gewasopname!$R$12:$T$86,Gewasopname!$V$12:$X$86,Gewasopname!$Z$12:$AB$81,Gewasopname!$AD$12:$AF$81,Gewasopname!$AH$12:$AJ$71,Gewasopname!$AL$12:$AN$71,Gewasopname!$AP$12:$AR$81,Gewasopname!$AT$12:$AV$81,Gewasopname!$AX$12:$AZ$81,Gewasopname!$BB$12:$BD$81,Gewasopname!$BF$12:$BH$63,Gewasopname!$BJ$12:$BL$63,Gewasopname!$BN$12:$BP$63,Gewasopname!$BR$12:$BT$63,Gewasopname!$BV$12:$BX$63,Gewasopname!$BZ$12:$CB$63,Gewasopname!$CD$12:$CF$63,Gewasopname!$CH$12:$CJ$63,Gewasopname!$CL$12:$CN$63,Gewasopname!$CP$12:$CR$63,Gewasopname!$CT$12:$CV$63,Gewasopname!$CX$12:$CZ$63,Gewasopname!$DB$12:$DD$63,Gewasopname!$DF$12:$DH$63,Gewasopname!$DJ$12:$DL$63,Gewasopname!$DN$12:$DP$63),$D12+1,2,$E$3)),"") ->  | F12: =IF(Invulscherm!$B$15<>"",IF(Invulscherm!$B$15="Suikerbiet",E12,E12*(Invulscherm!$B$19/(HLOOKUP(Invulscherm!$B$15,Gewasopname!$B$2:$DP$63,4,FALSE)))),0) -> 0 | G12: =IF($A12<=Invulscherm!$AB$18,F12,"") -> 0 | H12: =IF(Invulscherm!$B$15<>"",IF($D12<0,0,INDEX((Gewasopname!$B$12:$D$86,Gewasopname!$F$12:$H$86,Gewasopname!$J$12:$L$86,Gewasopname!$N$12:$P$86,Gewasopname!$R$12:$T$86,Gewasopname!$V$12:$X$86,Gewasopname!$Z$12:$AB$81,Gewasopname!$AD$12:$AF$81,Gewasopname!$AH$12:$AJ$71,Gewasopname!$AL$12:$AN$71,Gewasopname!$AP$12:$AR$81,Gewasopname!$AT$12:$AV$81,Gewasopname!$AX$12:$AZ$81,Gewasopname!$BB$12:$BD$81,Gewasopname!$BF$12:$BH$63,Gewasopname!$BJ$12:$BL$63,Gewasopname!$BN$12:$BP$63,Gewasopname!$BR$12:$BT$63,Gewasopname!$BV$12:$BX$63,Gewasopname!$BZ$12:$CB$63,Gewasopname!$CD$12:$CF$63,Gewasopname!$CH$12:$CJ$63,Gewasopname!$CL$12:$CN$63,Gewasopname!$CP$12:$CR$63,Gewasopname!$CT$12:$CV$63,Gewasopname!$CX$12:$CZ$63,Gewasopname!$DB$12:$DD$63,Gewasopname!$DF$12:$DH$63,Gewasopname!$DJ$12:$DL$63,Gewasopname!$DN$12:$DP$63),$D12+1,3,$E$3)),"") ->  | I12: =IF($A12<=Invulscherm!$AB$18,H12,"") ->  | J12: =IF(Invulscherm!$B$15<>"",IF($D12<0,0,INDEX((Gewasopname!$B$12:$E$86,Gewasopname!$F$12:$I$86,Gewasopname!$J$12:$M$86,Gewasopname!$N$12:$Q$86,Gewasopname!$R$12:$U$86,Gewasopname!$V$12:$Y$86,Gewasopname!$Z$12:$AC$81,Gewasopname!$AD$12:$AG$81,Gewasopname!$AH$12:$AK$71,Gewasopname!$AL$12:$AO$71,Gewasopname!$AP$12:$AS$81,Gewasopname!$AT$12:$AW$81,Gewasopname!$AX$12:$BA$81,Gewasopname!$BB$12:$BE$81,Gewasopname!$BF$12:$BI$63,Gewasopname!$BJ$12:$BM$63,Gewasopname!$BN$12:$BQ$63,Gewasopname!$BR$12:$BU$63,Gewasopname!$BV$12:$BY$63,Gewasopname!$BZ$12:$CC$63,Gewasopname!$CD$12:$CG$63,Gewasopname!$CH$12:$CK$63,Gewasopname!$CL$12:$CO$63,Gewasopname!$CP$12:$CS$63,Gewasopname!$CT$12:$CW$63,Gewasopname!$CX$12:$DA$63,Gewasopname!$DB$12:$DE$63,Gewasopname!$DF$12:$DI$63,Gewasopname!$DJ$12:$DM$63,Gewasopname!$DN$12:$DQ$63),$D12+1,4,$E$3)),"") ->  | K12: =IF(Invulscherm!$B$15<>"",IF(Invulscherm!$B$15="Suikerbiet",J12,J12*(Invulscherm!$B$19/(HLOOKUP(Invulscherm!$B$15,Gewasopname!$B$2:$DP$63,4,FALSE)))),0) -> 0 | L12: =IF($A12<=Invulscherm!$AB$18,K12,"") -> 0 | M12: -56.17080508 | N12: =IF($A12<=Invulscherm!$AB$18,M12,"") -> -56.17080508 | O12: 0 | P12: =IF($A12<=Invulscherm!$AB$18,O12,"") -> 0 | Q12: 0 | R12: =IF($A12<=Invulscherm!$AB$18,Q12,"") -> 0 | S12: 0 | T12: =IF($A12<=Invulscherm!$AB$18,S12,"") -> 0 | U12: 0 | V12: =IF($A12<=Invulscherm!$AB$18,U12,"") -> 0 | W12: 0 | X12: =IF($A12<=Invulscherm!$AB$18,W12,"") -> 0 | Y12: 0 | Z12: =IF($A12<=Invulscherm!$AB$18,Y12,"") -> 0 | AA12: -56.17080508 | AB12: =IF(A12<=Invulscherm!$AB$18,"",AA12) ->  | AD12: =IF($A12>=Invulscherm!$AB$17,IF($A12<=Invulscherm!$AB$18,(G12+I12-$L12-$N12),""),0) -> 0 | AE12: =IF($A12>=Invulscherm!$AB$20,IF($A12<=Invulscherm!$AB$18,(AD12-P12),""),"") ->  | AF12: =IF($A12>=Invulscherm!$AB$20,IF($A12<=Invulscherm!$AB$18,($AE12-$R12),""),"") ->  | AG12: =IF($A12>=Invulscherm!$AB$20,IF($A12<=Invulscherm!$AB$18,($AF12-$T12),""),"") ->  | AH12: =IF($A12>=Invulscherm!$AB$20,IF($A12<=Invulscherm!$AB$18,($AG12-$V12),""),"") ->  | AI12: =IF($A12>=Invulscherm!$AB$20,IF($A12<=Invulscherm!$AB$18,($AH12-$X12),""),"") ->  | AJ12: =IF($A12>=Invulscherm!$AB$20,IF($A12<=Invulscherm!$AB$18,($AI12-$Z12),""),"") ->  | AK12: =IF($A12>Invulscherm!$AB$20,IF($A12<=Invulscherm!$AB$18,IF(AJ12<-10,"ja","nee"),""),"") ->  | AL12: =IF(AND(Invulscherm!$AB$20<>"",Invulscherm!$B$15<>""),IF($A12>=Invulscherm!$AB$20,IF($A12<=Invulscherm!$AB$18,IF(AJ12>5,"ja","nee"),""),""),"ja") -> ja | AN12: =IF(Invulscherm!$B$13="",IF($A12>Invulscherm!$U$13,0,IF($A12<Invulscherm!$U$13,0,Standaardwaarden!$B$21*Standaardwaarden!$B$20*(Invulscherm!$B$10/100)*Standaardwaarden!$B$23)),IF($A12>Invulscherm!$AB$13,0,IF($A12<Invulscherm!$AB$13,0,Standaardwaarden!$B$21*Standaardwaarden!$B$20*(Invulscherm!$B$10/100)*Standaardwaarden!$B$23))) -> 0 | AO12: 0 | AP12: 0 | AQ12: =(-0.322*LN(Invulscherm!$B$10)+1.2233)*(IF(Invulscherm!$B$8=Invulscherm!$AJ$8,Standaardwaarden!$B$32,IF(Invulscherm!$B$8=Invulscherm!$AJ$9,Standaardwaarden!$B$33,IF(Invulscherm!$B$8=Invulscherm!$AJ$10,Standaardwaarden!$B$34,IF(Invulscherm!$B$8=Invulscherm!$AJ$11,Standaardwaarden!$B$35,IF(Invulscherm!$B$8=Invulscherm!$AJ$12,Standaardwaarden!$B$36,Standaardwaarden!$B$37)))))) -> 0.8500906167 | AS12: =(1/(1+EXP(-1.5*(Invulscherm!$B$11-4)))) -> 0.9770226301 | AT12: 0 | AU12: =IF(Invulscherm!$B$13="",IF(($A12-1)>Invulscherm!$U$13,AU11+AT12/52,IF(($A12-1)<Invulscherm!$U$13,"",Standaardwaarden!$B$22+AT12/52)),IF(($A12-1)>Invulscherm!$AB$13,AU11+AT12/52,IF(($A12-1)<Invulscherm!$AB$13,"",Standaardwaarden!$B$22+AT12/52))) ->  | AV12: =IF(Invulscherm!$B$13="",IF(($A12-1)>Invulscherm!$U$13,AO12*(-2.82)*AT12*(1/52)*(AU12^(-1.6)),0),IF(($A12-1)>Invulscherm!$AB$13,AO12*(-2.82)*AT12*(1/52)*(AU12^(-1.6)),0)) -> 0 | AW12: =IF(Invulscherm!$B$13="",IF(($A12-1)>Invulscherm!$U$13,AW11+AX11,IF(($A12-1)<Invulscherm!$U$13,0,(Standaardwaarden!$B$20*Standaardwaarden!$B$21*(Invulscherm!$B$10/100)*Standaardwaarden!$B$23)/Standaardwaarden!$B$25)),IF(($A12-1)>Invulscherm!$AB$13,AW11+AX11,IF(($A12-1)<Invulscherm!$AB$13,0,(Standaardwaarden!$B$20*Standaardwaarden!$B$21*(Invulscherm!$B$10/100)*Standaardwaarden!$B$23)/Standaardwaarden!$B$25))) -> 0 | AX12: =IF(Invulscherm!$B$13="",IF(($A12-1)>Invulscherm!$U$13,((AV12*(1+Standaardwaarden!$B$29))/(AO12/AW12))-(((AV12*(1+Standaardwaarden!$B$29))-AV12)*(1/Standaardwaarden!$B$28)),0),IF(($A12-1)>Invulscherm!$AB$13,((AV12*(1+Standaardwaarden!$B$29))/(AO12/AW12))-(((AV12*(1+Standaardwaarden!$B$29))-AV12)*(1/Standaardwaarden!$B$28)),0)) -> 0 | AY12: 0 | AZ12: =IF(Invulscherm!$B$13="",IF(($A12-1)<Invulscherm!$U$13,0,Invulscherm!$T$12),IF(($A12-1)<Invulscherm!$AB$13,0,Invulscherm!$B$12)) -> 0 | BA12: 0 | BB12: 0 | BC12: 0 | BD12: =IF(BB12>0,(Standaardwaarden!$B$30*(BB12-BC12-BD11)*((-$AV12-$CJ12-$CW12-$DJ12-$EC12-$EV12-$FO12-$GH12-$HA12)*(1+Standaardwaarden!$B$29))/10000),0) -> 0 | BE12: 0 | BF12: 0 | BH12: 0 | BI12: 49626.06869 | BJ12: 0 | BK12: =(-0.322*LN(Invulscherm!$B$10)+1.2233)*(IF(Invulscherm!$B$8=Invulscherm!$AJ$8,Standaardwaarden!$B$32,IF(Invulscherm!$B$8=Invulscherm!$AJ$9,Standaardwaarden!$B$33,IF(Invulscherm!$B$8=Invulscherm!$AJ$10,Standaardwaarden!$B$34,IF(Invulscherm!$B$8=Invulscherm!$AJ$11,Standaardwaarden!$B$35,IF(Invulscherm!$B$8=Invulscherm!$AJ$12,Standaardwaarden!$B$36,Standaardwaarden!$B$37)))))) -> 0.8500906167 | BM12: =(1/(1+EXP(-1.5*(Invulscherm!$B$11-4)))) -> 0.9770226301 | BN12: 0 | BO12: 16.02673128 | BP12: 0 | BQ12: 4963.559456 | BR12: =((BP12*(1+Standaardwaarden!$B$29))/(BI12/BQ12))-(((BP12*(1+Standaardwaarden!$B$29))-BP12)*(1/Standaardwaarden!$B$28)) -> 0 | BS12: 3.471953135 | BT12: 0 | BU12: 3.471953135 | BV12: 3.471953135 | BW12: 0 | BX12: =IF(BV12>0,(Standaardwaarden!$B$30*(BV12-BW12-BX11)*((-$BP12-$CJ12-$CW12-$DJ12-$EC12-$EV12-$FO12-$GH12-$HA12)*(1+Standaardwaarden!$B$29))/10000),0) -> 0 | BY12: 0.01442121856 | BZ12: 3.457531916 | CA12: =IF(Invulscherm!$AB$13="",IF(A12<Invulscherm!$U$13,(BZ12+(Invulscherm!$T$12-(VLOOKUP(Invulscherm!$U$13,$A$6:$BZ$110,78,FALSE)))),IF(A12>Invulscherm!$U$13,BF12,Invulscherm!$T$12)),IF(A12<Invulscherm!$AB$13,(BZ12+(Invulscherm!$B$12-(VLOOKUP(Invulscherm!$AB$13,$A$6:$BZ$110,78,FALSE)))),IF(A12>Invulscherm!$AB$13,BF12,Invulscherm!$B$12))) -> -56.17080508 | CC12: =IF($A12>Invulscherm!$AB$15,0,IF($A12<Invulscherm!$AB$15,0,Invulscherm!$AB$29*Invulscherm!$AB$31)) -> 0 | CD12: 0 | CE12: 0 | CF12: =IF(Invulscherm!$B$8=Invulscherm!$AJ$8,Standaardwaarden!$B$32,IF(Invulscherm!$B$8=Invulscherm!$AJ$9,Standaardwaarden!$B$33,IF(Invulscherm!$B$8=Invulscherm!$AJ$10,Standaardwaarden!$B$34,IF(Invulscherm!$B$8=Invulscherm!$AJ$11,Standaardwaarden!$B$35,IF(Invulscherm!$B$8=Invulscherm!$AJ$12,Standaardwaarden!$B$36,Standaardwaarden!$B$37))))) -> 0.85 | CG12: =(1/(1+EXP(-1.5*(Invulscherm!$B$11-4)))) -> 0.9770226301 | CH12: 0 | CI12: =IF($A12>Invulscherm!$AB$15,CI11+CH12/52,IF($A12<Invulscherm!$AB$15,"",Invulscherm!$AB$32+CH12/52)) ->  | CJ12: =IF($A12>Invulscherm!$AB$15,CD12*(-2.82)*CH12*(1/52)*(CI12^(-1.6)),0) -> 0 | CK12: =IF($A12>Invulscherm!$AB$15,CK11+CL11,IF($A12<Invulscherm!$AB$15,0,Invulscherm!$AB$29*Invulscherm!$AB$30)) -> 0 | CL12: =IF(CK12>0,IF($A12>Invulscherm!$AB$15,((CJ12*(1+Standaardwaarden!$B$29))/(CD12/CK12))-(((CJ12*(1+Standaardwaarden!$B$29))-CJ12)*(1/Standaardwaarden!$B$28)),0),0) -> 0 | CM12: 0 | CN12: =IF(Invulscherm!$B$13="",IF(A12<Invulscherm!$U$13,0,(CM12-VLOOKUP(Invulscherm!$U$13,$A$4:$HK$110,91,FALSE))),IF(A12<Invulscherm!$AB$13,0,(CM12-VLOOKUP(Invulscherm!$AB$13,$A$4:$HK$110,91,FALSE)))) -> 0 | CP12: =IF($A12>Invulscherm!$AB$16,0,IF($A12<Invulscherm!$AB$16,0,Invulscherm!$AB$36)) -> 0 | CQ12: 0 | CR12: 0 | CS12: =IF(Invulscherm!$B$8=Invulscherm!$AJ$8,Standaardwaarden!$B$32,IF(Invulscherm!$B$8=Invulscherm!$AJ$9,Standaardwaarden!$B$33,IF(Invulscherm!$B$8=Invulscherm!$AJ$10,Standaardwaarden!$B$34,IF(Invulscherm!$B$8=Invulscherm!$AJ$11,Standaardwaarden!$B$35,IF(Invulscherm!$B$8=Invulscherm!$AJ$12,Standaardwaarden!$B$36,Standaardwaarden!$B$37))))) -> 0.85 | CT12: =(1/(1+EXP(-1.5*(Invulscherm!$B$11-4)))) -> 0.9770226301 | CU12: 0 | CV12: =IF($A12>Invulscherm!$AB$16,CV11+CU12/52,IF($A12<Invulscherm!$AB$16,"",Invulscherm!$AB$37+CU12/52)) ->  | CW12: =IF($A12>Invulscherm!$AB$16,CQ12*(-2.82)*CU12*(1/52)*(CV12^(-1.6)),0) -> 0 | CX12: =IF($A12>Invulscherm!$AB$16,CX11+CY11,IF($A12<Invulscherm!$AB$16,0,Invulscherm!$AB$35)) -> 0 | CY12: =IF(CX12>0,IF($A12>Invulscherm!$AB$16,((CW12*(1+Standaardwaarden!$B$29))/(CQ12/CX12))-(((CW12*(1+Standaardwaarden!$B$29))-CW12)*(1/Standaardwaarden!$B$28)),0),0) -> 0 | CZ12: 0 | DA12: =IF(Invulscherm!$B$13="",IF(A12<Invulscherm!$U$13,0,(CZ12-VLOOKUP(Invulscherm!$U$13,$A$4:$HK$110,104,FALSE))),IF(A12<Invulscherm!$AB$13,0,(CZ12-VLOOKUP(Invulscherm!$AB$13,$A$4:$HK$110,104,FALSE)))) -> 0 | DC12: =IF(AND(Invulscherm!$B$32=Invulscherm!$AQ$8,Invulscherm!$B$33<>""),IF($A12>Invulscherm!$AB$20,0,IF($A12<Invulscherm!$AB$20,0,Invulscherm!$C$33*Invulscherm!$C$37*(VLOOKUP(Invulscherm!$B$33,Meststoffen!$A$3:$P$62,7,FALSE)))),"") ->  | DD12: =IF(AND(Invulscherm!$B$32=Invulscherm!$AQ$8,Invulscherm!$B$33<>""),IF(DC12>0,DC12,DD11+DJ11),"") ->  | DE12: =IF(AND(Invulscherm!$B$32=Invulscherm!$AQ$8,Invulscherm!$B$33<>""),IF($C12>27,3.5,IF($C12<-0.999,0,IF(-1<$C12<9.001,0.09*($C12+1),0.88*2^(($C12-9)/9)))),"") ->  | DF12: =IF(AND(Invulscherm!$B$32=Invulscherm!$AQ$8,Invulscherm!$B$33<>""),IF(Invulscherm!$B$8=Invulscherm!$AJ$8,Standaardwaarden!$B$32,IF(Invulscherm!$B$8=Invulscherm!$AJ$9,Standaardwaarden!$B$33,IF(Invulscherm!$B$8=Invulscherm!$AJ$10,Standaardwaarden!$B$34,IF(Invulscherm!$B$8=Invulscherm!$AJ$11,Standaardwaarden!$B$35,IF(Invulscherm!$B$8=Invulscherm!$AJ$12,Standaardwaarden!$B$36,Standaardwaarden!$B$37))))),"") ->  | DG12: =IF(AND(Invulscherm!$B$32=Invulscherm!$AQ$8,Invulscherm!$B$33<>""),(1/(1+EXP(-1.5*(Invulscherm!$B$11-4)))),"") ->  | DH12: =IF(AND(Invulscherm!$B$32=Invulscherm!$AQ$8,Invulscherm!$B$33<>""),DE12*DF12*DG12,"") ->  | DI12: =IF(AND(Invulscherm!$B$32=Invulscherm!$AQ$8,Invulscherm!$B$33<>""),IF($A12>Invulscherm!$AB$20,DI11+DH12/52,IF($A12<Invulscherm!$AB$20,"",(VLOOKUP(Invulscherm!$B$33,Meststoffen!$A$3:$P$62,6,FALSE))+DH12/52)),"") ->  | DJ12: =IF(AND(Invulscherm!$B$32=Invulscherm!$AQ$8,Invulscherm!$B$33<>""),IF($A12>Invulscherm!$AB$20,DD12*(-2.82)*DH12*(1/52)*(DI12^(-1.6)),0),0) -> 0 | DK12: =IF(AND(Invulscherm!$B$32=Invulscherm!$AQ$8,Invulscherm!$B$33<>""),IF($A12>Invulscherm!$AB$20,DK11+DL11,IF($A12<Invulscherm!$AB$20,0,IF(Invulscherm!$D$28="Uitslag + 10%",1.1*(Invulscherm!$C$33*(Invulscherm!$C$35-Invulscherm!$C$36)),IF(Invulscherm!$D$28="Uitslag - 10%",0.9*(Invulscherm!$C$33*(Invulscherm!$C$35-Invulscherm!$C$36)),Invulscherm!$C$33*(Invulscherm!$C$35-Invulscherm!$C$36))))),0) -> 0 | DL12: =IF((DK12)>0,((DJ12*(1+Standaardwaarden!$B$29))/(DD12/DK12))-(((DJ12*(1+Standaardwaarden!$B$29))-DJ12)*(1/Standaardwaarden!$B$28)),0) -> 0 | DM12: 0 | DN12: =IF(AND(Invulscherm!$B$32=Invulscherm!$AQ$8,Invulscherm!$B$33<>""),IF($A12<Invulscherm!$AB$20,"",IF(Invulscherm!$D$28="Uitslag + 10%",1.1*(Invulscherm!$C$33*Invulscherm!$C$36),IF(Invulscherm!$D$28="Uitslag - 10%",0.9*(Invulscherm!$C$33*Invulscherm!$C$36),Invulscherm!$C$33*Invulscherm!$C$36))),IF($A12<Invulscherm!$AB$20,"",Invulscherm!$C$33*0.98)) ->  | DO12: =IF($A12<Invulscherm!$AB$20,0,IF(AND(Invulscherm!$AB$20<Invulscherm!$AB$13,$A12>Invulscherm!$AB$13),0,IF(AND(Invulscherm!$B$32=Invulscherm!$AQ$8,Invulscherm!$B$33<>""),IF(Invulscherm!$B$34=Invulscherm!$AS$8,DN12*Invulscherm!$AT$8,IF(Invulscherm!$B$34=Invulscherm!$AS$9,DN12*Invulscherm!$AT$9,DN12*Invulscherm!$AT$10)),Invulscherm!$C$33*0.98))) -> 0 | DP12: 0 | DQ12: 0 | DR12: =IF(DP12>0,(Standaardwaarden!$B$30*(DP12-DQ12-DR11)*((-$AV12-$CJ12-$CW12-$DJ12-$EC12-$EV12-$FO12-$GH12-$HA12)*(1+Standaardwaarden!$B$29))/10000),0) -> 0 | DS12: 0 | DT12: =IF(DP12>0,IF($A12>Invulscherm!$AB$13,(DP12-DS12),0),0) -> 0 | DV12: =IF(AND(Invulscherm!$F$32=Invulscherm!$AQ$8,Invulscherm!$F$33<>""),IF($A12>Invulscherm!$AB$21,0,IF($A12<Invulscherm!$AB$21,0,Invulscherm!$G$33*Invulscherm!$G$37*(VLOOKUP(Invulscherm!$F$33,Meststoffen!$A$3:$P$62,7,FALSE)))),"") ->  | DW12: =IF(AND(Invulscherm!$F$32=Invulscherm!$AQ$8,Invulscherm!$F$33<>""),IF(DV12>0,DV12,DW11+EC11),"") ->  | DX12: =IF(AND(Invulscherm!$F$32=Invulscherm!$AQ$8,Invulscherm!$F$33<>""),IF($C12>27,3.5,IF($C12<-0.999,0,IF(-1<$C12<9.001,0.09*($C12+1),0.88*2^(($C12-9)/9)))),"") ->  | DY12: =IF(AND(Invulscherm!$F$32=Invulscherm!$AQ$8,Invulscherm!$F$33<>""),IF(Invulscherm!$B$8=Invulscherm!$AJ$8,Standaardwaarden!$B$32,IF(Invulscherm!$B$8=Invulscherm!$AJ$9,Standaardwaarden!$B$33,IF(Invulscherm!$B$8=Invulscherm!$AJ$10,Standaardwaarden!$B$34,IF(Invulscherm!$B$8=Invulscherm!$AJ$11,Standaardwaarden!$B$35,IF(Invulscherm!$B$8=Invulscherm!$AJ$12,Standaardwaarden!$B$36,Standaardwaarden!$B$37))))),"") ->  | DZ12: =IF(AND(Invulscherm!$F$32=Invulscherm!$AQ$8,Invulscherm!$F$33<>""),(1/(1+EXP(-1.5*(Invulscherm!$B$11-4)))),"") ->  | EA12: =IF(AND(Invulscherm!$F$32=Invulscherm!$AQ$8,Invulscherm!$F$33<>""),DX12*DY12*DZ12,"") ->  | EB12: =IF(AND(Invulscherm!$F$32=Invulscherm!$AQ$8,Invulscherm!$F$33<>""),IF($A12>Invulscherm!$AB$21,EB11+EA12/52,IF($A12<Invulscherm!$AB$21,"",(VLOOKUP(Invulscherm!$F$33,Meststoffen!$A$3:$P$62,6,FALSE))+EA12/52)),"") ->  | EC12: =IF(AND(Invulscherm!$F$32=Invulscherm!$AQ$8,Invulscherm!$F$33<>""),IF($A12>Invulscherm!$AB$21,DW12*(-2.82)*EA12*(1/52)*(EB12^(-1.6)),0),0) -> 0 | ED12: =IF(AND(Invulscherm!$F$32=Invulscherm!$AQ$8,Invulscherm!$F$33<>""),IF($A12>Invulscherm!$AB$21,ED11+EE11,IF($A12<Invulscherm!$AB$21,0,IF(Invulscherm!$D$28="Uitslag + 10%",1.1*(Invulscherm!$G$33*(Invulscherm!$G$35-Invulscherm!$G$36)),IF(Invulscherm!$D$28="Uitslag - 10%",0.9*(Invulscherm!$G$33*(Invulscherm!$G$35-Invulscherm!$G$36)),Invulscherm!$G$33*(Invulscherm!$G$35-Invulscherm!$G$36))))),0) -> 0 | EE12: =IF((ED12)>0,((EC12*(1+Standaardwaarden!$B$29))/(DW12/ED12))-(((EC12*(1+Standaardwaarden!$B$29))-EC12)*(1/Standaardwaarden!$B$28)),0) -> 0 | EF12: 0 | EG12: =IF(AND(Invulscherm!$F$32=Invulscherm!$AQ$8,Invulscherm!$F$33<>""),IF($A12<Invulscherm!$AB$21,"",IF(Invulscherm!$D$28="Uitslag + 10%",1.1*(Invulscherm!$G$33*Invulscherm!$G$36),IF(Invulscherm!$D$28="Uitslag - 10%",0.9*(Invulscherm!$G$33*Invulscherm!$G$36),Invulscherm!$G$33*Invulscherm!$G$36))),Invulscherm!$G$33*0.98) -> 0 | EH12: =IF($A12<Invulscherm!$AB$21,0,IF(AND(Invulscherm!$AB$21<Invulscherm!$AB$13,$A12>Invulscherm!$AB$13),0,IF(AND(Invulscherm!$F$32=Invulscherm!$AQ$8,Invulscherm!$F$33<>""),IF(Invulscherm!$F$34=Invulscherm!$AS$8,EG12*Invulscherm!$AT$8,EG12*Invulscherm!$AT$9),Invulscherm!$G$33*0.98))) -> 0 | EI12: 0 | EJ12: 0 | EK12: =IF(EI12>0,(Standaardwaarden!$B$30*(EI12-EJ12-EK11)*((-$AV12-$CJ12-$CW12-$DJ12-$EC12-$EV12-$FO12-$GH12-$HA12)*(1+Standaardwaarden!$B$29))/10000),0) -> 0 | EL12: 0 | EM12: =IF(EI12>0,IF($A12>Invulscherm!$AB$13,(EI12-EL12),0),0) -> 0 | EO12: =IF(AND(Invulscherm!$J$32=Invulscherm!$AQ$8,Invulscherm!$J$33<>""),IF($A12>Invulscherm!$AB$22,0,IF($A12<Invulscherm!$AB$22,0,Invulscherm!$K$33*Invulscherm!$K$37*(VLOOKUP(Invulscherm!$J$33,Meststoffen!$A$3:$P$62,7,FALSE)))),"") ->  | EP12: =IF(AND(Invulscherm!$J$32=Invulscherm!$AQ$8,Invulscherm!$J$33<>""),IF(EO12>0,EO12,EP11+EV11),"") ->  | EQ12: =IF(AND(Invulscherm!$J$32=Invulscherm!$AQ$8,Invulscherm!$J$33<>""),IF($C12>27,3.5,IF($C12<-0.999,0,IF(-1<$C12<9.001,0.09*($C12+1),0.88*2^(($C12-9)/9)))),"") ->  | ER12: =IF(AND(Invulscherm!$J$32=Invulscherm!$AQ$8,Invulscherm!$J$33<>""),IF(Invulscherm!$B$8=Invulscherm!$AJ$8,Standaardwaarden!$B$32,IF(Invulscherm!$B$8=Invulscherm!$AJ$9,Standaardwaarden!$B$33,IF(Invulscherm!$B$8=Invulscherm!$AJ$10,Standaardwaarden!$B$34,IF(Invulscherm!$B$8=Invulscherm!$AJ$11,Standaardwaarden!$B$35,IF(Invulscherm!$B$8=Invulscherm!$AJ$12,Standaardwaarden!$B$36,Standaardwaarden!$B$37))))),"") ->  | ES12: =IF(AND(Invulscherm!$J$32=Invulscherm!$AQ$8,Invulscherm!$J$33<>""),(1/(1+EXP(-1.5*(Invulscherm!$B$11-4)))),"") ->  | ET12: =IF(AND(Invulscherm!$J$32=Invulscherm!$AQ$8,Invulscherm!$J$33<>""),EQ12*ER12*ES12,"") ->  | EU12: =IF(AND(Invulscherm!$J$32=Invulscherm!$AQ$8,Invulscherm!$J$33<>""),IF($A12>Invulscherm!$AB$22,EU11+ET12/52,IF($A12<Invulscherm!$AB$22,"",(VLOOKUP(Invulscherm!$J$33,Meststoffen!$A$3:$P$62,6,FALSE))+ET12/52)),"") ->  | EV12: =IF(AND(Invulscherm!$J$32=Invulscherm!$AQ$8,Invulscherm!$J$33<>""),IF($A12>Invulscherm!$AB$22,EP12*(-2.82)*ET12*(1/52)*(EU12^(-1.6)),0),0) -> 0 | EW12: =IF(AND(Invulscherm!$J$32=Invulscherm!$AQ$8,Invulscherm!$J$33<>""),IF($A12>Invulscherm!$AB$22,EW11+EX11,IF($A12<Invulscherm!$AB$22,0,IF(Invulscherm!$D$28="Uitslag + 10%",1.1*(Invulscherm!$K$33*(Invulscherm!$K$35-Invulscherm!$K$36)),IF(Invulscherm!$D$28="Uitslag - 10%",0.9*(Invulscherm!$K$33*(Invulscherm!$K$35-Invulscherm!$K$36)),Invulscherm!$K$33*(Invulscherm!$K$35-Invulscherm!$K$36))))),0) -> 0 | EX12: =IF((EW12)>0,((EV12*(1+Standaardwaarden!$B$29))/(EP12/EW12))-(((EV12*(1+Standaardwaarden!$B$29))-EV12)*(1/Standaardwaarden!$B$28)),0) -> 0 | EY12: 0 | EZ12: =IF(AND(Invulscherm!$J$32=Invulscherm!$AQ$8,Invulscherm!$J$33<>""),IF($A12<Invulscherm!$AB$22,"",IF(Invulscherm!$D$28="Uitslag + 10%",1.1*(Invulscherm!$K$33*Invulscherm!$K$36),IF(Invulscherm!$D$28="Uitslag - 10%",0.9*(Invulscherm!$K$33*Invulscherm!$K$36),Invulscherm!$K$33*Invulscherm!$K$36))),Invulscherm!$K$33*0.98) -> 0 | FA12: =IF($A12<Invulscherm!$AB$22,0,IF(AND(Invulscherm!$AB$22<Invulscherm!$AB$13,$A12>Invulscherm!$AB$13),0,IF(AND(Invulscherm!$J$32=Invulscherm!$AQ$8,Invulscherm!$J$33<>""),IF(Invulscherm!$J$34=Invulscherm!$AS$8,EZ12*Invulscherm!$AT$8,EZ12*Invulscherm!$AT$9),Invulscherm!$K$33*0.98))) -> 0 | FB12: 0 | FC12: 0 | FD12: =IF(FB12>0,(Standaardwaarden!$B$30*(FB12-FC12-FD11)*((-$AV12-$CJ12-$CW12-$DJ12-$EC12-$EV12-$FO12-$GH12-$HA12)*(1+Standaardwaarden!$B$29))/10000),0) -> 0 | FE12: 0 | FF12: =IF(FB12>0,IF($A12>Invulscherm!$AB$13,(FB12-FE12),0),0) -> 0 | FH12: =IF(AND(Invulscherm!$B$43=Invulscherm!$AQ$8,Invulscherm!$B$44<>""),IF($A12>Invulscherm!$AB$23,0,IF($A12<Invulscherm!$AB$23,0,Invulscherm!$C$44*Invulscherm!$C$48*(VLOOKUP(Invulscherm!$B$44,Meststoffen!$A$3:$P$62,7,FALSE)))),"") ->  | FI12: =IF(AND(Invulscherm!$B$43=Invulscherm!$AQ$8,Invulscherm!$B$44<>""),IF(FH12>0,FH12,FI11+FO11),"") ->  | FJ12: =IF(AND(Invulscherm!$B$43=Invulscherm!$AQ$8,Invulscherm!$B$44<>""),IF($C12>27,3.5,IF($C12<-0.999,0,IF(-1<$C12<9.001,0.09*($C12+1),0.88*2^(($C12-9)/9)))),"") ->  | FK12: =IF(AND(Invulscherm!$B$43=Invulscherm!$AQ$8,Invulscherm!$B$44<>""),IF(Invulscherm!$B$8=Invulscherm!$AJ$8,Standaardwaarden!$B$32,IF(Invulscherm!$B$8=Invulscherm!$AJ$9,Standaardwaarden!$B$33,IF(Invulscherm!$B$8=Invulscherm!$AJ$10,Standaardwaarden!$B$34,IF(Invulscherm!$B$8=Invulscherm!$AJ$11,Standaardwaarden!$B$35,IF(Invulscherm!$B$8=Invulscherm!$AJ$12,Standaardwaarden!$B$36,Standaardwaarden!$B$37))))),"") ->  | FL12: =IF(AND(Invulscherm!$B$43=Invulscherm!$AQ$8,Invulscherm!$B$44<>""),(1/(1+EXP(-1.5*(Invulscherm!$B$11-4)))),"") ->  | FM12: =IF(AND(Invulscherm!$B$43=Invulscherm!$AQ$8,Invulscherm!$B$44<>""),FJ12*FK12*FL12,"") ->  | FN12: =IF(AND(Invulscherm!$B$43=Invulscherm!$AQ$8,Invulscherm!$B$44<>""),IF($A12>Invulscherm!$AB$23,FN11+FM12/52,IF($A12<Invulscherm!$AB$23,"",(VLOOKUP(Invulscherm!$B$44,Meststoffen!$A$3:$P$62,6,FALSE))+FM12/52)),"") ->  | FO12: =IF(AND(Invulscherm!$B$43=Invulscherm!$AQ$8,Invulscherm!$B$44<>""),IF($A12>Invulscherm!$AB$23,FI12*(-2.82)*FM12*(1/52)*(FN12^(-1.6)),0),0) -> 0 | FP12: =IF(AND(Invulscherm!$B$43=Invulscherm!$AQ$8,Invulscherm!$B$44<>""),IF($A12>Invulscherm!$AB$23,FP11+FQ11,IF($A12<Invulscherm!$AB$23,0,IF(Invulscherm!$D$28="Uitslag + 10%",1.1*(Invulscherm!$C$44*(Invulscherm!$C$46-Invulscherm!$C$47)),IF(Invulscherm!$D$28="Uitslag - 10%",0.9*(Invulscherm!$C$44*(Invulscherm!$C$46-Invulscherm!$C$47)),Invulscherm!$C$44*(Invulscherm!$C$46-Invulscherm!$C$47))))),0) -> 0 | FQ12: =IF((FP12)>0,((FO12*(1+Standaardwaarden!$B$29))/(FI12/FP12))-(((FO12*(1+Standaardwaarden!$B$29))-FO12)*(1/Standaardwaarden!$B$28)),0) -> 0 | FR12: 0 | FS12: =IF(AND(Invulscherm!$B$43=Invulscherm!$AQ$8,Invulscherm!$B$44<>""),IF($A12<Invulscherm!$AB$23,"",IF(Invulscherm!$D$28="Uitslag + 10%",1.1*(Invulscherm!$C$44*Invulscherm!$C$47),IF(Invulscherm!$D$28="Uitslag - 10%",0.9*(Invulscherm!$C$44*Invulscherm!$C$47),Invulscherm!$C$44*Invulscherm!$C$47))),Invulscherm!$C$44*0.98) -> 0 | FT12: =IF($A12<Invulscherm!$AB$23,0,IF(AND(Invulscherm!$AB$23<Invulscherm!$AB$13,$A12>Invulscherm!$AB$13),0,IF(AND(Invulscherm!$B$43=Invulscherm!$AQ$8,Invulscherm!$B$44<>""),IF(Invulscherm!$B$45=Invulscherm!$AS$8,FS12*Invulscherm!$AT$8,FS12*Invulscherm!$AT$9),Invulscherm!$C$44*0.98))) -> 0 | FU12: 0 | FV12: 0 | FW12: =IF(FU12>0,(Standaardwaarden!$B$30*(FU12-FV12-FW11)*((-$AV12-$CJ12-$CW12-$DJ12-$EC12-$EV12-$FO12-$GH12-$HA12)*(1+Standaardwaarden!$B$29))/10000),0) -> 0 | FX12: 0 | FY12: =IF(FU12>0,IF($A12>Invulscherm!$AB$13,(FU12-FX12),0),0) -> 0 | GA12: =IF(AND(Invulscherm!$F$43=Invulscherm!$AQ$8,Invulscherm!$F$44<>""),IF($A12>Invulscherm!$AB$24,0,IF($A12<Invulscherm!$AB$24,0,Invulscherm!$G$44*Invulscherm!$G$48*(VLOOKUP(Invulscherm!$F$44,Meststoffen!$A$3:$P$62,7,FALSE)))),"") ->  | GB12: =IF(AND(Invulscherm!$F$43=Invulscherm!$AQ$8,Invulscherm!$F$44<>""),IF(GA12>0,GA12,GB11+GH11),"") ->  | GC12: =IF(AND(Invulscherm!$F$43=Invulscherm!$AQ$8,Invulscherm!$F$44<>""),IF($C12>27,3.5,IF($C12<-0.999,0,IF(-1<$C12<9.001,0.09*($C12+1),0.88*2^(($C12-9)/9)))),"") ->  | GD12: =IF(AND(Invulscherm!$F$43=Invulscherm!$AQ$8,Invulscherm!$F$44<>""),IF(Invulscherm!$B$8=Invulscherm!$AJ$8,Standaardwaarden!$B$32,IF(Invulscherm!$B$8=Invulscherm!$AJ$9,Standaardwaarden!$B$33,IF(Invulscherm!$B$8=Invulscherm!$AJ$10,Standaardwaarden!$B$34,IF(Invulscherm!$B$8=Invulscherm!$AJ$11,Standaardwaarden!$B$35,IF(Invulscherm!$B$8=Invulscherm!$AJ$12,Standaardwaarden!$B$36,Standaardwaarden!$B$37))))),"") ->  | GE12: =IF(AND(Invulscherm!$F$43=Invulscherm!$AQ$8,Invulscherm!$F$44<>""),(1/(1+EXP(-1.5*(Invulscherm!$B$11-4)))),"") ->  | GF12: =IF(AND(Invulscherm!$F$43=Invulscherm!$AQ$8,Invulscherm!$F$44<>""),GC12*GD12*GE12,"") ->  | GG12: =IF(AND(Invulscherm!$F$43=Invulscherm!$AQ$8,Invulscherm!$F$44<>""),IF($A12>Invulscherm!$AB$24,GG11+GF12/52,IF($A12<Invulscherm!$AB$24,"",(VLOOKUP(Invulscherm!$F$44,Meststoffen!$A$3:$P$62,6,FALSE))+GF12/52)),"") ->  | GH12: =IF(AND(Invulscherm!$F$43=Invulscherm!$AQ$8,Invulscherm!$F$44<>""),IF($A12>Invulscherm!$AB$24,GB12*(-2.82)*GF12*(1/52)*(GG12^(-1.6)),0),0) -> 0 | GI12: =IF(AND(Invulscherm!$F$43=Invulscherm!$AQ$8,Invulscherm!$F$44<>""),IF($A12>Invulscherm!$AB$24,GI11+GJ11,IF($A12<Invulscherm!$AB$24,0,IF(Invulscherm!$D$28="Uitslag + 10%",1.1*(Invulscherm!$G$44*(Invulscherm!$G$46-Invulscherm!$G$47)),IF(Invulscherm!$D$28="Uitslag - 10%",0.9*(Invulscherm!$G$44*(Invulscherm!$G$46-Invulscherm!$G$47)),Invulscherm!$G$44*(Invulscherm!$G$46-Invulscherm!$G$47))))),0) -> 0 | GJ12: =IF((GI12)>0,((GH12*(1+Standaardwaarden!$B$29))/(GB12/GI12))-(((GH12*(1+Standaardwaarden!$B$29))-GH12)*(1/Standaardwaarden!$B$28)),0) -> 0 | GK12: 0 | GL12: =IF(AND(Invulscherm!$F$43=Invulscherm!$AQ$8,Invulscherm!$F$44<>""),IF($A12<Invulscherm!$AB$24,"",IF(Invulscherm!$D$28="Uitslag + 10%",1.1*(Invulscherm!$G$44*Invulscherm!$G$47),IF(Invulscherm!$D$28="Uitslag - 10%",0.9*(Invulscherm!$G$44*Invulscherm!$G$47),Invulscherm!$G$44*Invulscherm!$G$47))),Invulscherm!$G$44*0.98) -> 0 | GM12: =IF($A12<Invulscherm!$AB$24,0,IF(AND(Invulscherm!$AB$24<Invulscherm!$AB$13,$A12>Invulscherm!$AB$13),0,IF(AND(Invulscherm!$F$43=Invulscherm!$AQ$8,Invulscherm!$F$44<>""),IF(Invulscherm!$F$45=Invulscherm!$AS$8,GL12*Invulscherm!$AT$8,GL12*Invulscherm!$AT$9),Invulscherm!$G$44*0.98))) -> 0 | GN12: 0 | GO12: 0 | GP12: =IF(GN12>0,(Standaardwaarden!$B$30*(GN12-GO12-GP11)*((-$AV12-$CJ12-$CW12-$DJ12-$EC12-$EV12-$FO12-$GH12-$HA12)*(1+Standaardwaarden!$B$29))/10000),0) -> 0 | GQ12: 0 | GR12: =IF(GN12>0,IF($A12>Invulscherm!$AB$13,(GN12-GQ12),0),0) -> 0 | GT12: =IF(AND(Invulscherm!$J$43=Invulscherm!$AQ$8,Invulscherm!$J$44<>""),IF($A12>Invulscherm!$AB$25,0,IF($A12<Invulscherm!$AB$25,0,Invulscherm!$K$44*Invulscherm!$K$48*(VLOOKUP(Invulscherm!$J$44,Meststoffen!$A$3:$P$62,7,FALSE)))),"") ->  | GU12: =IF(AND(Invulscherm!$J$43=Invulscherm!$AQ$8,Invulscherm!$J$44<>""),IF(GT12>0,GT12,GU11+HA11),"") ->  | GV12: =IF(AND(Invulscherm!$J$43=Invulscherm!$AQ$8,Invulscherm!$J$44<>""),IF($C12>27,3.5,IF($C12<-0.999,0,IF(-1<$C12<9.001,0.09*($C12+1),0.88*2^(($C12-9)/9)))),"") ->  | GW12: =IF(AND(Invulscherm!$J$43=Invulscherm!$AQ$8,Invulscherm!$J$44<>""),IF(Invulscherm!$B$8=Invulscherm!$AJ$8,Standaardwaarden!$B$32,IF(Invulscherm!$B$8=Invulscherm!$AJ$9,Standaardwaarden!$B$33,IF(Invulscherm!$B$8=Invulscherm!$AJ$10,Standaardwaarden!$B$34,IF(Invulscherm!$B$8=Invulscherm!$AJ$11,Standaardwaarden!$B$35,IF(Invulscherm!$B$8=Invulscherm!$AJ$12,Standaardwaarden!$B$36,Standaardwaarden!$B$37))))),"") ->  | GX12: =IF(AND(Invulscherm!$J$43=Invulscherm!$AQ$8,Invulscherm!$J$44<>""),(1/(1+EXP(-1.5*(Invulscherm!$B$11-4)))),"") ->  | GY12: =IF(AND(Invulscherm!$J$43=Invulscherm!$AQ$8,Invulscherm!$J$44<>""),GV12*GW12*GX12,"") ->  | GZ12: =IF(AND(Invulscherm!$J$43=Invulscherm!$AQ$8,Invulscherm!$J$44<>""),IF($A12>Invulscherm!$AB$25,GZ11+GY12/52,IF($A12<Invulscherm!$AB$25,"",(VLOOKUP(Invulscherm!$J$44,Meststoffen!$A$3:$P$62,6,FALSE))+GY12/52)),"") ->  | HA12: =IF(AND(Invulscherm!$J$43=Invulscherm!$AQ$8,Invulscherm!$J$44<>""),IF($A12>Invulscherm!$AB$25,GU12*(-2.82)*GY12*(1/52)*(GZ12^(-1.6)),0),0) -> 0 | HB12: =IF(AND(Invulscherm!$J$43=Invulscherm!$AQ$8,Invulscherm!$J$44<>""),IF($A12>Invulscherm!$AB$25,HB11+HC11,IF($A12<Invulscherm!$AB$25,0,IF(Invulscherm!$D$28="Uitslag + 10%",1.1*(Invulscherm!$K$44*(Invulscherm!$K$46-Invulscherm!$K$47)),IF(Invulscherm!$D$28="Uitslag - 10%",0.9*(Invulscherm!$K$44*(Invulscherm!$K$46-Invulscherm!$K$47)),Invulscherm!$K$44*(Invulscherm!$K$46-Invulscherm!$K$47))))),0) -> 0 | HC12: =IF((HB12)>0,((HA12*(1+Standaardwaarden!$B$29))/(GU12/HB12))-(((HA12*(1+Standaardwaarden!$B$29))-HA12)*(1/Standaardwaarden!$B$28)),0) -> 0 | HD12: 0 | HE12: =IF(AND(Invulscherm!$J$43=Invulscherm!$AQ$8,Invulscherm!$J$44<>""),IF($A12<Invulscherm!$AB$25,"",IF(Invulscherm!$D$28="Uitslag + 10%",1.1*(Invulscherm!$K$44*Invulscherm!$K$47),IF(Invulscherm!$D$28="Uitslag - 10%",0.9*(Invulscherm!$K$44*Invulscherm!$K$47),Invulscherm!$K$44*Invulscherm!$K$47))),Invulscherm!$K$44*0.98) -> 0 | HF12: =IF($A12<Invulscherm!$AB$25,0,IF(AND(Invulscherm!$AB$25<Invulscherm!$AB$13,$A12>Invulscherm!$AB$13),0,IF(AND(Invulscherm!$J$43=Invulscherm!$AQ$8,Invulscherm!$J$44<>""),IF(Invulscherm!$J$45=Invulscherm!$AS$8,HE12*Invulscherm!$AT$8,HE12*Invulscherm!$AT$9),Invulscherm!$K$44*0.98))) -> 0 | HG12: 0 | HH12: 0 | HI12: =IF(HG12>0,(Standaardwaarden!$B$30*(HG12-HH12-HI11)*((-$AV12-$CJ12-$CW12-$DJ12-$EC12-$EV12-$FO12-$GH12-$HA12)*(1+Standaardwaarden!$B$29))/10000),0) -> 0 | HJ12: 0 | HK12: =IF(HG12>0,IF($A12>Invulscherm!$AB$13,(HG12-HJ12),0),0) -> 0
